Workbook

Sheet INTRO
C1: The current version should be used in countries endemic for Loasis
B2: Joint request for selected PC medicines v.3(L)
B4: As part of global efforts to accelerate expansion of preventive chemotherapy (PC) for control and elimination of lymphatic filariasis, schistosomiasis and soil-transmitted helminthiases, the World Health Organization (WHO) facilitates the supply of albendazole 400 mg tablets (GSK) to national lymphatic filariasis elimination programmes and national soil-transmitted helminth control programmes; diethylcarbamazine citrate 100 mg tablets (Eisai) to national lymphatic filariasis elimination programmes; mebendazole 500 mg tablets (J&J) for national soil-transmitted helminth control programmes; and praziquantel 600 mg tablets (Merck KGaA) for school-age children to national schistosomiasis control programmes. WHO also collaborates to supply ivermectin 3 mg tablets (Merck) for onchocerciasis and lymphatic filariasis donation programmes. This Excel-based tool is designed to assist countries in quantifying the number of tablets of relevant PC medicines required to reach the planned target population and districts for the year of request. Output of the tool is a joint request for PC medicines, which can be printed, signed and submitted to WHO to request these medicines.
B6: Structure of the application (worksheets):
B8: INTRO | C8: This worksheet includes guides on how to complete the joint request for selected PC medicines and information about the status of PC for endemic diseases in the country.
B9: COUNTRY_INFO | C9: This worksheet includes information about administrative structure of the country, population by age group, status of endemicity for each disease, population requiring PC and planned interventions.
B10: ALB_MBD, PZQ and IVM | C10: These worksheets include information about endemic districts targeted for treatment with specified PC medicines, treatment plan, and number of tablets required and requested.
B11: SUMMARY | C11: This worksheet includes summary of number of tablets requested, information about stock, and date for submission of requested medicines. Before generating the report (run macros) please select the medicine for which the report is needed. Follow the same rule to see the number of people to be treated for the specific disease. This worksheet should be printed and submitted as a joint request for selected PC medicines (see the instruction for submission in the SUMMARY worksheet).
B13: Instruction for data entry
B15: Most of the cells in the above-mentioned worksheets include formula that are calculated automatically according to the treatment policy recommended by WHO for each disease. See the link http://www.who.int/neglected_diseases/preventive_chemotherapy/pct_manual/en/index.html
B17: Please enter your data into the cells according to their colour code:
C19: White - cell is not protected. Please enter the value of the requested indicator.
C21: Yellow - cell is protected and includes name of indicator. No data entry required.
C23: Orange - cell is not protected and includes a drop-down menu. Please select the value from the drop-down list.
C26: Green - cell is not protected and includes formula. Please change the value only if your data are different from those that are calculated automatically.
C29: Blue - cell is protected and includes formula. No data entry required.
B31: Country data
B33: COUNTRY | E33: Nigeria
B35: Year for request of the medicine | E35: 2019
B37: Is country endemic for lymphatic filariasis (LF)? | E37: Endemic
B39: Is country endemic for onchocerciasis (ONCHO)? | E39: Endemic
B41: Is country endemic for soil-transmitted helminthiases (STH)? | E41: Endemic
B43: Is country endemic for schistosomiasis (SCH)? | E43: Endemic
B45: How many administrative units in the country? | E45: 774
B47: If demographical data at the second administrative level are not available by age group, please enter the proportion (%) of population by age group in the country. If data are available, please leave these cells blank.
B48: 1-4 years age | C48: Preschool-age children (PreSAC) | E48: 0.2
B49: 5-14 years age | C49: School-age children (SAC) | E49: 0.28
B50: 15 years + | C50: Adults | E50: 0.52

Sheet COUNTRY_INFO
A1: COUNTRY INFORMATION
A2: Administrative structure, population by age group, status of endemicity and planned interventions
A4: TOTAL | D4: =SUM(D$9:D$1000) -> 192967568 | E4: =SUM(E$9:E$1000) -> 38593513 | F4: =SUM(F$9:F$1000) -> 54030932 | G4: =SUM(G$9:G$1000) -> 100343145 | M4: =SUM(M$9:M$1000) -> 134792502 | N4: =SUM(N$9:N$1000) -> 57257508 | O4: =SUM(O$9:O$1000) -> 49315164 | P4: =SUM(P$9:P$1000) -> 25737632.77
A6: Country administrative structure | D6: Population | H6: Endemicity | M6: Population requiring PC | Q6: Number of treatment rounds planned for the year | U6: Epidemiological surveys planned for the year
A7: Country | B7: Province/State | C7: District | D7: Total | E7: PreSAC | F7: SAC | G7: Adults | H7: LF | I7: Oncho | J7: STH | K7: SCH | L7: Loa | M7: LF | N7: Oncho | O7: STH | P7: SCH | Q7: LF | R7: Oncho | S7: STH | T7: SCH | U7: LF | V7: Oncho | W7: STH | X7: SCH
A9: =IF(INTRO!$E$33<>0,INTRO!$E$33, " ") -> Nigeria | B9: Abia | C9: Aba North | D9: 148173 | E9: =IF(INTRO!$E$48="","",ROUND($D9*INTRO!$E$48,0)) -> 29635 | F9: =IF(INTRO!$E$49="","",ROUND($D9*INTRO!$E$49,0)) -> 41488 | G9: =IF(INTRO!$E$50="","",ROUND($D9*INTRO!$E$50,0)) -> 77050 | H9: 1 | I9: 1 | J9: 2 | K9: 1 | L9: 0 | M9: =IF(INTRO!$E$37="Endemic",IF($H9>0,IF($H9=4,"Unknown",IF($H9=99,"Stopped",$D9)),0),"Not required") -> 148173 | N9: 56504 | O9: =IF(INTRO!$E$41="Endemic", IF(AND($J9>1,$J9<5), IF($J9=4, "Unknown", E9+F9), 0),"Not required") -> 71123 | P9: =IF(INTRO!$E$43="Endemic", IF(AND($K9>0,$K9<5), IF($K9=4,"Unknown", IF($K9=1, $F9*0.33, IF($K9=2, $F9*0.5+$G9*0.2, SUM(F9:G9)))), 0),"Not required") -> 13691.04 | Q9: 1 | R9: 1 | S9: 1 | T9: 1 | Y9: 36337 | Z9: Aba North
A10: =IF(INTRO!$E$33<>0,INTRO!$E$33, " ") -> Nigeria | B10: Abia | C10: Aba South | D10: 584285 | E10: =IF(INTRO!$E$48="","",ROUND($D10*INTRO!$E$48,0)) -> 116857 | F10: =IF(INTRO!$E$49="","",ROUND($D10*INTRO!$E$49,0)) -> 163600 | G10: =IF(INTRO!$E$50="","",ROUND($D10*INTRO!$E$50,0)) -> 303828 | H10: 1 | I10: 1 | J10: 2 | K10: 0 | L10: 0 | M10: =IF(INTRO!$E$37="Endemic",IF($H10>0,IF($H10=4,"Unknown",IF($H10=99,"Stopped",$D10)),0),"Not required") -> 584285 | N10: 222810 | O10: =IF(INTRO!$E$41="Endemic", IF(AND($J10>1,$J10<5), IF($J10=4, "Unknown", E10+F10), 0),"Not required") -> 280457 | P10: =IF(INTRO!$E$43="Endemic", IF(AND($K10>0,$K10<5), IF($K10=4,"Unknown", IF($K10=1, $F10*0.33, IF($K10=2, $F10*0.5+$G10*0.2, SUM(F10:G10)))), 0),"Not required") -> 0 | Q10: 1 | R10: 1 | S10: 1 | T10: 0 | Y10: 36338 | Z10: Aba South
A11: =IF(INTRO!$E$33<>0,INTRO!$E$33, " ") -> Nigeria | B11: Abia | C11: Arochukwu | D11: 234631 | E11: =IF(INTRO!$E$48="","",ROUND($D11*INTRO!$E$48,0)) -> 46926 | F11: =IF(INTRO!$E$49="","",ROUND($D11*INTRO!$E$49,0)) -> 65697 | G11: =IF(INTRO!$E$50="","",ROUND($D11*INTRO!$E$50,0)) -> 122008 | H11: 1 | I11: 1 | J11: 3 | K11: 0 | L11: 0 | M11: =IF(INTRO!$E$37="Endemic",IF($H11>0,IF($H11=4,"Unknown",IF($H11=99,"Stopped",$D11)),0),"Not required") -> 234631 | N11: 73638 | O11: =IF(INTRO!$E$41="Endemic", IF(AND($J11>1,$J11<5), IF($J11=4, "Unknown", E11+F11), 0),"Not required") -> 112623 | P11: =IF(INTRO!$E$43="Endemic", IF(AND($K11>0,$K11<5), IF($K11=4,"Unknown", IF($K11=1, $F11*0.33, IF($K11=2, $F11*0.5+$G11*0.2, SUM(F11:G11)))), 0),"Not required") -> 0 | Q11: 1 | R11: 2 | S11: 2 | T11: 0 | Y11: 36339 | Z11: Arochukwu
A12: =IF(INTRO!$E$33<>0,INTRO!$E$33, " ") -> Nigeria | B12: Abia | C12: Bende | D12: 264827 | E12: =IF(INTRO!$E$48="","",ROUND($D12*INTRO!$E$48,0)) -> 52965 | F12: =IF(INTRO!$E$49="","",ROUND($D12*INTRO!$E$49,0)) -> 74152 | G12: =IF(INTRO!$E$50="","",ROUND($D12*INTRO!$E$50,0)) -> 137710 | H12: 1 | I12: 1 | J12: 3 | K12: 0 | L12: 0 | M12: =IF(INTRO!$E$37="Endemic",IF($H12>0,IF($H12=4,"Unknown",IF($H12=99,"Stopped",$D12)),0),"Not required") -> 264827 | N12: 90567 | O12: =IF(INTRO!$E$41="Endemic", IF(AND($J12>1,$J12<5), IF($J12=4, "Unknown", E12+F12), 0),"Not required") -> 127117 | P12: =IF(INTRO!$E$43="Endemic", IF(AND($K12>0,$K12<5), IF($K12=4,"Unknown", IF($K12=1, $F12*0.33, IF($K12=2, $F12*0.5+$G12*0.2, SUM(F12:G12)))), 0),"Not required") -> 0 | Q12: 1 | R12: 2 | S12: 2 | T12: 0 | Y12: 36340 | Z12: Bende
A13: =IF(INTRO!$E$33<>0,INTRO!$E$33, " ") -> Nigeria | B13: Abia | C13: Ikwuano | D13: 190225 | E13: =IF(INTRO!$E$48="","",ROUND($D13*INTRO!$E$48,0)) -> 38045 | F13: =IF(INTRO!$E$49="","",ROUND($D13*INTRO!$E$49,0)) -> 53263 | G13: =IF(INTRO!$E$50="","",ROUND($D13*INTRO!$E$50,0)) -> 98917 | H13: 1 | I13: 1 | J13: 2 | K13: 1 | L13: 0 | M13: =IF(INTRO!$E$37="Endemic",IF($H13>0,IF($H13=4,"Unknown",IF($H13=99,"Stopped",$D13)),0),"Not required") -> 190225 | N13: 51391 | O13: =IF(INTRO!$E$41="Endemic", IF(AND($J13>1,$J13<5), IF($J13=4, "Unknown", E13+F13), 0),"Not required") -> 91308 | P13: =IF(INTRO!$E$43="Endemic", IF(AND($K13>0,$K13<5), IF($K13=4,"Unknown", IF($K13=1, $F13*0.33, IF($K13=2, $F13*0.5+$G13*0.2, SUM(F13:G13)))), 0),"Not required") -> 17576.79 | Q13: 1 | R13: 2 | S13: 1 | T13: 1 | Y13: 36341 | Z13: Ikwuano
A14: =IF(INTRO!$E$33<>0,INTRO!$E$33, " ") -> Nigeria | B14: Abia | C14: Isiala-Ngwa North | D14: 211924 | E14: =IF(INTRO!$E$48="","",ROUND($D14*INTRO!$E$48,0)) -> 42385 | F14: =IF(INTRO!$E$49="","",ROUND($D14*INTRO!$E$49,0)) -> 59339 | G14: =IF(INTRO!$E$50="","",ROUND($D14*INTRO!$E$50,0)) -> 110200 | H14: 1 | I14: 1 | J14: 2 | K14: 0 | L14: 0 | M14: =IF(INTRO!$E$37="Endemic",IF($H14>0,IF($H14=4,"Unknown",IF($H14=99,"Stopped",$D14)),0),"Not required") -> 211924 | N14: 80814 | O14: =IF(INTRO!$E$41="Endemic", IF(AND($J14>1,$J14<5), IF($J14=4, "Unknown", E14+F14), 0),"Not required") -> 101724 | P14: =IF(INTRO!$E$43="Endemic", IF(AND($K14>0,$K14<5), IF($K14=4,"Unknown", IF($K14=1, $F14*0.33, IF($K14=2, $F14*0.5+$G14*0.2, SUM(F14:G14)))), 0),"Not required") -> 0 | Q14: 1 | R14: 2 | S14: 1 | T14: 0 | Y14: 36342 | Z14: Isiala-Ngwa North
A15: =IF(INTRO!$E$33<>0,INTRO!$E$33, " ") -> Nigeria | B15: Abia | C15: Isiala-Ngwa South | D15: 185771 | E15: =IF(INTRO!$E$48="","",ROUND($D15*INTRO!$E$48,0)) -> 37154 | F15: =IF(INTRO!$E$49="","",ROUND($D15*INTRO!$E$49,0)) -> 52016 | G15: =IF(INTRO!$E$50="","",ROUND($D15*INTRO!$E$50,0)) -> 96601 | H15: 1 | I15: 1 | J15: 2 | K15: 0 | L15: 0 | M15: =IF(INTRO!$E$37="Endemic",IF($H15>0,IF($H15=4,"Unknown",IF($H15=99,"Stopped",$D15)),0),"Not required") -> 185771 | N15: 70842 | O15: =IF(INTRO!$E$41="Endemic", IF(AND($J15>1,$J15<5), IF($J15=4, "Unknown", E15+F15), 0),"Not required") -> 89170 | P15: =IF(INTRO!$E$43="Endemic", IF(AND($K15>0,$K15<5), IF($K15=4,"Unknown", IF($K15=1, $F15*0.33, IF($K15=2, $F15*0.5+$G15*0.2, SUM(F15:G15)))), 0),"Not required") -> 0 | Q15: 1 | R15: 2 | S15: 1 | T15: 0 | Y15: 36343 | Z15: Isiala-Ngwa South
A16: =IF(INTRO!$E$33<>0,INTRO!$E$33, " ") -> Nigeria | B16: Abia | C16: Isiukwuato | D16: 157760 | E16: =IF(INTRO!$E$48="","",ROUND($D16*INTRO!$E$48,0)) -> 31552 | F16: =IF(INTRO!$E$49="","",ROUND($D16*INTRO!$E$49,0)) -> 44173 | G16: =IF(INTRO!$E$50="","",ROUND($D16*INTRO!$E$50,0)) -> 82035 | H16: 1 | I16: 1 | J16: 2 | K16: 0 | L16: 0 | M16: =IF(INTRO!$E$37="Endemic",IF($H16>0,IF($H16=4,"Unknown",IF($H16=99,"Stopped",$D16)),0),"Not required") -> 157760 | N16: 73284 | O16: =IF(INTRO!$E$41="Endemic", IF(AND($J16>1,$J16<5), IF($J16=4, "Unknown", E16+F16), 0),"Not required") -> 75725 | P16: =IF(INTRO!$E$43="Endemic", IF(AND($K16>0,$K16<5), IF($K16=4,"Unknown", IF($K16=1, $F16*0.33, IF($K16=2, $F16*0.5+$G16*0.2, SUM(F16:G16)))), 0),"Not required") -> 0 | Q16: 1 | R16: 2 | S16: 1 | T16: 0 | Y16: 36344 | Z16: Isiukwuato
A17: =IF(INTRO!$E$33<>0,INTRO!$E$33, " ") -> Nigeria | B17: Abia | C17: Obio-Ngwa | D17: 250116 | E17: =IF(INTRO!$E$48="","",ROUND($D17*INTRO!$E$48,0)) -> 50023 | F17: =IF(INTRO!$E$49="","",ROUND($D17*INTRO!$E$49,0)) -> 70032 | G17: =IF(INTRO!$E$50="","",ROUND($D17*INTRO!$E$50,0)) -> 130060 | H17: 1 | I17: 1 | J17: 2 | K17: 0 | L17: 0 | M17: =IF(INTRO!$E$37="Endemic",IF($H17>0,IF($H17=4,"Unknown",IF($H17=99,"Stopped",$D17)),0),"Not required") -> 250116 | N17: 95378 | O17: =IF(INTRO!$E$41="Endemic", IF(AND($J17>1,$J17<5), IF($J17=4, "Unknown", E17+F17), 0),"Not required") -> 120055 | P17: =IF(INTRO!$E$43="Endemic", IF(AND($K17>0,$K17<5), IF($K17=4,"Unknown", IF($K17=1, $F17*0.33, IF($K17=2, $F17*0.5+$G17*0.2, SUM(F17:G17)))), 0),"Not required") -> 0 | Q17: 1 | R17: 1 | S17: 1 | T17: 0 | Y17: 36345 | Z17: Obio-Ngwa
A18: =IF(INTRO!$E$33<>0,INTRO!$E$33, " ") -> Nigeria | B18: Abia | C18: Ohafia | D18: 337934 | E18: =IF(INTRO!$E$48="","",ROUND($D18*INTRO!$E$48,0)) -> 67587 | F18: =IF(INTRO!$E$49="","",ROUND($D18*INTRO!$E$49,0)) -> 94622 | G18: =IF(INTRO!$E$50="","",ROUND($D18*INTRO!$E$50,0)) -> 175726 | H18: 1 | I18: 1 | J18: 2 | K18: 0 | L18: 0 | M18: =IF(INTRO!$E$37="Endemic",IF($H18>0,IF($H18=4,"Unknown",IF($H18=99,"Stopped",$D18)),0),"Not required") -> 337934 | N18: 74176 | O18: =IF(INTRO!$E$41="Endemic", IF(AND($J18>1,$J18<5), IF($J18=4, "Unknown", E18+F18), 0),"Not required") -> 162209 | P18: =IF(INTRO!$E$43="Endemic", IF(AND($K18>0,$K18<5), IF($K18=4,"Unknown", IF($K18=1, $F18*0.33, IF($K18=2, $F18*0.5+$G18*0.2, SUM(F18:G18)))), 0),"Not required") -> 0 | Q18: 1 | R18: 2 | S18: 1 | T18: 0 | Y18: 36346 | Z18: Ohafia
A19: =IF(INTRO!$E$33<>0,INTRO!$E$33, " ") -> Nigeria | B19: Abia | C19: Osisioma Ngwa | D19: 302765 | E19: =IF(INTRO!$E$48="","",ROUND($D19*INTRO!$E$48,0)) -> 60553 | F19: =IF(INTRO!$E$49="","",ROUND($D19*INTRO!$E$49,0)) -> 84774 | G19: =IF(INTRO!$E$50="","",ROUND($D19*INTRO!$E$50,0)) -> 157438 | H19: 1 | I19: 1 | J19: 1 | K19: 0 | L19: 0 | M19: =IF(INTRO!$E$37="Endemic",IF($H19>0,IF($H19=4,"Unknown",IF($H19=99,"Stopped",$D19)),0),"Not required") -> 302765 | N19: 115456 | O19: =IF(INTRO!$E$41="Endemic", IF(AND($J19>1,$J19<5), IF($J19=4, "Unknown", E19+F19), 0),"Not required") -> 0 | P19: =IF(INTRO!$E$43="Endemic", IF(AND($K19>0,$K19<5), IF($K19=4,"Unknown", IF($K19=1, $F19*0.33, IF($K19=2, $F19*0.5+$G19*0.2, SUM(F19:G19)))), 0),"Not required") -> 0 | Q19: 1 | R19: 1 | S19: 0 | T19: 0 | Y19: 36347 | Z19: Osisioma Ngwa
A20: =IF(INTRO!$E$33<>0,INTRO!$E$33, " ") -> Nigeria | B20: Abia | C20: Ugwunagbo | D20: 113890 | E20: =IF(INTRO!$E$48="","",ROUND($D20*INTRO!$E$48,0)) -> 22778 | F20: =IF(INTRO!$E$49="","",ROUND($D20*INTRO!$E$49,0)) -> 31889 | G20: =IF(INTRO!$E$50="","",ROUND($D20*INTRO!$E$50,0)) -> 59223 | H20: 1 | I20: 1 | J20: 3 | K20: 0 | L20: 0 | M20: =IF(INTRO!$E$37="Endemic",IF($H20>0,IF($H20=4,"Unknown",IF($H20=99,"Stopped",$D20)),0),"Not required") -> 113890 | N20: 43430 | O20: =IF(INTRO!$E$41="Endemic", IF(AND($J20>1,$J20<5), IF($J20=4, "Unknown", E20+F20), 0),"Not required") -> 54667 | P20: =IF(INTRO!$E$43="Endemic", IF(AND($K20>0,$K20<5), IF($K20=4,"Unknown", IF($K20=1, $F20*0.33, IF($K20=2, $F20*0.5+$G20*0.2, SUM(F20:G20)))), 0),"Not required") -> 0 | Q20: 1 | R20: 1 | S20: 2 | T20: 0 | Y20: 36348 | Z20: Ugwunagbo
A21: =IF(INTRO!$E$33<>0,INTRO!$E$33, " ") -> Nigeria | B21: Abia | C21: Ukwa East | D21: 81146 | E21: =IF(INTRO!$E$48="","",ROUND($D21*INTRO!$E$48,0)) -> 16229 | F21: =IF(INTRO!$E$49="","",ROUND($D21*INTRO!$E$49,0)) -> 22721 | G21: =IF(INTRO!$E$50="","",ROUND($D21*INTRO!$E$50,0)) -> 42196 | H21: 1 | I21: 1 | J21: 2 | K21: 0 | L21: 0 | M21: =IF(INTRO!$E$37="Endemic",IF($H21>0,IF($H21=4,"Unknown",IF($H21=99,"Stopped",$D21)),0),"Not required") -> 81146 | N21: 56658 | O21: =IF(INTRO!$E$41="Endemic", IF(AND($J21>1,$J21<5), IF($J21=4, "Unknown", E21+F21), 0),"Not required") -> 38950 | P21: =IF(INTRO!$E$43="Endemic", IF(AND($K21>0,$K21<5), IF($K21=4,"Unknown", IF($K21=1, $F21*0.33, IF($K21=2, $F21*0.5+$G21*0.2, SUM(F21:G21)))), 0),"Not required") -> 0 | Q21: 1 | R21: 2 | S21: 1 | T21: 0 | Y21: 36349 | Z21: Ukwa East
A22: =IF(INTRO!$E$33<>0,INTRO!$E$33, " ") -> Nigeria | B22: Abia | C22: Ukwa West | D22: 122074 | E22: =IF(INTRO!$E$48="","",ROUND($D22*INTRO!$E$48,0)) -> 24415 | F22: =IF(INTRO!$E$49="","",ROUND($D22*INTRO!$E$49,0)) -> 34181 | G22: =IF(INTRO!$E$50="","",ROUND($D22*INTRO!$E$50,0)) -> 63478 | H22: 1 | I22: 1 | J22: 2 | K22: 0 | L22: 0 | M22: =IF(INTRO!$E$37="Endemic",IF($H22>0,IF($H22=4,"Unknown",IF($H22=99,"Stopped",$D22)),0),"Not required") -> 122074 | N22: 73499 | O22: =IF(INTRO!$E$41="Endemic", IF(AND($J22>1,$J22<5), IF($J22=4, "Unknown", E22+F22), 0),"Not required") -> 58596 | P22: =IF(INTRO!$E$43="Endemic", IF(AND($K22>0,$K22<5), IF($K22=4,"Unknown", IF($K22=1, $F22*0.33, IF($K22=2, $F22*0.5+$G22*0.2, SUM(F22:G22)))), 0),"Not required") -> 0 | Q22: 1 | R22: 2 | S22: 1 | T22: 0 | Y22: 36350 | Z22: Ukwa West
A23: =IF(INTRO!$E$33<>0,INTRO!$E$33, " ") -> Nigeria | B23: Abia | C23: Umuahia North | D23: 304182 | E23: =IF(INTRO!$E$48="","",ROUND($D23*INTRO!$E$48,0)) -> 60836 | F23: =IF(INTRO!$E$49="","",ROUND($D23*INTRO!$E$49,0)) -> 85171 | G23: =IF(INTRO!$E$50="","",ROUND($D23*INTRO!$E$50,0)) -> 158175 | H23: 1 | I23: 1 | J23: 2 | K23: 1 | L23: 0 | M23: =IF(INTRO!$E$37="Endemic",IF($H23>0,IF($H23=4,"Unknown",IF($H23=99,"Stopped",$D23)),0),"Not required") -> 304182 | N23: 115996 | O23: =IF(INTRO!$E$41="Endemic", IF(AND($J23>1,$J23<5), IF($J23=4, "Unknown", E23+F23), 0),"Not required") -> 146007 | P23: =IF(INTRO!$E$43="Endemic", IF(AND($K23>0,$K23<5), IF($K23=4,"Unknown", IF($K23=1, $F23*0.33, IF($K23=2, $F23*0.5+$G23*0.2, SUM(F23:G23)))), 0),"Not required") -> 28106.43 | Q23: 1 | R23: 2 | S23: 1 | T23: 1 | Y23: 36352 | Z23: Umuahia North
A24: =IF(INTRO!$E$33<>0,INTRO!$E$33, " ") -> Nigeria | B24: Abia | C24: Umuahia South | D24: 191020 | E24: =IF(INTRO!$E$48="","",ROUND($D24*INTRO!$E$48,0)) -> 38204 | F24: =IF(INTRO!$E$49="","",ROUND($D24*INTRO!$E$49,0)) -> 53486 | G24: =IF(INTRO!$E$50="","",ROUND($D24*INTRO!$E$50,0)) -> 99330 | H24: 1 | I24: 1 | J24: 2 | K24: 1 | L24: 0 | M24: =IF(INTRO!$E$37="Endemic",IF($H24>0,IF($H24=4,"Unknown",IF($H24=99,"Stopped",$D24)),0),"Not required") -> 191020 | N24: 72843 | O24: =IF(INTRO!$E$41="Endemic", IF(AND($J24>1,$J24<5), IF($J24=4, "Unknown", E24+F24), 0),"Not required") -> 91690 | P24: =IF(INTRO!$E$43="Endemic", IF(AND($K24>0,$K24<5), IF($K24=4,"Unknown", IF($K24=1, $F24*0.33, IF($K24=2, $F24*0.5+$G24*0.2, SUM(F24:G24)))), 0),"Not required") -> 17650.38 | Q24: 1 | R24: 2 | S24: 1 | T24: 1 | Y24: 36353 | Z24: Umuahia South
A25: =IF(INTRO!$E$33<>0,INTRO!$E$33, " ") -> Nigeria | B25: Abia | C25: Umu-Nneochi | D25: 225977 | E25: =IF(INTRO!$E$48="","",ROUND($D25*INTRO!$E$48,0)) -> 45195 | F25: =IF(INTRO!$E$49="","",ROUND($D25*INTRO!$E$49,0)) -> 63274 | G25: =IF(INTRO!$E$50="","",ROUND($D25*INTRO!$E$50,0)) -> 117508 | H25: 1 | I25: 1 | J25: 2 | K25: 1 | L25: 0 | M25: =IF(INTRO!$E$37="Endemic",IF($H25>0,IF($H25=4,"Unknown",IF($H25=99,"Stopped",$D25)),0),"Not required") -> 225977 | N25: 102488 | O25: =IF(INTRO!$E$41="Endemic", IF(AND($J25>1,$J25<5), IF($J25=4, "Unknown", E25+F25), 0),"Not required") -> 108469 | P25: =IF(INTRO!$E$43="Endemic", IF(AND($K25>0,$K25<5), IF($K25=4,"Unknown", IF($K25=1, $F25*0.33, IF($K25=2, $F25*0.5+$G25*0.2, SUM(F25:G25)))), 0),"Not required") -> 20880.42 | Q25: 1 | R25: 2 | S25: 1 | T25: 1 | Y25: 36351 | Z25: Umu-Nneochi
A26: =IF(INTRO!$E$33<>0,INTRO!$E$33, " ") -> Nigeria | B26: Adamawa | C26: Demsa | D26: 248478 | E26: =IF(INTRO!$E$48="","",ROUND($D26*INTRO!$E$48,0)) -> 49696 | F26: =IF(INTRO!$E$49="","",ROUND($D26*INTRO!$E$49,0)) -> 69574 | G26: =IF(INTRO!$E$50="","",ROUND($D26*INTRO!$E$50,0)) -> 129209 | H26: 1 | I26: 1 | J26: 1 | K26: 2 | L26: 4 | M26: =IF(INTRO!$E$37="Endemic",IF($H26>0,IF($H26=4,"Unknown",IF($H26=99,"Stopped",$D26)),0),"Not required") -> 248478 | N26: 104145 | O26: =IF(INTRO!$E$41="Endemic", IF(AND($J26>1,$J26<5), IF($J26=4, "Unknown", E26+F26), 0),"Not required") -> 0 | P26: =IF(INTRO!$E$43="Endemic", IF(AND($K26>0,$K26<5), IF($K26=4,"Unknown", IF($K26=1, $F26*0.33, IF($K26=2, $F26*0.5+$G26*0.2, SUM(F26:G26)))), 0),"Not required") -> 60628.8 | Q26: 1 | R26: 1 | S26: 0 | T26: 1 | Y26: 36354 | Z26: Demsa
A27: =IF(INTRO!$E$33<>0,INTRO!$E$33, " ") -> Nigeria | B27: Adamawa | C27: Fufore | D27: 285747 | E27: =IF(INTRO!$E$48="","",ROUND($D27*INTRO!$E$48,0)) -> 57149 | F27: =IF(INTRO!$E$49="","",ROUND($D27*INTRO!$E$49,0)) -> 80009 | G27: =IF(INTRO!$E$50="","",ROUND($D27*INTRO!$E$50,0)) -> 148588 | H27: 1 | I27: 1 | J27: 1 | K27: 2 | L27: 4 | M27: =IF(INTRO!$E$37="Endemic",IF($H27>0,IF($H27=4,"Unknown",IF($H27=99,"Stopped",$D27)),0),"Not required") -> 285747 | N27: 78010 | O27: =IF(INTRO!$E$41="Endemic", IF(AND($J27>1,$J27<5), IF($J27=4, "Unknown", E27+F27), 0),"Not required") -> 0 | P27: =IF(INTRO!$E$43="Endemic", IF(AND($K27>0,$K27<5), IF($K27=4,"Unknown", IF($K27=1, $F27*0.33, IF($K27=2, $F27*0.5+$G27*0.2, SUM(F27:G27)))), 0),"Not required") -> 69722.1 | Q27: 1 | R27: 1 | S27: 0 | T27: 1 | Y27: 36355 | Z27: Fufore
A28: =IF(INTRO!$E$33<>0,INTRO!$E$33, " ") -> Nigeria | B28: Adamawa | C28: Ganye | D28: 226196 | E28: =IF(INTRO!$E$48="","",ROUND($D28*INTRO!$E$48,0)) -> 45239 | F28: =IF(INTRO!$E$49="","",ROUND($D28*INTRO!$E$49,0)) -> 63335 | G28: =IF(INTRO!$E$50="","",ROUND($D28*INTRO!$E$50,0)) -> 117622 | H28: 1 | I28: 1 | J28: 1 | K28: 2 | L28: 4 | M28: =IF(INTRO!$E$37="Endemic",IF($H28>0,IF($H28=4,"Unknown",IF($H28=99,"Stopped",$D28)),0),"Not required") -> 226196 | N28: 112008 | O28: =IF(INTRO!$E$41="Endemic", IF(AND($J28>1,$J28<5), IF($J28=4, "Unknown", E28+F28), 0),"Not required") -> 0 | P28: =IF(INTRO!$E$43="Endemic", IF(AND($K28>0,$K28<5), IF($K28=4,"Unknown", IF($K28=1, $F28*0.33, IF($K28=2, $F28*0.5+$G28*0.2, SUM(F28:G28)))), 0),"Not required") -> 55191.9 | Q28: 1 | R28: 1 | S28: 0 | T28: 1 | Y28: 36356 | Z28: Ganye
A29: =IF(INTRO!$E$33<>0,INTRO!$E$33, " ") -> Nigeria | B29: Adamawa | C29: Girei | D29: 179200 | E29: =IF(INTRO!$E$48="","",ROUND($D29*INTRO!$E$48,0)) -> 35840 | F29: =IF(INTRO!$E$49="","",ROUND($D29*INTRO!$E$49,0)) -> 50176 | G29: =IF(INTRO!$E$50="","",ROUND($D29*INTRO!$E$50,0)) -> 93184 | H29: 1 | I29: 1 | J29: 1 | K29: 1 | L29: 0 | M29: =IF(INTRO!$E$37="Endemic",IF($H29>0,IF($H29=4,"Unknown",IF($H29=99,"Stopped",$D29)),0),"Not required") -> 179200 | N29: 179488 | O29: =IF(INTRO!$E$41="Endemic", IF(AND($J29>1,$J29<5), IF($J29=4, "Unknown", E29+F29), 0),"Not required") -> 0 | P29: =IF(INTRO!$E$43="Endemic", IF(AND($K29>0,$K29<5), IF($K29=4,"Unknown", IF($K29=1, $F29*0.33, IF($K29=2, $F29*0.5+$G29*0.2, SUM(F29:G29)))), 0),"Not required") -> 16558.08 | Q29: 1 | R29: 1 | S29: 0 | T29: 1 | Y29: 36357 | Z29: Girei
A30: =IF(INTRO!$E$33<>0,INTRO!$E$33, " ") -> Nigeria | B30: Adamawa | C30: Gombi | D30: 201854 | E30: =IF(INTRO!$E$48="","",ROUND($D30*INTRO!$E$48,0)) -> 40371 | F30: =IF(INTRO!$E$49="","",ROUND($D30*INTRO!$E$49,0)) -> 56519 | G30: =IF(INTRO!$E$50="","",ROUND($D30*INTRO!$E$50,0)) -> 104964 | H30: 1 | I30: 1 | J30: 1 | K30: 2 | L30: 4 | M30: =IF(INTRO!$E$37="Endemic",IF($H30>0,IF($H30=4,"Unknown",IF($H30=99,"Stopped",$D30)),0),"Not required") -> 201854 | N30: 91681 | O30: =IF(INTRO!$E$41="Endemic", IF(AND($J30>1,$J30<5), IF($J30=4, "Unknown", E30+F30), 0),"Not required") -> 0 | P30: =IF(INTRO!$E$43="Endemic", IF(AND($K30>0,$K30<5), IF($K30=4,"Unknown", IF($K30=1, $F30*0.33, IF($K30=2, $F30*0.5+$G30*0.2, SUM(F30:G30)))), 0),"Not required") -> 49252.3 | Q30: 1 | R30: 1 | S30: 0 | T30: 1 | Y30: 36358 | Z30: Gombi
A31: =IF(INTRO!$E$33<>0,INTRO!$E$33, " ") -> Nigeria | B31: Adamawa | C31: Guyuk | D31: 245079 | E31: =IF(INTRO!$E$48="","",ROUND($D31*INTRO!$E$48,0)) -> 49016 | F31: =IF(INTRO!$E$49="","",ROUND($D31*INTRO!$E$49,0)) -> 68622 | G31: =IF(INTRO!$E$50="","",ROUND($D31*INTRO!$E$50,0)) -> 127441 | H31: 1 | I31: 1 | J31: 1 | K31: 2 | L31: 4 | M31: =IF(INTRO!$E$37="Endemic",IF($H31>0,IF($H31=4,"Unknown",IF($H31=99,"Stopped",$D31)),0),"Not required") -> 245079 | N31: 121038 | O31: =IF(INTRO!$E$41="Endemic", IF(AND($J31>1,$J31<5), IF($J31=4, "Unknown", E31+F31), 0),"Not required") -> 0 | P31: =IF(INTRO!$E$43="Endemic", IF(AND($K31>0,$K31<5), IF($K31=4,"Unknown", IF($K31=1, $F31*0.33, IF($K31=2, $F31*0.5+$G31*0.2, SUM(F31:G31)))), 0),"Not required") -> 59799.2 | Q31: 1 | R31: 1 | S31: 0 | T31: 1 | Y31: 36359 | Z31: Guyuk
A32: =IF(INTRO!$E$33<>0,INTRO!$E$33, " ") -> Nigeria | B32: Adamawa | C32: Hong | D32: 233142 | E32: =IF(INTRO!$E$48="","",ROUND($D32*INTRO!$E$48,0)) -> 46628 | F32: =IF(INTRO!$E$49="","",ROUND($D32*INTRO!$E$49,0)) -> 65280 | G32: =IF(INTRO!$E$50="","",ROUND($D32*INTRO!$E$50,0)) -> 121234 | H32: 0 | I32: 1 | J32: 1 | K32: 2 | L32: 0 | M32: =IF(INTRO!$E$37="Endemic",IF($H32>0,IF($H32=4,"Unknown",IF($H32=99,"Stopped",$D32)),0),"Not required") -> 0 | N32: 132436 | O32: =IF(INTRO!$E$41="Endemic", IF(AND($J32>1,$J32<5), IF($J32=4, "Unknown", E32+F32), 0),"Not required") -> 0 | P32: =IF(INTRO!$E$43="Endemic", IF(AND($K32>0,$K32<5), IF($K32=4,"Unknown", IF($K32=1, $F32*0.33, IF($K32=2, $F32*0.5+$G32*0.2, SUM(F32:G32)))), 0),"Not required") -> 56886.8 | Q32: 0 | R32: 1 | S32: 0 | T32: 1 | Y32: 36360 | Z32: Hong
A33: =IF(INTRO!$E$33<>0,INTRO!$E$33, " ") -> Nigeria | B33: Adamawa | C33: Jada | D33: 232242 | E33: =IF(INTRO!$E$48="","",ROUND($D33*INTRO!$E$48,0)) -> 46448 | F33: =IF(INTRO!$E$49="","",ROUND($D33*INTRO!$E$49,0)) -> 65028 | G33: =IF(INTRO!$E$50="","",ROUND($D33*INTRO!$E$50,0)) -> 120766 | H33: 1 | I33: 1 | J33: 2 | K33: 1 | L33: 0 | M33: =IF(INTRO!$E$37="Endemic",IF($H33>0,IF($H33=4,"Unknown",IF($H33=99,"Stopped",$D33)),0),"Not required") -> 232242 | N33: 224920 | O33: =IF(INTRO!$E$41="Endemic", IF(AND($J33>1,$J33<5), IF($J33=4, "Unknown", E33+F33), 0),"Not required") -> 111476 | P33: =IF(INTRO!$E$43="Endemic", IF(AND($K33>0,$K33<5), IF($K33=4,"Unknown", IF($K33=1, $F33*0.33, IF($K33=2, $F33*0.5+$G33*0.2, SUM(F33:G33)))), 0),"Not required") -> 21459.24 | Q33: 1 | R33: 1 | S33: 1 | T33: 1 | Y33: 36361 | Z33: Jada
A34: =IF(INTRO!$E$33<>0,INTRO!$E$33, " ") -> Nigeria | B34: Adamawa | C34: Lamurde | D34: 155500 | E34: =IF(INTRO!$E$48="","",ROUND($D34*INTRO!$E$48,0)) -> 31100 | F34: =IF(INTRO!$E$49="","",ROUND($D34*INTRO!$E$49,0)) -> 43540 | G34: =IF(INTRO!$E$50="","",ROUND($D34*INTRO!$E$50,0)) -> 80860 | H34: 1 | I34: 1 | J34: 1 | K34: 2 | L34: 4 | M34: =IF(INTRO!$E$37="Endemic",IF($H34>0,IF($H34=4,"Unknown",IF($H34=99,"Stopped",$D34)),0),"Not required") -> 155500 | N34: 97171 | O34: =IF(INTRO!$E$41="Endemic", IF(AND($J34>1,$J34<5), IF($J34=4, "Unknown", E34+F34), 0),"Not required") -> 0 | P34: =IF(INTRO!$E$43="Endemic", IF(AND($K34>0,$K34<5), IF($K34=4,"Unknown", IF($K34=1, $F34*0.33, IF($K34=2, $F34*0.5+$G34*0.2, SUM(F34:G34)))), 0),"Not required") -> 37942 | Q34: 1 | R34: 1 | S34: 0 | T34: 1 | Y34: 36362 | Z34: Lamurde
A35: =IF(INTRO!$E$33<>0,INTRO!$E$33, " ") -> Nigeria | B35: Adamawa | C35: Madagali | D35: 185861 | E35: =IF(INTRO!$E$48="","",ROUND($D35*INTRO!$E$48,0)) -> 37172 | F35: =IF(INTRO!$E$49="","",ROUND($D35*INTRO!$E$49,0)) -> 52041 | G35: =IF(INTRO!$E$50="","",ROUND($D35*INTRO!$E$50,0)) -> 96648 | H35: 0 | I35: 1 | J35: 1 | K35: 1 | L35: 0 | M35: =IF(INTRO!$E$37="Endemic",IF($H35>0,IF($H35=4,"Unknown",IF($H35=99,"Stopped",$D35)),0),"Not required") -> 0 | N35: 91964 | O35: =IF(INTRO!$E$41="Endemic", IF(AND($J35>1,$J35<5), IF($J35=4, "Unknown", E35+F35), 0),"Not required") -> 0 | P35: =IF(INTRO!$E$43="Endemic", IF(AND($K35>0,$K35<5), IF($K35=4,"Unknown", IF($K35=1, $F35*0.33, IF($K35=2, $F35*0.5+$G35*0.2, SUM(F35:G35)))), 0),"Not required") -> 17173.53 | Q35: 0 | R35: 1 | S35: 0 | T35: 1 | Y35: 36363 | Z35: Madagali
A36: =IF(INTRO!$E$33<>0,INTRO!$E$33, " ") -> Nigeria | B36: Adamawa | C36: Maiha | D36: 153311 | E36: =IF(INTRO!$E$48="","",ROUND($D36*INTRO!$E$48,0)) -> 30662 | F36: =IF(INTRO!$E$49="","",ROUND($D36*INTRO!$E$49,0)) -> 42927 | G36: =IF(INTRO!$E$50="","",ROUND($D36*INTRO!$E$50,0)) -> 79722 | H36: 1 | I36: 1 | J36: 1 | K36: 2 | L36: 0 | M36: =IF(INTRO!$E$37="Endemic",IF($H36>0,IF($H36=4,"Unknown",IF($H36=99,"Stopped",$D36)),0),"Not required") -> 153311 | N36: 114015 | O36: =IF(INTRO!$E$41="Endemic", IF(AND($J36>1,$J36<5), IF($J36=4, "Unknown", E36+F36), 0),"Not required") -> 0 | P36: =IF(INTRO!$E$43="Endemic", IF(AND($K36>0,$K36<5), IF($K36=4,"Unknown", IF($K36=1, $F36*0.33, IF($K36=2, $F36*0.5+$G36*0.2, SUM(F36:G36)))), 0),"Not required") -> 37407.9 | Q36: 1 | R36: 1 | S36: 0 | T36: 1 | Y36: 36364 | Z36: Maiha
A37: =IF(INTRO!$E$33<>0,INTRO!$E$33, " ") -> Nigeria | B37: Adamawa | C37: Mayo-belwa | D37: 211090 | E37: =IF(INTRO!$E$48="","",ROUND($D37*INTRO!$E$48,0)) -> 42218 | F37: =IF(INTRO!$E$49="","",ROUND($D37*INTRO!$E$49,0)) -> 59105 | G37: =IF(INTRO!$E$50="","",ROUND($D37*INTRO!$E$50,0)) -> 109767 | H37: 1 | I37: 1 | J37: 1 | K37: 2 | L37: 4 | M37: =IF(INTRO!$E$37="Endemic",IF($H37>0,IF($H37=4,"Unknown",IF($H37=99,"Stopped",$D37)),0),"Not required") -> 211090 | N37: 112718 | O37: =IF(INTRO!$E$41="Endemic", IF(AND($J37>1,$J37<5), IF($J37=4, "Unknown", E37+F37), 0),"Not required") -> 0 | P37: =IF(INTRO!$E$43="Endemic", IF(AND($K37>0,$K37<5), IF($K37=4,"Unknown", IF($K37=1, $F37*0.33, IF($K37=2, $F37*0.5+$G37*0.2, SUM(F37:G37)))), 0),"Not required") -> 51505.9 | Q37: 1 | R37: 1 | S37: 0 | T37: 1 | Y37: 36365 | Z37: Mayo-belwa
A38: =IF(INTRO!$E$33<>0,INTRO!$E$33, " ") -> Nigeria | B38: Adamawa | C38: Michika | D38: 214086 | E38: =IF(INTRO!$E$48="","",ROUND($D38*INTRO!$E$48,0)) -> 42817 | F38: =IF(INTRO!$E$49="","",ROUND($D38*INTRO!$E$49,0)) -> 59944 | G38: =IF(INTRO!$E$50="","",ROUND($D38*INTRO!$E$50,0)) -> 111325 | H38: 1 | I38: 1 | J38: 1 | K38: 1 | L38: 0 | M38: =IF(INTRO!$E$37="Endemic",IF($H38>0,IF($H38=4,"Unknown",IF($H38=99,"Stopped",$D38)),0),"Not required") -> 214086 | N38: 152333 | O38: =IF(INTRO!$E$41="Endemic", IF(AND($J38>1,$J38<5), IF($J38=4, "Unknown", E38+F38), 0),"Not required") -> 0 | P38: =IF(INTRO!$E$43="Endemic", IF(AND($K38>0,$K38<5), IF($K38=4,"Unknown", IF($K38=1, $F38*0.33, IF($K38=2, $F38*0.5+$G38*0.2, SUM(F38:G38)))), 0),"Not required") -> 19781.52 | Q38: 1 | R38: 1 | S38: 0 | T38: 1 | Y38: 36366 | Z38: Michika
A39: =IF(INTRO!$E$33<>0,INTRO!$E$33, " ") -> Nigeria | B39: Adamawa | C39: Mubi North | D39: 208254 | E39: =IF(INTRO!$E$48="","",ROUND($D39*INTRO!$E$48,0)) -> 41651 | F39: =IF(INTRO!$E$49="","",ROUND($D39*INTRO!$E$49,0)) -> 58311 | G39: =IF(INTRO!$E$50="","",ROUND($D39*INTRO!$E$50,0)) -> 108292 | H39: 1 | I39: 99 | J39: 1 | K39: 1 | L39: 0 | M39: =IF(INTRO!$E$37="Endemic",IF($H39>0,IF($H39=4,"Unknown",IF($H39=99,"Stopped",$D39)),0),"Not required") -> 208254 | N39: 0 | O39: =IF(INTRO!$E$41="Endemic", IF(AND($J39>1,$J39<5), IF($J39=4, "Unknown", E39+F39), 0),"Not required") -> 0 | P39: =IF(INTRO!$E$43="Endemic", IF(AND($K39>0,$K39<5), IF($K39=4,"Unknown", IF($K39=1, $F39*0.33, IF($K39=2, $F39*0.5+$G39*0.2, SUM(F39:G39)))), 0),"Not required") -> 19242.63 | Q39: 1 | R39: 0 | S39: 0 | T39: 1 | Y39: 36367 | Z39: Mubi North
A40: =IF(INTRO!$E$33<>0,INTRO!$E$33, " ") -> Nigeria | B40: Adamawa | C40: Mubi South | D40: 177741 | E40: =IF(INTRO!$E$48="","",ROUND($D40*INTRO!$E$48,0)) -> 35548 | F40: =IF(INTRO!$E$49="","",ROUND($D40*INTRO!$E$49,0)) -> 49767 | G40: =IF(INTRO!$E$50="","",ROUND($D40*INTRO!$E$50,0)) -> 92425 | H40: 1 | I40: 99 | J40: 1 | K40: 2 | L40: 0 | M40: =IF(INTRO!$E$37="Endemic",IF($H40>0,IF($H40=4,"Unknown",IF($H40=99,"Stopped",$D40)),0),"Not required") -> 177741 | N40: 0 | O40: =IF(INTRO!$E$41="Endemic", IF(AND($J40>1,$J40<5), IF($J40=4, "Unknown", E40+F40), 0),"Not required") -> 0 | P40: =IF(INTRO!$E$43="Endemic", IF(AND($K40>0,$K40<5), IF($K40=4,"Unknown", IF($K40=1, $F40*0.33, IF($K40=2, $F40*0.5+$G40*0.2, SUM(F40:G40)))), 0),"Not required") -> 43368.5 | Q40: 1 | R40: 0 | S40: 0 | T40: 1 | Y40: 36368 | Z40: Mubi South
A41: =IF(INTRO!$E$33<>0,INTRO!$E$33, " ") -> Nigeria | B41: Adamawa | C41: Numan | D41: 125063 | E41: =IF(INTRO!$E$48="","",ROUND($D41*INTRO!$E$48,0)) -> 25013 | F41: =IF(INTRO!$E$49="","",ROUND($D41*INTRO!$E$49,0)) -> 35018 | G41: =IF(INTRO!$E$50="","",ROUND($D41*INTRO!$E$50,0)) -> 65033 | H41: 1 | I41: 99 | J41: 1 | K41: 2 | L41: 4 | M41: =IF(INTRO!$E$37="Endemic",IF($H41>0,IF($H41=4,"Unknown",IF($H41=99,"Stopped",$D41)),0),"Not required") -> 125063 | N41: 0 | O41: =IF(INTRO!$E$41="Endemic", IF(AND($J41>1,$J41<5), IF($J41=4, "Unknown", E41+F41), 0),"Not required") -> 0 | P41: =IF(INTRO!$E$43="Endemic", IF(AND($K41>0,$K41<5), IF($K41=4,"Unknown", IF($K41=1, $F41*0.33, IF($K41=2, $F41*0.5+$G41*0.2, SUM(F41:G41)))), 0),"Not required") -> 30515.6 | Q41: 1 | R41: 0 | S41: 0 | T41: 1 | Y41: 36369 | Z41: Numan
A42: =IF(INTRO!$E$33<>0,INTRO!$E$33, " ") -> Nigeria | B42: Adamawa | C42: Shelleng | D42: 205493 | E42: =IF(INTRO!$E$48="","",ROUND($D42*INTRO!$E$48,0)) -> 41099 | F42: =IF(INTRO!$E$49="","",ROUND($D42*INTRO!$E$49,0)) -> 57538 | G42: =IF(INTRO!$E$50="","",ROUND($D42*INTRO!$E$50,0)) -> 106856 | H42: 1 | I42: 1 | J42: 1 | K42: 2 | L42: 0 | M42: =IF(INTRO!$E$37="Endemic",IF($H42>0,IF($H42=4,"Unknown",IF($H42=99,"Stopped",$D42)),0),"Not required") -> 205493 | N42: 64361 | O42: =IF(INTRO!$E$41="Endemic", IF(AND($J42>1,$J42<5), IF($J42=4, "Unknown", E42+F42), 0),"Not required") -> 0 | P42: =IF(INTRO!$E$43="Endemic", IF(AND($K42>0,$K42<5), IF($K42=4,"Unknown", IF($K42=1, $F42*0.33, IF($K42=2, $F42*0.5+$G42*0.2, SUM(F42:G42)))), 0),"Not required") -> 50140.2 | Q42: 1 | R42: 1 | S42: 0 | T42: 1 | Y42: 36370 | Z42: Shelleng
A43: =IF(INTRO!$E$33<>0,INTRO!$E$33, " ") -> Nigeria | B43: Adamawa | C43: Song | D43: 265635 | E43: =IF(INTRO!$E$48="","",ROUND($D43*INTRO!$E$48,0)) -> 53127 | F43: =IF(INTRO!$E$49="","",ROUND($D43*INTRO!$E$49,0)) -> 74378 | G43: =IF(INTRO!$E$50="","",ROUND($D43*INTRO!$E$50,0)) -> 138130 | H43: 1 | I43: 1 | J43: 1 | K43: 1 | L43: 0 | M43: =IF(INTRO!$E$37="Endemic",IF($H43>0,IF($H43=4,"Unknown",IF($H43=99,"Stopped",$D43)),0),"Not required") -> 265635 | N43: 266063 | O43: =IF(INTRO!$E$41="Endemic", IF(AND($J43>1,$J43<5), IF($J43=4, "Unknown", E43+F43), 0),"Not required") -> 0 | P43: =IF(INTRO!$E$43="Endemic", IF(AND($K43>0,$K43<5), IF($K43=4,"Unknown", IF($K43=1, $F43*0.33, IF($K43=2, $F43*0.5+$G43*0.2, SUM(F43:G43)))), 0),"Not required") -> 24544.74 | Q43: 1 | R43: 1 | S43: 0 | T43: 1 | Y43: 36371 | Z43: Song
A44: =IF(INTRO!$E$33<>0,INTRO!$E$33, " ") -> Nigeria | B44: Adamawa | C44: Toungo | D44: 71738 | E44: =IF(INTRO!$E$48="","",ROUND($D44*INTRO!$E$48,0)) -> 14348 | F44: =IF(INTRO!$E$49="","",ROUND($D44*INTRO!$E$49,0)) -> 20087 | G44: =IF(INTRO!$E$50="","",ROUND($D44*INTRO!$E$50,0)) -> 37304 | H44: 1 | I44: 1 | J44: 2 | K44: 2 | L44: 4 | M44: =IF(INTRO!$E$37="Endemic",IF($H44>0,IF($H44=4,"Unknown",IF($H44=99,"Stopped",$D44)),0),"Not required") -> 71738 | N44: 71853 | O44: =IF(INTRO!$E$41="Endemic", IF(AND($J44>1,$J44<5), IF($J44=4, "Unknown", E44+F44), 0),"Not required") -> 34435 | P44: =IF(INTRO!$E$43="Endemic", IF(AND($K44>0,$K44<5), IF($K44=4,"Unknown", IF($K44=1, $F44*0.33, IF($K44=2, $F44*0.5+$G44*0.2, SUM(F44:G44)))), 0),"Not required") -> 17504.3 | Q44: 1 | R44: 1 | S44: 1 | T44: 1 | Y44: 36372 | Z44: Toungo
A45: =IF(INTRO!$E$33<>0,INTRO!$E$33, " ") -> Nigeria | B45: Adamawa | C45: Yola North | D45: 273286 | E45: =IF(INTRO!$E$48="","",ROUND($D45*INTRO!$E$48,0)) -> 54657 | F45: =IF(INTRO!$E$49="","",ROUND($D45*INTRO!$E$49,0)) -> 76520 | G45: =IF(INTRO!$E$50="","",ROUND($D45*INTRO!$E$50,0)) -> 142109 | H45: 0 | I45: 1 | J45: 1 | K45: 1 | L45: 4 | M45: =IF(INTRO!$E$37="Endemic",IF($H45>0,IF($H45=4,"Unknown",IF($H45=99,"Stopped",$D45)),0),"Not required") -> 0 | N45: 42172 | O45: =IF(INTRO!$E$41="Endemic", IF(AND($J45>1,$J45<5), IF($J45=4, "Unknown", E45+F45), 0),"Not required") -> 0 | P45: =IF(INTRO!$E$43="Endemic", IF(AND($K45>0,$K45<5), IF($K45=4,"Unknown", IF($K45=1, $F45*0.33, IF($K45=2, $F45*0.5+$G45*0.2, SUM(F45:G45)))), 0),"Not required") -> 25251.6 | Q45: 0 | R45: 1 | S45: 0 | T45: 1 | Y45: 36373 | Z45: Yola North
A46: =IF(INTRO!$E$33<>0,INTRO!$E$33, " ") -> Nigeria | B46: Adamawa | C46: Yola South | D46: 268268 | E46: =IF(INTRO!$E$48="","",ROUND($D46*INTRO!$E$48,0)) -> 53654 | F46: =IF(INTRO!$E$49="","",ROUND($D46*INTRO!$E$49,0)) -> 75115 | G46: =IF(INTRO!$E$50="","",ROUND($D46*INTRO!$E$50,0)) -> 139499 | H46: 1 | I46: 1 | J46: 1 | K46: 2 | L46: 4 | M46: =IF(INTRO!$E$37="Endemic",IF($H46>0,IF($H46=4,"Unknown",IF($H46=99,"Stopped",$D46)),0),"Not required") -> 268268 | N46: 50806 | O46: =IF(INTRO!$E$41="Endemic", IF(AND($J46>1,$J46<5), IF($J46=4, "Unknown", E46+F46), 0),"Not required") -> 0 | P46: =IF(INTRO!$E$43="Endemic", IF(AND($K46>0,$K46<5), IF($K46=4,"Unknown", IF($K46=1, $F46*0.33, IF($K46=2, $F46*0.5+$G46*0.2, SUM(F46:G46)))), 0),"Not required") -> 65457.3 | Q46: 1 | R46: 1 | S46: 0 | T46: 1 | Y46: 36374 | Z46: Yola South
A47: =IF(INTRO!$E$33<>0,INTRO!$E$33, " ") -> Nigeria | B47: Akwa Ibom | C47: Abak | D47: 191737 | E47: =IF(INTRO!$E$48="","",ROUND($D47*INTRO!$E$48,0)) -> 38347 | F47: =IF(INTRO!$E$49="","",ROUND($D47*INTRO!$E$49,0)) -> 53686 | G47: =IF(INTRO!$E$50="","",ROUND($D47*INTRO!$E$50,0)) -> 99703 | H47: 0 | I47: 99 | J47: 3 | K47: 0 | L47: 0 | M47: =IF(INTRO!$E$37="Endemic",IF($H47>0,IF($H47=4,"Unknown",IF($H47=99,"Stopped",$D47)),0),"Not required") -> 0 | N47: 0 | O47: =IF(INTRO!$E$41="Endemic", IF(AND($J47>1,$J47<5), IF($J47=4, "Unknown", E47+F47), 0),"Not required") -> 92033 | P47: =IF(INTRO!$E$43="Endemic", IF(AND($K47>0,$K47<5), IF($K47=4,"Unknown", IF($K47=1, $F47*0.33, IF($K47=2, $F47*0.5+$G47*0.2, SUM(F47:G47)))), 0),"Not required") -> 0 | Q47: 0 | R47: 0 | S47: 2 | T47: 0 | Y47: 36375 | Z47: Abak
A48: =IF(INTRO!$E$33<>0,INTRO!$E$33, " ") -> Nigeria | B48: Akwa Ibom | C48: Eastern Obolo | D48: 83459 | E48: =IF(INTRO!$E$48="","",ROUND($D48*INTRO!$E$48,0)) -> 16692 | F48: =IF(INTRO!$E$49="","",ROUND($D48*INTRO!$E$49,0)) -> 23369 | G48: =IF(INTRO!$E$50="","",ROUND($D48*INTRO!$E$50,0)) -> 43399 | H48: 1 | I48: 99 | J48: 3 | K48: 0 | L48: 0 | M48: =IF(INTRO!$E$37="Endemic",IF($H48>0,IF($H48=4,"Unknown",IF($H48=99,"Stopped",$D48)),0),"Not required") -> 83459 | N48: 0 | O48: =IF(INTRO!$E$41="Endemic", IF(AND($J48>1,$J48<5), IF($J48=4, "Unknown", E48+F48), 0),"Not required") -> 40061 | P48: =IF(INTRO!$E$43="Endemic", IF(AND($K48>0,$K48<5), IF($K48=4,"Unknown", IF($K48=1, $F48*0.33, IF($K48=2, $F48*0.5+$G48*0.2, SUM(F48:G48)))), 0),"Not required") -> 0 | Q48: 1 | R48: 0 | S48: 2 | T48: 0 | Y48: 36376 | Z48: Eastern Obolo
A49: =IF(INTRO!$E$33<>0,INTRO!$E$33, " ") -> Nigeria | B49: Akwa Ibom | C49: Eket | D49: 237872 | E49: =IF(INTRO!$E$48="","",ROUND($D49*INTRO!$E$48,0)) -> 47574 | F49: =IF(INTRO!$E$49="","",ROUND($D49*INTRO!$E$49,0)) -> 66604 | G49: =IF(INTRO!$E$50="","",ROUND($D49*INTRO!$E$50,0)) -> 123693 | H49: 0 | I49: 99 | J49: 3 | K49: 0 | L49: 0 | M49: =IF(INTRO!$E$37="Endemic",IF($H49>0,IF($H49=4,"Unknown",IF($H49=99,"Stopped",$D49)),0),"Not required") -> 0 | N49: 0 | O49: =IF(INTRO!$E$41="Endemic", IF(AND($J49>1,$J49<5), IF($J49=4, "Unknown", E49+F49), 0),"Not required") -> 114178 | P49: =IF(INTRO!$E$43="Endemic", IF(AND($K49>0,$K49<5), IF($K49=4,"Unknown", IF($K49=1, $F49*0.33, IF($K49=2, $F49*0.5+$G49*0.2, SUM(F49:G49)))), 0),"Not required") -> 0 | Q49: 0 | R49: 0 | S49: 2 | T49: 0 | Y49: 36377 | Z49: Eket
A50: =IF(INTRO!$E$33<>0,INTRO!$E$33, " ") -> Nigeria | B50: Akwa Ibom | C50: Esit Eket | D50: 87813 | E50: =IF(INTRO!$E$48="","",ROUND($D50*INTRO!$E$48,0)) -> 17563 | F50: =IF(INTRO!$E$49="","",ROUND($D50*INTRO!$E$49,0)) -> 24588 | G50: =IF(INTRO!$E$50="","",ROUND($D50*INTRO!$E$50,0)) -> 45663 | H50: 1 | I50: 99 | J50: 3 | K50: 0 | L50: 0 | M50: =IF(INTRO!$E$37="Endemic",IF($H50>0,IF($H50=4,"Unknown",IF($H50=99,"Stopped",$D50)),0),"Not required") -> 87813 | N50: 0 | O50: =IF(INTRO!$E$41="Endemic", IF(AND($J50>1,$J50<5), IF($J50=4, "Unknown", E50+F50), 0),"Not required") -> 42151 | P50: =IF(INTRO!$E$43="Endemic", IF(AND($K50>0,$K50<5), IF($K50=4,"Unknown", IF($K50=1, $F50*0.33, IF($K50=2, $F50*0.5+$G50*0.2, SUM(F50:G50)))), 0),"Not required") -> 0 | Q50: 1 | R50: 0 | S50: 2 | T50: 0 | Y50: 36378 | Z50: Esit Eket
A51: =IF(INTRO!$E$33<>0,INTRO!$E$33, " ") -> Nigeria | B51: Akwa Ibom | C51: Essien Udim | D51: 265595 | E51: =IF(INTRO!$E$48="","",ROUND($D51*INTRO!$E$48,0)) -> 53119 | F51: =IF(INTRO!$E$49="","",ROUND($D51*INTRO!$E$49,0)) -> 74367 | G51: =IF(INTRO!$E$50="","",ROUND($D51*INTRO!$E$50,0)) -> 138109 | H51: 0 | I51: 99 | J51: 2 | K51: 0 | L51: 0 | M51: =IF(INTRO!$E$37="Endemic",IF($H51>0,IF($H51=4,"Unknown",IF($H51=99,"Stopped",$D51)),0),"Not required") -> 0 | N51: 0 | O51: =IF(INTRO!$E$41="Endemic", IF(AND($J51>1,$J51<5), IF($J51=4, "Unknown", E51+F51), 0),"Not required") -> 127486 | P51: =IF(INTRO!$E$43="Endemic", IF(AND($K51>0,$K51<5), IF($K51=4,"Unknown", IF($K51=1, $F51*0.33, IF($K51=2, $F51*0.5+$G51*0.2, SUM(F51:G51)))), 0),"Not required") -> 0 | Q51: 0 | R51: 0 | S51: 1 | T51: 0 | Y51: 36379 | Z51: Essien Udim
A52: =IF(INTRO!$E$33<>0,INTRO!$E$33, " ") -> Nigeria | B52: Akwa Ibom | C52: Etim Ekpo | D52: 145320 | E52: =IF(INTRO!$E$48="","",ROUND($D52*INTRO!$E$48,0)) -> 29064 | F52: =IF(INTRO!$E$49="","",ROUND($D52*INTRO!$E$49,0)) -> 40690 | G52: =IF(INTRO!$E$50="","",ROUND($D52*INTRO!$E$50,0)) -> 75566 | H52: 1 | I52: 99 | J52: 2 | K52: 0 | L52: 0 | M52: =IF(INTRO!$E$37="Endemic",IF($H52>0,IF($H52=4,"Unknown",IF($H52=99,"Stopped",$D52)),0),"Not required") -> 145320 | N52: 0 | O52: =IF(INTRO!$E$41="Endemic", IF(AND($J52>1,$J52<5), IF($J52=4, "Unknown", E52+F52), 0),"Not required") -> 69754 | P52: =IF(INTRO!$E$43="Endemic", IF(AND($K52>0,$K52<5), IF($K52=4,"Unknown", IF($K52=1, $F52*0.33, IF($K52=2, $F52*0.5+$G52*0.2, SUM(F52:G52)))), 0),"Not required") -> 0 | Q52: 1 | R52: 0 | S52: 1 | T52: 0 | Y52: 36380 | Z52: Etim Ekpo
A53: =IF(INTRO!$E$33<>0,INTRO!$E$33, " ") -> Nigeria | B53: Akwa Ibom | C53: Etinan | D53: 233360 | E53: =IF(INTRO!$E$48="","",ROUND($D53*INTRO!$E$48,0)) -> 46672 | F53: =IF(INTRO!$E$49="","",ROUND($D53*INTRO!$E$49,0)) -> 65341 | G53: =IF(INTRO!$E$50="","",ROUND($D53*INTRO!$E$50,0)) -> 121347 | H53: 0 | I53: 99 | J53: 2 | K53: 0 | L53: 0 | M53: =IF(INTRO!$E$37="Endemic",IF($H53>0,IF($H53=4,"Unknown",IF($H53=99,"Stopped",$D53)),0),"Not required") -> 0 | N53: 0 | O53: =IF(INTRO!$E$41="Endemic", IF(AND($J53>1,$J53<5), IF($J53=4, "Unknown", E53+F53), 0),"Not required") -> 112013 | P53: =IF(INTRO!$E$43="Endemic", IF(AND($K53>0,$K53<5), IF($K53=4,"Unknown", IF($K53=1, $F53*0.33, IF($K53=2, $F53*0.5+$G53*0.2, SUM(F53:G53)))), 0),"Not required") -> 0 | Q53: 0 | R53: 0 | S53: 1 | T53: 0 | Y53: 36381 | Z53: Etinan
A54: =IF(INTRO!$E$33<>0,INTRO!$E$33, " ") -> Nigeria | B54: Akwa Ibom | C54: Ibeno | D54: 103912 | E54: =IF(INTRO!$E$48="","",ROUND($D54*INTRO!$E$48,0)) -> 20782 | F54: =IF(INTRO!$E$49="","",ROUND($D54*INTRO!$E$49,0)) -> 29095 | G54: =IF(INTRO!$E$50="","",ROUND($D54*INTRO!$E$50,0)) -> 54034 | H54: 1 | I54: 99 | J54: 3 | K54: 0 | L54: 0 | M54: =IF(INTRO!$E$37="Endemic",IF($H54>0,IF($H54=4,"Unknown",IF($H54=99,"Stopped",$D54)),0),"Not required") -> 103912 | N54: 0 | O54: =IF(INTRO!$E$41="Endemic", IF(AND($J54>1,$J54<5), IF($J54=4, "Unknown", E54+F54), 0),"Not required") -> 49877 | P54: =IF(INTRO!$E$43="Endemic", IF(AND($K54>0,$K54<5), IF($K54=4,"Unknown", IF($K54=1, $F54*0.33, IF($K54=2, $F54*0.5+$G54*0.2, SUM(F54:G54)))), 0),"Not required") -> 0 | Q54: 1 | R54: 0 | S54: 2 | T54: 0 | Y54: 36382 | Z54: Ibeno
A55: =IF(INTRO!$E$33<>0,INTRO!$E$33, " ") -> Nigeria | B55: Akwa Ibom | C55: Ibesikpo Asutan | D55: 188995 | E55: =IF(INTRO!$E$48="","",ROUND($D55*INTRO!$E$48,0)) -> 37799 | F55: =IF(INTRO!$E$49="","",ROUND($D55*INTRO!$E$49,0)) -> 52919 | G55: =IF(INTRO!$E$50="","",ROUND($D55*INTRO!$E$50,0)) -> 98277 | H55: 0 | I55: 99 | J55: 3 | K55: 0 | L55: 0 | M55: =IF(INTRO!$E$37="Endemic",IF($H55>0,IF($H55=4,"Unknown",IF($H55=99,"Stopped",$D55)),0),"Not required") -> 0 | N55: 0 | O55: =IF(INTRO!$E$41="Endemic", IF(AND($J55>1,$J55<5), IF($J55=4, "Unknown", E55+F55), 0),"Not required") -> 90718 | P55: =IF(INTRO!$E$43="Endemic", IF(AND($K55>0,$K55<5), IF($K55=4,"Unknown", IF($K55=1, $F55*0.33, IF($K55=2, $F55*0.5+$G55*0.2, SUM(F55:G55)))), 0),"Not required") -> 0 | Q55: 0 | R55: 0 | S55: 2 | T55: 0 | Y55: 36383 | Z55: Ibesikpo Asutan
A56: =IF(INTRO!$E$33<>0,INTRO!$E$33, " ") -> Nigeria | B56: Akwa Ibom | C56: Ibiono Ibom | D56: 261421 | E56: =IF(INTRO!$E$48="","",ROUND($D56*INTRO!$E$48,0)) -> 52284 | F56: =IF(INTRO!$E$49="","",ROUND($D56*INTRO!$E$49,0)) -> 73198 | G56: =IF(INTRO!$E$50="","",ROUND($D56*INTRO!$E$50,0)) -> 135939 | H56: 0 | I56: 1 | J56: 3 | K56: 0 | L56: 0 | M56: =IF(INTRO!$E$37="Endemic",IF($H56>0,IF($H56=4,"Unknown",IF($H56=99,"Stopped",$D56)),0),"Not required") -> 0 | N56: 130675 | O56: =IF(INTRO!$E$41="Endemic", IF(AND($J56>1,$J56<5), IF($J56=4, "Unknown", E56+F56), 0),"Not required") -> 125482 | P56: =IF(INTRO!$E$43="Endemic", IF(AND($K56>0,$K56<5), IF($K56=4,"Unknown", IF($K56=1, $F56*0.33, IF($K56=2, $F56*0.5+$G56*0.2, SUM(F56:G56)))), 0),"Not required") -> 0 | Q56: 0 | R56: 1 | S56: 2 | T56: 0 | Y56: 36384 | Z56: Ibiono Ibom
A57: =IF(INTRO!$E$33<>0,INTRO!$E$33, " ") -> Nigeria | B57: Akwa Ibom | C57: Ika | D57: 100547 | E57: =IF(INTRO!$E$48="","",ROUND($D57*INTRO!$E$48,0)) -> 20109 | F57: =IF(INTRO!$E$49="","",ROUND($D57*INTRO!$E$49,0)) -> 28153 | G57: =IF(INTRO!$E$50="","",ROUND($D57*INTRO!$E$50,0)) -> 52284 | H57: 0 | I57: 1 | J57: 2 | K57: 0 | L57: 0 | M57: =IF(INTRO!$E$37="Endemic",IF($H57>0,IF($H57=4,"Unknown",IF($H57=99,"Stopped",$D57)),0),"Not required") -> 0 | N57: 100709 | O57: =IF(INTRO!$E$41="Endemic", IF(AND($J57>1,$J57<5), IF($J57=4, "Unknown", E57+F57), 0),"Not required") -> 48262 | P57: =IF(INTRO!$E$43="Endemic", IF(AND($K57>0,$K57<5), IF($K57=4,"Unknown", IF($K57=1, $F57*0.33, IF($K57=2, $F57*0.5+$G57*0.2, SUM(F57:G57)))), 0),"Not required") -> 0 | Q57: 0 | R57: 1 | S57: 1 | T57: 0 | Y57: 36385 | Z57: Ika
A58: =IF(INTRO!$E$33<>0,INTRO!$E$33, " ") -> Nigeria | B58: Akwa Ibom | C58: Ikono | D58: 181831 | E58: =IF(INTRO!$E$48="","",ROUND($D58*INTRO!$E$48,0)) -> 36366 | F58: =IF(INTRO!$E$49="","",ROUND($D58*INTRO!$E$49,0)) -> 50913 | G58: =IF(INTRO!$E$50="","",ROUND($D58*INTRO!$E$50,0)) -> 94552 | H58: 0 | I58: 1 | J58: 2 | K58: 0 | L58: 0 | M58: =IF(INTRO!$E$37="Endemic",IF($H58>0,IF($H58=4,"Unknown",IF($H58=99,"Stopped",$D58)),0),"Not required") -> 0 | N58: 182124 | O58: =IF(INTRO!$E$41="Endemic", IF(AND($J58>1,$J58<5), IF($J58=4, "Unknown", E58+F58), 0),"Not required") -> 87279 | P58: =IF(INTRO!$E$43="Endemic", IF(AND($K58>0,$K58<5), IF($K58=4,"Unknown", IF($K58=1, $F58*0.33, IF($K58=2, $F58*0.5+$G58*0.2, SUM(F58:G58)))), 0),"Not required") -> 0 | Q58: 0 | R58: 1 | S58: 1 | T58: 0 | Y58: 36386 | Z58: Ikono
A59: =IF(INTRO!$E$33<>0,INTRO!$E$33, " ") -> Nigeria | B59: Akwa Ibom | C59: Ikot Abasi | D59: 181995 | E59: =IF(INTRO!$E$48="","",ROUND($D59*INTRO!$E$48,0)) -> 36399 | F59: =IF(INTRO!$E$49="","",ROUND($D59*INTRO!$E$49,0)) -> 50959 | G59: =IF(INTRO!$E$50="","",ROUND($D59*INTRO!$E$50,0)) -> 94637 | H59: 1 | I59: 99 | J59: 3 | K59: 0 | L59: 0 | M59: =IF(INTRO!$E$37="Endemic",IF($H59>0,IF($H59=4,"Unknown",IF($H59=99,"Stopped",$D59)),0),"Not required") -> 181995 | N59: 0 | O59: =IF(INTRO!$E$41="Endemic", IF(AND($J59>1,$J59<5), IF($J59=4, "Unknown", E59+F59), 0),"Not required") -> 87358 | P59: =IF(INTRO!$E$43="Endemic", IF(AND($K59>0,$K59<5), IF($K59=4,"Unknown", IF($K59=1, $F59*0.33, IF($K59=2, $F59*0.5+$G59*0.2, SUM(F59:G59)))), 0),"Not required") -> 0 | Q59: 1 | R59: 0 | S59: 2 | T59: 0 | Y59: 36387 | Z59: Ikot Abasi
A60: =IF(INTRO!$E$33<>0,INTRO!$E$33, " ") -> Nigeria | B60: Akwa Ibom | C60: Ikot Ekpene | D60: 197233 | E60: =IF(INTRO!$E$48="","",ROUND($D60*INTRO!$E$48,0)) -> 39447 | F60: =IF(INTRO!$E$49="","",ROUND($D60*INTRO!$E$49,0)) -> 55225 | G60: =IF(INTRO!$E$50="","",ROUND($D60*INTRO!$E$50,0)) -> 102561 | H60: 1 | I60: 99 | J60: 2 | K60: 0 | L60: 0 | M60: =IF(INTRO!$E$37="Endemic",IF($H60>0,IF($H60=4,"Unknown",IF($H60=99,"Stopped",$D60)),0),"Not required") -> 197233 | N60: 0 | O60: =IF(INTRO!$E$41="Endemic", IF(AND($J60>1,$J60<5), IF($J60=4, "Unknown", E60+F60), 0),"Not required") -> 94672 | P60: =IF(INTRO!$E$43="Endemic", IF(AND($K60>0,$K60<5), IF($K60=4,"Unknown", IF($K60=1, $F60*0.33, IF($K60=2, $F60*0.5+$G60*0.2, SUM(F60:G60)))), 0),"Not required") -> 0 | Q60: 1 | R60: 0 | S60: 1 | T60: 0 | Y60: 36388 | Z60: Ikot Ekpene
A61: =IF(INTRO!$E$33<>0,INTRO!$E$33, " ") -> Nigeria | B61: Akwa Ibom | C61: Ini | D61: 136743 | E61: =IF(INTRO!$E$48="","",ROUND($D61*INTRO!$E$48,0)) -> 27349 | F61: =IF(INTRO!$E$49="","",ROUND($D61*INTRO!$E$49,0)) -> 38288 | G61: =IF(INTRO!$E$50="","",ROUND($D61*INTRO!$E$50,0)) -> 71106 | H61: 0 | I61: 1 | J61: 3 | K61: 0 | L61: 0 | M61: =IF(INTRO!$E$37="Endemic",IF($H61>0,IF($H61=4,"Unknown",IF($H61=99,"Stopped",$D61)),0),"Not required") -> 0 | N61: 136963 | O61: =IF(INTRO!$E$41="Endemic", IF(AND($J61>1,$J61<5), IF($J61=4, "Unknown", E61+F61), 0),"Not required") -> 65637 | P61: =IF(INTRO!$E$43="Endemic", IF(AND($K61>0,$K61<5), IF($K61=4,"Unknown", IF($K61=1, $F61*0.33, IF($K61=2, $F61*0.5+$G61*0.2, SUM(F61:G61)))), 0),"Not required") -> 0 | Q61: 0 | R61: 1 | S61: 2 | T61: 0 | Y61: 36389 | Z61: Ini
A62: =IF(INTRO!$E$33<>0,INTRO!$E$33, " ") -> Nigeria | B62: Akwa Ibom | C62: Itu | D62: 175116 | E62: =IF(INTRO!$E$48="","",ROUND($D62*INTRO!$E$48,0)) -> 35023 | F62: =IF(INTRO!$E$49="","",ROUND($D62*INTRO!$E$49,0)) -> 49032 | G62: =IF(INTRO!$E$50="","",ROUND($D62*INTRO!$E$50,0)) -> 91060 | H62: 0 | I62: 99 | J62: 3 | K62: 0 | L62: 0 | M62: =IF(INTRO!$E$37="Endemic",IF($H62>0,IF($H62=4,"Unknown",IF($H62=99,"Stopped",$D62)),0),"Not required") -> 0 | N62: 0 | O62: =IF(INTRO!$E$41="Endemic", IF(AND($J62>1,$J62<5), IF($J62=4, "Unknown", E62+F62), 0),"Not required") -> 84055 | P62: =IF(INTRO!$E$43="Endemic", IF(AND($K62>0,$K62<5), IF($K62=4,"Unknown", IF($K62=1, $F62*0.33, IF($K62=2, $F62*0.5+$G62*0.2, SUM(F62:G62)))), 0),"Not required") -> 0 | Q62: 0 | R62: 0 | S62: 2 | T62: 0 | Y62: 36390 | Z62: Itu
A63: =IF(INTRO!$E$33<>0,INTRO!$E$33, " ") -> Nigeria | B63: Akwa Ibom | C63: Mbo | D63: 143382 | E63: =IF(INTRO!$E$48="","",ROUND($D63*INTRO!$E$48,0)) -> 28676 | F63: =IF(INTRO!$E$49="","",ROUND($D63*INTRO!$E$49,0)) -> 40147 | G63: =IF(INTRO!$E$50="","",ROUND($D63*INTRO!$E$50,0)) -> 74559 | H63: 0 | I63: 99 | J63: 3 | K63: 0 | L63: 0 | M63: =IF(INTRO!$E$37="Endemic",IF($H63>0,IF($H63=4,"Unknown",IF($H63=99,"Stopped",$D63)),0),"Not required") -> 0 | N63: 0 | O63: =IF(INTRO!$E$41="Endemic", IF(AND($J63>1,$J63<5), IF($J63=4, "Unknown", E63+F63), 0),"Not required") -> 68823 | P63: =IF(INTRO!$E$43="Endemic", IF(AND($K63>0,$K63<5), IF($K63=4,"Unknown", IF($K63=1, $F63*0.33, IF($K63=2, $F63*0.5+$G63*0.2, SUM(F63:G63)))), 0),"Not required") -> 0 | Q63: 0 | R63: 0 | S63: 2 | T63: 0 | Y63: 36391 | Z63: Mbo
A64: =IF(INTRO!$E$33<>0,INTRO!$E$33, " ") -> Nigeria | B64: Akwa Ibom | C64: Mkpat Enin | D64: 245425 | E64: =IF(INTRO!$E$48="","",ROUND($D64*INTRO!$E$48,0)) -> 49085 | F64: =IF(INTRO!$E$49="","",ROUND($D64*INTRO!$E$49,0)) -> 68719 | G64: =IF(INTRO!$E$50="","",ROUND($D64*INTRO!$E$50,0)) -> 127621 | H64: 0 | I64: 99 | J64: 3 | K64: 0 | L64: 0 | M64: =IF(INTRO!$E$37="Endemic",IF($H64>0,IF($H64=4,"Unknown",IF($H64=99,"Stopped",$D64)),0),"Not required") -> 0 | N64: 0 | O64: =IF(INTRO!$E$41="Endemic", IF(AND($J64>1,$J64<5), IF($J64=4, "Unknown", E64+F64), 0),"Not required") -> 117804 | P64: =IF(INTRO!$E$43="Endemic", IF(AND($K64>0,$K64<5), IF($K64=4,"Unknown", IF($K64=1, $F64*0.33, IF($K64=2, $F64*0.5+$G64*0.2, SUM(F64:G64)))), 0),"Not required") -> 0 | Q64: 0 | R64: 0 | S64: 2 | T64: 0 | Y64: 36392 | Z64: Mkpat Enin
A65: =IF(INTRO!$E$33<>0,INTRO!$E$33, " ") -> Nigeria | B65: Akwa Ibom | C65: Nsit Atai | D65: 102830 | E65: =IF(INTRO!$E$48="","",ROUND($D65*INTRO!$E$48,0)) -> 20566 | F65: =IF(INTRO!$E$49="","",ROUND($D65*INTRO!$E$49,0)) -> 28792 | G65: =IF(INTRO!$E$50="","",ROUND($D65*INTRO!$E$50,0)) -> 53472 | H65: 0 | I65: 99 | J65: 3 | K65: 0 | L65: 0 | M65: =IF(INTRO!$E$37="Endemic",IF($H65>0,IF($H65=4,"Unknown",IF($H65=99,"Stopped",$D65)),0),"Not required") -> 0 | N65: 0 | O65: =IF(INTRO!$E$41="Endemic", IF(AND($J65>1,$J65<5), IF($J65=4, "Unknown", E65+F65), 0),"Not required") -> 49358 | P65: =IF(INTRO!$E$43="Endemic", IF(AND($K65>0,$K65<5), IF($K65=4,"Unknown", IF($K65=1, $F65*0.33, IF($K65=2, $F65*0.5+$G65*0.2, SUM(F65:G65)))), 0),"Not required") -> 0 | Q65: 0 | R65: 0 | S65: 2 | T65: 0 | Y65: 36393 | Z65: Nsit Atai
A66: =IF(INTRO!$E$33<>0,INTRO!$E$33, " ") -> Nigeria | B66: Akwa Ibom | C66: Nsit Ibom | D66: 149721 | E66: =IF(INTRO!$E$48="","",ROUND($D66*INTRO!$E$48,0)) -> 29944 | F66: =IF(INTRO!$E$49="","",ROUND($D66*INTRO!$E$49,0)) -> 41922 | G66: =IF(INTRO!$E$50="","",ROUND($D66*INTRO!$E$50,0)) -> 77855 | H66: 0 | I66: 99 | J66: 2 | K66: 0 | L66: 0 | M66: =IF(INTRO!$E$37="Endemic",IF($H66>0,IF($H66=4,"Unknown",IF($H66=99,"Stopped",$D66)),0),"Not required") -> 0 | N66: 0 | O66: =IF(INTRO!$E$41="Endemic", IF(AND($J66>1,$J66<5), IF($J66=4, "Unknown", E66+F66), 0),"Not required") -> 71866 | P66: =IF(INTRO!$E$43="Endemic", IF(AND($K66>0,$K66<5), IF($K66=4,"Unknown", IF($K66=1, $F66*0.33, IF($K66=2, $F66*0.5+$G66*0.2, SUM(F66:G66)))), 0),"Not required") -> 0 | Q66: 0 | R66: 0 | S66: 1 | T66: 0 | Y66: 36394 | Z66: Nsit Ibom
A67: =IF(INTRO!$E$33<>0,INTRO!$E$33, " ") -> Nigeria | B67: Akwa Ibom | C67: Nsit Ubiom | D67: 176768 | E67: =IF(INTRO!$E$48="","",ROUND($D67*INTRO!$E$48,0)) -> 35354 | F67: =IF(INTRO!$E$49="","",ROUND($D67*INTRO!$E$49,0)) -> 49495 | G67: =IF(INTRO!$E$50="","",ROUND($D67*INTRO!$E$50,0)) -> 91919 | H67: 0 | I67: 99 | J67: 3 | K67: 0 | L67: 0 | M67: =IF(INTRO!$E$37="Endemic",IF($H67>0,IF($H67=4,"Unknown",IF($H67=99,"Stopped",$D67)),0),"Not required") -> 0 | N67: 0 | O67: =IF(INTRO!$E$41="Endemic", IF(AND($J67>1,$J67<5), IF($J67=4, "Unknown", E67+F67), 0),"Not required") -> 84849 | P67: =IF(INTRO!$E$43="Endemic", IF(AND($K67>0,$K67<5), IF($K67=4,"Unknown", IF($K67=1, $F67*0.33, IF($K67=2, $F67*0.5+$G67*0.2, SUM(F67:G67)))), 0),"Not required") -> 0 | Q67: 0 | R67: 0 | S67: 2 | T67: 0 | Y67: 36395 | Z67: Nsit Ubiom
A68: =IF(INTRO!$E$33<>0,INTRO!$E$33, " ") -> Nigeria | B68: Akwa Ibom | C68: Obot Akara | D68: 204407 | E68: =IF(INTRO!$E$48="","",ROUND($D68*INTRO!$E$48,0)) -> 40881 | F68: =IF(INTRO!$E$49="","",ROUND($D68*INTRO!$E$49,0)) -> 57234 | G68: =IF(INTRO!$E$50="","",ROUND($D68*INTRO!$E$50,0)) -> 106292 | H68: 0 | I68: 99 | J68: 3 | K68: 0 | L68: 0 | M68: =IF(INTRO!$E$37="Endemic",IF($H68>0,IF($H68=4,"Unknown",IF($H68=99,"Stopped",$D68)),0),"Not required") -> 0 | N68: 0 | O68: =IF(INTRO!$E$41="Endemic", IF(AND($J68>1,$J68<5), IF($J68=4, "Unknown", E68+F68), 0),"Not required") -> 98115 | P68: =IF(INTRO!$E$43="Endemic", IF(AND($K68>0,$K68<5), IF($K68=4,"Unknown", IF($K68=1, $F68*0.33, IF($K68=2, $F68*0.5+$G68*0.2, SUM(F68:G68)))), 0),"Not required") -> 0 | Q68: 0 | R68: 0 | S68: 2 | T68: 0 | Y68: 36396 | Z68: Obot Akara
A69: =IF(INTRO!$E$33<>0,INTRO!$E$33, " ") -> Nigeria | B69: Akwa Ibom | C69: Okobo | D69: 143444 | E69: =IF(INTRO!$E$48="","",ROUND($D69*INTRO!$E$48,0)) -> 28689 | F69: =IF(INTRO!$E$49="","",ROUND($D69*INTRO!$E$49,0)) -> 40164 | G69: =IF(INTRO!$E$50="","",ROUND($D69*INTRO!$E$50,0)) -> 74591 | H69: 1 | I69: 99 | J69: 3 | K69: 0 | L69: 0 | M69: =IF(INTRO!$E$37="Endemic",IF($H69>0,IF($H69=4,"Unknown",IF($H69=99,"Stopped",$D69)),0),"Not required") -> 143444 | N69: 0 | O69: =IF(INTRO!$E$41="Endemic", IF(AND($J69>1,$J69<5), IF($J69=4, "Unknown", E69+F69), 0),"Not required") -> 68853 | P69: =IF(INTRO!$E$43="Endemic", IF(AND($K69>0,$K69<5), IF($K69=4,"Unknown", IF($K69=1, $F69*0.33, IF($K69=2, $F69*0.5+$G69*0.2, SUM(F69:G69)))), 0),"Not required") -> 0 | Q69: 1 | R69: 0 | S69: 2 | T69: 0 | Y69: 36397 | Z69: Okobo
A70: =IF(INTRO!$E$33<>0,INTRO!$E$33, " ") -> Nigeria | B70: Akwa Ibom | C70: Onna | D70: 170071 | E70: =IF(INTRO!$E$48="","",ROUND($D70*INTRO!$E$48,0)) -> 34014 | F70: =IF(INTRO!$E$49="","",ROUND($D70*INTRO!$E$49,0)) -> 47620 | G70: =IF(INTRO!$E$50="","",ROUND($D70*INTRO!$E$50,0)) -> 88437 | H70: 1 | I70: 99 | J70: 3 | K70: 0 | L70: 0 | M70: =IF(INTRO!$E$37="Endemic",IF($H70>0,IF($H70=4,"Unknown",IF($H70=99,"Stopped",$D70)),0),"Not required") -> 170071 | N70: 0 | O70: =IF(INTRO!$E$41="Endemic", IF(AND($J70>1,$J70<5), IF($J70=4, "Unknown", E70+F70), 0),"Not required") -> 81634 | P70: =IF(INTRO!$E$43="Endemic", IF(AND($K70>0,$K70<5), IF($K70=4,"Unknown", IF($K70=1, $F70*0.33, IF($K70=2, $F70*0.5+$G70*0.2, SUM(F70:G70)))), 0),"Not required") -> 0 | Q70: 1 | R70: 0 | S70: 2 | T70: 0 | Y70: 36398 | Z70: Onna
A71: =IF(INTRO!$E$33<>0,INTRO!$E$33, " ") -> Nigeria | B71: Akwa Ibom | C71: Oron | D71: 120566 | E71: =IF(INTRO!$E$48="","",ROUND($D71*INTRO!$E$48,0)) -> 24113 | F71: =IF(INTRO!$E$49="","",ROUND($D71*INTRO!$E$49,0)) -> 33758 | G71: =IF(INTRO!$E$50="","",ROUND($D71*INTRO!$E$50,0)) -> 62694 | H71: 1 | I71: 99 | J71: 3 | K71: 0 | L71: 0 | M71: =IF(INTRO!$E$37="Endemic",IF($H71>0,IF($H71=4,"Unknown",IF($H71=99,"Stopped",$D71)),0),"Not required") -> 120566 | N71: 0 | O71: =IF(INTRO!$E$41="Endemic", IF(AND($J71>1,$J71<5), IF($J71=4, "Unknown", E71+F71), 0),"Not required") -> 57871 | P71: =IF(INTRO!$E$43="Endemic", IF(AND($K71>0,$K71<5), IF($K71=4,"Unknown", IF($K71=1, $F71*0.33, IF($K71=2, $F71*0.5+$G71*0.2, SUM(F71:G71)))), 0),"Not required") -> 0 | Q71: 1 | R71: 0 | S71: 2 | T71: 0 | Y71: 36399 | Z71: Oron
A72: =IF(INTRO!$E$33<>0,INTRO!$E$33, " ") -> Nigeria | B72: Akwa Ibom | C72: Oruk Anam | D72: 238005 | E72: =IF(INTRO!$E$48="","",ROUND($D72*INTRO!$E$48,0)) -> 47601 | F72: =IF(INTRO!$E$49="","",ROUND($D72*INTRO!$E$49,0)) -> 66641 | G72: =IF(INTRO!$E$50="","",ROUND($D72*INTRO!$E$50,0)) -> 123763 | H72: 0 | I72: 99 | J72: 3 | K72: 0 | L72: 0 | M72: =IF(INTRO!$E$37="Endemic",IF($H72>0,IF($H72=4,"Unknown",IF($H72=99,"Stopped",$D72)),0),"Not required") -> 0 | N72: 0 | O72: =IF(INTRO!$E$41="Endemic", IF(AND($J72>1,$J72<5), IF($J72=4, "Unknown", E72+F72), 0),"Not required") -> 114242 | P72: =IF(INTRO!$E$43="Endemic", IF(AND($K72>0,$K72<5), IF($K72=4,"Unknown", IF($K72=1, $F72*0.33, IF($K72=2, $F72*0.5+$G72*0.2, SUM(F72:G72)))), 0),"Not required") -> 0 | Q72: 0 | R72: 0 | S72: 2 | T72: 0 | Y72: 36400 | Z72: Oruk Anam
A73: =IF(INTRO!$E$33<>0,INTRO!$E$33, " ") -> Nigeria | B73: Akwa Ibom | C73: Udung Uko | D73: 73444 | E73: =IF(INTRO!$E$48="","",ROUND($D73*INTRO!$E$48,0)) -> 14689 | F73: =IF(INTRO!$E$49="","",ROUND($D73*INTRO!$E$49,0)) -> 20564 | G73: =IF(INTRO!$E$50="","",ROUND($D73*INTRO!$E$50,0)) -> 38191 | H73: 1 | I73: 99 | J73: 3 | K73: 1 | L73: 0 | M73: =IF(INTRO!$E$37="Endemic",IF($H73>0,IF($H73=4,"Unknown",IF($H73=99,"Stopped",$D73)),0),"Not required") -> 73444 | N73: 0 | O73: =IF(INTRO!$E$41="Endemic", IF(AND($J73>1,$J73<5), IF($J73=4, "Unknown", E73+F73), 0),"Not required") -> 35253 | P73: =IF(INTRO!$E$43="Endemic", IF(AND($K73>0,$K73<5), IF($K73=4,"Unknown", IF($K73=1, $F73*0.33, IF($K73=2, $F73*0.5+$G73*0.2, SUM(F73:G73)))), 0),"Not required") -> 6786.12 | Q73: 1 | R73: 0 | S73: 2 | T73: 1 | Y73: 36401 | Z73: Udung Uko
A74: =IF(INTRO!$E$33<>0,INTRO!$E$33, " ") -> Nigeria | B74: Akwa Ibom | C74: Ukanafun | D74: 175116 | E74: =IF(INTRO!$E$48="","",ROUND($D74*INTRO!$E$48,0)) -> 35023 | F74: =IF(INTRO!$E$49="","",ROUND($D74*INTRO!$E$49,0)) -> 49032 | G74: =IF(INTRO!$E$50="","",ROUND($D74*INTRO!$E$50,0)) -> 91060 | H74: 0 | I74: 99 | J74: 2 | K74: 0 | L74: 0 | M74: =IF(INTRO!$E$37="Endemic",IF($H74>0,IF($H74=4,"Unknown",IF($H74=99,"Stopped",$D74)),0),"Not required") -> 0 | N74: 0 | O74: =IF(INTRO!$E$41="Endemic", IF(AND($J74>1,$J74<5), IF($J74=4, "Unknown", E74+F74), 0),"Not required") -> 84055 | P74: =IF(INTRO!$E$43="Endemic", IF(AND($K74>0,$K74<5), IF($K74=4,"Unknown", IF($K74=1, $F74*0.33, IF($K74=2, $F74*0.5+$G74*0.2, SUM(F74:G74)))), 0),"Not required") -> 0 | Q74: 0 | R74: 0 | S74: 1 | T74: 0 | Y74: 36402 | Z74: Ukanafun
A75: =IF(INTRO!$E$33<>0,INTRO!$E$33, " ") -> Nigeria | B75: Akwa Ibom | C75: Uruan | D75: 163078 | E75: =IF(INTRO!$E$48="","",ROUND($D75*INTRO!$E$48,0)) -> 32616 | F75: =IF(INTRO!$E$49="","",ROUND($D75*INTRO!$E$49,0)) -> 45662 | G75: =IF(INTRO!$E$50="","",ROUND($D75*INTRO!$E$50,0)) -> 84801 | H75: 1 | I75: 99 | J75: 3 | K75: 0 | L75: 0 | M75: =IF(INTRO!$E$37="Endemic",IF($H75>0,IF($H75=4,"Unknown",IF($H75=99,"Stopped",$D75)),0),"Not required") -> 163078 | N75: 0 | O75: =IF(INTRO!$E$41="Endemic", IF(AND($J75>1,$J75<5), IF($J75=4, "Unknown", E75+F75), 0),"Not required") -> 78278 | P75: =IF(INTRO!$E$43="Endemic", IF(AND($K75>0,$K75<5), IF($K75=4,"Unknown", IF($K75=1, $F75*0.33, IF($K75=2, $F75*0.5+$G75*0.2, SUM(F75:G75)))), 0),"Not required") -> 0 | Q75: 1 | R75: 0 | S75: 2 | T75: 0 | Y75: 36403 | Z75: Uruan
A76: =IF(INTRO!$E$33<>0,INTRO!$E$33, " ") -> Nigeria | B76: Akwa Ibom | C76: Urue-Offong/Oruko | D76: 98093 | E76: =IF(INTRO!$E$48="","",ROUND($D76*INTRO!$E$48,0)) -> 19619 | F76: =IF(INTRO!$E$49="","",ROUND($D76*INTRO!$E$49,0)) -> 27466 | G76: =IF(INTRO!$E$50="","",ROUND($D76*INTRO!$E$50,0)) -> 51008 | H76: 0 | I76: 99 | J76: 3 | K76: 0 | L76: 0 | M76: =IF(INTRO!$E$37="Endemic",IF($H76>0,IF($H76=4,"Unknown",IF($H76=99,"Stopped",$D76)),0),"Not required") -> 0 | N76: 0 | O76: =IF(INTRO!$E$41="Endemic", IF(AND($J76>1,$J76<5), IF($J76=4, "Unknown", E76+F76), 0),"Not required") -> 47085 | P76: =IF(INTRO!$E$43="Endemic", IF(AND($K76>0,$K76<5), IF($K76=4,"Unknown", IF($K76=1, $F76*0.33, IF($K76=2, $F76*0.5+$G76*0.2, SUM(F76:G76)))), 0),"Not required") -> 0 | Q76: 0 | R76: 0 | S76: 2 | T76: 0 | Y76: 36404 | Z76: Urue-Offong/Oruko
A77: =IF(INTRO!$E$33<>0,INTRO!$E$33, " ") -> Nigeria | B77: Akwa Ibom | C77: Uyo | D77: 426750 | E77: =IF(INTRO!$E$48="","",ROUND($D77*INTRO!$E$48,0)) -> 85350 | F77: =IF(INTRO!$E$49="","",ROUND($D77*INTRO!$E$49,0)) -> 119490 | G77: =IF(INTRO!$E$50="","",ROUND($D77*INTRO!$E$50,0)) -> 221910 | H77: 0 | I77: 99 | J77: 2 | K77: 0 | L77: 0 | M77: =IF(INTRO!$E$37="Endemic",IF($H77>0,IF($H77=4,"Unknown",IF($H77=99,"Stopped",$D77)),0),"Not required") -> 0 | N77: 0 | O77: =IF(INTRO!$E$41="Endemic", IF(AND($J77>1,$J77<5), IF($J77=4, "Unknown", E77+F77), 0),"Not required") -> 204840 | P77: =IF(INTRO!$E$43="Endemic", IF(AND($K77>0,$K77<5), IF($K77=4,"Unknown", IF($K77=1, $F77*0.33, IF($K77=2, $F77*0.5+$G77*0.2, SUM(F77:G77)))), 0),"Not required") -> 0 | Q77: 0 | R77: 0 | S77: 1 | T77: 0 | Y77: 36405 | Z77: Uyo
A78: =IF(INTRO!$E$33<>0,INTRO!$E$33, " ") -> Nigeria | B78: Anambra | C78: Aguata | D78: 510286 | E78: =IF(INTRO!$E$48="","",ROUND($D78*INTRO!$E$48,0)) -> 102057 | F78: =IF(INTRO!$E$49="","",ROUND($D78*INTRO!$E$49,0)) -> 142880 | G78: =IF(INTRO!$E$50="","",ROUND($D78*INTRO!$E$50,0)) -> 265349 | H78: 1 | I78: 1 | J78: 2 | K78: 0 | L78: 0 | M78: =IF(INTRO!$E$37="Endemic",IF($H78>0,IF($H78=4,"Unknown",IF($H78=99,"Stopped",$D78)),0),"Not required") -> 510286 | N78: 70935 | O78: =IF(INTRO!$E$41="Endemic", IF(AND($J78>1,$J78<5), IF($J78=4, "Unknown", E78+F78), 0),"Not required") -> 244937 | P78: =IF(INTRO!$E$43="Endemic", IF(AND($K78>0,$K78<5), IF($K78=4,"Unknown", IF($K78=1, $F78*0.33, IF($K78=2, $F78*0.5+$G78*0.2, SUM(F78:G78)))), 0),"Not required") -> 0 | Q78: 1 | R78: 2 | S78: 1 | T78: 0 | Y78: 36406 | Z78: Aguata
A79: =IF(INTRO!$E$33<>0,INTRO!$E$33, " ") -> Nigeria | B79: Anambra | C79: Anambra East | D79: 211368 | E79: =IF(INTRO!$E$48="","",ROUND($D79*INTRO!$E$48,0)) -> 42274 | F79: =IF(INTRO!$E$49="","",ROUND($D79*INTRO!$E$49,0)) -> 59183 | G79: =IF(INTRO!$E$50="","",ROUND($D79*INTRO!$E$50,0)) -> 109911 | H79: 1 | I79: 99 | J79: 1 | K79: 0 | L79: 0 | M79: =IF(INTRO!$E$37="Endemic",IF($H79>0,IF($H79=4,"Unknown",IF($H79=99,"Stopped",$D79)),0),"Not required") -> 211368 | N79: 0 | O79: =IF(INTRO!$E$41="Endemic", IF(AND($J79>1,$J79<5), IF($J79=4, "Unknown", E79+F79), 0),"Not required") -> 0 | P79: =IF(INTRO!$E$43="Endemic", IF(AND($K79>0,$K79<5), IF($K79=4,"Unknown", IF($K79=1, $F79*0.33, IF($K79=2, $F79*0.5+$G79*0.2, SUM(F79:G79)))), 0),"Not required") -> 0 | Q79: 1 | R79: 0 | S79: 0 | T79: 0 | Y79: 36407 | Z79: Anambra East
A80: =IF(INTRO!$E$33<>0,INTRO!$E$33, " ") -> Nigeria | B80: Anambra | C80: Anambra West | D80: 230785 | E80: =IF(INTRO!$E$48="","",ROUND($D80*INTRO!$E$48,0)) -> 46157 | F80: =IF(INTRO!$E$49="","",ROUND($D80*INTRO!$E$49,0)) -> 64620 | G80: =IF(INTRO!$E$50="","",ROUND($D80*INTRO!$E$50,0)) -> 120008 | H80: 1 | I80: 99 | J80: 1 | K80: 1 | L80: 0 | M80: =IF(INTRO!$E$37="Endemic",IF($H80>0,IF($H80=4,"Unknown",IF($H80=99,"Stopped",$D80)),0),"Not required") -> 230785 | N80: 0 | O80: =IF(INTRO!$E$41="Endemic", IF(AND($J80>1,$J80<5), IF($J80=4, "Unknown", E80+F80), 0),"Not required") -> 0 | P80: =IF(INTRO!$E$43="Endemic", IF(AND($K80>0,$K80<5), IF($K80=4,"Unknown", IF($K80=1, $F80*0.33, IF($K80=2, $F80*0.5+$G80*0.2, SUM(F80:G80)))), 0),"Not required") -> 21324.6 | Q80: 1 | R80: 0 | S80: 0 | T80: 1 | Y80: 36408 | Z80: Anambra West
A81: =IF(INTRO!$E$33<>0,INTRO!$E$33, " ") -> Nigeria | B81: Anambra | C81: Anaocha | D81: 392878 | E81: =IF(INTRO!$E$48="","",ROUND($D81*INTRO!$E$48,0)) -> 78576 | F81: =IF(INTRO!$E$49="","",ROUND($D81*INTRO!$E$49,0)) -> 110006 | G81: =IF(INTRO!$E$50="","",ROUND($D81*INTRO!$E$50,0)) -> 204297 | H81: 1 | I81: 1 | J81: 1 | K81: 0 | L81: 0 | M81: =IF(INTRO!$E$37="Endemic",IF($H81>0,IF($H81=4,"Unknown",IF($H81=99,"Stopped",$D81)),0),"Not required") -> 392878 | N81: 60190 | O81: =IF(INTRO!$E$41="Endemic", IF(AND($J81>1,$J81<5), IF($J81=4, "Unknown", E81+F81), 0),"Not required") -> 0 | P81: =IF(INTRO!$E$43="Endemic", IF(AND($K81>0,$K81<5), IF($K81=4,"Unknown", IF($K81=1, $F81*0.33, IF($K81=2, $F81*0.5+$G81*0.2, SUM(F81:G81)))), 0),"Not required") -> 0 | Q81: 1 | R81: 2 | S81: 0 | T81: 0 | Y81: 36409 | Z81: Anaocha
A82: =IF(INTRO!$E$33<>0,INTRO!$E$33, " ") -> Nigeria | B82: Anambra | C82: Awka North | D82: 155231 | E82: =IF(INTRO!$E$48="","",ROUND($D82*INTRO!$E$48,0)) -> 31046 | F82: =IF(INTRO!$E$49="","",ROUND($D82*INTRO!$E$49,0)) -> 43465 | G82: =IF(INTRO!$E$50="","",ROUND($D82*INTRO!$E$50,0)) -> 80720 | H82: 1 | I82: 1 | J82: 2 | K82: 0 | L82: 0 | M82: =IF(INTRO!$E$37="Endemic",IF($H82>0,IF($H82=4,"Unknown",IF($H82=99,"Stopped",$D82)),0),"Not required") -> 155231 | N82: 47222 | O82: =IF(INTRO!$E$41="Endemic", IF(AND($J82>1,$J82<5), IF($J82=4, "Unknown", E82+F82), 0),"Not required") -> 74511 | P82: =IF(INTRO!$E$43="Endemic", IF(AND($K82>0,$K82<5), IF($K82=4,"Unknown", IF($K82=1, $F82*0.33, IF($K82=2, $F82*0.5+$G82*0.2, SUM(F82:G82)))), 0),"Not required") -> 0 | Q82: 1 | R82: 2 | S82: 1 | T82: 0 | Y82: 36410 | Z82: Awka North
A83: =IF(INTRO!$E$33<>0,INTRO!$E$33, " ") -> Nigeria | B83: Anambra | C83: Awka south | D83: 260606 | E83: =IF(INTRO!$E$48="","",ROUND($D83*INTRO!$E$48,0)) -> 52121 | F83: =IF(INTRO!$E$49="","",ROUND($D83*INTRO!$E$49,0)) -> 72970 | G83: =IF(INTRO!$E$50="","",ROUND($D83*INTRO!$E$50,0)) -> 135515 | H83: 1 | I83: 1 | J83: 2 | K83: 1 | L83: 0 | M83: =IF(INTRO!$E$37="Endemic",IF($H83>0,IF($H83=4,"Unknown",IF($H83=99,"Stopped",$D83)),0),"Not required") -> 260606 | N83: 44854 | O83: =IF(INTRO!$E$41="Endemic", IF(AND($J83>1,$J83<5), IF($J83=4, "Unknown", E83+F83), 0),"Not required") -> 125091 | P83: =IF(INTRO!$E$43="Endemic", IF(AND($K83>0,$K83<5), IF($K83=4,"Unknown", IF($K83=1, $F83*0.33, IF($K83=2, $F83*0.5+$G83*0.2, SUM(F83:G83)))), 0),"Not required") -> 24080.1 | Q83: 1 | R83: 2 | S83: 1 | T83: 1 | Y83: 36411 | Z83: Awka south
A84: =IF(INTRO!$E$33<>0,INTRO!$E$33, " ") -> Nigeria | B84: Anambra | C84: Ayamelum | D84: 218370 | E84: =IF(INTRO!$E$48="","",ROUND($D84*INTRO!$E$48,0)) -> 43674 | F84: =IF(INTRO!$E$49="","",ROUND($D84*INTRO!$E$49,0)) -> 61144 | G84: =IF(INTRO!$E$50="","",ROUND($D84*INTRO!$E$50,0)) -> 113552 | H84: 1 | I84: 1 | J84: 2 | K84: 0 | L84: 0 | M84: =IF(INTRO!$E$37="Endemic",IF($H84>0,IF($H84=4,"Unknown",IF($H84=99,"Stopped",$D84)),0),"Not required") -> 218370 | N84: 54962 | O84: =IF(INTRO!$E$41="Endemic", IF(AND($J84>1,$J84<5), IF($J84=4, "Unknown", E84+F84), 0),"Not required") -> 104818 | P84: =IF(INTRO!$E$43="Endemic", IF(AND($K84>0,$K84<5), IF($K84=4,"Unknown", IF($K84=1, $F84*0.33, IF($K84=2, $F84*0.5+$G84*0.2, SUM(F84:G84)))), 0),"Not required") -> 0 | Q84: 1 | R84: 2 | S84: 1 | T84: 0 | Y84: 36412 | Z84: Ayamelum
A85: =IF(INTRO!$E$33<>0,INTRO!$E$33, " ") -> Nigeria | B85: Anambra | C85: Dunukofia | D85: 132864 | E85: =IF(INTRO!$E$48="","",ROUND($D85*INTRO!$E$48,0)) -> 26573 | F85: =IF(INTRO!$E$49="","",ROUND($D85*INTRO!$E$49,0)) -> 37202 | G85: =IF(INTRO!$E$50="","",ROUND($D85*INTRO!$E$50,0)) -> 69089 | H85: 1 | I85: 1 | J85: 2 | K85: 1 | L85: 0 | M85: =IF(INTRO!$E$37="Endemic",IF($H85>0,IF($H85=4,"Unknown",IF($H85=99,"Stopped",$D85)),0),"Not required") -> 132864 | N85: 45577 | O85: =IF(INTRO!$E$41="Endemic", IF(AND($J85>1,$J85<5), IF($J85=4, "Unknown", E85+F85), 0),"Not required") -> 63775 | P85: =IF(INTRO!$E$43="Endemic", IF(AND($K85>0,$K85<5), IF($K85=4,"Unknown", IF($K85=1, $F85*0.33, IF($K85=2, $F85*0.5+$G85*0.2, SUM(F85:G85)))), 0),"Not required") -> 12276.66 | Q85: 1 | R85: 2 | S85: 1 | T85: 1 | Y85: 36413 | Z85: Dunukofia
A86: =IF(INTRO!$E$33<>0,INTRO!$E$33, " ") -> Nigeria | B86: Anambra | C86: Ekwusiko | D86: 218123 | E86: =IF(INTRO!$E$48="","",ROUND($D86*INTRO!$E$48,0)) -> 43625 | F86: =IF(INTRO!$E$49="","",ROUND($D86*INTRO!$E$49,0)) -> 61074 | G86: =IF(INTRO!$E$50="","",ROUND($D86*INTRO!$E$50,0)) -> 113424 | H86: 1 | I86: 1 | J86: 2 | K86: 0 | L86: 0 | M86: =IF(INTRO!$E$37="Endemic",IF($H86>0,IF($H86=4,"Unknown",IF($H86=99,"Stopped",$D86)),0),"Not required") -> 218123 | N86: 52158 | O86: =IF(INTRO!$E$41="Endemic", IF(AND($J86>1,$J86<5), IF($J86=4, "Unknown", E86+F86), 0),"Not required") -> 104699 | P86: =IF(INTRO!$E$43="Endemic", IF(AND($K86>0,$K86<5), IF($K86=4,"Unknown", IF($K86=1, $F86*0.33, IF($K86=2, $F86*0.5+$G86*0.2, SUM(F86:G86)))), 0),"Not required") -> 0 | Q86: 1 | R86: 2 | S86: 1 | T86: 0 | Y86: 36414 | Z86: Ekwusiko
A87: =IF(INTRO!$E$33<>0,INTRO!$E$33, " ") -> Nigeria | B87: Anambra | C87: Idimili North | D87: 593839 | E87: =IF(INTRO!$E$48="","",ROUND($D87*INTRO!$E$48,0)) -> 118768 | F87: =IF(INTRO!$E$49="","",ROUND($D87*INTRO!$E$49,0)) -> 166275 | G87: =IF(INTRO!$E$50="","",ROUND($D87*INTRO!$E$50,0)) -> 308796 | H87: 1 | I87: 1 | J87: 1 | K87: 1 | L87: 0 | M87: =IF(INTRO!$E$37="Endemic",IF($H87>0,IF($H87=4,"Unknown",IF($H87=99,"Stopped",$D87)),0),"Not required") -> 593839 | N87: 75699 | O87: =IF(INTRO!$E$41="Endemic", IF(AND($J87>1,$J87<5), IF($J87=4, "Unknown", E87+F87), 0),"Not required") -> 0 | P87: =IF(INTRO!$E$43="Endemic", IF(AND($K87>0,$K87<5), IF($K87=4,"Unknown", IF($K87=1, $F87*0.33, IF($K87=2, $F87*0.5+$G87*0.2, SUM(F87:G87)))), 0),"Not required") -> 54870.75 | Q87: 1 | R87: 2 | S87: 0 | T87: 1 | Y87: 36415 | Z87: Idimili North
A88: =IF(INTRO!$E$33<>0,INTRO!$E$33, " ") -> Nigeria | B88: Anambra | C88: Idimili South | D88: 286293 | E88: =IF(INTRO!$E$48="","",ROUND($D88*INTRO!$E$48,0)) -> 57259 | F88: =IF(INTRO!$E$49="","",ROUND($D88*INTRO!$E$49,0)) -> 80162 | G88: =IF(INTRO!$E$50="","",ROUND($D88*INTRO!$E$50,0)) -> 148872 | H88: 1 | I88: 1 | J88: 1 | K88: 0 | L88: 0 | M88: =IF(INTRO!$E$37="Endemic",IF($H88>0,IF($H88=4,"Unknown",IF($H88=99,"Stopped",$D88)),0),"Not required") -> 286293 | N88: 51715 | O88: =IF(INTRO!$E$41="Endemic", IF(AND($J88>1,$J88<5), IF($J88=4, "Unknown", E88+F88), 0),"Not required") -> 0 | P88: =IF(INTRO!$E$43="Endemic", IF(AND($K88>0,$K88<5), IF($K88=4,"Unknown", IF($K88=1, $F88*0.33, IF($K88=2, $F88*0.5+$G88*0.2, SUM(F88:G88)))), 0),"Not required") -> 0 | Q88: 1 | R88: 2 | S88: 0 | T88: 0 | Y88: 36416 | Z88: Idimili South
A89: =IF(INTRO!$E$33<>0,INTRO!$E$33, " ") -> Nigeria | B89: Anambra | C89: Ihiala | D89: 416528 | E89: =IF(INTRO!$E$48="","",ROUND($D89*INTRO!$E$48,0)) -> 83306 | F89: =IF(INTRO!$E$49="","",ROUND($D89*INTRO!$E$49,0)) -> 116628 | G89: =IF(INTRO!$E$50="","",ROUND($D89*INTRO!$E$50,0)) -> 216595 | H89: 1 | I89: 1 | J89: 2 | K89: 0 | L89: 0 | M89: =IF(INTRO!$E$37="Endemic",IF($H89>0,IF($H89=4,"Unknown",IF($H89=99,"Stopped",$D89)),0),"Not required") -> 416528 | N89: 55945 | O89: =IF(INTRO!$E$41="Endemic", IF(AND($J89>1,$J89<5), IF($J89=4, "Unknown", E89+F89), 0),"Not required") -> 199934 | P89: =IF(INTRO!$E$43="Endemic", IF(AND($K89>0,$K89<5), IF($K89=4,"Unknown", IF($K89=1, $F89*0.33, IF($K89=2, $F89*0.5+$G89*0.2, SUM(F89:G89)))), 0),"Not required") -> 0 | Q89: 1 | R89: 2 | S89: 1 | T89: 0 | Y89: 36417 | Z89: Ihiala
A90: =IF(INTRO!$E$33<>0,INTRO!$E$33, " ") -> Nigeria | B90: Anambra | C90: Njikoka | D90: 204661 | E90: =IF(INTRO!$E$48="","",ROUND($D90*INTRO!$E$48,0)) -> 40932 | F90: =IF(INTRO!$E$49="","",ROUND($D90*INTRO!$E$49,0)) -> 57305 | G90: =IF(INTRO!$E$50="","",ROUND($D90*INTRO!$E$50,0)) -> 106424 | H90: 1 | I90: 1 | J90: 2 | K90: 1 | L90: 0 | M90: =IF(INTRO!$E$37="Endemic",IF($H90>0,IF($H90=4,"Unknown",IF($H90=99,"Stopped",$D90)),0),"Not required") -> 204661 | N90: 46130 | O90: =IF(INTRO!$E$41="Endemic", IF(AND($J90>1,$J90<5), IF($J90=4, "Unknown", E90+F90), 0),"Not required") -> 98237 | P90: =IF(INTRO!$E$43="Endemic", IF(AND($K90>0,$K90<5), IF($K90=4,"Unknown", IF($K90=1, $F90*0.33, IF($K90=2, $F90*0.5+$G90*0.2, SUM(F90:G90)))), 0),"Not required") -> 18910.65 | Q90: 1 | R90: 2 | S90: 1 | T90: 1 | Y90: 36418 | Z90: Njikoka
A91: =IF(INTRO!$E$33<>0,INTRO!$E$33, " ") -> Nigeria | B91: Anambra | C91: Nnewi North | D91: 217211 | E91: =IF(INTRO!$E$48="","",ROUND($D91*INTRO!$E$48,0)) -> 43442 | F91: =IF(INTRO!$E$49="","",ROUND($D91*INTRO!$E$49,0)) -> 60819 | G91: =IF(INTRO!$E$50="","",ROUND($D91*INTRO!$E$50,0)) -> 112950 | H91: 1 | I91: 1 | J91: 2 | K91: 1 | L91: 0 | M91: =IF(INTRO!$E$37="Endemic",IF($H91>0,IF($H91=4,"Unknown",IF($H91=99,"Stopped",$D91)),0),"Not required") -> 217211 | N91: 90642 | O91: =IF(INTRO!$E$41="Endemic", IF(AND($J91>1,$J91<5), IF($J91=4, "Unknown", E91+F91), 0),"Not required") -> 104261 | P91: =IF(INTRO!$E$43="Endemic", IF(AND($K91>0,$K91<5), IF($K91=4,"Unknown", IF($K91=1, $F91*0.33, IF($K91=2, $F91*0.5+$G91*0.2, SUM(F91:G91)))), 0),"Not required") -> 20070.27 | Q91: 1 | R91: 2 | S91: 1 | T91: 1 | Y91: 36419 | Z91: Nnewi North
A92: =IF(INTRO!$E$33<>0,INTRO!$E$33, " ") -> Nigeria | B92: Anambra | C92: Nnewi South | D92: 322100 | E92: =IF(INTRO!$E$48="","",ROUND($D92*INTRO!$E$48,0)) -> 64420 | F92: =IF(INTRO!$E$49="","",ROUND($D92*INTRO!$E$49,0)) -> 90188 | G92: =IF(INTRO!$E$50="","",ROUND($D92*INTRO!$E$50,0)) -> 167492 | H92: 1 | I92: 1 | J92: 2 | K92: 1 | L92: 0 | M92: =IF(INTRO!$E$37="Endemic",IF($H92>0,IF($H92=4,"Unknown",IF($H92=99,"Stopped",$D92)),0),"Not required") -> 322100 | N92: 52080 | O92: =IF(INTRO!$E$41="Endemic", IF(AND($J92>1,$J92<5), IF($J92=4, "Unknown", E92+F92), 0),"Not required") -> 154608 | P92: =IF(INTRO!$E$43="Endemic", IF(AND($K92>0,$K92<5), IF($K92=4,"Unknown", IF($K92=1, $F92*0.33, IF($K92=2, $F92*0.5+$G92*0.2, SUM(F92:G92)))), 0),"Not required") -> 29762.04 | Q92: 1 | R92: 2 | S92: 1 | T92: 1 | Y92: 36420 | Z92: Nnewi South
A93: =IF(INTRO!$E$33<>0,INTRO!$E$33, " ") -> Nigeria | B93: Anambra | C93: Ogbaru | D93: 305863 | E93: =IF(INTRO!$E$48="","",ROUND($D93*INTRO!$E$48,0)) -> 61173 | F93: =IF(INTRO!$E$49="","",ROUND($D93*INTRO!$E$49,0)) -> 85642 | G93: =IF(INTRO!$E$50="","",ROUND($D93*INTRO!$E$50,0)) -> 159049 | H93: 1 | I93: 99 | J93: 1 | K93: 1 | L93: 0 | M93: =IF(INTRO!$E$37="Endemic",IF($H93>0,IF($H93=4,"Unknown",IF($H93=99,"Stopped",$D93)),0),"Not required") -> 305863 | N93: 0 | O93: =IF(INTRO!$E$41="Endemic", IF(AND($J93>1,$J93<5), IF($J93=4, "Unknown", E93+F93), 0),"Not required") -> 0 | P93: =IF(INTRO!$E$43="Endemic", IF(AND($K93>0,$K93<5), IF($K93=4,"Unknown", IF($K93=1, $F93*0.33, IF($K93=2, $F93*0.5+$G93*0.2, SUM(F93:G93)))), 0),"Not required") -> 28261.86 | Q93: 1 | R93: 0 | S93: 0 | T93: 1 | Y93: 36421 | Z93: Ogbaru
A94: =IF(INTRO!$E$33<>0,INTRO!$E$33, " ") -> Nigeria | B94: Anambra | C94: Onitsha North | D94: 172234 | E94: =IF(INTRO!$E$48="","",ROUND($D94*INTRO!$E$48,0)) -> 34447 | F94: =IF(INTRO!$E$49="","",ROUND($D94*INTRO!$E$49,0)) -> 48226 | G94: =IF(INTRO!$E$50="","",ROUND($D94*INTRO!$E$50,0)) -> 89562 | H94: 1 | I94: 99 | J94: 1 | K94: 0 | L94: 0 | M94: =IF(INTRO!$E$37="Endemic",IF($H94>0,IF($H94=4,"Unknown",IF($H94=99,"Stopped",$D94)),0),"Not required") -> 172234 | N94: 0 | O94: =IF(INTRO!$E$41="Endemic", IF(AND($J94>1,$J94<5), IF($J94=4, "Unknown", E94+F94), 0),"Not required") -> 0 | P94: =IF(INTRO!$E$43="Endemic", IF(AND($K94>0,$K94<5), IF($K94=4,"Unknown", IF($K94=1, $F94*0.33, IF($K94=2, $F94*0.5+$G94*0.2, SUM(F94:G94)))), 0),"Not required") -> 0 | Q94: 1 | R94: 0 | S94: 0 | T94: 0 | Y94: 36422 | Z94: Onitsha North
A95: =IF(INTRO!$E$33<>0,INTRO!$E$33, " ") -> Nigeria | B95: Anambra | C95: Onitsha South | D95: 188390 | E95: =IF(INTRO!$E$48="","",ROUND($D95*INTRO!$E$48,0)) -> 37678 | F95: =IF(INTRO!$E$49="","",ROUND($D95*INTRO!$E$49,0)) -> 52749 | G95: =IF(INTRO!$E$50="","",ROUND($D95*INTRO!$E$50,0)) -> 97963 | H95: 1 | I95: 99 | J95: 1 | K95: 1 | L95: 0 | M95: =IF(INTRO!$E$37="Endemic",IF($H95>0,IF($H95=4,"Unknown",IF($H95=99,"Stopped",$D95)),0),"Not required") -> 188390 | N95: 0 | O95: =IF(INTRO!$E$41="Endemic", IF(AND($J95>1,$J95<5), IF($J95=4, "Unknown", E95+F95), 0),"Not required") -> 0 | P95: =IF(INTRO!$E$43="Endemic", IF(AND($K95>0,$K95<5), IF($K95=4,"Unknown", IF($K95=1, $F95*0.33, IF($K95=2, $F95*0.5+$G95*0.2, SUM(F95:G95)))), 0),"Not required") -> 17407.17 | Q95: 1 | R95: 0 | S95: 0 | T95: 1 | Y95: 36423 | Z95: Onitsha South
A96: =IF(INTRO!$E$33<>0,INTRO!$E$33, " ") -> Nigeria | B96: Anambra | C96: Orumba North | D96: 237662 | E96: =IF(INTRO!$E$48="","",ROUND($D96*INTRO!$E$48,0)) -> 47532 | F96: =IF(INTRO!$E$49="","",ROUND($D96*INTRO!$E$49,0)) -> 66545 | G96: =IF(INTRO!$E$50="","",ROUND($D96*INTRO!$E$50,0)) -> 123584 | H96: 1 | I96: 1 | J96: 1 | K96: 1 | L96: 0 | M96: =IF(INTRO!$E$37="Endemic",IF($H96>0,IF($H96=4,"Unknown",IF($H96=99,"Stopped",$D96)),0),"Not required") -> 237662 | N96: 61481 | O96: =IF(INTRO!$E$41="Endemic", IF(AND($J96>1,$J96<5), IF($J96=4, "Unknown", E96+F96), 0),"Not required") -> 0 | P96: =IF(INTRO!$E$43="Endemic", IF(AND($K96>0,$K96<5), IF($K96=4,"Unknown", IF($K96=1, $F96*0.33, IF($K96=2, $F96*0.5+$G96*0.2, SUM(F96:G96)))), 0),"Not required") -> 21959.85 | Q96: 1 | R96: 2 | S96: 0 | T96: 1 | Y96: 36424 | Z96: Orumba North
A97: =IF(INTRO!$E$33<>0,INTRO!$E$33, " ") -> Nigeria | B97: Anambra | C97: Orumba South | D97: 258055 | E97: =IF(INTRO!$E$48="","",ROUND($D97*INTRO!$E$48,0)) -> 51611 | F97: =IF(INTRO!$E$49="","",ROUND($D97*INTRO!$E$49,0)) -> 72255 | G97: =IF(INTRO!$E$50="","",ROUND($D97*INTRO!$E$50,0)) -> 134189 | H97: 1 | I97: 1 | J97: 2 | K97: 1 | L97: 0 | M97: =IF(INTRO!$E$37="Endemic",IF($H97>0,IF($H97=4,"Unknown",IF($H97=99,"Stopped",$D97)),0),"Not required") -> 258055 | N97: 61024 | O97: =IF(INTRO!$E$41="Endemic", IF(AND($J97>1,$J97<5), IF($J97=4, "Unknown", E97+F97), 0),"Not required") -> 123866 | P97: =IF(INTRO!$E$43="Endemic", IF(AND($K97>0,$K97<5), IF($K97=4,"Unknown", IF($K97=1, $F97*0.33, IF($K97=2, $F97*0.5+$G97*0.2, SUM(F97:G97)))), 0),"Not required") -> 23844.15 | Q97: 1 | R97: 2 | S97: 1 | T97: 1 | Y97: 36425 | Z97: Orumba South
A98: =IF(INTRO!$E$33<>0,INTRO!$E$33, " ") -> Nigeria | B98: Anambra | C98: Oyi | D98: 231630 | E98: =IF(INTRO!$E$48="","",ROUND($D98*INTRO!$E$48,0)) -> 46326 | F98: =IF(INTRO!$E$49="","",ROUND($D98*INTRO!$E$49,0)) -> 64856 | G98: =IF(INTRO!$E$50="","",ROUND($D98*INTRO!$E$50,0)) -> 120448 | H98: 1 | I98: 1 | J98: 2 | K98: 0 | L98: 0 | M98: =IF(INTRO!$E$37="Endemic",IF($H98>0,IF($H98=4,"Unknown",IF($H98=99,"Stopped",$D98)),0),"Not required") -> 231630 | N98: 41718 | O98: =IF(INTRO!$E$41="Endemic", IF(AND($J98>1,$J98<5), IF($J98=4, "Unknown", E98+F98), 0),"Not required") -> 111182 | P98: =IF(INTRO!$E$43="Endemic", IF(AND($K98>0,$K98<5), IF($K98=4,"Unknown", IF($K98=1, $F98*0.33, IF($K98=2, $F98*0.5+$G98*0.2, SUM(F98:G98)))), 0),"Not required") -> 0 | Q98: 1 | R98: 2 | S98: 1 | T98: 0 | Y98: 36426 | Z98: Oyi
A99: =IF(INTRO!$E$33<>0,INTRO!$E$33, " ") -> Nigeria | B99: Bauchi | C99: Alkaleri | D99: 454097 | E99: =IF(INTRO!$E$48="","",ROUND($D99*INTRO!$E$48,0)) -> 90819 | F99: =IF(INTRO!$E$49="","",ROUND($D99*INTRO!$E$49,0)) -> 127147 | G99: =IF(INTRO!$E$50="","",ROUND($D99*INTRO!$E$50,0)) -> 236130 | H99: 1 | I99: 1 | J99: 1 | K99: 2 | L99: 0 | M99: =IF(INTRO!$E$37="Endemic",IF($H99>0,IF($H99=4,"Unknown",IF($H99=99,"Stopped",$D99)),0),"Not required") -> 454097 | N99: 287067 | O99: =IF(INTRO!$E$41="Endemic", IF(AND($J99>1,$J99<5), IF($J99=4, "Unknown", E99+F99), 0),"Not required") -> 0 | P99: =IF(INTRO!$E$43="Endemic", IF(AND($K99>0,$K99<5), IF($K99=4,"Unknown", IF($K99=1, $F99*0.33, IF($K99=2, $F99*0.5+$G99*0.2, SUM(F99:G99)))), 0),"Not required") -> 110799.5 | Q99: 1 | R99: 1 | S99: 0 | T99: 1 | Y99: 36427 | Z99: Alkaleri
A100: =IF(INTRO!$E$33<>0,INTRO!$E$33, " ") -> Nigeria | B100: Bauchi | C100: Bauchi | D100: 680696 | E100: =IF(INTRO!$E$48="","",ROUND($D100*INTRO!$E$48,0)) -> 136139 | F100: =IF(INTRO!$E$49="","",ROUND($D100*INTRO!$E$49,0)) -> 190595 | G100: =IF(INTRO!$E$50="","",ROUND($D100*INTRO!$E$50,0)) -> 353962 | H100: 0 | I100: 1 | J100: 1 | K100: 2 | L100: 0 | M100: =IF(INTRO!$E$37="Endemic",IF($H100>0,IF($H100=4,"Unknown",IF($H100=99,"Stopped",$D100)),0),"Not required") -> 0 | N100: 143100 | O100: =IF(INTRO!$E$41="Endemic", IF(AND($J100>1,$J100<5), IF($J100=4, "Unknown", E100+F100), 0),"Not required") -> 0 | P100: =IF(INTRO!$E$43="Endemic", IF(AND($K100>0,$K100<5), IF($K100=4,"Unknown", IF($K100=1, $F100*0.33, IF($K100=2, $F100*0.5+$G100*0.2, SUM(F100:G100)))), 0),"Not required") -> 166089.9 | Q100: 0 | R100: 1 | S100: 0 | T100: 1 | Y100: 36428 | Z100: Bauchi
A101: =IF(INTRO!$E$33<>0,INTRO!$E$33, " ") -> Nigeria | B101: Bauchi | C101: Bogoro | D101: 116087 | E101: =IF(INTRO!$E$48="","",ROUND($D101*INTRO!$E$48,0)) -> 23217 | F101: =IF(INTRO!$E$49="","",ROUND($D101*INTRO!$E$49,0)) -> 32504 | G101: =IF(INTRO!$E$50="","",ROUND($D101*INTRO!$E$50,0)) -> 60365 | H101: 1 | I101: 1 | J101: 1 | K101: 2 | L101: 0 | M101: =IF(INTRO!$E$37="Endemic",IF($H101>0,IF($H101=4,"Unknown",IF($H101=99,"Stopped",$D101)),0),"Not required") -> 116087 | N101: 206051 | O101: =IF(INTRO!$E$41="Endemic", IF(AND($J101>1,$J101<5), IF($J101=4, "Unknown", E101+F101), 0),"Not required") -> 0 | P101: =IF(INTRO!$E$43="Endemic", IF(AND($K101>0,$K101<5), IF($K101=4,"Unknown", IF($K101=1, $F101*0.33, IF($K101=2, $F101*0.5+$G101*0.2, SUM(F101:G101)))), 0),"Not required") -> 28325 | Q101: 1 | R101: 1 | S101: 0 | T101: 1 | Y101: 36429 | Z101: Bogoro
A102: =IF(INTRO!$E$33<>0,INTRO!$E$33, " ") -> Nigeria | B102: Bauchi | C102: Damban | D102: 208040 | E102: =IF(INTRO!$E$48="","",ROUND($D102*INTRO!$E$48,0)) -> 41608 | F102: =IF(INTRO!$E$49="","",ROUND($D102*INTRO!$E$49,0)) -> 58251 | G102: =IF(INTRO!$E$50="","",ROUND($D102*INTRO!$E$50,0)) -> 108181 | H102: 0 | I102: 99 | J102: 1 | K102: 0 | L102: 0 | M102: =IF(INTRO!$E$37="Endemic",IF($H102>0,IF($H102=4,"Unknown",IF($H102=99,"Stopped",$D102)),0),"Not required") -> 0 | N102: 0 | O102: =IF(INTRO!$E$41="Endemic", IF(AND($J102>1,$J102<5), IF($J102=4, "Unknown", E102+F102), 0),"Not required") -> 0 | P102: =IF(INTRO!$E$43="Endemic", IF(AND($K102>0,$K102<5), IF($K102=4,"Unknown", IF($K102=1, $F102*0.33, IF($K102=2, $F102*0.5+$G102*0.2, SUM(F102:G102)))), 0),"Not required") -> 0 | Q102: 0 | R102: 0 | S102: 0 | T102: 0 | Y102: 36430 | Z102: Damban
A103: =IF(INTRO!$E$33<>0,INTRO!$E$33, " ") -> Nigeria | B103: Bauchi | C103: Darazo | D103: 346816 | E103: =IF(INTRO!$E$48="","",ROUND($D103*INTRO!$E$48,0)) -> 69363 | F103: =IF(INTRO!$E$49="","",ROUND($D103*INTRO!$E$49,0)) -> 97108 | G103: =IF(INTRO!$E$50="","",ROUND($D103*INTRO!$E$50,0)) -> 180344 | H103: 1 | I103: 1 | J103: 1 | K103: 1 | L103: 0 | M103: =IF(INTRO!$E$37="Endemic",IF($H103>0,IF($H103=4,"Unknown",IF($H103=99,"Stopped",$D103)),0),"Not required") -> 346816 | N103: 107093 | O103: =IF(INTRO!$E$41="Endemic", IF(AND($J103>1,$J103<5), IF($J103=4, "Unknown", E103+F103), 0),"Not required") -> 0 | P103: =IF(INTRO!$E$43="Endemic", IF(AND($K103>0,$K103<5), IF($K103=4,"Unknown", IF($K103=1, $F103*0.33, IF($K103=2, $F103*0.5+$G103*0.2, SUM(F103:G103)))), 0),"Not required") -> 32045.64 | Q103: 1 | R103: 1 | S103: 0 | T103: 1 | Y103: 36431 | Z103: Darazo
A104: =IF(INTRO!$E$33<>0,INTRO!$E$33, " ") -> Nigeria | B104: Bauchi | C104: Dass | D104: 123983 | E104: =IF(INTRO!$E$48="","",ROUND($D104*INTRO!$E$48,0)) -> 24797 | F104: =IF(INTRO!$E$49="","",ROUND($D104*INTRO!$E$49,0)) -> 34715 | G104: =IF(INTRO!$E$50="","",ROUND($D104*INTRO!$E$50,0)) -> 64471 | H104: 0 | I104: 99 | J104: 1 | K104: 1 | L104: 0 | M104: =IF(INTRO!$E$37="Endemic",IF($H104>0,IF($H104=4,"Unknown",IF($H104=99,"Stopped",$D104)),0),"Not required") -> 0 | N104: 0 | O104: =IF(INTRO!$E$41="Endemic", IF(AND($J104>1,$J104<5), IF($J104=4, "Unknown", E104+F104), 0),"Not required") -> 0 | P104: =IF(INTRO!$E$43="Endemic", IF(AND($K104>0,$K104<5), IF($K104=4,"Unknown", IF($K104=1, $F104*0.33, IF($K104=2, $F104*0.5+$G104*0.2, SUM(F104:G104)))), 0),"Not required") -> 11455.95 | Q104: 0 | R104: 0 | S104: 0 | T104: 1 | Y104: 36432 | Z104: Dass
A105: =IF(INTRO!$E$33<>0,INTRO!$E$33, " ") -> Nigeria | B105: Bauchi | C105: Gamawa | D105: 394774 | E105: =IF(INTRO!$E$48="","",ROUND($D105*INTRO!$E$48,0)) -> 78955 | F105: =IF(INTRO!$E$49="","",ROUND($D105*INTRO!$E$49,0)) -> 110537 | G105: =IF(INTRO!$E$50="","",ROUND($D105*INTRO!$E$50,0)) -> 205282 | H105: 0 | I105: 99 | J105: 1 | K105: 2 | L105: 0 | M105: =IF(INTRO!$E$37="Endemic",IF($H105>0,IF($H105=4,"Unknown",IF($H105=99,"Stopped",$D105)),0),"Not required") -> 0 | N105: 0 | O105: =IF(INTRO!$E$41="Endemic", IF(AND($J105>1,$J105<5), IF($J105=4, "Unknown", E105+F105), 0),"Not required") -> 0 | P105: =IF(INTRO!$E$43="Endemic", IF(AND($K105>0,$K105<5), IF($K105=4,"Unknown", IF($K105=1, $F105*0.33, IF($K105=2, $F105*0.5+$G105*0.2, SUM(F105:G105)))), 0),"Not required") -> 96324.9 | Q105: 0 | R105: 0 | S105: 0 | T105: 1 | Y105: 36433 | Z105: Gamawa
A106: =IF(INTRO!$E$33<>0,INTRO!$E$33, " ") -> Nigeria | B106: Bauchi | C106: Ganjuwa | D106: 386751 | E106: =IF(INTRO!$E$48="","",ROUND($D106*INTRO!$E$48,0)) -> 77350 | F106: =IF(INTRO!$E$49="","",ROUND($D106*INTRO!$E$49,0)) -> 108290 | G106: =IF(INTRO!$E$50="","",ROUND($D106*INTRO!$E$50,0)) -> 201111 | H106: 1 | I106: 1 | J106: 1 | K106: 2 | L106: 0 | M106: =IF(INTRO!$E$37="Endemic",IF($H106>0,IF($H106=4,"Unknown",IF($H106=99,"Stopped",$D106)),0),"Not required") -> 386751 | N106: 163461 | O106: =IF(INTRO!$E$41="Endemic", IF(AND($J106>1,$J106<5), IF($J106=4, "Unknown", E106+F106), 0),"Not required") -> 0 | P106: =IF(INTRO!$E$43="Endemic", IF(AND($K106>0,$K106<5), IF($K106=4,"Unknown", IF($K106=1, $F106*0.33, IF($K106=2, $F106*0.5+$G106*0.2, SUM(F106:G106)))), 0),"Not required") -> 94367.2 | Q106: 1 | R106: 1 | S106: 0 | T106: 1 | Y106: 36434 | Z106: Ganjuwa
A107: =IF(INTRO!$E$33<>0,INTRO!$E$33, " ") -> Nigeria | B107: Bauchi | C107: Giade | D107: 216375 | E107: =IF(INTRO!$E$48="","",ROUND($D107*INTRO!$E$48,0)) -> 43275 | F107: =IF(INTRO!$E$49="","",ROUND($D107*INTRO!$E$49,0)) -> 60585 | G107: =IF(INTRO!$E$50="","",ROUND($D107*INTRO!$E$50,0)) -> 112515 | H107: 1 | I107: 1 | J107: 1 | K107: 0 | L107: 0 | M107: =IF(INTRO!$E$37="Endemic",IF($H107>0,IF($H107=4,"Unknown",IF($H107=99,"Stopped",$D107)),0),"Not required") -> 216375 | N107: 216732 | O107: =IF(INTRO!$E$41="Endemic", IF(AND($J107>1,$J107<5), IF($J107=4, "Unknown", E107+F107), 0),"Not required") -> 0 | P107: =IF(INTRO!$E$43="Endemic", IF(AND($K107>0,$K107<5), IF($K107=4,"Unknown", IF($K107=1, $F107*0.33, IF($K107=2, $F107*0.5+$G107*0.2, SUM(F107:G107)))), 0),"Not required") -> 0 | Q107: 1 | R107: 1 | S107: 0 | T107: 0 | Y107: 36435 | Z107: Giade
A108: =IF(INTRO!$E$33<>0,INTRO!$E$33, " ") -> Nigeria | B108: Bauchi | C108: Itas/Gadua | D108: 317040 | E108: =IF(INTRO!$E$48="","",ROUND($D108*INTRO!$E$48,0)) -> 63408 | F108: =IF(INTRO!$E$49="","",ROUND($D108*INTRO!$E$49,0)) -> 88771 | G108: =IF(INTRO!$E$50="","",ROUND($D108*INTRO!$E$50,0)) -> 164861 | H108: 1 | I108: 99 | J108: 1 | K108: 2 | L108: 0 | M108: =IF(INTRO!$E$37="Endemic",IF($H108>0,IF($H108=4,"Unknown",IF($H108=99,"Stopped",$D108)),0),"Not required") -> 317040 | N108: 0 | O108: =IF(INTRO!$E$41="Endemic", IF(AND($J108>1,$J108<5), IF($J108=4, "Unknown", E108+F108), 0),"Not required") -> 0 | P108: =IF(INTRO!$E$43="Endemic", IF(AND($K108>0,$K108<5), IF($K108=4,"Unknown", IF($K108=1, $F108*0.33, IF($K108=2, $F108*0.5+$G108*0.2, SUM(F108:G108)))), 0),"Not required") -> 77357.7 | Q108: 1 | R108: 0 | S108: 0 | T108: 1 | Y108: 36436 | Z108: Itas/Gadua
A109: =IF(INTRO!$E$33<>0,INTRO!$E$33, " ") -> Nigeria | B109: Bauchi | C109: Jama'are | D109: 162497 | E109: =IF(INTRO!$E$48="","",ROUND($D109*INTRO!$E$48,0)) -> 32499 | F109: =IF(INTRO!$E$49="","",ROUND($D109*INTRO!$E$49,0)) -> 45499 | G109: =IF(INTRO!$E$50="","",ROUND($D109*INTRO!$E$50,0)) -> 84498 | H109: 0 | I109: 99 | J109: 1 | K109: 1 | L109: 0 | M109: =IF(INTRO!$E$37="Endemic",IF($H109>0,IF($H109=4,"Unknown",IF($H109=99,"Stopped",$D109)),0),"Not required") -> 0 | N109: 0 | O109: =IF(INTRO!$E$41="Endemic", IF(AND($J109>1,$J109<5), IF($J109=4, "Unknown", E109+F109), 0),"Not required") -> 0 | P109: =IF(INTRO!$E$43="Endemic", IF(AND($K109>0,$K109<5), IF($K109=4,"Unknown", IF($K109=1, $F109*0.33, IF($K109=2, $F109*0.5+$G109*0.2, SUM(F109:G109)))), 0),"Not required") -> 15014.67 | Q109: 0 | R109: 0 | S109: 0 | T109: 1 | Y109: 36437 | Z109: Jama'are
A110: =IF(INTRO!$E$33<>0,INTRO!$E$33, " ") -> Nigeria | B110: Bauchi | C110: Katagun | D110: 407982 | E110: =IF(INTRO!$E$48="","",ROUND($D110*INTRO!$E$48,0)) -> 81596 | F110: =IF(INTRO!$E$49="","",ROUND($D110*INTRO!$E$49,0)) -> 114235 | G110: =IF(INTRO!$E$50="","",ROUND($D110*INTRO!$E$50,0)) -> 212151 | H110: 0 | I110: 99 | J110: 1 | K110: 0 | L110: 0 | M110: =IF(INTRO!$E$37="Endemic",IF($H110>0,IF($H110=4,"Unknown",IF($H110=99,"Stopped",$D110)),0),"Not required") -> 0 | N110: 0 | O110: =IF(INTRO!$E$41="Endemic", IF(AND($J110>1,$J110<5), IF($J110=4, "Unknown", E110+F110), 0),"Not required") -> 0 | P110: =IF(INTRO!$E$43="Endemic", IF(AND($K110>0,$K110<5), IF($K110=4,"Unknown", IF($K110=1, $F110*0.33, IF($K110=2, $F110*0.5+$G110*0.2, SUM(F110:G110)))), 0),"Not required") -> 0 | Q110: 0 | R110: 0 | S110: 0 | T110: 0 | Y110: 36438 | Z110: Katagun
A111: =IF(INTRO!$E$33<>0,INTRO!$E$33, " ") -> Nigeria | B111: Bauchi | C111: Kirfi | D111: 203485 | E111: =IF(INTRO!$E$48="","",ROUND($D111*INTRO!$E$48,0)) -> 40697 | F111: =IF(INTRO!$E$49="","",ROUND($D111*INTRO!$E$49,0)) -> 56976 | G111: =IF(INTRO!$E$50="","",ROUND($D111*INTRO!$E$50,0)) -> 105812 | H111: 0 | I111: 1 | J111: 1 | K111: 1 | L111: 0 | M111: =IF(INTRO!$E$37="Endemic",IF($H111>0,IF($H111=4,"Unknown",IF($H111=99,"Stopped",$D111)),0),"Not required") -> 0 | N111: 135799 | O111: =IF(INTRO!$E$41="Endemic", IF(AND($J111>1,$J111<5), IF($J111=4, "Unknown", E111+F111), 0),"Not required") -> 0 | P111: =IF(INTRO!$E$43="Endemic", IF(AND($K111>0,$K111<5), IF($K111=4,"Unknown", IF($K111=1, $F111*0.33, IF($K111=2, $F111*0.5+$G111*0.2, SUM(F111:G111)))), 0),"Not required") -> 18802.08 | Q111: 0 | R111: 1 | S111: 0 | T111: 1 | Y111: 36439 | Z111: Kirfi
A112: =IF(INTRO!$E$33<>0,INTRO!$E$33, " ") -> Nigeria | B112: Bauchi | C112: Misau | D112: 363206 | E112: =IF(INTRO!$E$48="","",ROUND($D112*INTRO!$E$48,0)) -> 72641 | F112: =IF(INTRO!$E$49="","",ROUND($D112*INTRO!$E$49,0)) -> 101698 | G112: =IF(INTRO!$E$50="","",ROUND($D112*INTRO!$E$50,0)) -> 188867 | H112: 1 | I112: 1 | J112: 1 | K112: 0 | L112: 0 | M112: =IF(INTRO!$E$37="Endemic",IF($H112>0,IF($H112=4,"Unknown",IF($H112=99,"Stopped",$D112)),0),"Not required") -> 363206 | N112: 191728 | O112: =IF(INTRO!$E$41="Endemic", IF(AND($J112>1,$J112<5), IF($J112=4, "Unknown", E112+F112), 0),"Not required") -> 0 | P112: =IF(INTRO!$E$43="Endemic", IF(AND($K112>0,$K112<5), IF($K112=4,"Unknown", IF($K112=1, $F112*0.33, IF($K112=2, $F112*0.5+$G112*0.2, SUM(F112:G112)))), 0),"Not required") -> 0 | Q112: 1 | R112: 1 | S112: 0 | T112: 0 | Y112: 36440 | Z112: Misau
A113: =IF(INTRO!$E$33<>0,INTRO!$E$33, " ") -> Nigeria | B113: Bauchi | C113: Ningi | D113: 533728 | E113: =IF(INTRO!$E$48="","",ROUND($D113*INTRO!$E$48,0)) -> 106746 | F113: =IF(INTRO!$E$49="","",ROUND($D113*INTRO!$E$49,0)) -> 149444 | G113: =IF(INTRO!$E$50="","",ROUND($D113*INTRO!$E$50,0)) -> 277539 | H113: 1 | I113: 1 | J113: 1 | K113: 2 | L113: 0 | M113: =IF(INTRO!$E$37="Endemic",IF($H113>0,IF($H113=4,"Unknown",IF($H113=99,"Stopped",$D113)),0),"Not required") -> 533728 | N113: 143993 | O113: =IF(INTRO!$E$41="Endemic", IF(AND($J113>1,$J113<5), IF($J113=4, "Unknown", E113+F113), 0),"Not required") -> 0 | P113: =IF(INTRO!$E$43="Endemic", IF(AND($K113>0,$K113<5), IF($K113=4,"Unknown", IF($K113=1, $F113*0.33, IF($K113=2, $F113*0.5+$G113*0.2, SUM(F113:G113)))), 0),"Not required") -> 130229.8 | Q113: 1 | R113: 1 | S113: 0 | T113: 1 | Y113: 36441 | Z113: Ningi
A114: =IF(INTRO!$E$33<>0,INTRO!$E$33, " ") -> Nigeria | B114: Bauchi | C114: Shira | D114: 322578 | E114: =IF(INTRO!$E$48="","",ROUND($D114*INTRO!$E$48,0)) -> 64516 | F114: =IF(INTRO!$E$49="","",ROUND($D114*INTRO!$E$49,0)) -> 90322 | G114: =IF(INTRO!$E$50="","",ROUND($D114*INTRO!$E$50,0)) -> 167741 | H114: 0 | I114: 99 | J114: 1 | K114: 2 | L114: 0 | M114: =IF(INTRO!$E$37="Endemic",IF($H114>0,IF($H114=4,"Unknown",IF($H114=99,"Stopped",$D114)),0),"Not required") -> 0 | N114: 0 | O114: =IF(INTRO!$E$41="Endemic", IF(AND($J114>1,$J114<5), IF($J114=4, "Unknown", E114+F114), 0),"Not required") -> 0 | P114: =IF(INTRO!$E$43="Endemic", IF(AND($K114>0,$K114<5), IF($K114=4,"Unknown", IF($K114=1, $F114*0.33, IF($K114=2, $F114*0.5+$G114*0.2, SUM(F114:G114)))), 0),"Not required") -> 78709.2 | Q114: 0 | R114: 0 | S114: 0 | T114: 1 | Y114: 36442 | Z114: Shira
A115: =IF(INTRO!$E$33<>0,INTRO!$E$33, " ") -> Nigeria | B115: Bauchi | C115: Tafawa-Balewa | D115: 303244 | E115: =IF(INTRO!$E$48="","",ROUND($D115*INTRO!$E$48,0)) -> 60649 | F115: =IF(INTRO!$E$49="","",ROUND($D115*INTRO!$E$49,0)) -> 84908 | G115: =IF(INTRO!$E$50="","",ROUND($D115*INTRO!$E$50,0)) -> 157687 | H115: 1 | I115: 1 | J115: 1 | K115: 2 | L115: 0 | M115: =IF(INTRO!$E$37="Endemic",IF($H115>0,IF($H115=4,"Unknown",IF($H115=99,"Stopped",$D115)),0),"Not required") -> 303244 | N115: 200283 | O115: =IF(INTRO!$E$41="Endemic", IF(AND($J115>1,$J115<5), IF($J115=4, "Unknown", E115+F115), 0),"Not required") -> 0 | P115: =IF(INTRO!$E$43="Endemic", IF(AND($K115>0,$K115<5), IF($K115=4,"Unknown", IF($K115=1, $F115*0.33, IF($K115=2, $F115*0.5+$G115*0.2, SUM(F115:G115)))), 0),"Not required") -> 73991.4 | Q115: 1 | R115: 1 | S115: 0 | T115: 1 | Y115: 36443 | Z115: Tafawa-Balewa
A116: =IF(INTRO!$E$33<>0,INTRO!$E$33, " ") -> Nigeria | B116: Bauchi | C116: Toro | D116: 483017 | E116: =IF(INTRO!$E$48="","",ROUND($D116*INTRO!$E$48,0)) -> 96603 | F116: =IF(INTRO!$E$49="","",ROUND($D116*INTRO!$E$49,0)) -> 135245 | G116: =IF(INTRO!$E$50="","",ROUND($D116*INTRO!$E$50,0)) -> 251169 | H116: 1 | I116: 1 | J116: 1 | K116: 1 | L116: 0 | M116: =IF(INTRO!$E$37="Endemic",IF($H116>0,IF($H116=4,"Unknown",IF($H116=99,"Stopped",$D116)),0),"Not required") -> 483017 | N116: 283643 | O116: =IF(INTRO!$E$41="Endemic", IF(AND($J116>1,$J116<5), IF($J116=4, "Unknown", E116+F116), 0),"Not required") -> 0 | P116: =IF(INTRO!$E$43="Endemic", IF(AND($K116>0,$K116<5), IF($K116=4,"Unknown", IF($K116=1, $F116*0.33, IF($K116=2, $F116*0.5+$G116*0.2, SUM(F116:G116)))), 0),"Not required") -> 44630.85 | Q116: 1 | R116: 1 | S116: 0 | T116: 1 | Y116: 36444 | Z116: Toro
A117: =IF(INTRO!$E$33<>0,INTRO!$E$33, " ") -> Nigeria | B117: Bauchi | C117: Warji | D117: 158137 | E117: =IF(INTRO!$E$48="","",ROUND($D117*INTRO!$E$48,0)) -> 31627 | F117: =IF(INTRO!$E$49="","",ROUND($D117*INTRO!$E$49,0)) -> 44278 | G117: =IF(INTRO!$E$50="","",ROUND($D117*INTRO!$E$50,0)) -> 82231 | H117: 1 | I117: 1 | J117: 1 | K117: 2 | L117: 0 | M117: =IF(INTRO!$E$37="Endemic",IF($H117>0,IF($H117=4,"Unknown",IF($H117=99,"Stopped",$D117)),0),"Not required") -> 158137 | N117: 440775 | O117: =IF(INTRO!$E$41="Endemic", IF(AND($J117>1,$J117<5), IF($J117=4, "Unknown", E117+F117), 0),"Not required") -> 0 | P117: =IF(INTRO!$E$43="Endemic", IF(AND($K117>0,$K117<5), IF($K117=4,"Unknown", IF($K117=1, $F117*0.33, IF($K117=2, $F117*0.5+$G117*0.2, SUM(F117:G117)))), 0),"Not required") -> 38585.2 | Q117: 1 | R117: 1 | S117: 0 | T117: 1 | Y117: 36445 | Z117: Warji
A118: =IF(INTRO!$E$33<>0,INTRO!$E$33, " ") -> Nigeria | B118: Bauchi | C118: Zaki | D118: 263915 | E118: =IF(INTRO!$E$48="","",ROUND($D118*INTRO!$E$48,0)) -> 52783 | F118: =IF(INTRO!$E$49="","",ROUND($D118*INTRO!$E$49,0)) -> 73896 | G118: =IF(INTRO!$E$50="","",ROUND($D118*INTRO!$E$50,0)) -> 137236 | H118: 0 | I118: 99 | J118: 1 | K118: 2 | L118: 0 | M118: =IF(INTRO!$E$37="Endemic",IF($H118>0,IF($H118=4,"Unknown",IF($H118=99,"Stopped",$D118)),0),"Not required") -> 0 | N118: 0 | O118: =IF(INTRO!$E$41="Endemic", IF(AND($J118>1,$J118<5), IF($J118=4, "Unknown", E118+F118), 0),"Not required") -> 0 | P118: =IF(INTRO!$E$43="Endemic", IF(AND($K118>0,$K118<5), IF($K118=4,"Unknown", IF($K118=1, $F118*0.33, IF($K118=2, $F118*0.5+$G118*0.2, SUM(F118:G118)))), 0),"Not required") -> 64395.2 | Q118: 0 | R118: 0 | S118: 0 | T118: 1 | Y118: 36446 | Z118: Zaki
A119: =IF(INTRO!$E$33<>0,INTRO!$E$33, " ") -> Nigeria | B119: Bayelsa | C119: Brass | D119: 255092 | E119: =IF(INTRO!$E$48="","",ROUND($D119*INTRO!$E$48,0)) -> 51018 | F119: =IF(INTRO!$E$49="","",ROUND($D119*INTRO!$E$49,0)) -> 71426 | G119: =IF(INTRO!$E$50="","",ROUND($D119*INTRO!$E$50,0)) -> 132648 | H119: 1 | I119: 99 | J119: 3 | K119: 0 | L119: 0 | M119: =IF(INTRO!$E$37="Endemic",IF($H119>0,IF($H119=4,"Unknown",IF($H119=99,"Stopped",$D119)),0),"Not required") -> 255092 | N119: 0 | O119: =IF(INTRO!$E$41="Endemic", IF(AND($J119>1,$J119<5), IF($J119=4, "Unknown", E119+F119), 0),"Not required") -> 122444 | P119: =IF(INTRO!$E$43="Endemic", IF(AND($K119>0,$K119<5), IF($K119=4,"Unknown", IF($K119=1, $F119*0.33, IF($K119=2, $F119*0.5+$G119*0.2, SUM(F119:G119)))), 0),"Not required") -> 0 | Q119: 1 | R119: 0 | S119: 2 | T119: 0 | Y119: 36447 | Z119: Brass
A120: =IF(INTRO!$E$33<>0,INTRO!$E$33, " ") -> Nigeria | B120: Bayelsa | C120: Ekeremo | D120: 372552 | E120: =IF(INTRO!$E$48="","",ROUND($D120*INTRO!$E$48,0)) -> 74510 | F120: =IF(INTRO!$E$49="","",ROUND($D120*INTRO!$E$49,0)) -> 104315 | G120: =IF(INTRO!$E$50="","",ROUND($D120*INTRO!$E$50,0)) -> 193727 | H120: 0 | I120: 99 | J120: 2 | K120: 1 | L120: 4 | M120: =IF(INTRO!$E$37="Endemic",IF($H120>0,IF($H120=4,"Unknown",IF($H120=99,"Stopped",$D120)),0),"Not required") -> 0 | N120: 0 | O120: =IF(INTRO!$E$41="Endemic", IF(AND($J120>1,$J120<5), IF($J120=4, "Unknown", E120+F120), 0),"Not required") -> 178825 | P120: =IF(INTRO!$E$43="Endemic", IF(AND($K120>0,$K120<5), IF($K120=4,"Unknown", IF($K120=1, $F120*0.33, IF($K120=2, $F120*0.5+$G120*0.2, SUM(F120:G120)))), 0),"Not required") -> 34423.95 | Q120: 0 | R120: 0 | S120: 1 | T120: 0 | Y120: 36448 | Z120: Ekeremo
A121: =IF(INTRO!$E$33<>0,INTRO!$E$33, " ") -> Nigeria | B121: Bayelsa | C121: Kolokuma/Opokuma | D121: 106548 | E121: =IF(INTRO!$E$48="","",ROUND($D121*INTRO!$E$48,0)) -> 21310 | F121: =IF(INTRO!$E$49="","",ROUND($D121*INTRO!$E$49,0)) -> 29833 | G121: =IF(INTRO!$E$50="","",ROUND($D121*INTRO!$E$50,0)) -> 55405 | H121: 1 | I121: 99 | J121: 1 | K121: 0 | L121: 0 | M121: =IF(INTRO!$E$37="Endemic",IF($H121>0,IF($H121=4,"Unknown",IF($H121=99,"Stopped",$D121)),0),"Not required") -> 106548 | N121: 0 | O121: =IF(INTRO!$E$41="Endemic", IF(AND($J121>1,$J121<5), IF($J121=4, "Unknown", E121+F121), 0),"Not required") -> 0 | P121: =IF(INTRO!$E$43="Endemic", IF(AND($K121>0,$K121<5), IF($K121=4,"Unknown", IF($K121=1, $F121*0.33, IF($K121=2, $F121*0.5+$G121*0.2, SUM(F121:G121)))), 0),"Not required") -> 0 | Q121: 1 | R121: 0 | S121: 0 | T121: 0 | Y121: 36449 | Z121: Kolokuma/Opokuma
A122: =IF(INTRO!$E$33<>0,INTRO!$E$33, " ") -> Nigeria | B122: Bayelsa | C122: Nembe | D122: 180490 | E122: =IF(INTRO!$E$48="","",ROUND($D122*INTRO!$E$48,0)) -> 36098 | F122: =IF(INTRO!$E$49="","",ROUND($D122*INTRO!$E$49,0)) -> 50537 | G122: =IF(INTRO!$E$50="","",ROUND($D122*INTRO!$E$50,0)) -> 93855 | H122: 1 | I122: 99 | J122: 1 | K122: 0 | L122: 0 | M122: =IF(INTRO!$E$37="Endemic",IF($H122>0,IF($H122=4,"Unknown",IF($H122=99,"Stopped",$D122)),0),"Not required") -> 180490 | N122: 0 | O122: =IF(INTRO!$E$41="Endemic", IF(AND($J122>1,$J122<5), IF($J122=4, "Unknown", E122+F122), 0),"Not required") -> 0 | P122: =IF(INTRO!$E$43="Endemic", IF(AND($K122>0,$K122<5), IF($K122=4,"Unknown", IF($K122=1, $F122*0.33, IF($K122=2, $F122*0.5+$G122*0.2, SUM(F122:G122)))), 0),"Not required") -> 0 | Q122: 1 | R122: 0 | S122: 0 | T122: 0 | Y122: 36450 | Z122: Nembe
A123: =IF(INTRO!$E$33<>0,INTRO!$E$33, " ") -> Nigeria | B123: Bayelsa | C123: Ogbia | D123: 248030 | E123: =IF(INTRO!$E$48="","",ROUND($D123*INTRO!$E$48,0)) -> 49606 | F123: =IF(INTRO!$E$49="","",ROUND($D123*INTRO!$E$49,0)) -> 69448 | G123: =IF(INTRO!$E$50="","",ROUND($D123*INTRO!$E$50,0)) -> 128976 | H123: 1 | I123: 99 | J123: 2 | K123: 1 | L123: 0 | M123: =IF(INTRO!$E$37="Endemic",IF($H123>0,IF($H123=4,"Unknown",IF($H123=99,"Stopped",$D123)),0),"Not required") -> 248030 | N123: 0 | O123: =IF(INTRO!$E$41="Endemic", IF(AND($J123>1,$J123<5), IF($J123=4, "Unknown", E123+F123), 0),"Not required") -> 119054 | P123: =IF(INTRO!$E$43="Endemic", IF(AND($K123>0,$K123<5), IF($K123=4,"Unknown", IF($K123=1, $F123*0.33, IF($K123=2, $F123*0.5+$G123*0.2, SUM(F123:G123)))), 0),"Not required") -> 22917.84 | Q123: 1 | R123: 0 | S123: 1 | T123: 0 | Y123: 36451 | Z123: Ogbia
A124: =IF(INTRO!$E$33<>0,INTRO!$E$33, " ") -> Nigeria | B124: Bayelsa | C124: Sagbama | D124: 257983 | E124: =IF(INTRO!$E$48="","",ROUND($D124*INTRO!$E$48,0)) -> 51597 | F124: =IF(INTRO!$E$49="","",ROUND($D124*INTRO!$E$49,0)) -> 72235 | G124: =IF(INTRO!$E$50="","",ROUND($D124*INTRO!$E$50,0)) -> 134151 | H124: 1 | I124: 99 | J124: 1 | K124: 0 | L124: 0 | M124: =IF(INTRO!$E$37="Endemic",IF($H124>0,IF($H124=4,"Unknown",IF($H124=99,"Stopped",$D124)),0),"Not required") -> 257983 | N124: 0 | O124: =IF(INTRO!$E$41="Endemic", IF(AND($J124>1,$J124<5), IF($J124=4, "Unknown", E124+F124), 0),"Not required") -> 0 | P124: =IF(INTRO!$E$43="Endemic", IF(AND($K124>0,$K124<5), IF($K124=4,"Unknown", IF($K124=1, $F124*0.33, IF($K124=2, $F124*0.5+$G124*0.2, SUM(F124:G124)))), 0),"Not required") -> 0 | Q124: 1 | R124: 0 | S124: 0 | T124: 0 | Y124: 36452 | Z124: Sagbama
A125: =IF(INTRO!$E$33<>0,INTRO!$E$33, " ") -> Nigeria | B125: Bayelsa | C125: Southern Ijaw | D125: 440314 | E125: =IF(INTRO!$E$48="","",ROUND($D125*INTRO!$E$48,0)) -> 88063 | F125: =IF(INTRO!$E$49="","",ROUND($D125*INTRO!$E$49,0)) -> 123288 | G125: =IF(INTRO!$E$50="","",ROUND($D125*INTRO!$E$50,0)) -> 228963 | H125: 1 | I125: 99 | J125: 3 | K125: 0 | L125: 0 | M125: =IF(INTRO!$E$37="Endemic",IF($H125>0,IF($H125=4,"Unknown",IF($H125=99,"Stopped",$D125)),0),"Not required") -> 440314 | N125: 0 | O125: =IF(INTRO!$E$41="Endemic", IF(AND($J125>1,$J125<5), IF($J125=4, "Unknown", E125+F125), 0),"Not required") -> 211351 | P125: =IF(INTRO!$E$43="Endemic", IF(AND($K125>0,$K125<5), IF($K125=4,"Unknown", IF($K125=1, $F125*0.33, IF($K125=2, $F125*0.5+$G125*0.2, SUM(F125:G125)))), 0),"Not required") -> 0 | Q125: 1 | R125: 0 | S125: 2 | T125: 0 | Y125: 36453 | Z125: Southern Ijaw
A126: =IF(INTRO!$E$33<>0,INTRO!$E$33, " ") -> Nigeria | B126: Bayelsa | C126: Yenegoa | D126: 487089 | E126: =IF(INTRO!$E$48="","",ROUND($D126*INTRO!$E$48,0)) -> 97418 | F126: =IF(INTRO!$E$49="","",ROUND($D126*INTRO!$E$49,0)) -> 136385 | G126: =IF(INTRO!$E$50="","",ROUND($D126*INTRO!$E$50,0)) -> 253286 | H126: 1 | I126: 99 | J126: 2 | K126: 0 | L126: 0 | M126: =IF(INTRO!$E$37="Endemic",IF($H126>0,IF($H126=4,"Unknown",IF($H126=99,"Stopped",$D126)),0),"Not required") -> 487089 | N126: 0 | O126: =IF(INTRO!$E$41="Endemic", IF(AND($J126>1,$J126<5), IF($J126=4, "Unknown", E126+F126), 0),"Not required") -> 233803 | P126: =IF(INTRO!$E$43="Endemic", IF(AND($K126>0,$K126<5), IF($K126=4,"Unknown", IF($K126=1, $F126*0.33, IF($K126=2, $F126*0.5+$G126*0.2, SUM(F126:G126)))), 0),"Not required") -> 0 | Q126: 1 | R126: 0 | S126: 1 | T126: 0 | Y126: 36454 | Z126: Yenegoa
A127: =IF(INTRO!$E$33<>0,INTRO!$E$33, " ") -> Nigeria | B127: Benue | C127: Ado | D127: 246591 | E127: =IF(INTRO!$E$48="","",ROUND($D127*INTRO!$E$48,0)) -> 49318 | F127: =IF(INTRO!$E$49="","",ROUND($D127*INTRO!$E$49,0)) -> 69045 | G127: =IF(INTRO!$E$50="","",ROUND($D127*INTRO!$E$50,0)) -> 128227 | H127: 1 | I127: 1 | J127: 2 | K127: 1 | L127: 0 | M127: =IF(INTRO!$E$37="Endemic",IF($H127>0,IF($H127=4,"Unknown",IF($H127=99,"Stopped",$D127)),0),"Not required") -> 246591 | N127: 165285 | O127: =IF(INTRO!$E$41="Endemic", IF(AND($J127>1,$J127<5), IF($J127=4, "Unknown", E127+F127), 0),"Not required") -> 118363 | P127: =IF(INTRO!$E$43="Endemic", IF(AND($K127>0,$K127<5), IF($K127=4,"Unknown", IF($K127=1, $F127*0.33, IF($K127=2, $F127*0.5+$G127*0.2, SUM(F127:G127)))), 0),"Not required") -> 22784.85 | Q127: 1 | R127: 1 | S127: 1 | T127: 1 | Y127: 36455 | Z127: Ado
A128: =IF(INTRO!$E$33<>0,INTRO!$E$33, " ") -> Nigeria | B128: Benue | C128: Agatu | D128: 159250 | E128: =IF(INTRO!$E$48="","",ROUND($D128*INTRO!$E$48,0)) -> 31850 | F128: =IF(INTRO!$E$49="","",ROUND($D128*INTRO!$E$49,0)) -> 44590 | G128: =IF(INTRO!$E$50="","",ROUND($D128*INTRO!$E$50,0)) -> 82810 | H128: 0 | I128: 1 | J128: 2 | K128: 1 | L128: 0 | M128: =IF(INTRO!$E$37="Endemic",IF($H128>0,IF($H128=4,"Unknown",IF($H128=99,"Stopped",$D128)),0),"Not required") -> 0 | N128: 126487 | O128: =IF(INTRO!$E$41="Endemic", IF(AND($J128>1,$J128<5), IF($J128=4, "Unknown", E128+F128), 0),"Not required") -> 76440 | P128: =IF(INTRO!$E$43="Endemic", IF(AND($K128>0,$K128<5), IF($K128=4,"Unknown", IF($K128=1, $F128*0.33, IF($K128=2, $F128*0.5+$G128*0.2, SUM(F128:G128)))), 0),"Not required") -> 14714.7 | Q128: 0 | R128: 1 | S128: 1 | T128: 1 | Y128: 36456 | Z128: Agatu
A129: =IF(INTRO!$E$33<>0,INTRO!$E$33, " ") -> Nigeria | B129: Benue | C129: Apa | D129: 133392 | E129: =IF(INTRO!$E$48="","",ROUND($D129*INTRO!$E$48,0)) -> 26678 | F129: =IF(INTRO!$E$49="","",ROUND($D129*INTRO!$E$49,0)) -> 37350 | G129: =IF(INTRO!$E$50="","",ROUND($D129*INTRO!$E$50,0)) -> 69364 | H129: 1 | I129: 1 | J129: 2 | K129: 2 | L129: 0 | M129: =IF(INTRO!$E$37="Endemic",IF($H129>0,IF($H129=4,"Unknown",IF($H129=99,"Stopped",$D129)),0),"Not required") -> 133392 | N129: 100009 | O129: =IF(INTRO!$E$41="Endemic", IF(AND($J129>1,$J129<5), IF($J129=4, "Unknown", E129+F129), 0),"Not required") -> 64028 | P129: =IF(INTRO!$E$43="Endemic", IF(AND($K129>0,$K129<5), IF($K129=4,"Unknown", IF($K129=1, $F129*0.33, IF($K129=2, $F129*0.5+$G129*0.2, SUM(F129:G129)))), 0),"Not required") -> 32547.8 | Q129: 1 | R129: 1 | S129: 1 | T129: 1 | Y129: 36457 | Z129: Apa
A130: =IF(INTRO!$E$33<>0,INTRO!$E$33, " ") -> Nigeria | B130: Benue | C130: Buruku | D130: 280832 | E130: =IF(INTRO!$E$48="","",ROUND($D130*INTRO!$E$48,0)) -> 56166 | F130: =IF(INTRO!$E$49="","",ROUND($D130*INTRO!$E$49,0)) -> 78633 | G130: =IF(INTRO!$E$50="","",ROUND($D130*INTRO!$E$50,0)) -> 146033 | H130: 0 | I130: 1 | J130: 2 | K130: 2 | L130: 0 | M130: =IF(INTRO!$E$37="Endemic",IF($H130>0,IF($H130=4,"Unknown",IF($H130=99,"Stopped",$D130)),0),"Not required") -> 0 | N130: 229124 | O130: =IF(INTRO!$E$41="Endemic", IF(AND($J130>1,$J130<5), IF($J130=4, "Unknown", E130+F130), 0),"Not required") -> 134799 | P130: =IF(INTRO!$E$43="Endemic", IF(AND($K130>0,$K130<5), IF($K130=4,"Unknown", IF($K130=1, $F130*0.33, IF($K130=2, $F130*0.5+$G130*0.2, SUM(F130:G130)))), 0),"Not required") -> 68523.1 | Q130: 0 | R130: 1 | S130: 1 | T130: 1 | Y130: 36458 | Z130: Buruku
A131: =IF(INTRO!$E$33<>0,INTRO!$E$33, " ") -> Nigeria | B131: Benue | C131: Gboko | D131: 494797 | E131: =IF(INTRO!$E$48="","",ROUND($D131*INTRO!$E$48,0)) -> 98959 | F131: =IF(INTRO!$E$49="","",ROUND($D131*INTRO!$E$49,0)) -> 138543 | G131: =IF(INTRO!$E$50="","",ROUND($D131*INTRO!$E$50,0)) -> 257294 | H131: 1 | I131: 1 | J131: 2 | K131: 2 | L131: 0 | M131: =IF(INTRO!$E$37="Endemic",IF($H131>0,IF($H131=4,"Unknown",IF($H131=99,"Stopped",$D131)),0),"Not required") -> 494797 | N131: 365505 | O131: =IF(INTRO!$E$41="Endemic", IF(AND($J131>1,$J131<5), IF($J131=4, "Unknown", E131+F131), 0),"Not required") -> 237502 | P131: =IF(INTRO!$E$43="Endemic", IF(AND($K131>0,$K131<5), IF($K131=4,"Unknown", IF($K131=1, $F131*0.33, IF($K131=2, $F131*0.5+$G131*0.2, SUM(F131:G131)))), 0),"Not required") -> 120730.3 | Q131: 1 | R131: 1 | S131: 1 | T131: 1 | Y131: 36459 | Z131: Gboko
A132: =IF(INTRO!$E$33<>0,INTRO!$E$33, " ") -> Nigeria | B132: Benue | C132: Guma | D132: 264121 | E132: =IF(INTRO!$E$48="","",ROUND($D132*INTRO!$E$48,0)) -> 52824 | F132: =IF(INTRO!$E$49="","",ROUND($D132*INTRO!$E$49,0)) -> 73954 | G132: =IF(INTRO!$E$50="","",ROUND($D132*INTRO!$E$50,0)) -> 137343 | H132: 1 | I132: 1 | J132: 2 | K132: 2 | L132: 0 | M132: =IF(INTRO!$E$37="Endemic",IF($H132>0,IF($H132=4,"Unknown",IF($H132=99,"Stopped",$D132)),0),"Not required") -> 264121 | N132: 157642 | O132: =IF(INTRO!$E$41="Endemic", IF(AND($J132>1,$J132<5), IF($J132=4, "Unknown", E132+F132), 0),"Not required") -> 126778 | P132: =IF(INTRO!$E$43="Endemic", IF(AND($K132>0,$K132<5), IF($K132=4,"Unknown", IF($K132=1, $F132*0.33, IF($K132=2, $F132*0.5+$G132*0.2, SUM(F132:G132)))), 0),"Not required") -> 64445.6 | Q132: 1 | R132: 1 | S132: 1 | T132: 1 | Y132: 36460 | Z132: Guma
A133: =IF(INTRO!$E$33<>0,INTRO!$E$33, " ") -> Nigeria | B133: Benue | C133: Gwer East | D133: 225589 | E133: =IF(INTRO!$E$48="","",ROUND($D133*INTRO!$E$48,0)) -> 45118 | F133: =IF(INTRO!$E$49="","",ROUND($D133*INTRO!$E$49,0)) -> 63165 | G133: =IF(INTRO!$E$50="","",ROUND($D133*INTRO!$E$50,0)) -> 117306 | H133: 1 | I133: 1 | J133: 2 | K133: 2 | L133: 0 | M133: =IF(INTRO!$E$37="Endemic",IF($H133>0,IF($H133=4,"Unknown",IF($H133=99,"Stopped",$D133)),0),"Not required") -> 225589 | N133: 100070 | O133: =IF(INTRO!$E$41="Endemic", IF(AND($J133>1,$J133<5), IF($J133=4, "Unknown", E133+F133), 0),"Not required") -> 108283 | P133: =IF(INTRO!$E$43="Endemic", IF(AND($K133>0,$K133<5), IF($K133=4,"Unknown", IF($K133=1, $F133*0.33, IF($K133=2, $F133*0.5+$G133*0.2, SUM(F133:G133)))), 0),"Not required") -> 55043.7 | Q133: 1 | R133: 1 | S133: 1 | T133: 1 | Y133: 36461 | Z133: Gwer East
A134: =IF(INTRO!$E$33<>0,INTRO!$E$33, " ") -> Nigeria | B134: Benue | C134: Gwer West | D134: 168378 | E134: =IF(INTRO!$E$48="","",ROUND($D134*INTRO!$E$48,0)) -> 33676 | F134: =IF(INTRO!$E$49="","",ROUND($D134*INTRO!$E$49,0)) -> 47146 | G134: =IF(INTRO!$E$50="","",ROUND($D134*INTRO!$E$50,0)) -> 87557 | H134: 0 | I134: 1 | J134: 2 | K134: 2 | L134: 0 | M134: =IF(INTRO!$E$37="Endemic",IF($H134>0,IF($H134=4,"Unknown",IF($H134=99,"Stopped",$D134)),0),"Not required") -> 0 | N134: 113216 | O134: =IF(INTRO!$E$41="Endemic", IF(AND($J134>1,$J134<5), IF($J134=4, "Unknown", E134+F134), 0),"Not required") -> 80822 | P134: =IF(INTRO!$E$43="Endemic", IF(AND($K134>0,$K134<5), IF($K134=4,"Unknown", IF($K134=1, $F134*0.33, IF($K134=2, $F134*0.5+$G134*0.2, SUM(F134:G134)))), 0),"Not required") -> 41084.4 | Q134: 0 | R134: 1 | S134: 1 | T134: 1 | Y134: 36462 | Z134: Gwer West
A135: =IF(INTRO!$E$33<>0,INTRO!$E$33, " ") -> Nigeria | B135: Benue | C135: Katsina-Ala | D135: 309776 | E135: =IF(INTRO!$E$48="","",ROUND($D135*INTRO!$E$48,0)) -> 61955 | F135: =IF(INTRO!$E$49="","",ROUND($D135*INTRO!$E$49,0)) -> 86737 | G135: =IF(INTRO!$E$50="","",ROUND($D135*INTRO!$E$50,0)) -> 161084 | H135: 1 | I135: 1 | J135: 1 | K135: 2 | L135: 0 | M135: =IF(INTRO!$E$37="Endemic",IF($H135>0,IF($H135=4,"Unknown",IF($H135=99,"Stopped",$D135)),0),"Not required") -> 309776 | N135: 300067 | O135: =IF(INTRO!$E$41="Endemic", IF(AND($J135>1,$J135<5), IF($J135=4, "Unknown", E135+F135), 0),"Not required") -> 0 | P135: =IF(INTRO!$E$43="Endemic", IF(AND($K135>0,$K135<5), IF($K135=4,"Unknown", IF($K135=1, $F135*0.33, IF($K135=2, $F135*0.5+$G135*0.2, SUM(F135:G135)))), 0),"Not required") -> 75585.3 | Q135: 1 | R135: 1 | S135: 0 | T135: 1 | Y135: 36463 | Z135: Katsina-Ala
A136: =IF(INTRO!$E$33<>0,INTRO!$E$33, " ") -> Nigeria | B136: Benue | C136: Konshisha | D136: 311091 | E136: =IF(INTRO!$E$48="","",ROUND($D136*INTRO!$E$48,0)) -> 62218 | F136: =IF(INTRO!$E$49="","",ROUND($D136*INTRO!$E$49,0)) -> 87105 | G136: =IF(INTRO!$E$50="","",ROUND($D136*INTRO!$E$50,0)) -> 161767 | H136: 1 | I136: 1 | J136: 2 | K136: 1 | L136: 0 | M136: =IF(INTRO!$E$37="Endemic",IF($H136>0,IF($H136=4,"Unknown",IF($H136=99,"Stopped",$D136)),0),"Not required") -> 311091 | N136: 239303 | O136: =IF(INTRO!$E$41="Endemic", IF(AND($J136>1,$J136<5), IF($J136=4, "Unknown", E136+F136), 0),"Not required") -> 149323 | P136: =IF(INTRO!$E$43="Endemic", IF(AND($K136>0,$K136<5), IF($K136=4,"Unknown", IF($K136=1, $F136*0.33, IF($K136=2, $F136*0.5+$G136*0.2, SUM(F136:G136)))), 0),"Not required") -> 28744.65 | Q136: 1 | R136: 1 | S136: 1 | T136: 0 | Y136: 36464 | Z136: Konshisha
A137: =IF(INTRO!$E$33<>0,INTRO!$E$33, " ") -> Nigeria | B137: Benue | C137: Kwande | D137: 342832 | E137: =IF(INTRO!$E$48="","",ROUND($D137*INTRO!$E$48,0)) -> 68566 | F137: =IF(INTRO!$E$49="","",ROUND($D137*INTRO!$E$49,0)) -> 95993 | G137: =IF(INTRO!$E$50="","",ROUND($D137*INTRO!$E$50,0)) -> 178273 | H137: 1 | I137: 1 | J137: 2 | K137: 2 | L137: 0 | M137: =IF(INTRO!$E$37="Endemic",IF($H137>0,IF($H137=4,"Unknown",IF($H137=99,"Stopped",$D137)),0),"Not required") -> 342832 | N137: 343383 | O137: =IF(INTRO!$E$41="Endemic", IF(AND($J137>1,$J137<5), IF($J137=4, "Unknown", E137+F137), 0),"Not required") -> 164559 | P137: =IF(INTRO!$E$43="Endemic", IF(AND($K137>0,$K137<5), IF($K137=4,"Unknown", IF($K137=1, $F137*0.33, IF($K137=2, $F137*0.5+$G137*0.2, SUM(F137:G137)))), 0),"Not required") -> 83651.1 | Q137: 1 | R137: 1 | S137: 1 | T137: 1 | Y137: 36465 | Z137: Kwande
A138: =IF(INTRO!$E$33<>0,INTRO!$E$33, " ") -> Nigeria | B138: Benue | C138: Logo | D138: 233055 | E138: =IF(INTRO!$E$48="","",ROUND($D138*INTRO!$E$48,0)) -> 46611 | F138: =IF(INTRO!$E$49="","",ROUND($D138*INTRO!$E$49,0)) -> 65255 | G138: =IF(INTRO!$E$50="","",ROUND($D138*INTRO!$E$50,0)) -> 121189 | H138: 1 | I138: 1 | J138: 1 | K138: 2 | L138: 0 | M138: =IF(INTRO!$E$37="Endemic",IF($H138>0,IF($H138=4,"Unknown",IF($H138=99,"Stopped",$D138)),0),"Not required") -> 233055 | N138: 159426 | O138: =IF(INTRO!$E$41="Endemic", IF(AND($J138>1,$J138<5), IF($J138=4, "Unknown", E138+F138), 0),"Not required") -> 0 | P138: =IF(INTRO!$E$43="Endemic", IF(AND($K138>0,$K138<5), IF($K138=4,"Unknown", IF($K138=1, $F138*0.33, IF($K138=2, $F138*0.5+$G138*0.2, SUM(F138:G138)))), 0),"Not required") -> 56865.3 | Q138: 1 | R138: 1 | S138: 0 | T138: 1 | Y138: 36466 | Z138: Logo
A139: =IF(INTRO!$E$33<>0,INTRO!$E$33, " ") -> Nigeria | B139: Benue | C139: Makurdi | D139: 409966 | E139: =IF(INTRO!$E$48="","",ROUND($D139*INTRO!$E$48,0)) -> 81993 | F139: =IF(INTRO!$E$49="","",ROUND($D139*INTRO!$E$49,0)) -> 114790 | G139: =IF(INTRO!$E$50="","",ROUND($D139*INTRO!$E$50,0)) -> 213182 | H139: 1 | I139: 1 | J139: 2 | K139: 2 | L139: 0 | M139: =IF(INTRO!$E$37="Endemic",IF($H139>0,IF($H139=4,"Unknown",IF($H139=99,"Stopped",$D139)),0),"Not required") -> 409966 | N139: 40986 | O139: =IF(INTRO!$E$41="Endemic", IF(AND($J139>1,$J139<5), IF($J139=4, "Unknown", E139+F139), 0),"Not required") -> 196783 | P139: =IF(INTRO!$E$43="Endemic", IF(AND($K139>0,$K139<5), IF($K139=4,"Unknown", IF($K139=1, $F139*0.33, IF($K139=2, $F139*0.5+$G139*0.2, SUM(F139:G139)))), 0),"Not required") -> 100031.4 | Q139: 1 | R139: 1 | S139: 1 | T139: 1 | Y139: 36467 | Z139: Makurdi
A140: =IF(INTRO!$E$33<>0,INTRO!$E$33, " ") -> Nigeria | B140: Benue | C140: Obi | D140: 136273 | E140: =IF(INTRO!$E$48="","",ROUND($D140*INTRO!$E$48,0)) -> 27255 | F140: =IF(INTRO!$E$49="","",ROUND($D140*INTRO!$E$49,0)) -> 38156 | G140: =IF(INTRO!$E$50="","",ROUND($D140*INTRO!$E$50,0)) -> 70862 | H140: 1 | I140: 1 | J140: 2 | K140: 2 | L140: 0 | M140: =IF(INTRO!$E$37="Endemic",IF($H140>0,IF($H140=4,"Unknown",IF($H140=99,"Stopped",$D140)),0),"Not required") -> 136273 | N140: 110667 | O140: =IF(INTRO!$E$41="Endemic", IF(AND($J140>1,$J140<5), IF($J140=4, "Unknown", E140+F140), 0),"Not required") -> 65411 | P140: =IF(INTRO!$E$43="Endemic", IF(AND($K140>0,$K140<5), IF($K140=4,"Unknown", IF($K140=1, $F140*0.33, IF($K140=2, $F140*0.5+$G140*0.2, SUM(F140:G140)))), 0),"Not required") -> 33250.4 | Q140: 1 | R140: 1 | S140: 1 | T140: 1 | Y140: 36468 | Z140: Obi
A141: =IF(INTRO!$E$33<>0,INTRO!$E$33, " ") -> Nigeria | B141: Benue | C141: Ogbadibo | D141: 177424 | E141: =IF(INTRO!$E$48="","",ROUND($D141*INTRO!$E$48,0)) -> 35485 | F141: =IF(INTRO!$E$49="","",ROUND($D141*INTRO!$E$49,0)) -> 49679 | G141: =IF(INTRO!$E$50="","",ROUND($D141*INTRO!$E$50,0)) -> 92260 | H141: 0 | I141: 1 | J141: 2 | K141: 1 | L141: 0 | M141: =IF(INTRO!$E$37="Endemic",IF($H141>0,IF($H141=4,"Unknown",IF($H141=99,"Stopped",$D141)),0),"Not required") -> 0 | N141: 177710 | O141: =IF(INTRO!$E$41="Endemic", IF(AND($J141>1,$J141<5), IF($J141=4, "Unknown", E141+F141), 0),"Not required") -> 85164 | P141: =IF(INTRO!$E$43="Endemic", IF(AND($K141>0,$K141<5), IF($K141=4,"Unknown", IF($K141=1, $F141*0.33, IF($K141=2, $F141*0.5+$G141*0.2, SUM(F141:G141)))), 0),"Not required") -> 16394.07 | Q141: 0 | R141: 1 | S141: 1 | T141: 0 | Y141: 36469 | Z141: Ogbadibo
A142: =IF(INTRO!$E$33<>0,INTRO!$E$33, " ") -> Nigeria | B142: Benue | C142: Ohimini | D142: 98539 | E142: =IF(INTRO!$E$48="","",ROUND($D142*INTRO!$E$48,0)) -> 19708 | F142: =IF(INTRO!$E$49="","",ROUND($D142*INTRO!$E$49,0)) -> 27591 | G142: =IF(INTRO!$E$50="","",ROUND($D142*INTRO!$E$50,0)) -> 51240 | H142: 1 | I142: 1 | J142: 2 | K142: 1 | L142: 0 | M142: =IF(INTRO!$E$37="Endemic",IF($H142>0,IF($H142=4,"Unknown",IF($H142=99,"Stopped",$D142)),0),"Not required") -> 98539 | N142: 98697 | O142: =IF(INTRO!$E$41="Endemic", IF(AND($J142>1,$J142<5), IF($J142=4, "Unknown", E142+F142), 0),"Not required") -> 47299 | P142: =IF(INTRO!$E$43="Endemic", IF(AND($K142>0,$K142<5), IF($K142=4,"Unknown", IF($K142=1, $F142*0.33, IF($K142=2, $F142*0.5+$G142*0.2, SUM(F142:G142)))), 0),"Not required") -> 9105.03 | Q142: 1 | R142: 1 | S142: 1 | T142: 0 | Y142: 36470 | Z142: Ohimini
A143: =IF(INTRO!$E$33<>0,INTRO!$E$33, " ") -> Nigeria | B143: Benue | C143: Oju | D143: 234672 | E143: =IF(INTRO!$E$48="","",ROUND($D143*INTRO!$E$48,0)) -> 46934 | F143: =IF(INTRO!$E$49="","",ROUND($D143*INTRO!$E$49,0)) -> 65708 | G143: =IF(INTRO!$E$50="","",ROUND($D143*INTRO!$E$50,0)) -> 122029 | H143: 1 | I143: 1 | J143: 2 | K143: 2 | L143: 0 | M143: =IF(INTRO!$E$37="Endemic",IF($H143>0,IF($H143=4,"Unknown",IF($H143=99,"Stopped",$D143)),0),"Not required") -> 234672 | N143: 120788 | O143: =IF(INTRO!$E$41="Endemic", IF(AND($J143>1,$J143<5), IF($J143=4, "Unknown", E143+F143), 0),"Not required") -> 112642 | P143: =IF(INTRO!$E$43="Endemic", IF(AND($K143>0,$K143<5), IF($K143=4,"Unknown", IF($K143=1, $F143*0.33, IF($K143=2, $F143*0.5+$G143*0.2, SUM(F143:G143)))), 0),"Not required") -> 57259.8 | Q143: 1 | R143: 1 | S143: 1 | T143: 1 | Y143: 36471 | Z143: Oju
A144: =IF(INTRO!$E$33<>0,INTRO!$E$33, " ") -> Nigeria | B144: Benue | C144: Okpokwu | D144: 243510 | E144: =IF(INTRO!$E$48="","",ROUND($D144*INTRO!$E$48,0)) -> 48702 | F144: =IF(INTRO!$E$49="","",ROUND($D144*INTRO!$E$49,0)) -> 68183 | G144: =IF(INTRO!$E$50="","",ROUND($D144*INTRO!$E$50,0)) -> 126625 | H144: 0 | I144: 1 | J144: 1 | K144: 0 | L144: 0 | M144: =IF(INTRO!$E$37="Endemic",IF($H144>0,IF($H144=4,"Unknown",IF($H144=99,"Stopped",$D144)),0),"Not required") -> 0 | N144: 165503 | O144: =IF(INTRO!$E$41="Endemic", IF(AND($J144>1,$J144<5), IF($J144=4, "Unknown", E144+F144), 0),"Not required") -> 0 | P144: =IF(INTRO!$E$43="Endemic", IF(AND($K144>0,$K144<5), IF($K144=4,"Unknown", IF($K144=1, $F144*0.33, IF($K144=2, $F144*0.5+$G144*0.2, SUM(F144:G144)))), 0),"Not required") -> 0 | Q144: 0 | R144: 1 | S144: 0 | T144: 0 | Y144: 36472 | Z144: Okpokwu
A145: =IF(INTRO!$E$33<>0,INTRO!$E$33, " ") -> Nigeria | B145: Benue | C145: Otorkpo | D145: 360709 | E145: =IF(INTRO!$E$48="","",ROUND($D145*INTRO!$E$48,0)) -> 72142 | F145: =IF(INTRO!$E$49="","",ROUND($D145*INTRO!$E$49,0)) -> 100999 | G145: =IF(INTRO!$E$50="","",ROUND($D145*INTRO!$E$50,0)) -> 187569 | H145: 1 | I145: 1 | J145: 1 | K145: 2 | L145: 0 | M145: =IF(INTRO!$E$37="Endemic",IF($H145>0,IF($H145=4,"Unknown",IF($H145=99,"Stopped",$D145)),0),"Not required") -> 360709 | N145: 187494 | O145: =IF(INTRO!$E$41="Endemic", IF(AND($J145>1,$J145<5), IF($J145=4, "Unknown", E145+F145), 0),"Not required") -> 0 | P145: =IF(INTRO!$E$43="Endemic", IF(AND($K145>0,$K145<5), IF($K145=4,"Unknown", IF($K145=1, $F145*0.33, IF($K145=2, $F145*0.5+$G145*0.2, SUM(F145:G145)))), 0),"Not required") -> 88013.3 | Q145: 1 | R145: 1 | S145: 0 | T145: 1 | Y145: 36473 | Z145: Otorkpo
A146: =IF(INTRO!$E$33<>0,INTRO!$E$33, " ") -> Nigeria | B146: Benue | C146: Tarka | D146: 109583 | E146: =IF(INTRO!$E$48="","",ROUND($D146*INTRO!$E$48,0)) -> 21917 | F146: =IF(INTRO!$E$49="","",ROUND($D146*INTRO!$E$49,0)) -> 30683 | G146: =IF(INTRO!$E$50="","",ROUND($D146*INTRO!$E$50,0)) -> 56983 | H146: 1 | I146: 1 | J146: 2 | K146: 2 | L146: 0 | M146: =IF(INTRO!$E$37="Endemic",IF($H146>0,IF($H146=4,"Unknown",IF($H146=99,"Stopped",$D146)),0),"Not required") -> 109583 | N146: 83036 | O146: =IF(INTRO!$E$41="Endemic", IF(AND($J146>1,$J146<5), IF($J146=4, "Unknown", E146+F146), 0),"Not required") -> 52600 | P146: =IF(INTRO!$E$43="Endemic", IF(AND($K146>0,$K146<5), IF($K146=4,"Unknown", IF($K146=1, $F146*0.33, IF($K146=2, $F146*0.5+$G146*0.2, SUM(F146:G146)))), 0),"Not required") -> 26738.1 | Q146: 1 | R146: 1 | S146: 1 | T146: 1 | Y146: 36474 | Z146: Tarka
A147: =IF(INTRO!$E$33<>0,INTRO!$E$33, " ") -> Nigeria | B147: Benue | C147: Ukum | D147: 299040 | E147: =IF(INTRO!$E$48="","",ROUND($D147*INTRO!$E$48,0)) -> 59808 | F147: =IF(INTRO!$E$49="","",ROUND($D147*INTRO!$E$49,0)) -> 83731 | G147: =IF(INTRO!$E$50="","",ROUND($D147*INTRO!$E$50,0)) -> 155501 | H147: 1 | I147: 1 | J147: 2 | K147: 2 | L147: 0 | M147: =IF(INTRO!$E$37="Endemic",IF($H147>0,IF($H147=4,"Unknown",IF($H147=99,"Stopped",$D147)),0),"Not required") -> 299040 | N147: 219019 | O147: =IF(INTRO!$E$41="Endemic", IF(AND($J147>1,$J147<5), IF($J147=4, "Unknown", E147+F147), 0),"Not required") -> 143539 | P147: =IF(INTRO!$E$43="Endemic", IF(AND($K147>0,$K147<5), IF($K147=4,"Unknown", IF($K147=1, $F147*0.33, IF($K147=2, $F147*0.5+$G147*0.2, SUM(F147:G147)))), 0),"Not required") -> 72965.7 | Q147: 1 | R147: 1 | S147: 1 | T147: 1 | Y147: 36475 | Z147: Ukum
A148: =IF(INTRO!$E$33<>0,INTRO!$E$33, " ") -> Nigeria | B148: Benue | C148: Ushongo | D148: 259630 | E148: =IF(INTRO!$E$48="","",ROUND($D148*INTRO!$E$48,0)) -> 51926 | F148: =IF(INTRO!$E$49="","",ROUND($D148*INTRO!$E$49,0)) -> 72696 | G148: =IF(INTRO!$E$50="","",ROUND($D148*INTRO!$E$50,0)) -> 135008 | H148: 0 | I148: 1 | J148: 1 | K148: 2 | L148: 0 | M148: =IF(INTRO!$E$37="Endemic",IF($H148>0,IF($H148=4,"Unknown",IF($H148=99,"Stopped",$D148)),0),"Not required") -> 0 | N148: 211299 | O148: =IF(INTRO!$E$41="Endemic", IF(AND($J148>1,$J148<5), IF($J148=4, "Unknown", E148+F148), 0),"Not required") -> 0 | P148: =IF(INTRO!$E$43="Endemic", IF(AND($K148>0,$K148<5), IF($K148=4,"Unknown", IF($K148=1, $F148*0.33, IF($K148=2, $F148*0.5+$G148*0.2, SUM(F148:G148)))), 0),"Not required") -> 63349.6 | Q148: 0 | R148: 1 | S148: 0 | T148: 1 | Y148: 36476 | Z148: Ushongo
A149: =IF(INTRO!$E$33<>0,INTRO!$E$33, " ") -> Nigeria | B149: Benue | C149: Vandeikya | D149: 317223 | E149: =IF(INTRO!$E$48="","",ROUND($D149*INTRO!$E$48,0)) -> 63445 | F149: =IF(INTRO!$E$49="","",ROUND($D149*INTRO!$E$49,0)) -> 88822 | G149: =IF(INTRO!$E$50="","",ROUND($D149*INTRO!$E$50,0)) -> 164956 | H149: 0 | I149: 1 | J149: 2 | K149: 2 | L149: 0 | M149: =IF(INTRO!$E$37="Endemic",IF($H149>0,IF($H149=4,"Unknown",IF($H149=99,"Stopped",$D149)),0),"Not required") -> 0 | N149: 106238 | O149: =IF(INTRO!$E$41="Endemic", IF(AND($J149>1,$J149<5), IF($J149=4, "Unknown", E149+F149), 0),"Not required") -> 152267 | P149: =IF(INTRO!$E$43="Endemic", IF(AND($K149>0,$K149<5), IF($K149=4,"Unknown", IF($K149=1, $F149*0.33, IF($K149=2, $F149*0.5+$G149*0.2, SUM(F149:G149)))), 0),"Not required") -> 77402.2 | Q149: 0 | R149: 1 | S149: 1 | T149: 1 | Y149: 36477 | Z149: Vandeikya
A150: =IF(INTRO!$E$33<>0,INTRO!$E$33, " ") -> Nigeria | B150: Borno | C150: Adadara | D150: 138099 | E150: =IF(INTRO!$E$48="","",ROUND($D150*INTRO!$E$48,0)) -> 27620 | F150: =IF(INTRO!$E$49="","",ROUND($D150*INTRO!$E$49,0)) -> 38668 | G150: =IF(INTRO!$E$50="","",ROUND($D150*INTRO!$E$50,0)) -> 71811 | H150: 1 | I150: 99 | J150: 0 | K150: 2 | L150: 4 | M150: =IF(INTRO!$E$37="Endemic",IF($H150>0,IF($H150=4,"Unknown",IF($H150=99,"Stopped",$D150)),0),"Not required") -> 138099 | N150: 0 | O150: =IF(INTRO!$E$41="Endemic", IF(AND($J150>1,$J150<5), IF($J150=4, "Unknown", E150+F150), 0),"Not required") -> 0 | P150: =IF(INTRO!$E$43="Endemic", IF(AND($K150>0,$K150<5), IF($K150=4,"Unknown", IF($K150=1, $F150*0.33, IF($K150=2, $F150*0.5+$G150*0.2, SUM(F150:G150)))), 0),"Not required") -> 33696.2 | Q150: 1 | R150: 0 | S150: 0 | T150: 1 | Y150: 36478 | Z150: Adadara
A151: =IF(INTRO!$E$33<>0,INTRO!$E$33, " ") -> Nigeria | B151: Borno | C151: Askir/Uba | D151: 190360 | E151: =IF(INTRO!$E$48="","",ROUND($D151*INTRO!$E$48,0)) -> 38072 | F151: =IF(INTRO!$E$49="","",ROUND($D151*INTRO!$E$49,0)) -> 53301 | G151: =IF(INTRO!$E$50="","",ROUND($D151*INTRO!$E$50,0)) -> 98987 | H151: 1 | I151: 1 | J151: 0 | K151: 2 | L151: 4 | M151: =IF(INTRO!$E$37="Endemic",IF($H151>0,IF($H151=4,"Unknown",IF($H151=99,"Stopped",$D151)),0),"Not required") -> 190360 | N151: 190666 | O151: =IF(INTRO!$E$41="Endemic", IF(AND($J151>1,$J151<5), IF($J151=4, "Unknown", E151+F151), 0),"Not required") -> 0 | P151: =IF(INTRO!$E$43="Endemic", IF(AND($K151>0,$K151<5), IF($K151=4,"Unknown", IF($K151=1, $F151*0.33, IF($K151=2, $F151*0.5+$G151*0.2, SUM(F151:G151)))), 0),"Not required") -> 46447.9 | Q151: 1 | R151: 1 | S151: 0 | T151: 1 | Y151: 36479 | Z151: Askir/Uba
A152: =IF(INTRO!$E$33<>0,INTRO!$E$33, " ") -> Nigeria | B152: Borno | C152: Bama | D152: 372179 | E152: =IF(INTRO!$E$48="","",ROUND($D152*INTRO!$E$48,0)) -> 74436 | F152: =IF(INTRO!$E$49="","",ROUND($D152*INTRO!$E$49,0)) -> 104210 | G152: =IF(INTRO!$E$50="","",ROUND($D152*INTRO!$E$50,0)) -> 193533 | H152: 0 | I152: 1 | J152: 1 | K152: 2 | L152: 4 | M152: =IF(INTRO!$E$37="Endemic",IF($H152>0,IF($H152=4,"Unknown",IF($H152=99,"Stopped",$D152)),0),"Not required") -> 0 | N152: 126505 | O152: =IF(INTRO!$E$41="Endemic", IF(AND($J152>1,$J152<5), IF($J152=4, "Unknown", E152+F152), 0),"Not required") -> 0 | P152: =IF(INTRO!$E$43="Endemic", IF(AND($K152>0,$K152<5), IF($K152=4,"Unknown", IF($K152=1, $F152*0.33, IF($K152=2, $F152*0.5+$G152*0.2, SUM(F152:G152)))), 0),"Not required") -> 90811.6 | Q152: 0 | R152: 1 | S152: 0 | T152: 1 | Y152: 36480 | Z152: Bama
A153: =IF(INTRO!$E$33<>0,INTRO!$E$33, " ") -> Nigeria | B153: Borno | C153: Bayo | D153: 108872 | E153: =IF(INTRO!$E$48="","",ROUND($D153*INTRO!$E$48,0)) -> 21774 | F153: =IF(INTRO!$E$49="","",ROUND($D153*INTRO!$E$49,0)) -> 30484 | G153: =IF(INTRO!$E$50="","",ROUND($D153*INTRO!$E$50,0)) -> 56613 | H153: 0 | I153: 1 | J153: 1 | K153: 1 | L153: 4 | M153: =IF(INTRO!$E$37="Endemic",IF($H153>0,IF($H153=4,"Unknown",IF($H153=99,"Stopped",$D153)),0),"Not required") -> 0 | N153: 109047 | O153: =IF(INTRO!$E$41="Endemic", IF(AND($J153>1,$J153<5), IF($J153=4, "Unknown", E153+F153), 0),"Not required") -> 0 | P153: =IF(INTRO!$E$43="Endemic", IF(AND($K153>0,$K153<5), IF($K153=4,"Unknown", IF($K153=1, $F153*0.33, IF($K153=2, $F153*0.5+$G153*0.2, SUM(F153:G153)))), 0),"Not required") -> 10059.72 | Q153: 0 | R153: 1 | S153: 0 | T153: 1 | Y153: 36481 | Z153: Bayo
A154: =IF(INTRO!$E$33<>0,INTRO!$E$33, " ") -> Nigeria | B154: Borno | C154: Biu | D154: 242717 | E154: =IF(INTRO!$E$48="","",ROUND($D154*INTRO!$E$48,0)) -> 48543 | F154: =IF(INTRO!$E$49="","",ROUND($D154*INTRO!$E$49,0)) -> 67961 | G154: =IF(INTRO!$E$50="","",ROUND($D154*INTRO!$E$50,0)) -> 126213 | H154: 1 | I154: 1 | J154: 0 | K154: 2 | L154: 4 | M154: =IF(INTRO!$E$37="Endemic",IF($H154>0,IF($H154=4,"Unknown",IF($H154=99,"Stopped",$D154)),0),"Not required") -> 242717 | N154: 222336 | O154: =IF(INTRO!$E$41="Endemic", IF(AND($J154>1,$J154<5), IF($J154=4, "Unknown", E154+F154), 0),"Not required") -> 0 | P154: =IF(INTRO!$E$43="Endemic", IF(AND($K154>0,$K154<5), IF($K154=4,"Unknown", IF($K154=1, $F154*0.33, IF($K154=2, $F154*0.5+$G154*0.2, SUM(F154:G154)))), 0),"Not required") -> 59223.1 | Q154: 1 | R154: 1 | S154: 0 | T154: 1 | Y154: 36482 | Z154: Biu
A155: =IF(INTRO!$E$33<>0,INTRO!$E$33, " ") -> Nigeria | B155: Borno | C155: Chibok | D155: 91126 | E155: =IF(INTRO!$E$48="","",ROUND($D155*INTRO!$E$48,0)) -> 18225 | F155: =IF(INTRO!$E$49="","",ROUND($D155*INTRO!$E$49,0)) -> 25515 | G155: =IF(INTRO!$E$50="","",ROUND($D155*INTRO!$E$50,0)) -> 47386 | H155: 0 | I155: 1 | J155: 1 | K155: 2 | L155: 4 | M155: =IF(INTRO!$E$37="Endemic",IF($H155>0,IF($H155=4,"Unknown",IF($H155=99,"Stopped",$D155)),0),"Not required") -> 0 | N155: 91273 | O155: =IF(INTRO!$E$41="Endemic", IF(AND($J155>1,$J155<5), IF($J155=4, "Unknown", E155+F155), 0),"Not required") -> 0 | P155: =IF(INTRO!$E$43="Endemic", IF(AND($K155>0,$K155<5), IF($K155=4,"Unknown", IF($K155=1, $F155*0.33, IF($K155=2, $F155*0.5+$G155*0.2, SUM(F155:G155)))), 0),"Not required") -> 22234.7 | Q155: 0 | R155: 1 | S155: 0 | T155: 1 | Y155: 36483 | Z155: Chibok
A156: =IF(INTRO!$E$33<>0,INTRO!$E$33, " ") -> Nigeria | B156: Borno | C156: Damboa | D156: 319226 | E156: =IF(INTRO!$E$48="","",ROUND($D156*INTRO!$E$48,0)) -> 63845 | F156: =IF(INTRO!$E$49="","",ROUND($D156*INTRO!$E$49,0)) -> 89383 | G156: =IF(INTRO!$E$50="","",ROUND($D156*INTRO!$E$50,0)) -> 165998 | H156: 1 | I156: 1 | J156: 0 | K156: 2 | L156: 4 | M156: =IF(INTRO!$E$37="Endemic",IF($H156>0,IF($H156=4,"Unknown",IF($H156=99,"Stopped",$D156)),0),"Not required") -> 319226 | N156: 111491 | O156: =IF(INTRO!$E$41="Endemic", IF(AND($J156>1,$J156<5), IF($J156=4, "Unknown", E156+F156), 0),"Not required") -> 0 | P156: =IF(INTRO!$E$43="Endemic", IF(AND($K156>0,$K156<5), IF($K156=4,"Unknown", IF($K156=1, $F156*0.33, IF($K156=2, $F156*0.5+$G156*0.2, SUM(F156:G156)))), 0),"Not required") -> 77891.1 | Q156: 1 | R156: 1 | S156: 0 | T156: 1 | Y156: 36484 | Z156: Damboa
A157: =IF(INTRO!$E$33<>0,INTRO!$E$33, " ") -> Nigeria | B157: Borno | C157: Dikwa | D157: 145997 | E157: =IF(INTRO!$E$48="","",ROUND($D157*INTRO!$E$48,0)) -> 29199 | F157: =IF(INTRO!$E$49="","",ROUND($D157*INTRO!$E$49,0)) -> 40879 | G157: =IF(INTRO!$E$50="","",ROUND($D157*INTRO!$E$50,0)) -> 75918 | H157: 0 | I157: 1 | J157: 1 | K157: 2 | L157: 4 | M157: =IF(INTRO!$E$37="Endemic",IF($H157>0,IF($H157=4,"Unknown",IF($H157=99,"Stopped",$D157)),0),"Not required") -> 0 | N157: 71179 | O157: =IF(INTRO!$E$41="Endemic", IF(AND($J157>1,$J157<5), IF($J157=4, "Unknown", E157+F157), 0),"Not required") -> 0 | P157: =IF(INTRO!$E$43="Endemic", IF(AND($K157>0,$K157<5), IF($K157=4,"Unknown", IF($K157=1, $F157*0.33, IF($K157=2, $F157*0.5+$G157*0.2, SUM(F157:G157)))), 0),"Not required") -> 35623.1 | Q157: 0 | R157: 1 | S157: 0 | T157: 1 | Y157: 36485 | Z157: Dikwa
A158: =IF(INTRO!$E$33<>0,INTRO!$E$33, " ") -> Nigeria | B158: Borno | C158: Gubio | D158: 210606 | E158: =IF(INTRO!$E$48="","",ROUND($D158*INTRO!$E$48,0)) -> 42121 | F158: =IF(INTRO!$E$49="","",ROUND($D158*INTRO!$E$49,0)) -> 58970 | G158: =IF(INTRO!$E$50="","",ROUND($D158*INTRO!$E$50,0)) -> 109515 | H158: 1 | I158: 99 | J158: 1 | K158: 1 | L158: 4 | M158: =IF(INTRO!$E$37="Endemic",IF($H158>0,IF($H158=4,"Unknown",IF($H158=99,"Stopped",$D158)),0),"Not required") -> 210606 | N158: 0 | O158: =IF(INTRO!$E$41="Endemic", IF(AND($J158>1,$J158<5), IF($J158=4, "Unknown", E158+F158), 0),"Not required") -> 0 | P158: =IF(INTRO!$E$43="Endemic", IF(AND($K158>0,$K158<5), IF($K158=4,"Unknown", IF($K158=1, $F158*0.33, IF($K158=2, $F158*0.5+$G158*0.2, SUM(F158:G158)))), 0),"Not required") -> 19460.1 | Q158: 1 | R158: 0 | S158: 0 | T158: 1 | Y158: 36486 | Z158: Gubio
A159: =IF(INTRO!$E$33<>0,INTRO!$E$33, " ") -> Nigeria | B159: Borno | C159: Guzamala | D159: 131852 | E159: =IF(INTRO!$E$48="","",ROUND($D159*INTRO!$E$48,0)) -> 26370 | F159: =IF(INTRO!$E$49="","",ROUND($D159*INTRO!$E$49,0)) -> 36919 | G159: =IF(INTRO!$E$50="","",ROUND($D159*INTRO!$E$50,0)) -> 68563 | H159: 0 | I159: 99 | J159: 1 | K159: 2 | L159: 4 | M159: =IF(INTRO!$E$37="Endemic",IF($H159>0,IF($H159=4,"Unknown",IF($H159=99,"Stopped",$D159)),0),"Not required") -> 0 | N159: 0 | O159: =IF(INTRO!$E$41="Endemic", IF(AND($J159>1,$J159<5), IF($J159=4, "Unknown", E159+F159), 0),"Not required") -> 0 | P159: =IF(INTRO!$E$43="Endemic", IF(AND($K159>0,$K159<5), IF($K159=4,"Unknown", IF($K159=1, $F159*0.33, IF($K159=2, $F159*0.5+$G159*0.2, SUM(F159:G159)))), 0),"Not required") -> 32172.1 | Q159: 0 | R159: 0 | S159: 0 | T159: 1 | Y159: 36487 | Z159: Guzamala
A160: =IF(INTRO!$E$33<>0,INTRO!$E$33, " ") -> Nigeria | B160: Borno | C160: Gwoza | D160: 380899 | E160: =IF(INTRO!$E$48="","",ROUND($D160*INTRO!$E$48,0)) -> 76180 | F160: =IF(INTRO!$E$49="","",ROUND($D160*INTRO!$E$49,0)) -> 106652 | G160: =IF(INTRO!$E$50="","",ROUND($D160*INTRO!$E$50,0)) -> 198067 | H160: 0 | I160: 1 | J160: 0 | K160: 2 | L160: 4 | M160: =IF(INTRO!$E$37="Endemic",IF($H160>0,IF($H160=4,"Unknown",IF($H160=99,"Stopped",$D160)),0),"Not required") -> 0 | N160: 193678 | O160: =IF(INTRO!$E$41="Endemic", IF(AND($J160>1,$J160<5), IF($J160=4, "Unknown", E160+F160), 0),"Not required") -> 0 | P160: =IF(INTRO!$E$43="Endemic", IF(AND($K160>0,$K160<5), IF($K160=4,"Unknown", IF($K160=1, $F160*0.33, IF($K160=2, $F160*0.5+$G160*0.2, SUM(F160:G160)))), 0),"Not required") -> 92939.4 | Q160: 0 | R160: 1 | S160: 0 | T160: 1 | Y160: 36488 | Z160: Gwoza
A161: =IF(INTRO!$E$33<>0,INTRO!$E$33, " ") -> Nigeria | B161: Borno | C161: Hawul | D161: 165854 | E161: =IF(INTRO!$E$48="","",ROUND($D161*INTRO!$E$48,0)) -> 33171 | F161: =IF(INTRO!$E$49="","",ROUND($D161*INTRO!$E$49,0)) -> 46439 | G161: =IF(INTRO!$E$50="","",ROUND($D161*INTRO!$E$50,0)) -> 86244 | H161: 1 | I161: 1 | J161: 1 | K161: 2 | L161: 4 | M161: =IF(INTRO!$E$37="Endemic",IF($H161>0,IF($H161=4,"Unknown",IF($H161=99,"Stopped",$D161)),0),"Not required") -> 165854 | N161: 97854 | O161: =IF(INTRO!$E$41="Endemic", IF(AND($J161>1,$J161<5), IF($J161=4, "Unknown", E161+F161), 0),"Not required") -> 0 | P161: =IF(INTRO!$E$43="Endemic", IF(AND($K161>0,$K161<5), IF($K161=4,"Unknown", IF($K161=1, $F161*0.33, IF($K161=2, $F161*0.5+$G161*0.2, SUM(F161:G161)))), 0),"Not required") -> 40468.3 | Q161: 1 | R161: 1 | S161: 0 | T161: 1 | Y161: 36489 | Z161: Hawul
A162: =IF(INTRO!$E$33<>0,INTRO!$E$33, " ") -> Nigeria | B162: Borno | C162: Jere | D162: 291147 | E162: =IF(INTRO!$E$48="","",ROUND($D162*INTRO!$E$48,0)) -> 58229 | F162: =IF(INTRO!$E$49="","",ROUND($D162*INTRO!$E$49,0)) -> 81521 | G162: =IF(INTRO!$E$50="","",ROUND($D162*INTRO!$E$50,0)) -> 151396 | H162: 1 | I162: 99 | J162: 0 | K162: 2 | L162: 4 | M162: =IF(INTRO!$E$37="Endemic",IF($H162>0,IF($H162=4,"Unknown",IF($H162=99,"Stopped",$D162)),0),"Not required") -> 291147 | N162: 0 | O162: =IF(INTRO!$E$41="Endemic", IF(AND($J162>1,$J162<5), IF($J162=4, "Unknown", E162+F162), 0),"Not required") -> 0 | P162: =IF(INTRO!$E$43="Endemic", IF(AND($K162>0,$K162<5), IF($K162=4,"Unknown", IF($K162=1, $F162*0.33, IF($K162=2, $F162*0.5+$G162*0.2, SUM(F162:G162)))), 0),"Not required") -> 71039.7 | Q162: 1 | R162: 0 | S162: 0 | T162: 1 | Y162: 36490 | Z162: Jere
A163: =IF(INTRO!$E$33<>0,INTRO!$E$33, " ") -> Nigeria | B163: Borno | C163: Kaga | D163: 124087 | E163: =IF(INTRO!$E$48="","",ROUND($D163*INTRO!$E$48,0)) -> 24817 | F163: =IF(INTRO!$E$49="","",ROUND($D163*INTRO!$E$49,0)) -> 34744 | G163: =IF(INTRO!$E$50="","",ROUND($D163*INTRO!$E$50,0)) -> 64525 | H163: 0 | I163: 99 | J163: 1 | K163: 2 | L163: 4 | M163: =IF(INTRO!$E$37="Endemic",IF($H163>0,IF($H163=4,"Unknown",IF($H163=99,"Stopped",$D163)),0),"Not required") -> 0 | N163: 0 | O163: =IF(INTRO!$E$41="Endemic", IF(AND($J163>1,$J163<5), IF($J163=4, "Unknown", E163+F163), 0),"Not required") -> 0 | P163: =IF(INTRO!$E$43="Endemic", IF(AND($K163>0,$K163<5), IF($K163=4,"Unknown", IF($K163=1, $F163*0.33, IF($K163=2, $F163*0.5+$G163*0.2, SUM(F163:G163)))), 0),"Not required") -> 30277 | Q163: 0 | R163: 0 | S163: 0 | T163: 1 | Y163: 36491 | Z163: Kaga
A164: =IF(INTRO!$E$33<>0,INTRO!$E$33, " ") -> Nigeria | B164: Borno | C164: Kala Balge | D164: 83809 | E164: =IF(INTRO!$E$48="","",ROUND($D164*INTRO!$E$48,0)) -> 16762 | F164: =IF(INTRO!$E$49="","",ROUND($D164*INTRO!$E$49,0)) -> 23467 | G164: =IF(INTRO!$E$50="","",ROUND($D164*INTRO!$E$50,0)) -> 43581 | H164: 0 | I164: 1 | J164: 0 | K164: 2 | L164: 4 | M164: =IF(INTRO!$E$37="Endemic",IF($H164>0,IF($H164=4,"Unknown",IF($H164=99,"Stopped",$D164)),0),"Not required") -> 0 | N164: 83944 | O164: =IF(INTRO!$E$41="Endemic", IF(AND($J164>1,$J164<5), IF($J164=4, "Unknown", E164+F164), 0),"Not required") -> 0 | P164: =IF(INTRO!$E$43="Endemic", IF(AND($K164>0,$K164<5), IF($K164=4,"Unknown", IF($K164=1, $F164*0.33, IF($K164=2, $F164*0.5+$G164*0.2, SUM(F164:G164)))), 0),"Not required") -> 20449.7 | Q164: 0 | R164: 1 | S164: 0 | T164: 1 | Y164: 36492 | Z164: Kala Balge
A165: =IF(INTRO!$E$33<>0,INTRO!$E$33, " ") -> Nigeria | B165: Borno | C165: Konduga | D165: 215825 | E165: =IF(INTRO!$E$48="","",ROUND($D165*INTRO!$E$48,0)) -> 43165 | F165: =IF(INTRO!$E$49="","",ROUND($D165*INTRO!$E$49,0)) -> 60431 | G165: =IF(INTRO!$E$50="","",ROUND($D165*INTRO!$E$50,0)) -> 112229 | H165: 0 | I165: 99 | J165: 0 | K165: 2 | L165: 4 | M165: =IF(INTRO!$E$37="Endemic",IF($H165>0,IF($H165=4,"Unknown",IF($H165=99,"Stopped",$D165)),0),"Not required") -> 0 | N165: 0 | O165: =IF(INTRO!$E$41="Endemic", IF(AND($J165>1,$J165<5), IF($J165=4, "Unknown", E165+F165), 0),"Not required") -> 0 | P165: =IF(INTRO!$E$43="Endemic", IF(AND($K165>0,$K165<5), IF($K165=4,"Unknown", IF($K165=1, $F165*0.33, IF($K165=2, $F165*0.5+$G165*0.2, SUM(F165:G165)))), 0),"Not required") -> 52661.3 | Q165: 0 | R165: 0 | S165: 0 | T165: 1 | Y165: 36493 | Z165: Konduga
A166: =IF(INTRO!$E$33<>0,INTRO!$E$33, " ") -> Nigeria | B166: Borno | C166: Kukawa | D166: 281029 | E166: =IF(INTRO!$E$48="","",ROUND($D166*INTRO!$E$48,0)) -> 56206 | F166: =IF(INTRO!$E$49="","",ROUND($D166*INTRO!$E$49,0)) -> 78688 | G166: =IF(INTRO!$E$50="","",ROUND($D166*INTRO!$E$50,0)) -> 146135 | H166: 0 | I166: 99 | J166: 1 | K166: 2 | L166: 4 | M166: =IF(INTRO!$E$37="Endemic",IF($H166>0,IF($H166=4,"Unknown",IF($H166=99,"Stopped",$D166)),0),"Not required") -> 0 | N166: 0 | O166: =IF(INTRO!$E$41="Endemic", IF(AND($J166>1,$J166<5), IF($J166=4, "Unknown", E166+F166), 0),"Not required") -> 0 | P166: =IF(INTRO!$E$43="Endemic", IF(AND($K166>0,$K166<5), IF($K166=4,"Unknown", IF($K166=1, $F166*0.33, IF($K166=2, $F166*0.5+$G166*0.2, SUM(F166:G166)))), 0),"Not required") -> 68571 | Q166: 0 | R166: 0 | S166: 0 | T166: 1 | Y166: 36494 | Z166: Kukawa
A167: =IF(INTRO!$E$33<>0,INTRO!$E$33, " ") -> Nigeria | B167: Borno | C167: Kwaya Kusar | D167: 77886 | E167: =IF(INTRO!$E$48="","",ROUND($D167*INTRO!$E$48,0)) -> 15577 | F167: =IF(INTRO!$E$49="","",ROUND($D167*INTRO!$E$49,0)) -> 21808 | G167: =IF(INTRO!$E$50="","",ROUND($D167*INTRO!$E$50,0)) -> 40501 | H167: 0 | I167: 1 | J167: 1 | K167: 1 | L167: 4 | M167: =IF(INTRO!$E$37="Endemic",IF($H167>0,IF($H167=4,"Unknown",IF($H167=99,"Stopped",$D167)),0),"Not required") -> 0 | N167: 78011 | O167: =IF(INTRO!$E$41="Endemic", IF(AND($J167>1,$J167<5), IF($J167=4, "Unknown", E167+F167), 0),"Not required") -> 0 | P167: =IF(INTRO!$E$43="Endemic", IF(AND($K167>0,$K167<5), IF($K167=4,"Unknown", IF($K167=1, $F167*0.33, IF($K167=2, $F167*0.5+$G167*0.2, SUM(F167:G167)))), 0),"Not required") -> 7196.64 | Q167: 0 | R167: 1 | S167: 0 | T167: 1 | Y167: 36495 | Z167: Kwaya Kusar
A168: =IF(INTRO!$E$33<>0,INTRO!$E$33, " ") -> Nigeria | B168: Borno | C168: Mafa | D168: 142701 | E168: =IF(INTRO!$E$48="","",ROUND($D168*INTRO!$E$48,0)) -> 28540 | F168: =IF(INTRO!$E$49="","",ROUND($D168*INTRO!$E$49,0)) -> 39956 | G168: =IF(INTRO!$E$50="","",ROUND($D168*INTRO!$E$50,0)) -> 74205 | H168: 1 | I168: 99 | J168: 1 | K168: 2 | L168: 4 | M168: =IF(INTRO!$E$37="Endemic",IF($H168>0,IF($H168=4,"Unknown",IF($H168=99,"Stopped",$D168)),0),"Not required") -> 142701 | N168: 0 | O168: =IF(INTRO!$E$41="Endemic", IF(AND($J168>1,$J168<5), IF($J168=4, "Unknown", E168+F168), 0),"Not required") -> 0 | P168: =IF(INTRO!$E$43="Endemic", IF(AND($K168>0,$K168<5), IF($K168=4,"Unknown", IF($K168=1, $F168*0.33, IF($K168=2, $F168*0.5+$G168*0.2, SUM(F168:G168)))), 0),"Not required") -> 34819 | Q168: 1 | R168: 0 | S168: 0 | T168: 1 | Y168: 36496 | Z168: Mafa
A169: =IF(INTRO!$E$33<>0,INTRO!$E$33, " ") -> Nigeria | B169: Borno | C169: Magumeri | D169: 193310 | E169: =IF(INTRO!$E$48="","",ROUND($D169*INTRO!$E$48,0)) -> 38662 | F169: =IF(INTRO!$E$49="","",ROUND($D169*INTRO!$E$49,0)) -> 54127 | G169: =IF(INTRO!$E$50="","",ROUND($D169*INTRO!$E$50,0)) -> 100521 | H169: 1 | I169: 99 | J169: 0 | K169: 1 | L169: 4 | M169: =IF(INTRO!$E$37="Endemic",IF($H169>0,IF($H169=4,"Unknown",IF($H169=99,"Stopped",$D169)),0),"Not required") -> 193310 | N169: 0 | O169: =IF(INTRO!$E$41="Endemic", IF(AND($J169>1,$J169<5), IF($J169=4, "Unknown", E169+F169), 0),"Not required") -> 0 | P169: =IF(INTRO!$E$43="Endemic", IF(AND($K169>0,$K169<5), IF($K169=4,"Unknown", IF($K169=1, $F169*0.33, IF($K169=2, $F169*0.5+$G169*0.2, SUM(F169:G169)))), 0),"Not required") -> 17861.91 | Q169: 1 | R169: 0 | S169: 0 | T169: 1 | Y169: 36497 | Z169: Magumeri
A170: =IF(INTRO!$E$33<>0,INTRO!$E$33, " ") -> Nigeria | B170: Borno | C170: Maiduguri | D170: 718882 | E170: =IF(INTRO!$E$48="","",ROUND($D170*INTRO!$E$48,0)) -> 143776 | F170: =IF(INTRO!$E$49="","",ROUND($D170*INTRO!$E$49,0)) -> 201287 | G170: =IF(INTRO!$E$50="","",ROUND($D170*INTRO!$E$50,0)) -> 373819 | H170: 1 | I170: 99 | J170: 0 | K170: 3 | L170: 4 | M170: =IF(INTRO!$E$37="Endemic",IF($H170>0,IF($H170=4,"Unknown",IF($H170=99,"Stopped",$D170)),0),"Not required") -> 718882 | N170: 0 | O170: =IF(INTRO!$E$41="Endemic", IF(AND($J170>1,$J170<5), IF($J170=4, "Unknown", E170+F170), 0),"Not required") -> 0 | P170: =IF(INTRO!$E$43="Endemic", IF(AND($K170>0,$K170<5), IF($K170=4,"Unknown", IF($K170=1, $F170*0.33, IF($K170=2, $F170*0.5+$G170*0.2, SUM(F170:G170)))), 0),"Not required") -> 575106 | Q170: 1 | R170: 0 | S170: 0 | T170: 1 | Y170: 36498 | Z170: Maiduguri
A171: =IF(INTRO!$E$33<>0,INTRO!$E$33, " ") -> Nigeria | B171: Borno | C171: Marte | D171: 178338 | E171: =IF(INTRO!$E$48="","",ROUND($D171*INTRO!$E$48,0)) -> 35668 | F171: =IF(INTRO!$E$49="","",ROUND($D171*INTRO!$E$49,0)) -> 49935 | G171: =IF(INTRO!$E$50="","",ROUND($D171*INTRO!$E$50,0)) -> 92736 | H171: 0 | I171: 99 | J171: 1 | K171: 2 | L171: 4 | M171: =IF(INTRO!$E$37="Endemic",IF($H171>0,IF($H171=4,"Unknown",IF($H171=99,"Stopped",$D171)),0),"Not required") -> 0 | N171: 0 | O171: =IF(INTRO!$E$41="Endemic", IF(AND($J171>1,$J171<5), IF($J171=4, "Unknown", E171+F171), 0),"Not required") -> 0 | P171: =IF(INTRO!$E$43="Endemic", IF(AND($K171>0,$K171<5), IF($K171=4,"Unknown", IF($K171=1, $F171*0.33, IF($K171=2, $F171*0.5+$G171*0.2, SUM(F171:G171)))), 0),"Not required") -> 43514.7 | Q171: 0 | R171: 0 | S171: 0 | T171: 1 | Y171: 36499 | Z171: Marte
A172: =IF(INTRO!$E$33<>0,INTRO!$E$33, " ") -> Nigeria | B172: Borno | C172: Mobbar | D172: 160809 | E172: =IF(INTRO!$E$48="","",ROUND($D172*INTRO!$E$48,0)) -> 32162 | F172: =IF(INTRO!$E$49="","",ROUND($D172*INTRO!$E$49,0)) -> 45027 | G172: =IF(INTRO!$E$50="","",ROUND($D172*INTRO!$E$50,0)) -> 83621 | H172: 1 | I172: 1 | J172: 4 | K172: 4 | L172: 4 | M172: =IF(INTRO!$E$37="Endemic",IF($H172>0,IF($H172=4,"Unknown",IF($H172=99,"Stopped",$D172)),0),"Not required") -> 160809 | N172: 74784 | O172: =IF(INTRO!$E$41="Endemic", IF(AND($J172>1,$J172<5), IF($J172=4, "Unknown", E172+F172), 0),"Not required") -> Unknown | P172: =IF(INTRO!$E$43="Endemic", IF(AND($K172>0,$K172<5), IF($K172=4,"Unknown", IF($K172=1, $F172*0.33, IF($K172=2, $F172*0.5+$G172*0.2, SUM(F172:G172)))), 0),"Not required") -> Unknown | Q172: 1 | R172: 1 | S172: 0 | T172: 0 | Y172: 36500 | Z172: Mobbar
A173: =IF(INTRO!$E$33<>0,INTRO!$E$33, " ") -> Nigeria | B173: Borno | C173: Monguno | D173: 151431 | E173: =IF(INTRO!$E$48="","",ROUND($D173*INTRO!$E$48,0)) -> 30286 | F173: =IF(INTRO!$E$49="","",ROUND($D173*INTRO!$E$49,0)) -> 42401 | G173: =IF(INTRO!$E$50="","",ROUND($D173*INTRO!$E$50,0)) -> 78744 | H173: 1 | I173: 99 | J173: 1 | K173: 2 | L173: 4 | M173: =IF(INTRO!$E$37="Endemic",IF($H173>0,IF($H173=4,"Unknown",IF($H173=99,"Stopped",$D173)),0),"Not required") -> 151431 | N173: 0 | O173: =IF(INTRO!$E$41="Endemic", IF(AND($J173>1,$J173<5), IF($J173=4, "Unknown", E173+F173), 0),"Not required") -> 0 | P173: =IF(INTRO!$E$43="Endemic", IF(AND($K173>0,$K173<5), IF($K173=4,"Unknown", IF($K173=1, $F173*0.33, IF($K173=2, $F173*0.5+$G173*0.2, SUM(F173:G173)))), 0),"Not required") -> 36949.3 | Q173: 1 | R173: 0 | S173: 0 | T173: 1 | Y173: 36501 | Z173: Monguno
A174: =IF(INTRO!$E$33<>0,INTRO!$E$33, " ") -> Nigeria | B174: Borno | C174: Ngala | D174: 326805 | E174: =IF(INTRO!$E$48="","",ROUND($D174*INTRO!$E$48,0)) -> 65361 | F174: =IF(INTRO!$E$49="","",ROUND($D174*INTRO!$E$49,0)) -> 91505 | G174: =IF(INTRO!$E$50="","",ROUND($D174*INTRO!$E$50,0)) -> 169939 | H174: 0 | I174: 99 | J174: 1 | K174: 2 | L174: 4 | M174: =IF(INTRO!$E$37="Endemic",IF($H174>0,IF($H174=4,"Unknown",IF($H174=99,"Stopped",$D174)),0),"Not required") -> 0 | N174: 0 | O174: =IF(INTRO!$E$41="Endemic", IF(AND($J174>1,$J174<5), IF($J174=4, "Unknown", E174+F174), 0),"Not required") -> 0 | P174: =IF(INTRO!$E$43="Endemic", IF(AND($K174>0,$K174<5), IF($K174=4,"Unknown", IF($K174=1, $F174*0.33, IF($K174=2, $F174*0.5+$G174*0.2, SUM(F174:G174)))), 0),"Not required") -> 79740.3 | Q174: 0 | R174: 0 | S174: 0 | T174: 1 | Y174: 36502 | Z174: Ngala
A175: =IF(INTRO!$E$33<>0,INTRO!$E$33, " ") -> Nigeria | B175: Borno | C175: Nganzai | D175: 137574 | E175: =IF(INTRO!$E$48="","",ROUND($D175*INTRO!$E$48,0)) -> 27515 | F175: =IF(INTRO!$E$49="","",ROUND($D175*INTRO!$E$49,0)) -> 38521 | G175: =IF(INTRO!$E$50="","",ROUND($D175*INTRO!$E$50,0)) -> 71538 | H175: 1 | I175: 99 | J175: 1 | K175: 2 | L175: 4 | M175: =IF(INTRO!$E$37="Endemic",IF($H175>0,IF($H175=4,"Unknown",IF($H175=99,"Stopped",$D175)),0),"Not required") -> 137574 | N175: 0 | O175: =IF(INTRO!$E$41="Endemic", IF(AND($J175>1,$J175<5), IF($J175=4, "Unknown", E175+F175), 0),"Not required") -> 0 | P175: =IF(INTRO!$E$43="Endemic", IF(AND($K175>0,$K175<5), IF($K175=4,"Unknown", IF($K175=1, $F175*0.33, IF($K175=2, $F175*0.5+$G175*0.2, SUM(F175:G175)))), 0),"Not required") -> 33568.1 | Q175: 1 | R175: 0 | S175: 0 | T175: 1 | Y175: 36503 | Z175: Nganzai
A176: =IF(INTRO!$E$33<>0,INTRO!$E$33, " ") -> Nigeria | B176: Borno | C176: Shani | D176: 141045 | E176: =IF(INTRO!$E$48="","",ROUND($D176*INTRO!$E$48,0)) -> 28209 | F176: =IF(INTRO!$E$49="","",ROUND($D176*INTRO!$E$49,0)) -> 39493 | G176: =IF(INTRO!$E$50="","",ROUND($D176*INTRO!$E$50,0)) -> 73343 | H176: 1 | I176: 1 | J176: 1 | K176: 2 | L176: 4 | M176: =IF(INTRO!$E$37="Endemic",IF($H176>0,IF($H176=4,"Unknown",IF($H176=99,"Stopped",$D176)),0),"Not required") -> 141045 | N176: 141272 | O176: =IF(INTRO!$E$41="Endemic", IF(AND($J176>1,$J176<5), IF($J176=4, "Unknown", E176+F176), 0),"Not required") -> 0 | P176: =IF(INTRO!$E$43="Endemic", IF(AND($K176>0,$K176<5), IF($K176=4,"Unknown", IF($K176=1, $F176*0.33, IF($K176=2, $F176*0.5+$G176*0.2, SUM(F176:G176)))), 0),"Not required") -> 34415.1 | Q176: 1 | R176: 1 | S176: 0 | T176: 1 | Y176: 36504 | Z176: Shani
A177: =IF(INTRO!$E$33<>0,INTRO!$E$33, " ") -> Nigeria | B177: Cross River | C177: Abi | D177: 199611 | E177: =IF(INTRO!$E$48="","",ROUND($D177*INTRO!$E$48,0)) -> 39922 | F177: =IF(INTRO!$E$49="","",ROUND($D177*INTRO!$E$49,0)) -> 55891 | G177: =IF(INTRO!$E$50="","",ROUND($D177*INTRO!$E$50,0)) -> 103798 | H177: 1 | I177: 99 | J177: 1 | K177: 0 | L177: 0 | M177: =IF(INTRO!$E$37="Endemic",IF($H177>0,IF($H177=4,"Unknown",IF($H177=99,"Stopped",$D177)),0),"Not required") -> 199611 | N177: 0 | O177: =IF(INTRO!$E$41="Endemic", IF(AND($J177>1,$J177<5), IF($J177=4, "Unknown", E177+F177), 0),"Not required") -> 0 | P177: =IF(INTRO!$E$43="Endemic", IF(AND($K177>0,$K177<5), IF($K177=4,"Unknown", IF($K177=1, $F177*0.33, IF($K177=2, $F177*0.5+$G177*0.2, SUM(F177:G177)))), 0),"Not required") -> 0 | Q177: 1 | R177: 0 | S177: 0 | T177: 0 | Y177: 36505 | Z177: Abi
A178: =IF(INTRO!$E$33<>0,INTRO!$E$33, " ") -> Nigeria | B178: Cross River | C178: Akamkpa | D178: 208327 | E178: =IF(INTRO!$E$48="","",ROUND($D178*INTRO!$E$48,0)) -> 41665 | F178: =IF(INTRO!$E$49="","",ROUND($D178*INTRO!$E$49,0)) -> 58332 | G178: =IF(INTRO!$E$50="","",ROUND($D178*INTRO!$E$50,0)) -> 108330 | H178: 1 | I178: 1 | J178: 2 | K178: 0 | L178: 0 | M178: =IF(INTRO!$E$37="Endemic",IF($H178>0,IF($H178=4,"Unknown",IF($H178=99,"Stopped",$D178)),0),"Not required") -> 208327 | N178: 169328 | O178: =IF(INTRO!$E$41="Endemic", IF(AND($J178>1,$J178<5), IF($J178=4, "Unknown", E178+F178), 0),"Not required") -> 99997 | P178: =IF(INTRO!$E$43="Endemic", IF(AND($K178>0,$K178<5), IF($K178=4,"Unknown", IF($K178=1, $F178*0.33, IF($K178=2, $F178*0.5+$G178*0.2, SUM(F178:G178)))), 0),"Not required") -> 0 | Q178: 1 | R178: 1 | S178: 1 | T178: 0 | Y178: 36506 | Z178: Akamkpa
A179: =IF(INTRO!$E$33<>0,INTRO!$E$33, " ") -> Nigeria | B179: Cross River | C179: Akpabuyo | D179: 374121 | E179: =IF(INTRO!$E$48="","",ROUND($D179*INTRO!$E$48,0)) -> 74824 | F179: =IF(INTRO!$E$49="","",ROUND($D179*INTRO!$E$49,0)) -> 104754 | G179: =IF(INTRO!$E$50="","",ROUND($D179*INTRO!$E$50,0)) -> 194543 | H179: 0 | I179: 1 | J179: 2 | K179: 0 | L179: 4 | M179: =IF(INTRO!$E$37="Endemic",IF($H179>0,IF($H179=4,"Unknown",IF($H179=99,"Stopped",$D179)),0),"Not required") -> 0 | N179: 72096 | O179: =IF(INTRO!$E$41="Endemic", IF(AND($J179>1,$J179<5), IF($J179=4, "Unknown", E179+F179), 0),"Not required") -> 179578 | P179: =IF(INTRO!$E$43="Endemic", IF(AND($K179>0,$K179<5), IF($K179=4,"Unknown", IF($K179=1, $F179*0.33, IF($K179=2, $F179*0.5+$G179*0.2, SUM(F179:G179)))), 0),"Not required") -> 0 | Q179: 0 | R179: 1 | S179: 1 | T179: 0 | Y179: 36507 | Z179: Akpabuyo
A180: =IF(INTRO!$E$33<>0,INTRO!$E$33, " ") -> Nigeria | B180: Cross River | C180: Bakasi | D180: 44643 | E180: =IF(INTRO!$E$48="","",ROUND($D180*INTRO!$E$48,0)) -> 8929 | F180: =IF(INTRO!$E$49="","",ROUND($D180*INTRO!$E$49,0)) -> 12500 | G180: =IF(INTRO!$E$50="","",ROUND($D180*INTRO!$E$50,0)) -> 23214 | H180: 0 | I180: 1 | J180: 2 | K180: 0 | L180: 4 | M180: =IF(INTRO!$E$37="Endemic",IF($H180>0,IF($H180=4,"Unknown",IF($H180=99,"Stopped",$D180)),0),"Not required") -> 0 | N180: 44715 | O180: =IF(INTRO!$E$41="Endemic", IF(AND($J180>1,$J180<5), IF($J180=4, "Unknown", E180+F180), 0),"Not required") -> 21429 | P180: =IF(INTRO!$E$43="Endemic", IF(AND($K180>0,$K180<5), IF($K180=4,"Unknown", IF($K180=1, $F180*0.33, IF($K180=2, $F180*0.5+$G180*0.2, SUM(F180:G180)))), 0),"Not required") -> 0 | Q180: 0 | R180: 1 | S180: 1 | T180: 0 | Y180: 36508 | Z180: Bakasi
A181: =IF(INTRO!$E$33<>0,INTRO!$E$33, " ") -> Nigeria | B181: Cross River | C181: Bekwara | D181: 145877 | E181: =IF(INTRO!$E$48="","",ROUND($D181*INTRO!$E$48,0)) -> 29175 | F181: =IF(INTRO!$E$49="","",ROUND($D181*INTRO!$E$49,0)) -> 40846 | G181: =IF(INTRO!$E$50="","",ROUND($D181*INTRO!$E$50,0)) -> 75856 | H181: 1 | I181: 1 | J181: 1 | K181: 2 | L181: 4 | M181: =IF(INTRO!$E$37="Endemic",IF($H181>0,IF($H181=4,"Unknown",IF($H181=99,"Stopped",$D181)),0),"Not required") -> 145877 | N181: 107827 | O181: =IF(INTRO!$E$41="Endemic", IF(AND($J181>1,$J181<5), IF($J181=4, "Unknown", E181+F181), 0),"Not required") -> 0 | P181: =IF(INTRO!$E$43="Endemic", IF(AND($K181>0,$K181<5), IF($K181=4,"Unknown", IF($K181=1, $F181*0.33, IF($K181=2, $F181*0.5+$G181*0.2, SUM(F181:G181)))), 0),"Not required") -> 35594.2 | Q181: 1 | R181: 1 | S181: 0 | T181: 1 | Y181: 36509 | Z181: Bekwara
A182: =IF(INTRO!$E$33<>0,INTRO!$E$33, " ") -> Nigeria | B182: Cross River | C182: Biase | D182: 233221 | E182: =IF(INTRO!$E$48="","",ROUND($D182*INTRO!$E$48,0)) -> 46644 | F182: =IF(INTRO!$E$49="","",ROUND($D182*INTRO!$E$49,0)) -> 65302 | G182: =IF(INTRO!$E$50="","",ROUND($D182*INTRO!$E$50,0)) -> 121275 | H182: 1 | I182: 1 | J182: 2 | K182: 0 | L182: 0 | M182: =IF(INTRO!$E$37="Endemic",IF($H182>0,IF($H182=4,"Unknown",IF($H182=99,"Stopped",$D182)),0),"Not required") -> 233221 | N182: 104140 | O182: =IF(INTRO!$E$41="Endemic", IF(AND($J182>1,$J182<5), IF($J182=4, "Unknown", E182+F182), 0),"Not required") -> 111946 | P182: =IF(INTRO!$E$43="Endemic", IF(AND($K182>0,$K182<5), IF($K182=4,"Unknown", IF($K182=1, $F182*0.33, IF($K182=2, $F182*0.5+$G182*0.2, SUM(F182:G182)))), 0),"Not required") -> 0 | Q182: 1 | R182: 1 | S182: 1 | T182: 0 | Y182: 36510 | Z182: Biase
A183: =IF(INTRO!$E$33<>0,INTRO!$E$33, " ") -> Nigeria | B183: Cross River | C183: Boki | D183: 256597 | E183: =IF(INTRO!$E$48="","",ROUND($D183*INTRO!$E$48,0)) -> 51319 | F183: =IF(INTRO!$E$49="","",ROUND($D183*INTRO!$E$49,0)) -> 71847 | G183: =IF(INTRO!$E$50="","",ROUND($D183*INTRO!$E$50,0)) -> 133430 | H183: 1 | I183: 1 | J183: 1 | K183: 1 | L183: 4 | M183: =IF(INTRO!$E$37="Endemic",IF($H183>0,IF($H183=4,"Unknown",IF($H183=99,"Stopped",$D183)),0),"Not required") -> 256597 | N183: 257010 | O183: =IF(INTRO!$E$41="Endemic", IF(AND($J183>1,$J183<5), IF($J183=4, "Unknown", E183+F183), 0),"Not required") -> 0 | P183: =IF(INTRO!$E$43="Endemic", IF(AND($K183>0,$K183<5), IF($K183=4,"Unknown", IF($K183=1, $F183*0.33, IF($K183=2, $F183*0.5+$G183*0.2, SUM(F183:G183)))), 0),"Not required") -> 23709.51 | Q183: 1 | R183: 1 | S183: 0 | T183: 0 | Y183: 36511 | Z183: Boki
A184: =IF(INTRO!$E$33<>0,INTRO!$E$33, " ") -> Nigeria | B184: Cross River | C184: Caabar South | D184: 264164 | E184: =IF(INTRO!$E$48="","",ROUND($D184*INTRO!$E$48,0)) -> 52833 | F184: =IF(INTRO!$E$49="","",ROUND($D184*INTRO!$E$49,0)) -> 73966 | G184: =IF(INTRO!$E$50="","",ROUND($D184*INTRO!$E$50,0)) -> 137365 | H184: 1 | I184: 99 | J184: 2 | K184: 0 | L184: 0 | M184: =IF(INTRO!$E$37="Endemic",IF($H184>0,IF($H184=4,"Unknown",IF($H184=99,"Stopped",$D184)),0),"Not required") -> 264164 | N184: 0 | O184: =IF(INTRO!$E$41="Endemic", IF(AND($J184>1,$J184<5), IF($J184=4, "Unknown", E184+F184), 0),"Not required") -> 126799 | P184: =IF(INTRO!$E$43="Endemic", IF(AND($K184>0,$K184<5), IF($K184=4,"Unknown", IF($K184=1, $F184*0.33, IF($K184=2, $F184*0.5+$G184*0.2, SUM(F184:G184)))), 0),"Not required") -> 0 | Q184: 1 | R184: 0 | S184: 1 | T184: 0 | Y184: 36512 | Z184: Caabar South
A185: =IF(INTRO!$E$33<>0,INTRO!$E$33, " ") -> Nigeria | B185: Cross River | C185: Calabar Municipal | D185: 247294 | E185: =IF(INTRO!$E$48="","",ROUND($D185*INTRO!$E$48,0)) -> 49459 | F185: =IF(INTRO!$E$49="","",ROUND($D185*INTRO!$E$49,0)) -> 69242 | G185: =IF(INTRO!$E$50="","",ROUND($D185*INTRO!$E$50,0)) -> 128593 | H185: 1 | I185: 99 | J185: 2 | K185: 0 | L185: 0 | M185: =IF(INTRO!$E$37="Endemic",IF($H185>0,IF($H185=4,"Unknown",IF($H185=99,"Stopped",$D185)),0),"Not required") -> 247294 | N185: 0 | O185: =IF(INTRO!$E$41="Endemic", IF(AND($J185>1,$J185<5), IF($J185=4, "Unknown", E185+F185), 0),"Not required") -> 118701 | P185: =IF(INTRO!$E$43="Endemic", IF(AND($K185>0,$K185<5), IF($K185=4,"Unknown", IF($K185=1, $F185*0.33, IF($K185=2, $F185*0.5+$G185*0.2, SUM(F185:G185)))), 0),"Not required") -> 0 | Q185: 0 | R185: 0 | S185: 1 | T185: 0 | Y185: 36513 | Z185: Calabar Municipal
A186: =IF(INTRO!$E$33<>0,INTRO!$E$33, " ") -> Nigeria | B186: Cross River | C186: Etung | D186: 110551 | E186: =IF(INTRO!$E$48="","",ROUND($D186*INTRO!$E$48,0)) -> 22110 | F186: =IF(INTRO!$E$49="","",ROUND($D186*INTRO!$E$49,0)) -> 30954 | G186: =IF(INTRO!$E$50="","",ROUND($D186*INTRO!$E$50,0)) -> 57487 | H186: 0 | I186: 1 | J186: 2 | K186: 0 | L186: 4 | M186: =IF(INTRO!$E$37="Endemic",IF($H186>0,IF($H186=4,"Unknown",IF($H186=99,"Stopped",$D186)),0),"Not required") -> 0 | N186: 110729 | O186: =IF(INTRO!$E$41="Endemic", IF(AND($J186>1,$J186<5), IF($J186=4, "Unknown", E186+F186), 0),"Not required") -> 53064 | P186: =IF(INTRO!$E$43="Endemic", IF(AND($K186>0,$K186<5), IF($K186=4,"Unknown", IF($K186=1, $F186*0.33, IF($K186=2, $F186*0.5+$G186*0.2, SUM(F186:G186)))), 0),"Not required") -> 0 | Q186: 0 | R186: 1 | S186: 1 | T186: 0 | Y186: 36514 | Z186: Etung
A187: =IF(INTRO!$E$33<>0,INTRO!$E$33, " ") -> Nigeria | B187: Cross River | C187: Ikom | D187: 223847 | E187: =IF(INTRO!$E$48="","",ROUND($D187*INTRO!$E$48,0)) -> 44769 | F187: =IF(INTRO!$E$49="","",ROUND($D187*INTRO!$E$49,0)) -> 62677 | G187: =IF(INTRO!$E$50="","",ROUND($D187*INTRO!$E$50,0)) -> 116400 | H187: 1 | I187: 1 | J187: 1 | K187: 0 | L187: 0 | M187: =IF(INTRO!$E$37="Endemic",IF($H187>0,IF($H187=4,"Unknown",IF($H187=99,"Stopped",$D187)),0),"Not required") -> 223847 | N187: 127761 | O187: =IF(INTRO!$E$41="Endemic", IF(AND($J187>1,$J187<5), IF($J187=4, "Unknown", E187+F187), 0),"Not required") -> 0 | P187: =IF(INTRO!$E$43="Endemic", IF(AND($K187>0,$K187<5), IF($K187=4,"Unknown", IF($K187=1, $F187*0.33, IF($K187=2, $F187*0.5+$G187*0.2, SUM(F187:G187)))), 0),"Not required") -> 0 | Q187: 1 | R187: 1 | S187: 0 | T187: 0 | Y187: 36515 | Z187: Ikom
A188: =IF(INTRO!$E$33<>0,INTRO!$E$33, " ") -> Nigeria | B188: Cross River | C188: Obanliku | D188: 152083 | E188: =IF(INTRO!$E$48="","",ROUND($D188*INTRO!$E$48,0)) -> 30417 | F188: =IF(INTRO!$E$49="","",ROUND($D188*INTRO!$E$49,0)) -> 42583 | G188: =IF(INTRO!$E$50="","",ROUND($D188*INTRO!$E$50,0)) -> 79083 | H188: 0 | I188: 1 | J188: 1 | K188: 2 | L188: 4 | M188: =IF(INTRO!$E$37="Endemic",IF($H188>0,IF($H188=4,"Unknown",IF($H188=99,"Stopped",$D188)),0),"Not required") -> 0 | N188: 60962 | O188: =IF(INTRO!$E$41="Endemic", IF(AND($J188>1,$J188<5), IF($J188=4, "Unknown", E188+F188), 0),"Not required") -> 0 | P188: =IF(INTRO!$E$43="Endemic", IF(AND($K188>0,$K188<5), IF($K188=4,"Unknown", IF($K188=1, $F188*0.33, IF($K188=2, $F188*0.5+$G188*0.2, SUM(F188:G188)))), 0),"Not required") -> 37108.1 | Q188: 0 | R188: 1 | S188: 0 | T188: 1 | Y188: 36516 | Z188: Obanliku
A189: =IF(INTRO!$E$33<>0,INTRO!$E$33, " ") -> Nigeria | B189: Cross River | C189: Obubra | D189: 237716 | E189: =IF(INTRO!$E$48="","",ROUND($D189*INTRO!$E$48,0)) -> 47543 | F189: =IF(INTRO!$E$49="","",ROUND($D189*INTRO!$E$49,0)) -> 66560 | G189: =IF(INTRO!$E$50="","",ROUND($D189*INTRO!$E$50,0)) -> 123612 | H189: 1 | I189: 1 | J189: 1 | K189: 0 | L189: 0 | M189: =IF(INTRO!$E$37="Endemic",IF($H189>0,IF($H189=4,"Unknown",IF($H189=99,"Stopped",$D189)),0),"Not required") -> 237716 | N189: 76814 | O189: =IF(INTRO!$E$41="Endemic", IF(AND($J189>1,$J189<5), IF($J189=4, "Unknown", E189+F189), 0),"Not required") -> 0 | P189: =IF(INTRO!$E$43="Endemic", IF(AND($K189>0,$K189<5), IF($K189=4,"Unknown", IF($K189=1, $F189*0.33, IF($K189=2, $F189*0.5+$G189*0.2, SUM(F189:G189)))), 0),"Not required") -> 0 | Q189: 1 | R189: 1 | S189: 0 | T189: 0 | Y189: 36517 | Z189: Obubra
A190: =IF(INTRO!$E$33<>0,INTRO!$E$33, " ") -> Nigeria | B190: Cross River | C190: Obudu | D190: 220708 | E190: =IF(INTRO!$E$48="","",ROUND($D190*INTRO!$E$48,0)) -> 44142 | F190: =IF(INTRO!$E$49="","",ROUND($D190*INTRO!$E$49,0)) -> 61798 | G190: =IF(INTRO!$E$50="","",ROUND($D190*INTRO!$E$50,0)) -> 114768 | H190: 0 | I190: 1 | J190: 1 | K190: 2 | L190: 4 | M190: =IF(INTRO!$E$37="Endemic",IF($H190>0,IF($H190=4,"Unknown",IF($H190=99,"Stopped",$D190)),0),"Not required") -> 0 | N190: 60733 | O190: =IF(INTRO!$E$41="Endemic", IF(AND($J190>1,$J190<5), IF($J190=4, "Unknown", E190+F190), 0),"Not required") -> 0 | P190: =IF(INTRO!$E$43="Endemic", IF(AND($K190>0,$K190<5), IF($K190=4,"Unknown", IF($K190=1, $F190*0.33, IF($K190=2, $F190*0.5+$G190*0.2, SUM(F190:G190)))), 0),"Not required") -> 53852.6 | Q190: 0 | R190: 1 | S190: 0 | T190: 1 | Y190: 36518 | Z190: Obudu
A191: =IF(INTRO!$E$33<>0,INTRO!$E$33, " ") -> Nigeria | B191: Cross River | C191: Odukpani | D191: 265286 | E191: =IF(INTRO!$E$48="","",ROUND($D191*INTRO!$E$48,0)) -> 53057 | F191: =IF(INTRO!$E$49="","",ROUND($D191*INTRO!$E$49,0)) -> 74280 | G191: =IF(INTRO!$E$50="","",ROUND($D191*INTRO!$E$50,0)) -> 137949 | H191: 0 | I191: 1 | J191: 3 | K191: 0 | L191: 4 | M191: =IF(INTRO!$E$37="Endemic",IF($H191>0,IF($H191=4,"Unknown",IF($H191=99,"Stopped",$D191)),0),"Not required") -> 0 | N191: 120290 | O191: =IF(INTRO!$E$41="Endemic", IF(AND($J191>1,$J191<5), IF($J191=4, "Unknown", E191+F191), 0),"Not required") -> 127337 | P191: =IF(INTRO!$E$43="Endemic", IF(AND($K191>0,$K191<5), IF($K191=4,"Unknown", IF($K191=1, $F191*0.33, IF($K191=2, $F191*0.5+$G191*0.2, SUM(F191:G191)))), 0),"Not required") -> 0 | Q191: 0 | R191: 1 | S191: 2 | T191: 0 | Y191: 36519 | Z191: Odukpani
A192: =IF(INTRO!$E$33<>0,INTRO!$E$33, " ") -> Nigeria | B192: Cross River | C192: Ogoja | D192: 236967 | E192: =IF(INTRO!$E$48="","",ROUND($D192*INTRO!$E$48,0)) -> 47393 | F192: =IF(INTRO!$E$49="","",ROUND($D192*INTRO!$E$49,0)) -> 66351 | G192: =IF(INTRO!$E$50="","",ROUND($D192*INTRO!$E$50,0)) -> 123223 | H192: 1 | I192: 1 | J192: 1 | K192: 2 | L192: 0 | M192: =IF(INTRO!$E$37="Endemic",IF($H192>0,IF($H192=4,"Unknown",IF($H192=99,"Stopped",$D192)),0),"Not required") -> 236967 | N192: 122304 | O192: =IF(INTRO!$E$41="Endemic", IF(AND($J192>1,$J192<5), IF($J192=4, "Unknown", E192+F192), 0),"Not required") -> 0 | P192: =IF(INTRO!$E$43="Endemic", IF(AND($K192>0,$K192<5), IF($K192=4,"Unknown", IF($K192=1, $F192*0.33, IF($K192=2, $F192*0.5+$G192*0.2, SUM(F192:G192)))), 0),"Not required") -> 57820.1 | Q192: 1 | R192: 1 | S192: 0 | T192: 1 | Y192: 36520 | Z192: Ogoja
A193: =IF(INTRO!$E$33<>0,INTRO!$E$33, " ") -> Nigeria | B193: Cross River | C193: Yakur | D193: 270808 | E193: =IF(INTRO!$E$48="","",ROUND($D193*INTRO!$E$48,0)) -> 54162 | F193: =IF(INTRO!$E$49="","",ROUND($D193*INTRO!$E$49,0)) -> 75826 | G193: =IF(INTRO!$E$50="","",ROUND($D193*INTRO!$E$50,0)) -> 140820 | H193: 0 | I193: 1 | J193: 2 | K193: 0 | L193: 4 | M193: =IF(INTRO!$E$37="Endemic",IF($H193>0,IF($H193=4,"Unknown",IF($H193=99,"Stopped",$D193)),0),"Not required") -> 0 | N193: 76409 | O193: =IF(INTRO!$E$41="Endemic", IF(AND($J193>1,$J193<5), IF($J193=4, "Unknown", E193+F193), 0),"Not required") -> 129988 | P193: =IF(INTRO!$E$43="Endemic", IF(AND($K193>0,$K193<5), IF($K193=4,"Unknown", IF($K193=1, $F193*0.33, IF($K193=2, $F193*0.5+$G193*0.2, SUM(F193:G193)))), 0),"Not required") -> 0 | Q193: 0 | R193: 1 | S193: 1 | T193: 0 | Y193: 36521 | Z193: Yakur
A194: =IF(INTRO!$E$33<>0,INTRO!$E$33, " ") -> Nigeria | B194: Cross River | C194: Yala | D194: 290649 | E194: =IF(INTRO!$E$48="","",ROUND($D194*INTRO!$E$48,0)) -> 58130 | F194: =IF(INTRO!$E$49="","",ROUND($D194*INTRO!$E$49,0)) -> 81382 | G194: =IF(INTRO!$E$50="","",ROUND($D194*INTRO!$E$50,0)) -> 151137 | H194: 1 | I194: 1 | J194: 1 | K194: 2 | L194: 0 | M194: =IF(INTRO!$E$37="Endemic",IF($H194>0,IF($H194=4,"Unknown",IF($H194=99,"Stopped",$D194)),0),"Not required") -> 290649 | N194: 218244 | O194: =IF(INTRO!$E$41="Endemic", IF(AND($J194>1,$J194<5), IF($J194=4, "Unknown", E194+F194), 0),"Not required") -> 0 | P194: =IF(INTRO!$E$43="Endemic", IF(AND($K194>0,$K194<5), IF($K194=4,"Unknown", IF($K194=1, $F194*0.33, IF($K194=2, $F194*0.5+$G194*0.2, SUM(F194:G194)))), 0),"Not required") -> 70918.4 | Q194: 1 | R194: 1 | S194: 0 | T194: 1 | Y194: 36522 | Z194: Yala
A195: =IF(INTRO!$E$33<>0,INTRO!$E$33, " ") -> Nigeria | B195: Delta | C195: Aniocha North | D195: 144345 | E195: =IF(INTRO!$E$48="","",ROUND($D195*INTRO!$E$48,0)) -> 28869 | F195: =IF(INTRO!$E$49="","",ROUND($D195*INTRO!$E$49,0)) -> 40417 | G195: =IF(INTRO!$E$50="","",ROUND($D195*INTRO!$E$50,0)) -> 75059 | H195: 1 | I195: 1 | J195: 2 | K195: 0 | L195: 0 | M195: =IF(INTRO!$E$37="Endemic",IF($H195>0,IF($H195=4,"Unknown",IF($H195=99,"Stopped",$D195)),0),"Not required") -> 144345 | N195: 83022 | O195: =IF(INTRO!$E$41="Endemic", IF(AND($J195>1,$J195<5), IF($J195=4, "Unknown", E195+F195), 0),"Not required") -> 69286 | P195: =IF(INTRO!$E$43="Endemic", IF(AND($K195>0,$K195<5), IF($K195=4,"Unknown", IF($K195=1, $F195*0.33, IF($K195=2, $F195*0.5+$G195*0.2, SUM(F195:G195)))), 0),"Not required") -> 0 | Q195: 1 | R195: 1 | S195: 1 | T195: 0 | Y195: 36523 | Z195: Aniocha North
A196: =IF(INTRO!$E$33<>0,INTRO!$E$33, " ") -> Nigeria | B196: Delta | C196: Aniocha South | D196: 193824 | E196: =IF(INTRO!$E$48="","",ROUND($D196*INTRO!$E$48,0)) -> 38765 | F196: =IF(INTRO!$E$49="","",ROUND($D196*INTRO!$E$49,0)) -> 54271 | G196: =IF(INTRO!$E$50="","",ROUND($D196*INTRO!$E$50,0)) -> 100788 | H196: 1 | I196: 1 | J196: 2 | K196: 0 | L196: 0 | M196: =IF(INTRO!$E$37="Endemic",IF($H196>0,IF($H196=4,"Unknown",IF($H196=99,"Stopped",$D196)),0),"Not required") -> 193824 | N196: 80923 | O196: =IF(INTRO!$E$41="Endemic", IF(AND($J196>1,$J196<5), IF($J196=4, "Unknown", E196+F196), 0),"Not required") -> 93036 | P196: =IF(INTRO!$E$43="Endemic", IF(AND($K196>0,$K196<5), IF($K196=4,"Unknown", IF($K196=1, $F196*0.33, IF($K196=2, $F196*0.5+$G196*0.2, SUM(F196:G196)))), 0),"Not required") -> 0 | Q196: 1 | R196: 1 | S196: 1 | T196: 0 | Y196: 36524 | Z196: Aniocha South
A197: =IF(INTRO!$E$33<>0,INTRO!$E$33, " ") -> Nigeria | B197: Delta | C197: Bomadi | D197: 119440 | E197: =IF(INTRO!$E$48="","",ROUND($D197*INTRO!$E$48,0)) -> 23888 | F197: =IF(INTRO!$E$49="","",ROUND($D197*INTRO!$E$49,0)) -> 33443 | G197: =IF(INTRO!$E$50="","",ROUND($D197*INTRO!$E$50,0)) -> 62109 | H197: 1 | I197: 99 | J197: 3 | K197: 1 | L197: 0 | M197: =IF(INTRO!$E$37="Endemic",IF($H197>0,IF($H197=4,"Unknown",IF($H197=99,"Stopped",$D197)),0),"Not required") -> 119440 | N197: 0 | O197: =IF(INTRO!$E$41="Endemic", IF(AND($J197>1,$J197<5), IF($J197=4, "Unknown", E197+F197), 0),"Not required") -> 57331 | P197: =IF(INTRO!$E$43="Endemic", IF(AND($K197>0,$K197<5), IF($K197=4,"Unknown", IF($K197=1, $F197*0.33, IF($K197=2, $F197*0.5+$G197*0.2, SUM(F197:G197)))), 0),"Not required") -> 11036.19 | Q197: 1 | R197: 0 | S197: 2 | T197: 1 | Y197: 36525 | Z197: Bomadi
A198: =IF(INTRO!$E$33<>0,INTRO!$E$33, " ") -> Nigeria | B198: Delta | C198: Burutu | D198: 289027 | E198: =IF(INTRO!$E$48="","",ROUND($D198*INTRO!$E$48,0)) -> 57805 | F198: =IF(INTRO!$E$49="","",ROUND($D198*INTRO!$E$49,0)) -> 80928 | G198: =IF(INTRO!$E$50="","",ROUND($D198*INTRO!$E$50,0)) -> 150294 | H198: 0 | I198: 99 | J198: 3 | K198: 1 | L198: 0 | M198: =IF(INTRO!$E$37="Endemic",IF($H198>0,IF($H198=4,"Unknown",IF($H198=99,"Stopped",$D198)),0),"Not required") -> 0 | N198: 0 | O198: =IF(INTRO!$E$41="Endemic", IF(AND($J198>1,$J198<5), IF($J198=4, "Unknown", E198+F198), 0),"Not required") -> 138733 | P198: =IF(INTRO!$E$43="Endemic", IF(AND($K198>0,$K198<5), IF($K198=4,"Unknown", IF($K198=1, $F198*0.33, IF($K198=2, $F198*0.5+$G198*0.2, SUM(F198:G198)))), 0),"Not required") -> 26706.24 | Q198: 0 | R198: 0 | S198: 2 | T198: 1 | Y198: 36526 | Z198: Burutu
A199: =IF(INTRO!$E$33<>0,INTRO!$E$33, " ") -> Nigeria | B199: Delta | C199: Ethiope East | D199: 276794 | E199: =IF(INTRO!$E$48="","",ROUND($D199*INTRO!$E$48,0)) -> 55359 | F199: =IF(INTRO!$E$49="","",ROUND($D199*INTRO!$E$49,0)) -> 77502 | G199: =IF(INTRO!$E$50="","",ROUND($D199*INTRO!$E$50,0)) -> 143933 | H199: 1 | I199: 1 | J199: 3 | K199: 1 | L199: 0 | M199: =IF(INTRO!$E$37="Endemic",IF($H199>0,IF($H199=4,"Unknown",IF($H199=99,"Stopped",$D199)),0),"Not required") -> 276794 | N199: 131940 | O199: =IF(INTRO!$E$41="Endemic", IF(AND($J199>1,$J199<5), IF($J199=4, "Unknown", E199+F199), 0),"Not required") -> 132861 | P199: =IF(INTRO!$E$43="Endemic", IF(AND($K199>0,$K199<5), IF($K199=4,"Unknown", IF($K199=1, $F199*0.33, IF($K199=2, $F199*0.5+$G199*0.2, SUM(F199:G199)))), 0),"Not required") -> 25575.66 | Q199: 1 | R199: 1 | S199: 2 | T199: 1 | Y199: 36527 | Z199: Ethiope East
A200: =IF(INTRO!$E$33<>0,INTRO!$E$33, " ") -> Nigeria | B200: Delta | C200: Ethiope West | D200: 280654 | E200: =IF(INTRO!$E$48="","",ROUND($D200*INTRO!$E$48,0)) -> 56131 | F200: =IF(INTRO!$E$49="","",ROUND($D200*INTRO!$E$49,0)) -> 78583 | G200: =IF(INTRO!$E$50="","",ROUND($D200*INTRO!$E$50,0)) -> 145940 | H200: 0 | I200: 1 | J200: 3 | K200: 0 | L200: 0 | M200: =IF(INTRO!$E$37="Endemic",IF($H200>0,IF($H200=4,"Unknown",IF($H200=99,"Stopped",$D200)),0),"Not required") -> 0 | N200: 281106 | O200: =IF(INTRO!$E$41="Endemic", IF(AND($J200>1,$J200<5), IF($J200=4, "Unknown", E200+F200), 0),"Not required") -> 134714 | P200: =IF(INTRO!$E$43="Endemic", IF(AND($K200>0,$K200<5), IF($K200=4,"Unknown", IF($K200=1, $F200*0.33, IF($K200=2, $F200*0.5+$G200*0.2, SUM(F200:G200)))), 0),"Not required") -> 0 | Q200: 0 | R200: 1 | S200: 2 | T200: 0 | Y200: 36528 | Z200: Ethiope West
A201: =IF(INTRO!$E$33<>0,INTRO!$E$33, " ") -> Nigeria | B201: Delta | C201: Ika North East | D201: 253173 | E201: =IF(INTRO!$E$48="","",ROUND($D201*INTRO!$E$48,0)) -> 50635 | F201: =IF(INTRO!$E$49="","",ROUND($D201*INTRO!$E$49,0)) -> 70888 | G201: =IF(INTRO!$E$50="","",ROUND($D201*INTRO!$E$50,0)) -> 131650 | H201: 1 | I201: 1 | J201: 3 | K201: 0 | L201: 0 | M201: =IF(INTRO!$E$37="Endemic",IF($H201>0,IF($H201=4,"Unknown",IF($H201=99,"Stopped",$D201)),0),"Not required") -> 253173 | N201: 85244 | O201: =IF(INTRO!$E$41="Endemic", IF(AND($J201>1,$J201<5), IF($J201=4, "Unknown", E201+F201), 0),"Not required") -> 121523 | P201: =IF(INTRO!$E$43="Endemic", IF(AND($K201>0,$K201<5), IF($K201=4,"Unknown", IF($K201=1, $F201*0.33, IF($K201=2, $F201*0.5+$G201*0.2, SUM(F201:G201)))), 0),"Not required") -> 0 | Q201: 1 | R201: 1 | S201: 2 | T201: 0 | Y201: 36529 | Z201: Ika North East
A202: =IF(INTRO!$E$33<>0,INTRO!$E$33, " ") -> Nigeria | B202: Delta | C202: Ika South | D202: 224138 | E202: =IF(INTRO!$E$48="","",ROUND($D202*INTRO!$E$48,0)) -> 44828 | F202: =IF(INTRO!$E$49="","",ROUND($D202*INTRO!$E$49,0)) -> 62759 | G202: =IF(INTRO!$E$50="","",ROUND($D202*INTRO!$E$50,0)) -> 116552 | H202: 1 | I202: 1 | J202: 2 | K202: 0 | L202: 0 | M202: =IF(INTRO!$E$37="Endemic",IF($H202>0,IF($H202=4,"Unknown",IF($H202=99,"Stopped",$D202)),0),"Not required") -> 224138 | N202: 82342 | O202: =IF(INTRO!$E$41="Endemic", IF(AND($J202>1,$J202<5), IF($J202=4, "Unknown", E202+F202), 0),"Not required") -> 107587 | P202: =IF(INTRO!$E$43="Endemic", IF(AND($K202>0,$K202<5), IF($K202=4,"Unknown", IF($K202=1, $F202*0.33, IF($K202=2, $F202*0.5+$G202*0.2, SUM(F202:G202)))), 0),"Not required") -> 0 | Q202: 1 | R202: 1 | S202: 1 | T202: 0 | Y202: 36530 | Z202: Ika South
A203: =IF(INTRO!$E$33<>0,INTRO!$E$33, " ") -> Nigeria | B203: Delta | C203: Isoko North | D203: 198719 | E203: =IF(INTRO!$E$48="","",ROUND($D203*INTRO!$E$48,0)) -> 39744 | F203: =IF(INTRO!$E$49="","",ROUND($D203*INTRO!$E$49,0)) -> 55641 | G203: =IF(INTRO!$E$50="","",ROUND($D203*INTRO!$E$50,0)) -> 103334 | H203: 1 | I203: 1 | J203: 3 | K203: 1 | L203: 0 | M203: =IF(INTRO!$E$37="Endemic",IF($H203>0,IF($H203=4,"Unknown",IF($H203=99,"Stopped",$D203)),0),"Not required") -> 198719 | N203: 94723 | O203: =IF(INTRO!$E$41="Endemic", IF(AND($J203>1,$J203<5), IF($J203=4, "Unknown", E203+F203), 0),"Not required") -> 95385 | P203: =IF(INTRO!$E$43="Endemic", IF(AND($K203>0,$K203<5), IF($K203=4,"Unknown", IF($K203=1, $F203*0.33, IF($K203=2, $F203*0.5+$G203*0.2, SUM(F203:G203)))), 0),"Not required") -> 18361.53 | Q203: 1 | R203: 1 | S203: 2 | T203: 1 | Y203: 36531 | Z203: Isoko North
... 579 more rows

Sheet ALB_MBD
A1: Albendazole (ALB) and Mebendazole (MBD)
A2: Administrative structure, eligible population by age group, treatment plan and information about tablets
A4: TOTAL | D4: =SUM(D$9:D$1000) -> 38400646 | E4: =SUM(E$9:E$1000) -> 53760917 | F4: =SUM(F$9:F$1000) -> 92161563 | I4: =SUM(I$9:I$1000) -> 107636179 | J4: =SUM(J$9:J$1000) -> 0 | M4: =SUM(M$9:M$1000) -> 0 | N4: =SUM(N$9:N$1000) -> 0 | O4: =SUM(O$9:O$1000) -> 0 | P4: =SUM(P$9:P$1000) -> 0 | Q4: =SUM(Q$9:Q$1000) -> 25409229 | R4: =SUM(R$9:R$1000) -> 16644490 | S4: 0 | T4: 42053719 | U4: 0 | V4: 107636179 | W4: 538453 | X4: 0 | Y4: 0 | Z4: 0 | AA4: 0 | AB4: 16644490 | AC4: 111060
A6: Country administrative structure | D6: Population requiring treatment with ALB/MBD | G6: Treatment plan | I6: People covered by PELF with ALB | J6: Loa endemic areas | L6: Select medicine for treatment of STH | M6: Target population | U6: Albendazole (ALB) | AA6: Mebendazole (MBD)
A7: Country | B7: Province/State | C7: District | D7: PreSAC | E7: SAC | F7: Total | G7: LF | H7: STH | J7: Population | K7: Rounds planned | M7: STH (ALB) | Q7: STH (MBD) | U7: Remaining in stock (LF) | V7: Tablets to be procured (LF) | W7: Bottle (400 mg) 200 tablets (LF) | X7: Remaining in stock (STH) | Y7: Tablets to be procured for SAC (STH) | Z7: Bottle (400 mg) 200 tablets (STH) | AA7: Remaining in stock | AB7: Tablets to be procured for SAC | AC7: Bottles (500 mg) 150 tablets
M8: PreSAC | N8: SAC | O8: Other | P8: Total | Q8: PreSAC | R8: SAC | S8: Other | T8: Total
A9: =IF(AND(INTRO!$E$37="Non-endemic",INTRO!$E$41="Non-endemic")," ",IF(COUNTRY_INFO!A9=0," ",COUNTRY_INFO!A9)) -> Nigeria | B9: =IF(AND(INTRO!$E$37="Non-endemic",INTRO!$E$41="Non-endemic")," ",IF(COUNTRY_INFO!B9=0," ",COUNTRY_INFO!B9)) -> Abia | C9: =IF(AND(INTRO!$E$37="Non-endemic",INTRO!$E$41="Non-endemic")," ",IF(COUNTRY_INFO!C9=0," ",COUNTRY_INFO!C9)) -> Aba North | D9: =IF(AND(INTRO!$E$37="Non-endemic",INTRO!$E$41="Non-endemic"),0,IF(AND(OR(COUNTRY_INFO!$H9=0,COUNTRY_INFO!$H9=4,COUNTRY_INFO!$H9=99),OR(COUNTRY_INFO!$J9=0,COUNTRY_INFO!$J9=4)),0,COUNTRY_INFO!$E9)) -> 29635 | E9: =IF(AND(INTRO!$E$37="Non-endemic",INTRO!$E$41="Non-endemic"),0,IF(AND(OR(COUNTRY_INFO!$H9=0,COUNTRY_INFO!$H9=4,COUNTRY_INFO!$H9=99),OR(COUNTRY_INFO!$J9=0,COUNTRY_INFO!$J9=4)),0,COUNTRY_INFO!$F9)) -> 41488 | F9: =SUM(D9:E9) -> 71123 | G9: =IF(AND(INTRO!$E$37="Non-endemic",INTRO!$E$41="Non-endemic"),0,COUNTRY_INFO!Q9) -> 1 | H9: =IF(AND(INTRO!$E$37="Non-endemic",INTRO!$E$41="Non-endemic"),0,COUNTRY_INFO!S9) -> 1 | I9: =IF($G9=1,IVM!$G9,0) -> 118538 | J9: =IF($G9=0, " ", IF(COUNTRY_INFO!$H9=1, IF(COUNTRY_INFO!$L9=1, 0," ")," ")) ->  | L9: MBD | M9: =IF($L9="ALB", IF(INTRO!$E$39="Non-endemic",IF($H9<>0,$D9*($H9-$G9),0),$D9*$H9), 0) -> 0 | N9: =IF($L9="ALB", IF($H9<>0, IF($I9=0, $E9*$H9, $E9*($H9-$G9)),0), 0) -> 0 | P9: =SUM(M9:O9) -> 0 | Q9: =IF($L9="MBD", IF(INTRO!$E$39="Non-endemic",IF($H9<>0,$D9*($H9-$G9),0),$D9*$H9),0) -> 29635 | R9: =IF($L9="MBD", IF($H9<>0,IF($I9=0, $E9*$H9, $E9*($H9-$G9)),0), 0 ) -> 0 | T9: =SUM(Q9:S9) -> 29635 | V9: =IF($J9<>" ", IF(($I9+$J9*$K9)>$U9, ($I9+$J9*$K9)-$U9,0), IF($I9>$U9, $I9-$U9, 0)) -> 118538 | W9: =IF($J9<>" ", ROUNDUP(($I9+$J9*$K9)/200,0), ROUNDUP($I9/200,0)) -> 593 | Y9: =IF($N9>$X9,$N9-$X9,0) -> 0 | Z9: =ROUNDUP($N9/200,0) -> 0 | AB9: =IF($R9>$AA9,$R9-$AA9,0) -> 0 | AC9: =ROUNDUP($R9/150,0) -> 0
A10: =IF(AND(INTRO!$E$37="Non-endemic",INTRO!$E$41="Non-endemic")," ",IF(COUNTRY_INFO!A10=0," ",COUNTRY_INFO!A10)) -> Nigeria | B10: =IF(AND(INTRO!$E$37="Non-endemic",INTRO!$E$41="Non-endemic")," ",IF(COUNTRY_INFO!B10=0," ",COUNTRY_INFO!B10)) -> Abia | C10: =IF(AND(INTRO!$E$37="Non-endemic",INTRO!$E$41="Non-endemic")," ",IF(COUNTRY_INFO!C10=0," ",COUNTRY_INFO!C10)) -> Aba South | D10: =IF(AND(INTRO!$E$37="Non-endemic",INTRO!$E$41="Non-endemic"),0,IF(AND(OR(COUNTRY_INFO!$H10=0,COUNTRY_INFO!$H10=4,COUNTRY_INFO!$H10=99),OR(COUNTRY_INFO!$J10=0,COUNTRY_INFO!$J10=4)),0,COUNTRY_INFO!$E10)) -> 116857 | E10: =IF(AND(INTRO!$E$37="Non-endemic",INTRO!$E$41="Non-endemic"),0,IF(AND(OR(COUNTRY_INFO!$H10=0,COUNTRY_INFO!$H10=4,COUNTRY_INFO!$H10=99),OR(COUNTRY_INFO!$J10=0,COUNTRY_INFO!$J10=4)),0,COUNTRY_INFO!$F10)) -> 163600 | F10: =SUM(D10:E10) -> 280457 | G10: =IF(AND(INTRO!$E$37="Non-endemic",INTRO!$E$41="Non-endemic"),0,COUNTRY_INFO!Q10) -> 1 | H10: =IF(AND(INTRO!$E$37="Non-endemic",INTRO!$E$41="Non-endemic"),0,COUNTRY_INFO!S10) -> 1 | I10: =IF($G10=1,IVM!$G10,0) -> 467428 | J10: =IF($G10=0, " ", IF(COUNTRY_INFO!$H10=1, IF(COUNTRY_INFO!$L10=1, 0," ")," ")) ->  | L10: MBD | M10: =IF($L10="ALB", IF(INTRO!$E$39="Non-endemic",IF($H10<>0,$D10*($H10-$G10),0),$D10*$H10), 0) -> 0 | N10: 0 | P10: =SUM(M10:O10) -> 0 | Q10: =IF($L10="MBD", IF(INTRO!$E$39="Non-endemic",IF($H10<>0,$D10*($H10-$G10),0),$D10*$H10),0) -> 116857 | R10: 0 | T10: =SUM(Q10:S10) -> 116857 | V10: 467428 | W10: 2338 | Y10: 0 | Z10: 0 | AB10: 0 | AC10: 0
A11: =IF(AND(INTRO!$E$37="Non-endemic",INTRO!$E$41="Non-endemic")," ",IF(COUNTRY_INFO!A11=0," ",COUNTRY_INFO!A11)) -> Nigeria | B11: =IF(AND(INTRO!$E$37="Non-endemic",INTRO!$E$41="Non-endemic")," ",IF(COUNTRY_INFO!B11=0," ",COUNTRY_INFO!B11)) -> Abia | C11: =IF(AND(INTRO!$E$37="Non-endemic",INTRO!$E$41="Non-endemic")," ",IF(COUNTRY_INFO!C11=0," ",COUNTRY_INFO!C11)) -> Arochukwu | D11: =IF(AND(INTRO!$E$37="Non-endemic",INTRO!$E$41="Non-endemic"),0,IF(AND(OR(COUNTRY_INFO!$H11=0,COUNTRY_INFO!$H11=4,COUNTRY_INFO!$H11=99),OR(COUNTRY_INFO!$J11=0,COUNTRY_INFO!$J11=4)),0,COUNTRY_INFO!$E11)) -> 46926 | E11: =IF(AND(INTRO!$E$37="Non-endemic",INTRO!$E$41="Non-endemic"),0,IF(AND(OR(COUNTRY_INFO!$H11=0,COUNTRY_INFO!$H11=4,COUNTRY_INFO!$H11=99),OR(COUNTRY_INFO!$J11=0,COUNTRY_INFO!$J11=4)),0,COUNTRY_INFO!$F11)) -> 65697 | F11: 112623 | G11: =IF(AND(INTRO!$E$37="Non-endemic",INTRO!$E$41="Non-endemic"),0,COUNTRY_INFO!Q11) -> 1 | H11: =IF(AND(INTRO!$E$37="Non-endemic",INTRO!$E$41="Non-endemic"),0,COUNTRY_INFO!S11) -> 2 | I11: =IF($G11=1,IVM!$G11,0) -> 187705 | J11: =IF($G11=0, " ", IF(COUNTRY_INFO!$H11=1, IF(COUNTRY_INFO!$L11=1, 0," ")," ")) ->  | L11: MBD | M11: =IF($L11="ALB", IF(INTRO!$E$39="Non-endemic",IF($H11<>0,$D11*($H11-$G11),0),$D11*$H11), 0) -> 0 | N11: 0 | P11: 0 | Q11: =IF($L11="MBD", IF(INTRO!$E$39="Non-endemic",IF($H11<>0,$D11*($H11-$G11),0),$D11*$H11),0) -> 93852 | R11: 65697 | T11: 159549 | V11: 187705 | W11: 939 | Y11: 0 | Z11: 0 | AB11: 65697 | AC11: 438
A12: =IF(AND(INTRO!$E$37="Non-endemic",INTRO!$E$41="Non-endemic")," ",IF(COUNTRY_INFO!A12=0," ",COUNTRY_INFO!A12)) -> Nigeria | B12: =IF(AND(INTRO!$E$37="Non-endemic",INTRO!$E$41="Non-endemic")," ",IF(COUNTRY_INFO!B12=0," ",COUNTRY_INFO!B12)) -> Abia | C12: =IF(AND(INTRO!$E$37="Non-endemic",INTRO!$E$41="Non-endemic")," ",IF(COUNTRY_INFO!C12=0," ",COUNTRY_INFO!C12)) -> Bende | D12: =IF(AND(INTRO!$E$37="Non-endemic",INTRO!$E$41="Non-endemic"),0,IF(AND(OR(COUNTRY_INFO!$H12=0,COUNTRY_INFO!$H12=4,COUNTRY_INFO!$H12=99),OR(COUNTRY_INFO!$J12=0,COUNTRY_INFO!$J12=4)),0,COUNTRY_INFO!$E12)) -> 52965 | E12: =IF(AND(INTRO!$E$37="Non-endemic",INTRO!$E$41="Non-endemic"),0,IF(AND(OR(COUNTRY_INFO!$H12=0,COUNTRY_INFO!$H12=4,COUNTRY_INFO!$H12=99),OR(COUNTRY_INFO!$J12=0,COUNTRY_INFO!$J12=4)),0,COUNTRY_INFO!$F12)) -> 74152 | F12: 127117 | G12: =IF(AND(INTRO!$E$37="Non-endemic",INTRO!$E$41="Non-endemic"),0,COUNTRY_INFO!Q12) -> 1 | H12: =IF(AND(INTRO!$E$37="Non-endemic",INTRO!$E$41="Non-endemic"),0,COUNTRY_INFO!S12) -> 2 | I12: =IF($G12=1,IVM!$G12,0) -> 211862 | J12: =IF($G12=0, " ", IF(COUNTRY_INFO!$H12=1, IF(COUNTRY_INFO!$L12=1, 0," ")," ")) ->  | L12: MBD | M12: =IF($L12="ALB", IF(INTRO!$E$39="Non-endemic",IF($H12<>0,$D12*($H12-$G12),0),$D12*$H12), 0) -> 0 | N12: 0 | P12: 0 | Q12: =IF($L12="MBD", IF(INTRO!$E$39="Non-endemic",IF($H12<>0,$D12*($H12-$G12),0),$D12*$H12),0) -> 105930 | R12: 74152 | T12: 180082 | V12: 211862 | W12: 1060 | Y12: 0 | Z12: 0 | AB12: 74152 | AC12: 495
A13: =IF(AND(INTRO!$E$37="Non-endemic",INTRO!$E$41="Non-endemic")," ",IF(COUNTRY_INFO!A13=0," ",COUNTRY_INFO!A13)) -> Nigeria | B13: =IF(AND(INTRO!$E$37="Non-endemic",INTRO!$E$41="Non-endemic")," ",IF(COUNTRY_INFO!B13=0," ",COUNTRY_INFO!B13)) -> Abia | C13: =IF(AND(INTRO!$E$37="Non-endemic",INTRO!$E$41="Non-endemic")," ",IF(COUNTRY_INFO!C13=0," ",COUNTRY_INFO!C13)) -> Ikwuano | D13: =IF(AND(INTRO!$E$37="Non-endemic",INTRO!$E$41="Non-endemic"),0,IF(AND(OR(COUNTRY_INFO!$H13=0,COUNTRY_INFO!$H13=4,COUNTRY_INFO!$H13=99),OR(COUNTRY_INFO!$J13=0,COUNTRY_INFO!$J13=4)),0,COUNTRY_INFO!$E13)) -> 38045 | E13: =IF(AND(INTRO!$E$37="Non-endemic",INTRO!$E$41="Non-endemic"),0,IF(AND(OR(COUNTRY_INFO!$H13=0,COUNTRY_INFO!$H13=4,COUNTRY_INFO!$H13=99),OR(COUNTRY_INFO!$J13=0,COUNTRY_INFO!$J13=4)),0,COUNTRY_INFO!$F13)) -> 53263 | F13: 91308 | G13: =IF(AND(INTRO!$E$37="Non-endemic",INTRO!$E$41="Non-endemic"),0,COUNTRY_INFO!Q13) -> 1 | H13: =IF(AND(INTRO!$E$37="Non-endemic",INTRO!$E$41="Non-endemic"),0,COUNTRY_INFO!S13) -> 1 | I13: =IF($G13=1,IVM!$G13,0) -> 152180 | J13: =IF($G13=0, " ", IF(COUNTRY_INFO!$H13=1, IF(COUNTRY_INFO!$L13=1, 0," ")," ")) ->  | L13: MBD | M13: =IF($L13="ALB", IF(INTRO!$E$39="Non-endemic",IF($H13<>0,$D13*($H13-$G13),0),$D13*$H13), 0) -> 0 | N13: 0 | P13: 0 | Q13: =IF($L13="MBD", IF(INTRO!$E$39="Non-endemic",IF($H13<>0,$D13*($H13-$G13),0),$D13*$H13),0) -> 38045 | R13: 0 | T13: 38045 | V13: 152180 | W13: 761 | Y13: 0 | Z13: 0 | AB13: 0 | AC13: 0
A14: =IF(AND(INTRO!$E$37="Non-endemic",INTRO!$E$41="Non-endemic")," ",IF(COUNTRY_INFO!A14=0," ",COUNTRY_INFO!A14)) -> Nigeria | B14: =IF(AND(INTRO!$E$37="Non-endemic",INTRO!$E$41="Non-endemic")," ",IF(COUNTRY_INFO!B14=0," ",COUNTRY_INFO!B14)) -> Abia | C14: =IF(AND(INTRO!$E$37="Non-endemic",INTRO!$E$41="Non-endemic")," ",IF(COUNTRY_INFO!C14=0," ",COUNTRY_INFO!C14)) -> Isiala-Ngwa North | D14: =IF(AND(INTRO!$E$37="Non-endemic",INTRO!$E$41="Non-endemic"),0,IF(AND(OR(COUNTRY_INFO!$H14=0,COUNTRY_INFO!$H14=4,COUNTRY_INFO!$H14=99),OR(COUNTRY_INFO!$J14=0,COUNTRY_INFO!$J14=4)),0,COUNTRY_INFO!$E14)) -> 42385 | E14: =IF(AND(INTRO!$E$37="Non-endemic",INTRO!$E$41="Non-endemic"),0,IF(AND(OR(COUNTRY_INFO!$H14=0,COUNTRY_INFO!$H14=4,COUNTRY_INFO!$H14=99),OR(COUNTRY_INFO!$J14=0,COUNTRY_INFO!$J14=4)),0,COUNTRY_INFO!$F14)) -> 59339 | F14: 101724 | G14: =IF(AND(INTRO!$E$37="Non-endemic",INTRO!$E$41="Non-endemic"),0,COUNTRY_INFO!Q14) -> 1 | H14: =IF(AND(INTRO!$E$37="Non-endemic",INTRO!$E$41="Non-endemic"),0,COUNTRY_INFO!S14) -> 1 | I14: =IF($G14=1,IVM!$G14,0) -> 169539 | J14: =IF($G14=0, " ", IF(COUNTRY_INFO!$H14=1, IF(COUNTRY_INFO!$L14=1, 0," ")," ")) ->  | L14: MBD | M14: =IF($L14="ALB", IF(INTRO!$E$39="Non-endemic",IF($H14<>0,$D14*($H14-$G14),0),$D14*$H14), 0) -> 0 | N14: 0 | P14: 0 | Q14: =IF($L14="MBD", IF(INTRO!$E$39="Non-endemic",IF($H14<>0,$D14*($H14-$G14),0),$D14*$H14),0) -> 42385 | R14: 0 | T14: 42385 | V14: 169539 | W14: 848 | Y14: 0 | Z14: 0 | AB14: 0 | AC14: 0
A15: =IF(AND(INTRO!$E$37="Non-endemic",INTRO!$E$41="Non-endemic")," ",IF(COUNTRY_INFO!A15=0," ",COUNTRY_INFO!A15)) -> Nigeria | B15: =IF(AND(INTRO!$E$37="Non-endemic",INTRO!$E$41="Non-endemic")," ",IF(COUNTRY_INFO!B15=0," ",COUNTRY_INFO!B15)) -> Abia | C15: =IF(AND(INTRO!$E$37="Non-endemic",INTRO!$E$41="Non-endemic")," ",IF(COUNTRY_INFO!C15=0," ",COUNTRY_INFO!C15)) -> Isiala-Ngwa South | D15: =IF(AND(INTRO!$E$37="Non-endemic",INTRO!$E$41="Non-endemic"),0,IF(AND(OR(COUNTRY_INFO!$H15=0,COUNTRY_INFO!$H15=4,COUNTRY_INFO!$H15=99),OR(COUNTRY_INFO!$J15=0,COUNTRY_INFO!$J15=4)),0,COUNTRY_INFO!$E15)) -> 37154 | E15: =IF(AND(INTRO!$E$37="Non-endemic",INTRO!$E$41="Non-endemic"),0,IF(AND(OR(COUNTRY_INFO!$H15=0,COUNTRY_INFO!$H15=4,COUNTRY_INFO!$H15=99),OR(COUNTRY_INFO!$J15=0,COUNTRY_INFO!$J15=4)),0,COUNTRY_INFO!$F15)) -> 52016 | F15: 89170 | G15: =IF(AND(INTRO!$E$37="Non-endemic",INTRO!$E$41="Non-endemic"),0,COUNTRY_INFO!Q15) -> 1 | H15: =IF(AND(INTRO!$E$37="Non-endemic",INTRO!$E$41="Non-endemic"),0,COUNTRY_INFO!S15) -> 1 | I15: =IF($G15=1,IVM!$G15,0) -> 148617 | J15: =IF($G15=0, " ", IF(COUNTRY_INFO!$H15=1, IF(COUNTRY_INFO!$L15=1, 0," ")," ")) ->  | L15: MBD | M15: =IF($L15="ALB", IF(INTRO!$E$39="Non-endemic",IF($H15<>0,$D15*($H15-$G15),0),$D15*$H15), 0) -> 0 | N15: 0 | P15: 0 | Q15: =IF($L15="MBD", IF(INTRO!$E$39="Non-endemic",IF($H15<>0,$D15*($H15-$G15),0),$D15*$H15),0) -> 37154 | R15: 0 | T15: 37154 | V15: 148617 | W15: 744 | Y15: 0 | Z15: 0 | AB15: 0 | AC15: 0
A16: =IF(AND(INTRO!$E$37="Non-endemic",INTRO!$E$41="Non-endemic")," ",IF(COUNTRY_INFO!A16=0," ",COUNTRY_INFO!A16)) -> Nigeria | B16: =IF(AND(INTRO!$E$37="Non-endemic",INTRO!$E$41="Non-endemic")," ",IF(COUNTRY_INFO!B16=0," ",COUNTRY_INFO!B16)) -> Abia | C16: =IF(AND(INTRO!$E$37="Non-endemic",INTRO!$E$41="Non-endemic")," ",IF(COUNTRY_INFO!C16=0," ",COUNTRY_INFO!C16)) -> Isiukwuato | D16: =IF(AND(INTRO!$E$37="Non-endemic",INTRO!$E$41="Non-endemic"),0,IF(AND(OR(COUNTRY_INFO!$H16=0,COUNTRY_INFO!$H16=4,COUNTRY_INFO!$H16=99),OR(COUNTRY_INFO!$J16=0,COUNTRY_INFO!$J16=4)),0,COUNTRY_INFO!$E16)) -> 31552 | E16: =IF(AND(INTRO!$E$37="Non-endemic",INTRO!$E$41="Non-endemic"),0,IF(AND(OR(COUNTRY_INFO!$H16=0,COUNTRY_INFO!$H16=4,COUNTRY_INFO!$H16=99),OR(COUNTRY_INFO!$J16=0,COUNTRY_INFO!$J16=4)),0,COUNTRY_INFO!$F16)) -> 44173 | F16: 75725 | G16: =IF(AND(INTRO!$E$37="Non-endemic",INTRO!$E$41="Non-endemic"),0,COUNTRY_INFO!Q16) -> 1 | H16: =IF(AND(INTRO!$E$37="Non-endemic",INTRO!$E$41="Non-endemic"),0,COUNTRY_INFO!S16) -> 1 | I16: =IF($G16=1,IVM!$G16,0) -> 126208 | J16: =IF($G16=0, " ", IF(COUNTRY_INFO!$H16=1, IF(COUNTRY_INFO!$L16=1, 0," ")," ")) ->  | L16: MBD | M16: =IF($L16="ALB", IF(INTRO!$E$39="Non-endemic",IF($H16<>0,$D16*($H16-$G16),0),$D16*$H16), 0) -> 0 | N16: 0 | P16: 0 | Q16: =IF($L16="MBD", IF(INTRO!$E$39="Non-endemic",IF($H16<>0,$D16*($H16-$G16),0),$D16*$H16),0) -> 31552 | R16: 0 | T16: 31552 | V16: 126208 | W16: 632 | Y16: 0 | Z16: 0 | AB16: 0 | AC16: 0
A17: =IF(AND(INTRO!$E$37="Non-endemic",INTRO!$E$41="Non-endemic")," ",IF(COUNTRY_INFO!A17=0," ",COUNTRY_INFO!A17)) -> Nigeria | B17: =IF(AND(INTRO!$E$37="Non-endemic",INTRO!$E$41="Non-endemic")," ",IF(COUNTRY_INFO!B17=0," ",COUNTRY_INFO!B17)) -> Abia | C17: =IF(AND(INTRO!$E$37="Non-endemic",INTRO!$E$41="Non-endemic")," ",IF(COUNTRY_INFO!C17=0," ",COUNTRY_INFO!C17)) -> Obio-Ngwa | D17: =IF(AND(INTRO!$E$37="Non-endemic",INTRO!$E$41="Non-endemic"),0,IF(AND(OR(COUNTRY_INFO!$H17=0,COUNTRY_INFO!$H17=4,COUNTRY_INFO!$H17=99),OR(COUNTRY_INFO!$J17=0,COUNTRY_INFO!$J17=4)),0,COUNTRY_INFO!$E17)) -> 50023 | E17: =IF(AND(INTRO!$E$37="Non-endemic",INTRO!$E$41="Non-endemic"),0,IF(AND(OR(COUNTRY_INFO!$H17=0,COUNTRY_INFO!$H17=4,COUNTRY_INFO!$H17=99),OR(COUNTRY_INFO!$J17=0,COUNTRY_INFO!$J17=4)),0,COUNTRY_INFO!$F17)) -> 70032 | F17: 120055 | G17: =IF(AND(INTRO!$E$37="Non-endemic",INTRO!$E$41="Non-endemic"),0,COUNTRY_INFO!Q17) -> 1 | H17: =IF(AND(INTRO!$E$37="Non-endemic",INTRO!$E$41="Non-endemic"),0,COUNTRY_INFO!S17) -> 1 | I17: =IF($G17=1,IVM!$G17,0) -> 200092 | J17: =IF($G17=0, " ", IF(COUNTRY_INFO!$H17=1, IF(COUNTRY_INFO!$L17=1, 0," ")," ")) ->  | L17: MBD | M17: =IF($L17="ALB", IF(INTRO!$E$39="Non-endemic",IF($H17<>0,$D17*($H17-$G17),0),$D17*$H17), 0) -> 0 | N17: 0 | P17: 0 | Q17: =IF($L17="MBD", IF(INTRO!$E$39="Non-endemic",IF($H17<>0,$D17*($H17-$G17),0),$D17*$H17),0) -> 50023 | R17: 0 | T17: 50023 | V17: 200092 | W17: 1001 | Y17: 0 | Z17: 0 | AB17: 0 | AC17: 0
A18: =IF(AND(INTRO!$E$37="Non-endemic",INTRO!$E$41="Non-endemic")," ",IF(COUNTRY_INFO!A18=0," ",COUNTRY_INFO!A18)) -> Nigeria | B18: =IF(AND(INTRO!$E$37="Non-endemic",INTRO!$E$41="Non-endemic")," ",IF(COUNTRY_INFO!B18=0," ",COUNTRY_INFO!B18)) -> Abia | C18: =IF(AND(INTRO!$E$37="Non-endemic",INTRO!$E$41="Non-endemic")," ",IF(COUNTRY_INFO!C18=0," ",COUNTRY_INFO!C18)) -> Ohafia | D18: =IF(AND(INTRO!$E$37="Non-endemic",INTRO!$E$41="Non-endemic"),0,IF(AND(OR(COUNTRY_INFO!$H18=0,COUNTRY_INFO!$H18=4,COUNTRY_INFO!$H18=99),OR(COUNTRY_INFO!$J18=0,COUNTRY_INFO!$J18=4)),0,COUNTRY_INFO!$E18)) -> 67587 | E18: =IF(AND(INTRO!$E$37="Non-endemic",INTRO!$E$41="Non-endemic"),0,IF(AND(OR(COUNTRY_INFO!$H18=0,COUNTRY_INFO!$H18=4,COUNTRY_INFO!$H18=99),OR(COUNTRY_INFO!$J18=0,COUNTRY_INFO!$J18=4)),0,COUNTRY_INFO!$F18)) -> 94622 | F18: 162209 | G18: =IF(AND(INTRO!$E$37="Non-endemic",INTRO!$E$41="Non-endemic"),0,COUNTRY_INFO!Q18) -> 1 | H18: =IF(AND(INTRO!$E$37="Non-endemic",INTRO!$E$41="Non-endemic"),0,COUNTRY_INFO!S18) -> 1 | I18: =IF($G18=1,IVM!$G18,0) -> 270348 | J18: =IF($G18=0, " ", IF(COUNTRY_INFO!$H18=1, IF(COUNTRY_INFO!$L18=1, 0," ")," ")) ->  | L18: MBD | M18: =IF($L18="ALB", IF(INTRO!$E$39="Non-endemic",IF($H18<>0,$D18*($H18-$G18),0),$D18*$H18), 0) -> 0 | N18: 0 | P18: 0 | Q18: =IF($L18="MBD", IF(INTRO!$E$39="Non-endemic",IF($H18<>0,$D18*($H18-$G18),0),$D18*$H18),0) -> 67587 | R18: 0 | T18: 67587 | V18: 270348 | W18: 1352 | Y18: 0 | Z18: 0 | AB18: 0 | AC18: 0
A19: =IF(AND(INTRO!$E$37="Non-endemic",INTRO!$E$41="Non-endemic")," ",IF(COUNTRY_INFO!A19=0," ",COUNTRY_INFO!A19)) -> Nigeria | B19: =IF(AND(INTRO!$E$37="Non-endemic",INTRO!$E$41="Non-endemic")," ",IF(COUNTRY_INFO!B19=0," ",COUNTRY_INFO!B19)) -> Abia | C19: =IF(AND(INTRO!$E$37="Non-endemic",INTRO!$E$41="Non-endemic")," ",IF(COUNTRY_INFO!C19=0," ",COUNTRY_INFO!C19)) -> Osisioma Ngwa | D19: =IF(AND(INTRO!$E$37="Non-endemic",INTRO!$E$41="Non-endemic"),0,IF(AND(OR(COUNTRY_INFO!$H19=0,COUNTRY_INFO!$H19=4,COUNTRY_INFO!$H19=99),OR(COUNTRY_INFO!$J19=0,COUNTRY_INFO!$J19=4)),0,COUNTRY_INFO!$E19)) -> 60553 | E19: =IF(AND(INTRO!$E$37="Non-endemic",INTRO!$E$41="Non-endemic"),0,IF(AND(OR(COUNTRY_INFO!$H19=0,COUNTRY_INFO!$H19=4,COUNTRY_INFO!$H19=99),OR(COUNTRY_INFO!$J19=0,COUNTRY_INFO!$J19=4)),0,COUNTRY_INFO!$F19)) -> 84774 | F19: 145327 | G19: =IF(AND(INTRO!$E$37="Non-endemic",INTRO!$E$41="Non-endemic"),0,COUNTRY_INFO!Q19) -> 1 | H19: =IF(AND(INTRO!$E$37="Non-endemic",INTRO!$E$41="Non-endemic"),0,COUNTRY_INFO!S19) -> 0 | I19: =IF($G19=1,IVM!$G19,0) -> 242212 | J19: =IF($G19=0, " ", IF(COUNTRY_INFO!$H19=1, IF(COUNTRY_INFO!$L19=1, 0," ")," ")) ->  | L19: MBD | M19: =IF($L19="ALB", IF(INTRO!$E$39="Non-endemic",IF($H19<>0,$D19*($H19-$G19),0),$D19*$H19), 0) -> 0 | N19: 0 | P19: 0 | Q19: =IF($L19="MBD", IF(INTRO!$E$39="Non-endemic",IF($H19<>0,$D19*($H19-$G19),0),$D19*$H19),0) -> 0 | R19: 0 | T19: 0 | V19: 242212 | W19: 1212 | Y19: 0 | Z19: 0 | AB19: 0 | AC19: 0
A20: =IF(AND(INTRO!$E$37="Non-endemic",INTRO!$E$41="Non-endemic")," ",IF(COUNTRY_INFO!A20=0," ",COUNTRY_INFO!A20)) -> Nigeria | B20: =IF(AND(INTRO!$E$37="Non-endemic",INTRO!$E$41="Non-endemic")," ",IF(COUNTRY_INFO!B20=0," ",COUNTRY_INFO!B20)) -> Abia | C20: =IF(AND(INTRO!$E$37="Non-endemic",INTRO!$E$41="Non-endemic")," ",IF(COUNTRY_INFO!C20=0," ",COUNTRY_INFO!C20)) -> Ugwunagbo | D20: =IF(AND(INTRO!$E$37="Non-endemic",INTRO!$E$41="Non-endemic"),0,IF(AND(OR(COUNTRY_INFO!$H20=0,COUNTRY_INFO!$H20=4,COUNTRY_INFO!$H20=99),OR(COUNTRY_INFO!$J20=0,COUNTRY_INFO!$J20=4)),0,COUNTRY_INFO!$E20)) -> 22778 | E20: =IF(AND(INTRO!$E$37="Non-endemic",INTRO!$E$41="Non-endemic"),0,IF(AND(OR(COUNTRY_INFO!$H20=0,COUNTRY_INFO!$H20=4,COUNTRY_INFO!$H20=99),OR(COUNTRY_INFO!$J20=0,COUNTRY_INFO!$J20=4)),0,COUNTRY_INFO!$F20)) -> 31889 | F20: 54667 | G20: =IF(AND(INTRO!$E$37="Non-endemic",INTRO!$E$41="Non-endemic"),0,COUNTRY_INFO!Q20) -> 1 | H20: =IF(AND(INTRO!$E$37="Non-endemic",INTRO!$E$41="Non-endemic"),0,COUNTRY_INFO!S20) -> 2 | I20: =IF($G20=1,IVM!$G20,0) -> 91112 | J20: =IF($G20=0, " ", IF(COUNTRY_INFO!$H20=1, IF(COUNTRY_INFO!$L20=1, 0," ")," ")) ->  | L20: MBD | M20: =IF($L20="ALB", IF(INTRO!$E$39="Non-endemic",IF($H20<>0,$D20*($H20-$G20),0),$D20*$H20), 0) -> 0 | N20: 0 | P20: 0 | Q20: =IF($L20="MBD", IF(INTRO!$E$39="Non-endemic",IF($H20<>0,$D20*($H20-$G20),0),$D20*$H20),0) -> 45556 | R20: 31889 | T20: 77445 | V20: 91112 | W20: 456 | Y20: 0 | Z20: 0 | AB20: 31889 | AC20: 213
A21: =IF(AND(INTRO!$E$37="Non-endemic",INTRO!$E$41="Non-endemic")," ",IF(COUNTRY_INFO!A21=0," ",COUNTRY_INFO!A21)) -> Nigeria | B21: =IF(AND(INTRO!$E$37="Non-endemic",INTRO!$E$41="Non-endemic")," ",IF(COUNTRY_INFO!B21=0," ",COUNTRY_INFO!B21)) -> Abia | C21: =IF(AND(INTRO!$E$37="Non-endemic",INTRO!$E$41="Non-endemic")," ",IF(COUNTRY_INFO!C21=0," ",COUNTRY_INFO!C21)) -> Ukwa East | D21: =IF(AND(INTRO!$E$37="Non-endemic",INTRO!$E$41="Non-endemic"),0,IF(AND(OR(COUNTRY_INFO!$H21=0,COUNTRY_INFO!$H21=4,COUNTRY_INFO!$H21=99),OR(COUNTRY_INFO!$J21=0,COUNTRY_INFO!$J21=4)),0,COUNTRY_INFO!$E21)) -> 16229 | E21: =IF(AND(INTRO!$E$37="Non-endemic",INTRO!$E$41="Non-endemic"),0,IF(AND(OR(COUNTRY_INFO!$H21=0,COUNTRY_INFO!$H21=4,COUNTRY_INFO!$H21=99),OR(COUNTRY_INFO!$J21=0,COUNTRY_INFO!$J21=4)),0,COUNTRY_INFO!$F21)) -> 22721 | F21: 38950 | G21: =IF(AND(INTRO!$E$37="Non-endemic",INTRO!$E$41="Non-endemic"),0,COUNTRY_INFO!Q21) -> 1 | H21: =IF(AND(INTRO!$E$37="Non-endemic",INTRO!$E$41="Non-endemic"),0,COUNTRY_INFO!S21) -> 1 | I21: =IF($G21=1,IVM!$G21,0) -> 64917 | J21: =IF($G21=0, " ", IF(COUNTRY_INFO!$H21=1, IF(COUNTRY_INFO!$L21=1, 0," ")," ")) ->  | L21: MBD | M21: =IF($L21="ALB", IF(INTRO!$E$39="Non-endemic",IF($H21<>0,$D21*($H21-$G21),0),$D21*$H21), 0) -> 0 | N21: 0 | P21: 0 | Q21: =IF($L21="MBD", IF(INTRO!$E$39="Non-endemic",IF($H21<>0,$D21*($H21-$G21),0),$D21*$H21),0) -> 16229 | R21: 0 | T21: 16229 | V21: 64917 | W21: 325 | Y21: 0 | Z21: 0 | AB21: 0 | AC21: 0
A22: =IF(AND(INTRO!$E$37="Non-endemic",INTRO!$E$41="Non-endemic")," ",IF(COUNTRY_INFO!A22=0," ",COUNTRY_INFO!A22)) -> Nigeria | B22: =IF(AND(INTRO!$E$37="Non-endemic",INTRO!$E$41="Non-endemic")," ",IF(COUNTRY_INFO!B22=0," ",COUNTRY_INFO!B22)) -> Abia | C22: =IF(AND(INTRO!$E$37="Non-endemic",INTRO!$E$41="Non-endemic")," ",IF(COUNTRY_INFO!C22=0," ",COUNTRY_INFO!C22)) -> Ukwa West | D22: =IF(AND(INTRO!$E$37="Non-endemic",INTRO!$E$41="Non-endemic"),0,IF(AND(OR(COUNTRY_INFO!$H22=0,COUNTRY_INFO!$H22=4,COUNTRY_INFO!$H22=99),OR(COUNTRY_INFO!$J22=0,COUNTRY_INFO!$J22=4)),0,COUNTRY_INFO!$E22)) -> 24415 | E22: =IF(AND(INTRO!$E$37="Non-endemic",INTRO!$E$41="Non-endemic"),0,IF(AND(OR(COUNTRY_INFO!$H22=0,COUNTRY_INFO!$H22=4,COUNTRY_INFO!$H22=99),OR(COUNTRY_INFO!$J22=0,COUNTRY_INFO!$J22=4)),0,COUNTRY_INFO!$F22)) -> 34181 | F22: 58596 | G22: =IF(AND(INTRO!$E$37="Non-endemic",INTRO!$E$41="Non-endemic"),0,COUNTRY_INFO!Q22) -> 1 | H22: =IF(AND(INTRO!$E$37="Non-endemic",INTRO!$E$41="Non-endemic"),0,COUNTRY_INFO!S22) -> 1 | I22: =IF($G22=1,IVM!$G22,0) -> 97659 | J22: =IF($G22=0, " ", IF(COUNTRY_INFO!$H22=1, IF(COUNTRY_INFO!$L22=1, 0," ")," ")) ->  | L22: MBD | M22: =IF($L22="ALB", IF(INTRO!$E$39="Non-endemic",IF($H22<>0,$D22*($H22-$G22),0),$D22*$H22), 0) -> 0 | N22: 0 | P22: 0 | Q22: =IF($L22="MBD", IF(INTRO!$E$39="Non-endemic",IF($H22<>0,$D22*($H22-$G22),0),$D22*$H22),0) -> 24415 | R22: 0 | T22: 24415 | V22: 97659 | W22: 489 | Y22: 0 | Z22: 0 | AB22: 0 | AC22: 0
A23: =IF(AND(INTRO!$E$37="Non-endemic",INTRO!$E$41="Non-endemic")," ",IF(COUNTRY_INFO!A23=0," ",COUNTRY_INFO!A23)) -> Nigeria | B23: =IF(AND(INTRO!$E$37="Non-endemic",INTRO!$E$41="Non-endemic")," ",IF(COUNTRY_INFO!B23=0," ",COUNTRY_INFO!B23)) -> Abia | C23: =IF(AND(INTRO!$E$37="Non-endemic",INTRO!$E$41="Non-endemic")," ",IF(COUNTRY_INFO!C23=0," ",COUNTRY_INFO!C23)) -> Umuahia North | D23: =IF(AND(INTRO!$E$37="Non-endemic",INTRO!$E$41="Non-endemic"),0,IF(AND(OR(COUNTRY_INFO!$H23=0,COUNTRY_INFO!$H23=4,COUNTRY_INFO!$H23=99),OR(COUNTRY_INFO!$J23=0,COUNTRY_INFO!$J23=4)),0,COUNTRY_INFO!$E23)) -> 60836 | E23: =IF(AND(INTRO!$E$37="Non-endemic",INTRO!$E$41="Non-endemic"),0,IF(AND(OR(COUNTRY_INFO!$H23=0,COUNTRY_INFO!$H23=4,COUNTRY_INFO!$H23=99),OR(COUNTRY_INFO!$J23=0,COUNTRY_INFO!$J23=4)),0,COUNTRY_INFO!$F23)) -> 85171 | F23: 146007 | G23: =IF(AND(INTRO!$E$37="Non-endemic",INTRO!$E$41="Non-endemic"),0,COUNTRY_INFO!Q23) -> 1 | H23: =IF(AND(INTRO!$E$37="Non-endemic",INTRO!$E$41="Non-endemic"),0,COUNTRY_INFO!S23) -> 1 | I23: =IF($G23=1,IVM!$G23,0) -> 243346 | J23: =IF($G23=0, " ", IF(COUNTRY_INFO!$H23=1, IF(COUNTRY_INFO!$L23=1, 0," ")," ")) ->  | L23: MBD | M23: =IF($L23="ALB", IF(INTRO!$E$39="Non-endemic",IF($H23<>0,$D23*($H23-$G23),0),$D23*$H23), 0) -> 0 | N23: 0 | P23: 0 | Q23: =IF($L23="MBD", IF(INTRO!$E$39="Non-endemic",IF($H23<>0,$D23*($H23-$G23),0),$D23*$H23),0) -> 60836 | R23: 0 | T23: 60836 | V23: 243346 | W23: 1217 | Y23: 0 | Z23: 0 | AB23: 0 | AC23: 0
A24: =IF(AND(INTRO!$E$37="Non-endemic",INTRO!$E$41="Non-endemic")," ",IF(COUNTRY_INFO!A24=0," ",COUNTRY_INFO!A24)) -> Nigeria | B24: =IF(AND(INTRO!$E$37="Non-endemic",INTRO!$E$41="Non-endemic")," ",IF(COUNTRY_INFO!B24=0," ",COUNTRY_INFO!B24)) -> Abia | C24: =IF(AND(INTRO!$E$37="Non-endemic",INTRO!$E$41="Non-endemic")," ",IF(COUNTRY_INFO!C24=0," ",COUNTRY_INFO!C24)) -> Umuahia South | D24: =IF(AND(INTRO!$E$37="Non-endemic",INTRO!$E$41="Non-endemic"),0,IF(AND(OR(COUNTRY_INFO!$H24=0,COUNTRY_INFO!$H24=4,COUNTRY_INFO!$H24=99),OR(COUNTRY_INFO!$J24=0,COUNTRY_INFO!$J24=4)),0,COUNTRY_INFO!$E24)) -> 38204 | E24: =IF(AND(INTRO!$E$37="Non-endemic",INTRO!$E$41="Non-endemic"),0,IF(AND(OR(COUNTRY_INFO!$H24=0,COUNTRY_INFO!$H24=4,COUNTRY_INFO!$H24=99),OR(COUNTRY_INFO!$J24=0,COUNTRY_INFO!$J24=4)),0,COUNTRY_INFO!$F24)) -> 53486 | F24: 91690 | G24: =IF(AND(INTRO!$E$37="Non-endemic",INTRO!$E$41="Non-endemic"),0,COUNTRY_INFO!Q24) -> 1 | H24: =IF(AND(INTRO!$E$37="Non-endemic",INTRO!$E$41="Non-endemic"),0,COUNTRY_INFO!S24) -> 1 | I24: =IF($G24=1,IVM!$G24,0) -> 152816 | J24: =IF($G24=0, " ", IF(COUNTRY_INFO!$H24=1, IF(COUNTRY_INFO!$L24=1, 0," ")," ")) ->  | L24: MBD | M24: =IF($L24="ALB", IF(INTRO!$E$39="Non-endemic",IF($H24<>0,$D24*($H24-$G24),0),$D24*$H24), 0) -> 0 | N24: 0 | P24: 0 | Q24: =IF($L24="MBD", IF(INTRO!$E$39="Non-endemic",IF($H24<>0,$D24*($H24-$G24),0),$D24*$H24),0) -> 38204 | R24: 0 | T24: 38204 | V24: 152816 | W24: 765 | Y24: 0 | Z24: 0 | AB24: 0 | AC24: 0
A25: =IF(AND(INTRO!$E$37="Non-endemic",INTRO!$E$41="Non-endemic")," ",IF(COUNTRY_INFO!A25=0," ",COUNTRY_INFO!A25)) -> Nigeria | B25: =IF(AND(INTRO!$E$37="Non-endemic",INTRO!$E$41="Non-endemic")," ",IF(COUNTRY_INFO!B25=0," ",COUNTRY_INFO!B25)) -> Abia | C25: =IF(AND(INTRO!$E$37="Non-endemic",INTRO!$E$41="Non-endemic")," ",IF(COUNTRY_INFO!C25=0," ",COUNTRY_INFO!C25)) -> Umu-Nneochi | D25: =IF(AND(INTRO!$E$37="Non-endemic",INTRO!$E$41="Non-endemic"),0,IF(AND(OR(COUNTRY_INFO!$H25=0,COUNTRY_INFO!$H25=4,COUNTRY_INFO!$H25=99),OR(COUNTRY_INFO!$J25=0,COUNTRY_INFO!$J25=4)),0,COUNTRY_INFO!$E25)) -> 45195 | E25: =IF(AND(INTRO!$E$37="Non-endemic",INTRO!$E$41="Non-endemic"),0,IF(AND(OR(COUNTRY_INFO!$H25=0,COUNTRY_INFO!$H25=4,COUNTRY_INFO!$H25=99),OR(COUNTRY_INFO!$J25=0,COUNTRY_INFO!$J25=4)),0,COUNTRY_INFO!$F25)) -> 63274 | F25: 108469 | G25: =IF(AND(INTRO!$E$37="Non-endemic",INTRO!$E$41="Non-endemic"),0,COUNTRY_INFO!Q25) -> 1 | H25: =IF(AND(INTRO!$E$37="Non-endemic",INTRO!$E$41="Non-endemic"),0,COUNTRY_INFO!S25) -> 1 | I25: =IF($G25=1,IVM!$G25,0) -> 180782 | J25: =IF($G25=0, " ", IF(COUNTRY_INFO!$H25=1, IF(COUNTRY_INFO!$L25=1, 0," ")," ")) ->  | L25: MBD | M25: =IF($L25="ALB", IF(INTRO!$E$39="Non-endemic",IF($H25<>0,$D25*($H25-$G25),0),$D25*$H25), 0) -> 0 | N25: 0 | P25: 0 | Q25: =IF($L25="MBD", IF(INTRO!$E$39="Non-endemic",IF($H25<>0,$D25*($H25-$G25),0),$D25*$H25),0) -> 45195 | R25: 0 | T25: 45195 | V25: 180782 | W25: 904 | Y25: 0 | Z25: 0 | AB25: 0 | AC25: 0
A26: =IF(AND(INTRO!$E$37="Non-endemic",INTRO!$E$41="Non-endemic")," ",IF(COUNTRY_INFO!A26=0," ",COUNTRY_INFO!A26)) -> Nigeria | B26: =IF(AND(INTRO!$E$37="Non-endemic",INTRO!$E$41="Non-endemic")," ",IF(COUNTRY_INFO!B26=0," ",COUNTRY_INFO!B26)) -> Adamawa | C26: =IF(AND(INTRO!$E$37="Non-endemic",INTRO!$E$41="Non-endemic")," ",IF(COUNTRY_INFO!C26=0," ",COUNTRY_INFO!C26)) -> Demsa | D26: =IF(AND(INTRO!$E$37="Non-endemic",INTRO!$E$41="Non-endemic"),0,IF(AND(OR(COUNTRY_INFO!$H26=0,COUNTRY_INFO!$H26=4,COUNTRY_INFO!$H26=99),OR(COUNTRY_INFO!$J26=0,COUNTRY_INFO!$J26=4)),0,COUNTRY_INFO!$E26)) -> 49696 | E26: =IF(AND(INTRO!$E$37="Non-endemic",INTRO!$E$41="Non-endemic"),0,IF(AND(OR(COUNTRY_INFO!$H26=0,COUNTRY_INFO!$H26=4,COUNTRY_INFO!$H26=99),OR(COUNTRY_INFO!$J26=0,COUNTRY_INFO!$J26=4)),0,COUNTRY_INFO!$F26)) -> 69574 | F26: 119270 | G26: =IF(AND(INTRO!$E$37="Non-endemic",INTRO!$E$41="Non-endemic"),0,COUNTRY_INFO!Q26) -> 1 | H26: =IF(AND(INTRO!$E$37="Non-endemic",INTRO!$E$41="Non-endemic"),0,COUNTRY_INFO!S26) -> 0 | I26: =IF($G26=1,IVM!$G26,0) -> 198783 | J26: =IF($G26=0, " ", IF(COUNTRY_INFO!$H26=1, IF(COUNTRY_INFO!$L26=1, 0," ")," ")) ->  | L26: MBD | M26: =IF($L26="ALB", IF(INTRO!$E$39="Non-endemic",IF($H26<>0,$D26*($H26-$G26),0),$D26*$H26), 0) -> 0 | N26: 0 | P26: 0 | Q26: =IF($L26="MBD", IF(INTRO!$E$39="Non-endemic",IF($H26<>0,$D26*($H26-$G26),0),$D26*$H26),0) -> 0 | R26: 0 | T26: 0 | V26: 198783 | W26: 994 | Y26: 0 | Z26: 0 | AB26: 0 | AC26: 0
A27: =IF(AND(INTRO!$E$37="Non-endemic",INTRO!$E$41="Non-endemic")," ",IF(COUNTRY_INFO!A27=0," ",COUNTRY_INFO!A27)) -> Nigeria | B27: =IF(AND(INTRO!$E$37="Non-endemic",INTRO!$E$41="Non-endemic")," ",IF(COUNTRY_INFO!B27=0," ",COUNTRY_INFO!B27)) -> Adamawa | C27: =IF(AND(INTRO!$E$37="Non-endemic",INTRO!$E$41="Non-endemic")," ",IF(COUNTRY_INFO!C27=0," ",COUNTRY_INFO!C27)) -> Fufore | D27: =IF(AND(INTRO!$E$37="Non-endemic",INTRO!$E$41="Non-endemic"),0,IF(AND(OR(COUNTRY_INFO!$H27=0,COUNTRY_INFO!$H27=4,COUNTRY_INFO!$H27=99),OR(COUNTRY_INFO!$J27=0,COUNTRY_INFO!$J27=4)),0,COUNTRY_INFO!$E27)) -> 57149 | E27: =IF(AND(INTRO!$E$37="Non-endemic",INTRO!$E$41="Non-endemic"),0,IF(AND(OR(COUNTRY_INFO!$H27=0,COUNTRY_INFO!$H27=4,COUNTRY_INFO!$H27=99),OR(COUNTRY_INFO!$J27=0,COUNTRY_INFO!$J27=4)),0,COUNTRY_INFO!$F27)) -> 80009 | F27: 137158 | G27: =IF(AND(INTRO!$E$37="Non-endemic",INTRO!$E$41="Non-endemic"),0,COUNTRY_INFO!Q27) -> 1 | H27: =IF(AND(INTRO!$E$37="Non-endemic",INTRO!$E$41="Non-endemic"),0,COUNTRY_INFO!S27) -> 0 | I27: =IF($G27=1,IVM!$G27,0) -> 228597 | J27: =IF($G27=0, " ", IF(COUNTRY_INFO!$H27=1, IF(COUNTRY_INFO!$L27=1, 0," ")," ")) ->  | L27: MBD | M27: =IF($L27="ALB", IF(INTRO!$E$39="Non-endemic",IF($H27<>0,$D27*($H27-$G27),0),$D27*$H27), 0) -> 0 | N27: 0 | P27: 0 | Q27: =IF($L27="MBD", IF(INTRO!$E$39="Non-endemic",IF($H27<>0,$D27*($H27-$G27),0),$D27*$H27),0) -> 0 | R27: 0 | T27: 0 | V27: 228597 | W27: 1143 | Y27: 0 | Z27: 0 | AB27: 0 | AC27: 0
A28: =IF(AND(INTRO!$E$37="Non-endemic",INTRO!$E$41="Non-endemic")," ",IF(COUNTRY_INFO!A28=0," ",COUNTRY_INFO!A28)) -> Nigeria | B28: =IF(AND(INTRO!$E$37="Non-endemic",INTRO!$E$41="Non-endemic")," ",IF(COUNTRY_INFO!B28=0," ",COUNTRY_INFO!B28)) -> Adamawa | C28: =IF(AND(INTRO!$E$37="Non-endemic",INTRO!$E$41="Non-endemic")," ",IF(COUNTRY_INFO!C28=0," ",COUNTRY_INFO!C28)) -> Ganye | D28: =IF(AND(INTRO!$E$37="Non-endemic",INTRO!$E$41="Non-endemic"),0,IF(AND(OR(COUNTRY_INFO!$H28=0,COUNTRY_INFO!$H28=4,COUNTRY_INFO!$H28=99),OR(COUNTRY_INFO!$J28=0,COUNTRY_INFO!$J28=4)),0,COUNTRY_INFO!$E28)) -> 45239 | E28: =IF(AND(INTRO!$E$37="Non-endemic",INTRO!$E$41="Non-endemic"),0,IF(AND(OR(COUNTRY_INFO!$H28=0,COUNTRY_INFO!$H28=4,COUNTRY_INFO!$H28=99),OR(COUNTRY_INFO!$J28=0,COUNTRY_INFO!$J28=4)),0,COUNTRY_INFO!$F28)) -> 63335 | F28: 108574 | G28: =IF(AND(INTRO!$E$37="Non-endemic",INTRO!$E$41="Non-endemic"),0,COUNTRY_INFO!Q28) -> 1 | H28: =IF(AND(INTRO!$E$37="Non-endemic",INTRO!$E$41="Non-endemic"),0,COUNTRY_INFO!S28) -> 0 | I28: =IF($G28=1,IVM!$G28,0) -> 180957 | J28: =IF($G28=0, " ", IF(COUNTRY_INFO!$H28=1, IF(COUNTRY_INFO!$L28=1, 0," ")," ")) ->  | L28: MBD | M28: =IF($L28="ALB", IF(INTRO!$E$39="Non-endemic",IF($H28<>0,$D28*($H28-$G28),0),$D28*$H28), 0) -> 0 | N28: 0 | P28: 0 | Q28: =IF($L28="MBD", IF(INTRO!$E$39="Non-endemic",IF($H28<>0,$D28*($H28-$G28),0),$D28*$H28),0) -> 0 | R28: 0 | T28: 0 | V28: 180957 | W28: 905 | Y28: 0 | Z28: 0 | AB28: 0 | AC28: 0
A29: =IF(AND(INTRO!$E$37="Non-endemic",INTRO!$E$41="Non-endemic")," ",IF(COUNTRY_INFO!A29=0," ",COUNTRY_INFO!A29)) -> Nigeria | B29: =IF(AND(INTRO!$E$37="Non-endemic",INTRO!$E$41="Non-endemic")," ",IF(COUNTRY_INFO!B29=0," ",COUNTRY_INFO!B29)) -> Adamawa | C29: =IF(AND(INTRO!$E$37="Non-endemic",INTRO!$E$41="Non-endemic")," ",IF(COUNTRY_INFO!C29=0," ",COUNTRY_INFO!C29)) -> Girei | D29: =IF(AND(INTRO!$E$37="Non-endemic",INTRO!$E$41="Non-endemic"),0,IF(AND(OR(COUNTRY_INFO!$H29=0,COUNTRY_INFO!$H29=4,COUNTRY_INFO!$H29=99),OR(COUNTRY_INFO!$J29=0,COUNTRY_INFO!$J29=4)),0,COUNTRY_INFO!$E29)) -> 35840 | E29: =IF(AND(INTRO!$E$37="Non-endemic",INTRO!$E$41="Non-endemic"),0,IF(AND(OR(COUNTRY_INFO!$H29=0,COUNTRY_INFO!$H29=4,COUNTRY_INFO!$H29=99),OR(COUNTRY_INFO!$J29=0,COUNTRY_INFO!$J29=4)),0,COUNTRY_INFO!$F29)) -> 50176 | F29: 86016 | G29: =IF(AND(INTRO!$E$37="Non-endemic",INTRO!$E$41="Non-endemic"),0,COUNTRY_INFO!Q29) -> 1 | H29: =IF(AND(INTRO!$E$37="Non-endemic",INTRO!$E$41="Non-endemic"),0,COUNTRY_INFO!S29) -> 0 | I29: =IF($G29=1,IVM!$G29,0) -> 143360 | J29: =IF($G29=0, " ", IF(COUNTRY_INFO!$H29=1, IF(COUNTRY_INFO!$L29=1, 0," ")," ")) ->  | L29: MBD | M29: =IF($L29="ALB", IF(INTRO!$E$39="Non-endemic",IF($H29<>0,$D29*($H29-$G29),0),$D29*$H29), 0) -> 0 | N29: 0 | P29: 0 | Q29: =IF($L29="MBD", IF(INTRO!$E$39="Non-endemic",IF($H29<>0,$D29*($H29-$G29),0),$D29*$H29),0) -> 0 | R29: 0 | T29: 0 | V29: 143360 | W29: 717 | Y29: 0 | Z29: 0 | AB29: 0 | AC29: 0
A30: =IF(AND(INTRO!$E$37="Non-endemic",INTRO!$E$41="Non-endemic")," ",IF(COUNTRY_INFO!A30=0," ",COUNTRY_INFO!A30)) -> Nigeria | B30: =IF(AND(INTRO!$E$37="Non-endemic",INTRO!$E$41="Non-endemic")," ",IF(COUNTRY_INFO!B30=0," ",COUNTRY_INFO!B30)) -> Adamawa | C30: =IF(AND(INTRO!$E$37="Non-endemic",INTRO!$E$41="Non-endemic")," ",IF(COUNTRY_INFO!C30=0," ",COUNTRY_INFO!C30)) -> Gombi | D30: =IF(AND(INTRO!$E$37="Non-endemic",INTRO!$E$41="Non-endemic"),0,IF(AND(OR(COUNTRY_INFO!$H30=0,COUNTRY_INFO!$H30=4,COUNTRY_INFO!$H30=99),OR(COUNTRY_INFO!$J30=0,COUNTRY_INFO!$J30=4)),0,COUNTRY_INFO!$E30)) -> 40371 | E30: =IF(AND(INTRO!$E$37="Non-endemic",INTRO!$E$41="Non-endemic"),0,IF(AND(OR(COUNTRY_INFO!$H30=0,COUNTRY_INFO!$H30=4,COUNTRY_INFO!$H30=99),OR(COUNTRY_INFO!$J30=0,COUNTRY_INFO!$J30=4)),0,COUNTRY_INFO!$F30)) -> 56519 | F30: 96890 | G30: =IF(AND(INTRO!$E$37="Non-endemic",INTRO!$E$41="Non-endemic"),0,COUNTRY_INFO!Q30) -> 1 | H30: =IF(AND(INTRO!$E$37="Non-endemic",INTRO!$E$41="Non-endemic"),0,COUNTRY_INFO!S30) -> 0 | I30: =IF($G30=1,IVM!$G30,0) -> 161483 | J30: =IF($G30=0, " ", IF(COUNTRY_INFO!$H30=1, IF(COUNTRY_INFO!$L30=1, 0," ")," ")) ->  | L30: MBD | M30: =IF($L30="ALB", IF(INTRO!$E$39="Non-endemic",IF($H30<>0,$D30*($H30-$G30),0),$D30*$H30), 0) -> 0 | N30: 0 | P30: 0 | Q30: =IF($L30="MBD", IF(INTRO!$E$39="Non-endemic",IF($H30<>0,$D30*($H30-$G30),0),$D30*$H30),0) -> 0 | R30: 0 | T30: 0 | V30: 161483 | W30: 808 | Y30: 0 | Z30: 0 | AB30: 0 | AC30: 0
A31: =IF(AND(INTRO!$E$37="Non-endemic",INTRO!$E$41="Non-endemic")," ",IF(COUNTRY_INFO!A31=0," ",COUNTRY_INFO!A31)) -> Nigeria | B31: =IF(AND(INTRO!$E$37="Non-endemic",INTRO!$E$41="Non-endemic")," ",IF(COUNTRY_INFO!B31=0," ",COUNTRY_INFO!B31)) -> Adamawa | C31: =IF(AND(INTRO!$E$37="Non-endemic",INTRO!$E$41="Non-endemic")," ",IF(COUNTRY_INFO!C31=0," ",COUNTRY_INFO!C31)) -> Guyuk | D31: =IF(AND(INTRO!$E$37="Non-endemic",INTRO!$E$41="Non-endemic"),0,IF(AND(OR(COUNTRY_INFO!$H31=0,COUNTRY_INFO!$H31=4,COUNTRY_INFO!$H31=99),OR(COUNTRY_INFO!$J31=0,COUNTRY_INFO!$J31=4)),0,COUNTRY_INFO!$E31)) -> 49016 | E31: =IF(AND(INTRO!$E$37="Non-endemic",INTRO!$E$41="Non-endemic"),0,IF(AND(OR(COUNTRY_INFO!$H31=0,COUNTRY_INFO!$H31=4,COUNTRY_INFO!$H31=99),OR(COUNTRY_INFO!$J31=0,COUNTRY_INFO!$J31=4)),0,COUNTRY_INFO!$F31)) -> 68622 | F31: 117638 | G31: =IF(AND(INTRO!$E$37="Non-endemic",INTRO!$E$41="Non-endemic"),0,COUNTRY_INFO!Q31) -> 1 | H31: =IF(AND(INTRO!$E$37="Non-endemic",INTRO!$E$41="Non-endemic"),0,COUNTRY_INFO!S31) -> 0 | I31: =IF($G31=1,IVM!$G31,0) -> 196063 | J31: =IF($G31=0, " ", IF(COUNTRY_INFO!$H31=1, IF(COUNTRY_INFO!$L31=1, 0," ")," ")) ->  | L31: MBD | M31: =IF($L31="ALB", IF(INTRO!$E$39="Non-endemic",IF($H31<>0,$D31*($H31-$G31),0),$D31*$H31), 0) -> 0 | N31: 0 | P31: 0 | Q31: =IF($L31="MBD", IF(INTRO!$E$39="Non-endemic",IF($H31<>0,$D31*($H31-$G31),0),$D31*$H31),0) -> 0 | R31: 0 | T31: 0 | V31: 196063 | W31: 981 | Y31: 0 | Z31: 0 | AB31: 0 | AC31: 0
A32: =IF(AND(INTRO!$E$37="Non-endemic",INTRO!$E$41="Non-endemic")," ",IF(COUNTRY_INFO!A32=0," ",COUNTRY_INFO!A32)) -> Nigeria | B32: =IF(AND(INTRO!$E$37="Non-endemic",INTRO!$E$41="Non-endemic")," ",IF(COUNTRY_INFO!B32=0," ",COUNTRY_INFO!B32)) -> Adamawa | C32: =IF(AND(INTRO!$E$37="Non-endemic",INTRO!$E$41="Non-endemic")," ",IF(COUNTRY_INFO!C32=0," ",COUNTRY_INFO!C32)) -> Hong | D32: =IF(AND(INTRO!$E$37="Non-endemic",INTRO!$E$41="Non-endemic"),0,IF(AND(OR(COUNTRY_INFO!$H32=0,COUNTRY_INFO!$H32=4,COUNTRY_INFO!$H32=99),OR(COUNTRY_INFO!$J32=0,COUNTRY_INFO!$J32=4)),0,COUNTRY_INFO!$E32)) -> 46628 | E32: =IF(AND(INTRO!$E$37="Non-endemic",INTRO!$E$41="Non-endemic"),0,IF(AND(OR(COUNTRY_INFO!$H32=0,COUNTRY_INFO!$H32=4,COUNTRY_INFO!$H32=99),OR(COUNTRY_INFO!$J32=0,COUNTRY_INFO!$J32=4)),0,COUNTRY_INFO!$F32)) -> 65280 | F32: 111908 | G32: =IF(AND(INTRO!$E$37="Non-endemic",INTRO!$E$41="Non-endemic"),0,COUNTRY_INFO!Q32) -> 0 | H32: =IF(AND(INTRO!$E$37="Non-endemic",INTRO!$E$41="Non-endemic"),0,COUNTRY_INFO!S32) -> 0 | I32: =IF($G32=1,IVM!$G32,0) -> 0 | J32: =IF($G32=0, " ", IF(COUNTRY_INFO!$H32=1, IF(COUNTRY_INFO!$L32=1, 0," ")," ")) ->  | L32: MBD | M32: =IF($L32="ALB", IF(INTRO!$E$39="Non-endemic",IF($H32<>0,$D32*($H32-$G32),0),$D32*$H32), 0) -> 0 | N32: 0 | P32: 0 | Q32: =IF($L32="MBD", IF(INTRO!$E$39="Non-endemic",IF($H32<>0,$D32*($H32-$G32),0),$D32*$H32),0) -> 0 | R32: 0 | T32: 0 | V32: 0 | W32: 0 | Y32: 0 | Z32: 0 | AB32: 0 | AC32: 0
A33: =IF(AND(INTRO!$E$37="Non-endemic",INTRO!$E$41="Non-endemic")," ",IF(COUNTRY_INFO!A33=0," ",COUNTRY_INFO!A33)) -> Nigeria | B33: =IF(AND(INTRO!$E$37="Non-endemic",INTRO!$E$41="Non-endemic")," ",IF(COUNTRY_INFO!B33=0," ",COUNTRY_INFO!B33)) -> Adamawa | C33: =IF(AND(INTRO!$E$37="Non-endemic",INTRO!$E$41="Non-endemic")," ",IF(COUNTRY_INFO!C33=0," ",COUNTRY_INFO!C33)) -> Jada | D33: =IF(AND(INTRO!$E$37="Non-endemic",INTRO!$E$41="Non-endemic"),0,IF(AND(OR(COUNTRY_INFO!$H33=0,COUNTRY_INFO!$H33=4,COUNTRY_INFO!$H33=99),OR(COUNTRY_INFO!$J33=0,COUNTRY_INFO!$J33=4)),0,COUNTRY_INFO!$E33)) -> 46448 | E33: =IF(AND(INTRO!$E$37="Non-endemic",INTRO!$E$41="Non-endemic"),0,IF(AND(OR(COUNTRY_INFO!$H33=0,COUNTRY_INFO!$H33=4,COUNTRY_INFO!$H33=99),OR(COUNTRY_INFO!$J33=0,COUNTRY_INFO!$J33=4)),0,COUNTRY_INFO!$F33)) -> 65028 | F33: 111476 | G33: =IF(AND(INTRO!$E$37="Non-endemic",INTRO!$E$41="Non-endemic"),0,COUNTRY_INFO!Q33) -> 1 | H33: =IF(AND(INTRO!$E$37="Non-endemic",INTRO!$E$41="Non-endemic"),0,COUNTRY_INFO!S33) -> 1 | I33: =IF($G33=1,IVM!$G33,0) -> 185794 | J33: =IF($G33=0, " ", IF(COUNTRY_INFO!$H33=1, IF(COUNTRY_INFO!$L33=1, 0," ")," ")) ->  | L33: MBD | M33: =IF($L33="ALB", IF(INTRO!$E$39="Non-endemic",IF($H33<>0,$D33*($H33-$G33),0),$D33*$H33), 0) -> 0 | N33: 0 | P33: 0 | Q33: =IF($L33="MBD", IF(INTRO!$E$39="Non-endemic",IF($H33<>0,$D33*($H33-$G33),0),$D33*$H33),0) -> 46448 | R33: 0 | T33: 46448 | V33: 185794 | W33: 929 | Y33: 0 | Z33: 0 | AB33: 0 | AC33: 0
A34: =IF(AND(INTRO!$E$37="Non-endemic",INTRO!$E$41="Non-endemic")," ",IF(COUNTRY_INFO!A34=0," ",COUNTRY_INFO!A34)) -> Nigeria | B34: =IF(AND(INTRO!$E$37="Non-endemic",INTRO!$E$41="Non-endemic")," ",IF(COUNTRY_INFO!B34=0," ",COUNTRY_INFO!B34)) -> Adamawa | C34: =IF(AND(INTRO!$E$37="Non-endemic",INTRO!$E$41="Non-endemic")," ",IF(COUNTRY_INFO!C34=0," ",COUNTRY_INFO!C34)) -> Lamurde | D34: =IF(AND(INTRO!$E$37="Non-endemic",INTRO!$E$41="Non-endemic"),0,IF(AND(OR(COUNTRY_INFO!$H34=0,COUNTRY_INFO!$H34=4,COUNTRY_INFO!$H34=99),OR(COUNTRY_INFO!$J34=0,COUNTRY_INFO!$J34=4)),0,COUNTRY_INFO!$E34)) -> 31100 | E34: =IF(AND(INTRO!$E$37="Non-endemic",INTRO!$E$41="Non-endemic"),0,IF(AND(OR(COUNTRY_INFO!$H34=0,COUNTRY_INFO!$H34=4,COUNTRY_INFO!$H34=99),OR(COUNTRY_INFO!$J34=0,COUNTRY_INFO!$J34=4)),0,COUNTRY_INFO!$F34)) -> 43540 | F34: 74640 | G34: =IF(AND(INTRO!$E$37="Non-endemic",INTRO!$E$41="Non-endemic"),0,COUNTRY_INFO!Q34) -> 1 | H34: =IF(AND(INTRO!$E$37="Non-endemic",INTRO!$E$41="Non-endemic"),0,COUNTRY_INFO!S34) -> 0 | I34: =IF($G34=1,IVM!$G34,0) -> 124400 | J34: =IF($G34=0, " ", IF(COUNTRY_INFO!$H34=1, IF(COUNTRY_INFO!$L34=1, 0," ")," ")) ->  | L34: MBD | M34: =IF($L34="ALB", IF(INTRO!$E$39="Non-endemic",IF($H34<>0,$D34*($H34-$G34),0),$D34*$H34), 0) -> 0 | N34: 0 | P34: 0 | Q34: =IF($L34="MBD", IF(INTRO!$E$39="Non-endemic",IF($H34<>0,$D34*($H34-$G34),0),$D34*$H34),0) -> 0 | R34: 0 | T34: 0 | V34: 124400 | W34: 622 | Y34: 0 | Z34: 0 | AB34: 0 | AC34: 0
A35: =IF(AND(INTRO!$E$37="Non-endemic",INTRO!$E$41="Non-endemic")," ",IF(COUNTRY_INFO!A35=0," ",COUNTRY_INFO!A35)) -> Nigeria | B35: =IF(AND(INTRO!$E$37="Non-endemic",INTRO!$E$41="Non-endemic")," ",IF(COUNTRY_INFO!B35=0," ",COUNTRY_INFO!B35)) -> Adamawa | C35: =IF(AND(INTRO!$E$37="Non-endemic",INTRO!$E$41="Non-endemic")," ",IF(COUNTRY_INFO!C35=0," ",COUNTRY_INFO!C35)) -> Madagali | D35: =IF(AND(INTRO!$E$37="Non-endemic",INTRO!$E$41="Non-endemic"),0,IF(AND(OR(COUNTRY_INFO!$H35=0,COUNTRY_INFO!$H35=4,COUNTRY_INFO!$H35=99),OR(COUNTRY_INFO!$J35=0,COUNTRY_INFO!$J35=4)),0,COUNTRY_INFO!$E35)) -> 37172 | E35: =IF(AND(INTRO!$E$37="Non-endemic",INTRO!$E$41="Non-endemic"),0,IF(AND(OR(COUNTRY_INFO!$H35=0,COUNTRY_INFO!$H35=4,COUNTRY_INFO!$H35=99),OR(COUNTRY_INFO!$J35=0,COUNTRY_INFO!$J35=4)),0,COUNTRY_INFO!$F35)) -> 52041 | F35: 89213 | G35: =IF(AND(INTRO!$E$37="Non-endemic",INTRO!$E$41="Non-endemic"),0,COUNTRY_INFO!Q35) -> 0 | H35: =IF(AND(INTRO!$E$37="Non-endemic",INTRO!$E$41="Non-endemic"),0,COUNTRY_INFO!S35) -> 0 | I35: =IF($G35=1,IVM!$G35,0) -> 0 | J35: =IF($G35=0, " ", IF(COUNTRY_INFO!$H35=1, IF(COUNTRY_INFO!$L35=1, 0," ")," ")) ->  | L35: MBD | M35: =IF($L35="ALB", IF(INTRO!$E$39="Non-endemic",IF($H35<>0,$D35*($H35-$G35),0),$D35*$H35), 0) -> 0 | N35: 0 | P35: 0 | Q35: =IF($L35="MBD", IF(INTRO!$E$39="Non-endemic",IF($H35<>0,$D35*($H35-$G35),0),$D35*$H35),0) -> 0 | R35: 0 | T35: 0 | V35: 0 | W35: 0 | Y35: 0 | Z35: 0 | AB35: 0 | AC35: 0
A36: =IF(AND(INTRO!$E$37="Non-endemic",INTRO!$E$41="Non-endemic")," ",IF(COUNTRY_INFO!A36=0," ",COUNTRY_INFO!A36)) -> Nigeria | B36: =IF(AND(INTRO!$E$37="Non-endemic",INTRO!$E$41="Non-endemic")," ",IF(COUNTRY_INFO!B36=0," ",COUNTRY_INFO!B36)) -> Adamawa | C36: =IF(AND(INTRO!$E$37="Non-endemic",INTRO!$E$41="Non-endemic")," ",IF(COUNTRY_INFO!C36=0," ",COUNTRY_INFO!C36)) -> Maiha | D36: =IF(AND(INTRO!$E$37="Non-endemic",INTRO!$E$41="Non-endemic"),0,IF(AND(OR(COUNTRY_INFO!$H36=0,COUNTRY_INFO!$H36=4,COUNTRY_INFO!$H36=99),OR(COUNTRY_INFO!$J36=0,COUNTRY_INFO!$J36=4)),0,COUNTRY_INFO!$E36)) -> 30662 | E36: =IF(AND(INTRO!$E$37="Non-endemic",INTRO!$E$41="Non-endemic"),0,IF(AND(OR(COUNTRY_INFO!$H36=0,COUNTRY_INFO!$H36=4,COUNTRY_INFO!$H36=99),OR(COUNTRY_INFO!$J36=0,COUNTRY_INFO!$J36=4)),0,COUNTRY_INFO!$F36)) -> 42927 | F36: 73589 | G36: =IF(AND(INTRO!$E$37="Non-endemic",INTRO!$E$41="Non-endemic"),0,COUNTRY_INFO!Q36) -> 1 | H36: =IF(AND(INTRO!$E$37="Non-endemic",INTRO!$E$41="Non-endemic"),0,COUNTRY_INFO!S36) -> 0 | I36: =IF($G36=1,IVM!$G36,0) -> 122649 | J36: =IF($G36=0, " ", IF(COUNTRY_INFO!$H36=1, IF(COUNTRY_INFO!$L36=1, 0," ")," ")) ->  | L36: MBD | M36: =IF($L36="ALB", IF(INTRO!$E$39="Non-endemic",IF($H36<>0,$D36*($H36-$G36),0),$D36*$H36), 0) -> 0 | N36: 0 | P36: 0 | Q36: =IF($L36="MBD", IF(INTRO!$E$39="Non-endemic",IF($H36<>0,$D36*($H36-$G36),0),$D36*$H36),0) -> 0 | R36: 0 | T36: 0 | V36: 122649 | W36: 614 | Y36: 0 | Z36: 0 | AB36: 0 | AC36: 0
A37: =IF(AND(INTRO!$E$37="Non-endemic",INTRO!$E$41="Non-endemic")," ",IF(COUNTRY_INFO!A37=0," ",COUNTRY_INFO!A37)) -> Nigeria | B37: =IF(AND(INTRO!$E$37="Non-endemic",INTRO!$E$41="Non-endemic")," ",IF(COUNTRY_INFO!B37=0," ",COUNTRY_INFO!B37)) -> Adamawa | C37: =IF(AND(INTRO!$E$37="Non-endemic",INTRO!$E$41="Non-endemic")," ",IF(COUNTRY_INFO!C37=0," ",COUNTRY_INFO!C37)) -> Mayo-belwa | D37: =IF(AND(INTRO!$E$37="Non-endemic",INTRO!$E$41="Non-endemic"),0,IF(AND(OR(COUNTRY_INFO!$H37=0,COUNTRY_INFO!$H37=4,COUNTRY_INFO!$H37=99),OR(COUNTRY_INFO!$J37=0,COUNTRY_INFO!$J37=4)),0,COUNTRY_INFO!$E37)) -> 42218 | E37: =IF(AND(INTRO!$E$37="Non-endemic",INTRO!$E$41="Non-endemic"),0,IF(AND(OR(COUNTRY_INFO!$H37=0,COUNTRY_INFO!$H37=4,COUNTRY_INFO!$H37=99),OR(COUNTRY_INFO!$J37=0,COUNTRY_INFO!$J37=4)),0,COUNTRY_INFO!$F37)) -> 59105 | F37: 101323 | G37: =IF(AND(INTRO!$E$37="Non-endemic",INTRO!$E$41="Non-endemic"),0,COUNTRY_INFO!Q37) -> 1 | H37: =IF(AND(INTRO!$E$37="Non-endemic",INTRO!$E$41="Non-endemic"),0,COUNTRY_INFO!S37) -> 0 | I37: =IF($G37=1,IVM!$G37,0) -> 168872 | J37: =IF($G37=0, " ", IF(COUNTRY_INFO!$H37=1, IF(COUNTRY_INFO!$L37=1, 0," ")," ")) ->  | L37: MBD | M37: =IF($L37="ALB", IF(INTRO!$E$39="Non-endemic",IF($H37<>0,$D37*($H37-$G37),0),$D37*$H37), 0) -> 0 | N37: 0 | P37: 0 | Q37: =IF($L37="MBD", IF(INTRO!$E$39="Non-endemic",IF($H37<>0,$D37*($H37-$G37),0),$D37*$H37),0) -> 0 | R37: 0 | T37: 0 | V37: 168872 | W37: 845 | Y37: 0 | Z37: 0 | AB37: 0 | AC37: 0
A38: =IF(AND(INTRO!$E$37="Non-endemic",INTRO!$E$41="Non-endemic")," ",IF(COUNTRY_INFO!A38=0," ",COUNTRY_INFO!A38)) -> Nigeria | B38: =IF(AND(INTRO!$E$37="Non-endemic",INTRO!$E$41="Non-endemic")," ",IF(COUNTRY_INFO!B38=0," ",COUNTRY_INFO!B38)) -> Adamawa | C38: =IF(AND(INTRO!$E$37="Non-endemic",INTRO!$E$41="Non-endemic")," ",IF(COUNTRY_INFO!C38=0," ",COUNTRY_INFO!C38)) -> Michika | D38: =IF(AND(INTRO!$E$37="Non-endemic",INTRO!$E$41="Non-endemic"),0,IF(AND(OR(COUNTRY_INFO!$H38=0,COUNTRY_INFO!$H38=4,COUNTRY_INFO!$H38=99),OR(COUNTRY_INFO!$J38=0,COUNTRY_INFO!$J38=4)),0,COUNTRY_INFO!$E38)) -> 42817 | E38: =IF(AND(INTRO!$E$37="Non-endemic",INTRO!$E$41="Non-endemic"),0,IF(AND(OR(COUNTRY_INFO!$H38=0,COUNTRY_INFO!$H38=4,COUNTRY_INFO!$H38=99),OR(COUNTRY_INFO!$J38=0,COUNTRY_INFO!$J38=4)),0,COUNTRY_INFO!$F38)) -> 59944 | F38: 102761 | G38: =IF(AND(INTRO!$E$37="Non-endemic",INTRO!$E$41="Non-endemic"),0,COUNTRY_INFO!Q38) -> 1 | H38: =IF(AND(INTRO!$E$37="Non-endemic",INTRO!$E$41="Non-endemic"),0,COUNTRY_INFO!S38) -> 0 | I38: =IF($G38=1,IVM!$G38,0) -> 171269 | J38: =IF($G38=0, " ", IF(COUNTRY_INFO!$H38=1, IF(COUNTRY_INFO!$L38=1, 0," ")," ")) ->  | L38: MBD | M38: =IF($L38="ALB", IF(INTRO!$E$39="Non-endemic",IF($H38<>0,$D38*($H38-$G38),0),$D38*$H38), 0) -> 0 | N38: 0 | P38: 0 | Q38: =IF($L38="MBD", IF(INTRO!$E$39="Non-endemic",IF($H38<>0,$D38*($H38-$G38),0),$D38*$H38),0) -> 0 | R38: 0 | T38: 0 | V38: 171269 | W38: 857 | Y38: 0 | Z38: 0 | AB38: 0 | AC38: 0
A39: =IF(AND(INTRO!$E$37="Non-endemic",INTRO!$E$41="Non-endemic")," ",IF(COUNTRY_INFO!A39=0," ",COUNTRY_INFO!A39)) -> Nigeria | B39: =IF(AND(INTRO!$E$37="Non-endemic",INTRO!$E$41="Non-endemic")," ",IF(COUNTRY_INFO!B39=0," ",COUNTRY_INFO!B39)) -> Adamawa | C39: =IF(AND(INTRO!$E$37="Non-endemic",INTRO!$E$41="Non-endemic")," ",IF(COUNTRY_INFO!C39=0," ",COUNTRY_INFO!C39)) -> Mubi North | D39: =IF(AND(INTRO!$E$37="Non-endemic",INTRO!$E$41="Non-endemic"),0,IF(AND(OR(COUNTRY_INFO!$H39=0,COUNTRY_INFO!$H39=4,COUNTRY_INFO!$H39=99),OR(COUNTRY_INFO!$J39=0,COUNTRY_INFO!$J39=4)),0,COUNTRY_INFO!$E39)) -> 41651 | E39: =IF(AND(INTRO!$E$37="Non-endemic",INTRO!$E$41="Non-endemic"),0,IF(AND(OR(COUNTRY_INFO!$H39=0,COUNTRY_INFO!$H39=4,COUNTRY_INFO!$H39=99),OR(COUNTRY_INFO!$J39=0,COUNTRY_INFO!$J39=4)),0,COUNTRY_INFO!$F39)) -> 58311 | F39: 99962 | G39: =IF(AND(INTRO!$E$37="Non-endemic",INTRO!$E$41="Non-endemic"),0,COUNTRY_INFO!Q39) -> 1 | H39: =IF(AND(INTRO!$E$37="Non-endemic",INTRO!$E$41="Non-endemic"),0,COUNTRY_INFO!S39) -> 0 | I39: =IF($G39=1,IVM!$G39,0) -> 166603 | J39: =IF($G39=0, " ", IF(COUNTRY_INFO!$H39=1, IF(COUNTRY_INFO!$L39=1, 0," ")," ")) ->  | L39: MBD | M39: =IF($L39="ALB", IF(INTRO!$E$39="Non-endemic",IF($H39<>0,$D39*($H39-$G39),0),$D39*$H39), 0) -> 0 | N39: 0 | P39: 0 | Q39: =IF($L39="MBD", IF(INTRO!$E$39="Non-endemic",IF($H39<>0,$D39*($H39-$G39),0),$D39*$H39),0) -> 0 | R39: 0 | T39: 0 | V39: 166603 | W39: 834 | Y39: 0 | Z39: 0 | AB39: 0 | AC39: 0
A40: =IF(AND(INTRO!$E$37="Non-endemic",INTRO!$E$41="Non-endemic")," ",IF(COUNTRY_INFO!A40=0," ",COUNTRY_INFO!A40)) -> Nigeria | B40: =IF(AND(INTRO!$E$37="Non-endemic",INTRO!$E$41="Non-endemic")," ",IF(COUNTRY_INFO!B40=0," ",COUNTRY_INFO!B40)) -> Adamawa | C40: =IF(AND(INTRO!$E$37="Non-endemic",INTRO!$E$41="Non-endemic")," ",IF(COUNTRY_INFO!C40=0," ",COUNTRY_INFO!C40)) -> Mubi South | D40: =IF(AND(INTRO!$E$37="Non-endemic",INTRO!$E$41="Non-endemic"),0,IF(AND(OR(COUNTRY_INFO!$H40=0,COUNTRY_INFO!$H40=4,COUNTRY_INFO!$H40=99),OR(COUNTRY_INFO!$J40=0,COUNTRY_INFO!$J40=4)),0,COUNTRY_INFO!$E40)) -> 35548 | E40: =IF(AND(INTRO!$E$37="Non-endemic",INTRO!$E$41="Non-endemic"),0,IF(AND(OR(COUNTRY_INFO!$H40=0,COUNTRY_INFO!$H40=4,COUNTRY_INFO!$H40=99),OR(COUNTRY_INFO!$J40=0,COUNTRY_INFO!$J40=4)),0,COUNTRY_INFO!$F40)) -> 49767 | F40: 85315 | G40: =IF(AND(INTRO!$E$37="Non-endemic",INTRO!$E$41="Non-endemic"),0,COUNTRY_INFO!Q40) -> 1 | H40: =IF(AND(INTRO!$E$37="Non-endemic",INTRO!$E$41="Non-endemic"),0,COUNTRY_INFO!S40) -> 0 | I40: =IF($G40=1,IVM!$G40,0) -> 142192 | J40: =IF($G40=0, " ", IF(COUNTRY_INFO!$H40=1, IF(COUNTRY_INFO!$L40=1, 0," ")," ")) ->  | L40: MBD | M40: =IF($L40="ALB", IF(INTRO!$E$39="Non-endemic",IF($H40<>0,$D40*($H40-$G40),0),$D40*$H40), 0) -> 0 | N40: 0 | P40: 0 | Q40: =IF($L40="MBD", IF(INTRO!$E$39="Non-endemic",IF($H40<>0,$D40*($H40-$G40),0),$D40*$H40),0) -> 0 | R40: 0 | T40: 0 | V40: 142192 | W40: 711 | Y40: 0 | Z40: 0 | AB40: 0 | AC40: 0
A41: =IF(AND(INTRO!$E$37="Non-endemic",INTRO!$E$41="Non-endemic")," ",IF(COUNTRY_INFO!A41=0," ",COUNTRY_INFO!A41)) -> Nigeria | B41: =IF(AND(INTRO!$E$37="Non-endemic",INTRO!$E$41="Non-endemic")," ",IF(COUNTRY_INFO!B41=0," ",COUNTRY_INFO!B41)) -> Adamawa | C41: =IF(AND(INTRO!$E$37="Non-endemic",INTRO!$E$41="Non-endemic")," ",IF(COUNTRY_INFO!C41=0," ",COUNTRY_INFO!C41)) -> Numan | D41: =IF(AND(INTRO!$E$37="Non-endemic",INTRO!$E$41="Non-endemic"),0,IF(AND(OR(COUNTRY_INFO!$H41=0,COUNTRY_INFO!$H41=4,COUNTRY_INFO!$H41=99),OR(COUNTRY_INFO!$J41=0,COUNTRY_INFO!$J41=4)),0,COUNTRY_INFO!$E41)) -> 25013 | E41: =IF(AND(INTRO!$E$37="Non-endemic",INTRO!$E$41="Non-endemic"),0,IF(AND(OR(COUNTRY_INFO!$H41=0,COUNTRY_INFO!$H41=4,COUNTRY_INFO!$H41=99),OR(COUNTRY_INFO!$J41=0,COUNTRY_INFO!$J41=4)),0,COUNTRY_INFO!$F41)) -> 35018 | F41: 60031 | G41: =IF(AND(INTRO!$E$37="Non-endemic",INTRO!$E$41="Non-endemic"),0,COUNTRY_INFO!Q41) -> 1 | H41: =IF(AND(INTRO!$E$37="Non-endemic",INTRO!$E$41="Non-endemic"),0,COUNTRY_INFO!S41) -> 0 | I41: =IF($G41=1,IVM!$G41,0) -> 100051 | J41: =IF($G41=0, " ", IF(COUNTRY_INFO!$H41=1, IF(COUNTRY_INFO!$L41=1, 0," ")," ")) ->  | L41: MBD | M41: =IF($L41="ALB", IF(INTRO!$E$39="Non-endemic",IF($H41<>0,$D41*($H41-$G41),0),$D41*$H41), 0) -> 0 | N41: 0 | P41: 0 | Q41: =IF($L41="MBD", IF(INTRO!$E$39="Non-endemic",IF($H41<>0,$D41*($H41-$G41),0),$D41*$H41),0) -> 0 | R41: 0 | T41: 0 | V41: 100051 | W41: 501 | Y41: 0 | Z41: 0 | AB41: 0 | AC41: 0
A42: =IF(AND(INTRO!$E$37="Non-endemic",INTRO!$E$41="Non-endemic")," ",IF(COUNTRY_INFO!A42=0," ",COUNTRY_INFO!A42)) -> Nigeria | B42: =IF(AND(INTRO!$E$37="Non-endemic",INTRO!$E$41="Non-endemic")," ",IF(COUNTRY_INFO!B42=0," ",COUNTRY_INFO!B42)) -> Adamawa | C42: =IF(AND(INTRO!$E$37="Non-endemic",INTRO!$E$41="Non-endemic")," ",IF(COUNTRY_INFO!C42=0," ",COUNTRY_INFO!C42)) -> Shelleng | D42: =IF(AND(INTRO!$E$37="Non-endemic",INTRO!$E$41="Non-endemic"),0,IF(AND(OR(COUNTRY_INFO!$H42=0,COUNTRY_INFO!$H42=4,COUNTRY_INFO!$H42=99),OR(COUNTRY_INFO!$J42=0,COUNTRY_INFO!$J42=4)),0,COUNTRY_INFO!$E42)) -> 41099 | E42: =IF(AND(INTRO!$E$37="Non-endemic",INTRO!$E$41="Non-endemic"),0,IF(AND(OR(COUNTRY_INFO!$H42=0,COUNTRY_INFO!$H42=4,COUNTRY_INFO!$H42=99),OR(COUNTRY_INFO!$J42=0,COUNTRY_INFO!$J42=4)),0,COUNTRY_INFO!$F42)) -> 57538 | F42: 98637 | G42: =IF(AND(INTRO!$E$37="Non-endemic",INTRO!$E$41="Non-endemic"),0,COUNTRY_INFO!Q42) -> 1 | H42: =IF(AND(INTRO!$E$37="Non-endemic",INTRO!$E$41="Non-endemic"),0,COUNTRY_INFO!S42) -> 0 | I42: =IF($G42=1,IVM!$G42,0) -> 164394 | J42: =IF($G42=0, " ", IF(COUNTRY_INFO!$H42=1, IF(COUNTRY_INFO!$L42=1, 0," ")," ")) ->  | L42: MBD | M42: =IF($L42="ALB", IF(INTRO!$E$39="Non-endemic",IF($H42<>0,$D42*($H42-$G42),0),$D42*$H42), 0) -> 0 | N42: 0 | P42: 0 | Q42: =IF($L42="MBD", IF(INTRO!$E$39="Non-endemic",IF($H42<>0,$D42*($H42-$G42),0),$D42*$H42),0) -> 0 | R42: 0 | T42: 0 | V42: 164394 | W42: 822 | Y42: 0 | Z42: 0 | AB42: 0 | AC42: 0
A43: =IF(AND(INTRO!$E$37="Non-endemic",INTRO!$E$41="Non-endemic")," ",IF(COUNTRY_INFO!A43=0," ",COUNTRY_INFO!A43)) -> Nigeria | B43: =IF(AND(INTRO!$E$37="Non-endemic",INTRO!$E$41="Non-endemic")," ",IF(COUNTRY_INFO!B43=0," ",COUNTRY_INFO!B43)) -> Adamawa | C43: =IF(AND(INTRO!$E$37="Non-endemic",INTRO!$E$41="Non-endemic")," ",IF(COUNTRY_INFO!C43=0," ",COUNTRY_INFO!C43)) -> Song | D43: =IF(AND(INTRO!$E$37="Non-endemic",INTRO!$E$41="Non-endemic"),0,IF(AND(OR(COUNTRY_INFO!$H43=0,COUNTRY_INFO!$H43=4,COUNTRY_INFO!$H43=99),OR(COUNTRY_INFO!$J43=0,COUNTRY_INFO!$J43=4)),0,COUNTRY_INFO!$E43)) -> 53127 | E43: =IF(AND(INTRO!$E$37="Non-endemic",INTRO!$E$41="Non-endemic"),0,IF(AND(OR(COUNTRY_INFO!$H43=0,COUNTRY_INFO!$H43=4,COUNTRY_INFO!$H43=99),OR(COUNTRY_INFO!$J43=0,COUNTRY_INFO!$J43=4)),0,COUNTRY_INFO!$F43)) -> 74378 | F43: 127505 | G43: =IF(AND(INTRO!$E$37="Non-endemic",INTRO!$E$41="Non-endemic"),0,COUNTRY_INFO!Q43) -> 1 | H43: =IF(AND(INTRO!$E$37="Non-endemic",INTRO!$E$41="Non-endemic"),0,COUNTRY_INFO!S43) -> 0 | I43: =IF($G43=1,IVM!$G43,0) -> 212508 | J43: =IF($G43=0, " ", IF(COUNTRY_INFO!$H43=1, IF(COUNTRY_INFO!$L43=1, 0," ")," ")) ->  | L43: MBD | M43: =IF($L43="ALB", IF(INTRO!$E$39="Non-endemic",IF($H43<>0,$D43*($H43-$G43),0),$D43*$H43), 0) -> 0 | N43: 0 | P43: 0 | Q43: =IF($L43="MBD", IF(INTRO!$E$39="Non-endemic",IF($H43<>0,$D43*($H43-$G43),0),$D43*$H43),0) -> 0 | R43: 0 | T43: 0 | V43: 212508 | W43: 1063 | Y43: 0 | Z43: 0 | AB43: 0 | AC43: 0
A44: =IF(AND(INTRO!$E$37="Non-endemic",INTRO!$E$41="Non-endemic")," ",IF(COUNTRY_INFO!A44=0," ",COUNTRY_INFO!A44)) -> Nigeria | B44: =IF(AND(INTRO!$E$37="Non-endemic",INTRO!$E$41="Non-endemic")," ",IF(COUNTRY_INFO!B44=0," ",COUNTRY_INFO!B44)) -> Adamawa | C44: =IF(AND(INTRO!$E$37="Non-endemic",INTRO!$E$41="Non-endemic")," ",IF(COUNTRY_INFO!C44=0," ",COUNTRY_INFO!C44)) -> Toungo | D44: =IF(AND(INTRO!$E$37="Non-endemic",INTRO!$E$41="Non-endemic"),0,IF(AND(OR(COUNTRY_INFO!$H44=0,COUNTRY_INFO!$H44=4,COUNTRY_INFO!$H44=99),OR(COUNTRY_INFO!$J44=0,COUNTRY_INFO!$J44=4)),0,COUNTRY_INFO!$E44)) -> 14348 | E44: =IF(AND(INTRO!$E$37="Non-endemic",INTRO!$E$41="Non-endemic"),0,IF(AND(OR(COUNTRY_INFO!$H44=0,COUNTRY_INFO!$H44=4,COUNTRY_INFO!$H44=99),OR(COUNTRY_INFO!$J44=0,COUNTRY_INFO!$J44=4)),0,COUNTRY_INFO!$F44)) -> 20087 | F44: 34435 | G44: =IF(AND(INTRO!$E$37="Non-endemic",INTRO!$E$41="Non-endemic"),0,COUNTRY_INFO!Q44) -> 1 | H44: =IF(AND(INTRO!$E$37="Non-endemic",INTRO!$E$41="Non-endemic"),0,COUNTRY_INFO!S44) -> 1 | I44: =IF($G44=1,IVM!$G44,0) -> 57391 | J44: =IF($G44=0, " ", IF(COUNTRY_INFO!$H44=1, IF(COUNTRY_INFO!$L44=1, 0," ")," ")) ->  | L44: MBD | M44: =IF($L44="ALB", IF(INTRO!$E$39="Non-endemic",IF($H44<>0,$D44*($H44-$G44),0),$D44*$H44), 0) -> 0 | N44: 0 | P44: 0 | Q44: =IF($L44="MBD", IF(INTRO!$E$39="Non-endemic",IF($H44<>0,$D44*($H44-$G44),0),$D44*$H44),0) -> 14348 | R44: 0 | T44: 14348 | V44: 57391 | W44: 287 | Y44: 0 | Z44: 0 | AB44: 0 | AC44: 0
A45: =IF(AND(INTRO!$E$37="Non-endemic",INTRO!$E$41="Non-endemic")," ",IF(COUNTRY_INFO!A45=0," ",COUNTRY_INFO!A45)) -> Nigeria | B45: =IF(AND(INTRO!$E$37="Non-endemic",INTRO!$E$41="Non-endemic")," ",IF(COUNTRY_INFO!B45=0," ",COUNTRY_INFO!B45)) -> Adamawa | C45: =IF(AND(INTRO!$E$37="Non-endemic",INTRO!$E$41="Non-endemic")," ",IF(COUNTRY_INFO!C45=0," ",COUNTRY_INFO!C45)) -> Yola North | D45: =IF(AND(INTRO!$E$37="Non-endemic",INTRO!$E$41="Non-endemic"),0,IF(AND(OR(COUNTRY_INFO!$H45=0,COUNTRY_INFO!$H45=4,COUNTRY_INFO!$H45=99),OR(COUNTRY_INFO!$J45=0,COUNTRY_INFO!$J45=4)),0,COUNTRY_INFO!$E45)) -> 54657 | E45: =IF(AND(INTRO!$E$37="Non-endemic",INTRO!$E$41="Non-endemic"),0,IF(AND(OR(COUNTRY_INFO!$H45=0,COUNTRY_INFO!$H45=4,COUNTRY_INFO!$H45=99),OR(COUNTRY_INFO!$J45=0,COUNTRY_INFO!$J45=4)),0,COUNTRY_INFO!$F45)) -> 76520 | F45: 131177 | G45: =IF(AND(INTRO!$E$37="Non-endemic",INTRO!$E$41="Non-endemic"),0,COUNTRY_INFO!Q45) -> 0 | H45: =IF(AND(INTRO!$E$37="Non-endemic",INTRO!$E$41="Non-endemic"),0,COUNTRY_INFO!S45) -> 0 | I45: =IF($G45=1,IVM!$G45,0) -> 0 | J45: =IF($G45=0, " ", IF(COUNTRY_INFO!$H45=1, IF(COUNTRY_INFO!$L45=1, 0," ")," ")) ->  | L45: MBD | M45: =IF($L45="ALB", IF(INTRO!$E$39="Non-endemic",IF($H45<>0,$D45*($H45-$G45),0),$D45*$H45), 0) -> 0 | N45: 0 | P45: 0 | Q45: =IF($L45="MBD", IF(INTRO!$E$39="Non-endemic",IF($H45<>0,$D45*($H45-$G45),0),$D45*$H45),0) -> 0 | R45: 0 | T45: 0 | V45: 0 | W45: 0 | Y45: 0 | Z45: 0 | AB45: 0 | AC45: 0
A46: =IF(AND(INTRO!$E$37="Non-endemic",INTRO!$E$41="Non-endemic")," ",IF(COUNTRY_INFO!A46=0," ",COUNTRY_INFO!A46)) -> Nigeria | B46: =IF(AND(INTRO!$E$37="Non-endemic",INTRO!$E$41="Non-endemic")," ",IF(COUNTRY_INFO!B46=0," ",COUNTRY_INFO!B46)) -> Adamawa | C46: =IF(AND(INTRO!$E$37="Non-endemic",INTRO!$E$41="Non-endemic")," ",IF(COUNTRY_INFO!C46=0," ",COUNTRY_INFO!C46)) -> Yola South | D46: =IF(AND(INTRO!$E$37="Non-endemic",INTRO!$E$41="Non-endemic"),0,IF(AND(OR(COUNTRY_INFO!$H46=0,COUNTRY_INFO!$H46=4,COUNTRY_INFO!$H46=99),OR(COUNTRY_INFO!$J46=0,COUNTRY_INFO!$J46=4)),0,COUNTRY_INFO!$E46)) -> 53654 | E46: =IF(AND(INTRO!$E$37="Non-endemic",INTRO!$E$41="Non-endemic"),0,IF(AND(OR(COUNTRY_INFO!$H46=0,COUNTRY_INFO!$H46=4,COUNTRY_INFO!$H46=99),OR(COUNTRY_INFO!$J46=0,COUNTRY_INFO!$J46=4)),0,COUNTRY_INFO!$F46)) -> 75115 | F46: 128769 | G46: =IF(AND(INTRO!$E$37="Non-endemic",INTRO!$E$41="Non-endemic"),0,COUNTRY_INFO!Q46) -> 1 | H46: =IF(AND(INTRO!$E$37="Non-endemic",INTRO!$E$41="Non-endemic"),0,COUNTRY_INFO!S46) -> 0 | I46: =IF($G46=1,IVM!$G46,0) -> 214614 | J46: =IF($G46=0, " ", IF(COUNTRY_INFO!$H46=1, IF(COUNTRY_INFO!$L46=1, 0," ")," ")) ->  | L46: MBD | M46: =IF($L46="ALB", IF(INTRO!$E$39="Non-endemic",IF($H46<>0,$D46*($H46-$G46),0),$D46*$H46), 0) -> 0 | N46: 0 | P46: 0 | Q46: =IF($L46="MBD", IF(INTRO!$E$39="Non-endemic",IF($H46<>0,$D46*($H46-$G46),0),$D46*$H46),0) -> 0 | R46: 0 | T46: 0 | V46: 214614 | W46: 1074 | Y46: 0 | Z46: 0 | AB46: 0 | AC46: 0
A47: =IF(AND(INTRO!$E$37="Non-endemic",INTRO!$E$41="Non-endemic")," ",IF(COUNTRY_INFO!A47=0," ",COUNTRY_INFO!A47)) -> Nigeria | B47: =IF(AND(INTRO!$E$37="Non-endemic",INTRO!$E$41="Non-endemic")," ",IF(COUNTRY_INFO!B47=0," ",COUNTRY_INFO!B47)) -> Akwa Ibom | C47: =IF(AND(INTRO!$E$37="Non-endemic",INTRO!$E$41="Non-endemic")," ",IF(COUNTRY_INFO!C47=0," ",COUNTRY_INFO!C47)) -> Abak | D47: =IF(AND(INTRO!$E$37="Non-endemic",INTRO!$E$41="Non-endemic"),0,IF(AND(OR(COUNTRY_INFO!$H47=0,COUNTRY_INFO!$H47=4,COUNTRY_INFO!$H47=99),OR(COUNTRY_INFO!$J47=0,COUNTRY_INFO!$J47=4)),0,COUNTRY_INFO!$E47)) -> 38347 | E47: =IF(AND(INTRO!$E$37="Non-endemic",INTRO!$E$41="Non-endemic"),0,IF(AND(OR(COUNTRY_INFO!$H47=0,COUNTRY_INFO!$H47=4,COUNTRY_INFO!$H47=99),OR(COUNTRY_INFO!$J47=0,COUNTRY_INFO!$J47=4)),0,COUNTRY_INFO!$F47)) -> 53686 | F47: 92033 | G47: =IF(AND(INTRO!$E$37="Non-endemic",INTRO!$E$41="Non-endemic"),0,COUNTRY_INFO!Q47) -> 0 | H47: =IF(AND(INTRO!$E$37="Non-endemic",INTRO!$E$41="Non-endemic"),0,COUNTRY_INFO!S47) -> 2 | I47: =IF($G47=1,IVM!$G47,0) -> 0 | J47: =IF($G47=0, " ", IF(COUNTRY_INFO!$H47=1, IF(COUNTRY_INFO!$L47=1, 0," ")," ")) ->  | L47: MBD | M47: =IF($L47="ALB", IF(INTRO!$E$39="Non-endemic",IF($H47<>0,$D47*($H47-$G47),0),$D47*$H47), 0) -> 0 | N47: 0 | P47: 0 | Q47: =IF($L47="MBD", IF(INTRO!$E$39="Non-endemic",IF($H47<>0,$D47*($H47-$G47),0),$D47*$H47),0) -> 76694 | R47: 107372 | T47: 184066 | V47: 0 | W47: 0 | Y47: 0 | Z47: 0 | AB47: 107372 | AC47: 716
A48: =IF(AND(INTRO!$E$37="Non-endemic",INTRO!$E$41="Non-endemic")," ",IF(COUNTRY_INFO!A48=0," ",COUNTRY_INFO!A48)) -> Nigeria | B48: =IF(AND(INTRO!$E$37="Non-endemic",INTRO!$E$41="Non-endemic")," ",IF(COUNTRY_INFO!B48=0," ",COUNTRY_INFO!B48)) -> Akwa Ibom | C48: =IF(AND(INTRO!$E$37="Non-endemic",INTRO!$E$41="Non-endemic")," ",IF(COUNTRY_INFO!C48=0," ",COUNTRY_INFO!C48)) -> Eastern Obolo | D48: =IF(AND(INTRO!$E$37="Non-endemic",INTRO!$E$41="Non-endemic"),0,IF(AND(OR(COUNTRY_INFO!$H48=0,COUNTRY_INFO!$H48=4,COUNTRY_INFO!$H48=99),OR(COUNTRY_INFO!$J48=0,COUNTRY_INFO!$J48=4)),0,COUNTRY_INFO!$E48)) -> 16692 | E48: =IF(AND(INTRO!$E$37="Non-endemic",INTRO!$E$41="Non-endemic"),0,IF(AND(OR(COUNTRY_INFO!$H48=0,COUNTRY_INFO!$H48=4,COUNTRY_INFO!$H48=99),OR(COUNTRY_INFO!$J48=0,COUNTRY_INFO!$J48=4)),0,COUNTRY_INFO!$F48)) -> 23369 | F48: 40061 | G48: =IF(AND(INTRO!$E$37="Non-endemic",INTRO!$E$41="Non-endemic"),0,COUNTRY_INFO!Q48) -> 1 | H48: =IF(AND(INTRO!$E$37="Non-endemic",INTRO!$E$41="Non-endemic"),0,COUNTRY_INFO!S48) -> 2 | I48: =IF($G48=1,IVM!$G48,0) -> 66768 | J48: =IF($G48=0, " ", IF(COUNTRY_INFO!$H48=1, IF(COUNTRY_INFO!$L48=1, 0," ")," ")) ->  | L48: MBD | M48: =IF($L48="ALB", IF(INTRO!$E$39="Non-endemic",IF($H48<>0,$D48*($H48-$G48),0),$D48*$H48), 0) -> 0 | N48: 0 | P48: 0 | Q48: =IF($L48="MBD", IF(INTRO!$E$39="Non-endemic",IF($H48<>0,$D48*($H48-$G48),0),$D48*$H48),0) -> 33384 | R48: 23369 | T48: 56753 | V48: 66768 | W48: 334 | Y48: 0 | Z48: 0 | AB48: 23369 | AC48: 156
A49: =IF(AND(INTRO!$E$37="Non-endemic",INTRO!$E$41="Non-endemic")," ",IF(COUNTRY_INFO!A49=0," ",COUNTRY_INFO!A49)) -> Nigeria | B49: =IF(AND(INTRO!$E$37="Non-endemic",INTRO!$E$41="Non-endemic")," ",IF(COUNTRY_INFO!B49=0," ",COUNTRY_INFO!B49)) -> Akwa Ibom | C49: =IF(AND(INTRO!$E$37="Non-endemic",INTRO!$E$41="Non-endemic")," ",IF(COUNTRY_INFO!C49=0," ",COUNTRY_INFO!C49)) -> Eket | D49: =IF(AND(INTRO!$E$37="Non-endemic",INTRO!$E$41="Non-endemic"),0,IF(AND(OR(COUNTRY_INFO!$H49=0,COUNTRY_INFO!$H49=4,COUNTRY_INFO!$H49=99),OR(COUNTRY_INFO!$J49=0,COUNTRY_INFO!$J49=4)),0,COUNTRY_INFO!$E49)) -> 47574 | E49: =IF(AND(INTRO!$E$37="Non-endemic",INTRO!$E$41="Non-endemic"),0,IF(AND(OR(COUNTRY_INFO!$H49=0,COUNTRY_INFO!$H49=4,COUNTRY_INFO!$H49=99),OR(COUNTRY_INFO!$J49=0,COUNTRY_INFO!$J49=4)),0,COUNTRY_INFO!$F49)) -> 66604 | F49: 114178 | G49: =IF(AND(INTRO!$E$37="Non-endemic",INTRO!$E$41="Non-endemic"),0,COUNTRY_INFO!Q49) -> 0 | H49: =IF(AND(INTRO!$E$37="Non-endemic",INTRO!$E$41="Non-endemic"),0,COUNTRY_INFO!S49) -> 2 | I49: =IF($G49=1,IVM!$G49,0) -> 0 | J49: =IF($G49=0, " ", IF(COUNTRY_INFO!$H49=1, IF(COUNTRY_INFO!$L49=1, 0," ")," ")) ->  | L49: MBD | M49: =IF($L49="ALB", IF(INTRO!$E$39="Non-endemic",IF($H49<>0,$D49*($H49-$G49),0),$D49*$H49), 0) -> 0 | N49: 0 | P49: 0 | Q49: =IF($L49="MBD", IF(INTRO!$E$39="Non-endemic",IF($H49<>0,$D49*($H49-$G49),0),$D49*$H49),0) -> 95148 | R49: 133208 | T49: 228356 | V49: 0 | W49: 0 | Y49: 0 | Z49: 0 | AB49: 133208 | AC49: 889
A50: =IF(AND(INTRO!$E$37="Non-endemic",INTRO!$E$41="Non-endemic")," ",IF(COUNTRY_INFO!A50=0," ",COUNTRY_INFO!A50)) -> Nigeria | B50: =IF(AND(INTRO!$E$37="Non-endemic",INTRO!$E$41="Non-endemic")," ",IF(COUNTRY_INFO!B50=0," ",COUNTRY_INFO!B50)) -> Akwa Ibom | C50: =IF(AND(INTRO!$E$37="Non-endemic",INTRO!$E$41="Non-endemic")," ",IF(COUNTRY_INFO!C50=0," ",COUNTRY_INFO!C50)) -> Esit Eket | D50: =IF(AND(INTRO!$E$37="Non-endemic",INTRO!$E$41="Non-endemic"),0,IF(AND(OR(COUNTRY_INFO!$H50=0,COUNTRY_INFO!$H50=4,COUNTRY_INFO!$H50=99),OR(COUNTRY_INFO!$J50=0,COUNTRY_INFO!$J50=4)),0,COUNTRY_INFO!$E50)) -> 17563 | E50: =IF(AND(INTRO!$E$37="Non-endemic",INTRO!$E$41="Non-endemic"),0,IF(AND(OR(COUNTRY_INFO!$H50=0,COUNTRY_INFO!$H50=4,COUNTRY_INFO!$H50=99),OR(COUNTRY_INFO!$J50=0,COUNTRY_INFO!$J50=4)),0,COUNTRY_INFO!$F50)) -> 24588 | F50: 42151 | G50: =IF(AND(INTRO!$E$37="Non-endemic",INTRO!$E$41="Non-endemic"),0,COUNTRY_INFO!Q50) -> 1 | H50: =IF(AND(INTRO!$E$37="Non-endemic",INTRO!$E$41="Non-endemic"),0,COUNTRY_INFO!S50) -> 2 | I50: =IF($G50=1,IVM!$G50,0) -> 70251 | J50: =IF($G50=0, " ", IF(COUNTRY_INFO!$H50=1, IF(COUNTRY_INFO!$L50=1, 0," ")," ")) ->  | L50: MBD | M50: =IF($L50="ALB", IF(INTRO!$E$39="Non-endemic",IF($H50<>0,$D50*($H50-$G50),0),$D50*$H50), 0) -> 0 | N50: 0 | P50: 0 | Q50: =IF($L50="MBD", IF(INTRO!$E$39="Non-endemic",IF($H50<>0,$D50*($H50-$G50),0),$D50*$H50),0) -> 35126 | R50: 24588 | T50: 59714 | V50: 70251 | W50: 352 | Y50: 0 | Z50: 0 | AB50: 24588 | AC50: 164
A51: =IF(AND(INTRO!$E$37="Non-endemic",INTRO!$E$41="Non-endemic")," ",IF(COUNTRY_INFO!A51=0," ",COUNTRY_INFO!A51)) -> Nigeria | B51: =IF(AND(INTRO!$E$37="Non-endemic",INTRO!$E$41="Non-endemic")," ",IF(COUNTRY_INFO!B51=0," ",COUNTRY_INFO!B51)) -> Akwa Ibom | C51: =IF(AND(INTRO!$E$37="Non-endemic",INTRO!$E$41="Non-endemic")," ",IF(COUNTRY_INFO!C51=0," ",COUNTRY_INFO!C51)) -> Essien Udim | D51: =IF(AND(INTRO!$E$37="Non-endemic",INTRO!$E$41="Non-endemic"),0,IF(AND(OR(COUNTRY_INFO!$H51=0,COUNTRY_INFO!$H51=4,COUNTRY_INFO!$H51=99),OR(COUNTRY_INFO!$J51=0,COUNTRY_INFO!$J51=4)),0,COUNTRY_INFO!$E51)) -> 53119 | E51: =IF(AND(INTRO!$E$37="Non-endemic",INTRO!$E$41="Non-endemic"),0,IF(AND(OR(COUNTRY_INFO!$H51=0,COUNTRY_INFO!$H51=4,COUNTRY_INFO!$H51=99),OR(COUNTRY_INFO!$J51=0,COUNTRY_INFO!$J51=4)),0,COUNTRY_INFO!$F51)) -> 74367 | F51: 127486 | G51: =IF(AND(INTRO!$E$37="Non-endemic",INTRO!$E$41="Non-endemic"),0,COUNTRY_INFO!Q51) -> 0 | H51: =IF(AND(INTRO!$E$37="Non-endemic",INTRO!$E$41="Non-endemic"),0,COUNTRY_INFO!S51) -> 1 | I51: =IF($G51=1,IVM!$G51,0) -> 0 | J51: =IF($G51=0, " ", IF(COUNTRY_INFO!$H51=1, IF(COUNTRY_INFO!$L51=1, 0," ")," ")) ->  | L51: MBD | M51: =IF($L51="ALB", IF(INTRO!$E$39="Non-endemic",IF($H51<>0,$D51*($H51-$G51),0),$D51*$H51), 0) -> 0 | N51: 0 | P51: 0 | Q51: =IF($L51="MBD", IF(INTRO!$E$39="Non-endemic",IF($H51<>0,$D51*($H51-$G51),0),$D51*$H51),0) -> 53119 | R51: 74367 | T51: 127486 | V51: 0 | W51: 0 | Y51: 0 | Z51: 0 | AB51: 74367 | AC51: 496
A52: =IF(AND(INTRO!$E$37="Non-endemic",INTRO!$E$41="Non-endemic")," ",IF(COUNTRY_INFO!A52=0," ",COUNTRY_INFO!A52)) -> Nigeria | B52: =IF(AND(INTRO!$E$37="Non-endemic",INTRO!$E$41="Non-endemic")," ",IF(COUNTRY_INFO!B52=0," ",COUNTRY_INFO!B52)) -> Akwa Ibom | C52: =IF(AND(INTRO!$E$37="Non-endemic",INTRO!$E$41="Non-endemic")," ",IF(COUNTRY_INFO!C52=0," ",COUNTRY_INFO!C52)) -> Etim Ekpo | D52: =IF(AND(INTRO!$E$37="Non-endemic",INTRO!$E$41="Non-endemic"),0,IF(AND(OR(COUNTRY_INFO!$H52=0,COUNTRY_INFO!$H52=4,COUNTRY_INFO!$H52=99),OR(COUNTRY_INFO!$J52=0,COUNTRY_INFO!$J52=4)),0,COUNTRY_INFO!$E52)) -> 29064 | E52: =IF(AND(INTRO!$E$37="Non-endemic",INTRO!$E$41="Non-endemic"),0,IF(AND(OR(COUNTRY_INFO!$H52=0,COUNTRY_INFO!$H52=4,COUNTRY_INFO!$H52=99),OR(COUNTRY_INFO!$J52=0,COUNTRY_INFO!$J52=4)),0,COUNTRY_INFO!$F52)) -> 40690 | F52: 69754 | G52: =IF(AND(INTRO!$E$37="Non-endemic",INTRO!$E$41="Non-endemic"),0,COUNTRY_INFO!Q52) -> 1 | H52: =IF(AND(INTRO!$E$37="Non-endemic",INTRO!$E$41="Non-endemic"),0,COUNTRY_INFO!S52) -> 1 | I52: =IF($G52=1,IVM!$G52,0) -> 116256 | J52: =IF($G52=0, " ", IF(COUNTRY_INFO!$H52=1, IF(COUNTRY_INFO!$L52=1, 0," ")," ")) ->  | L52: MBD | M52: =IF($L52="ALB", IF(INTRO!$E$39="Non-endemic",IF($H52<>0,$D52*($H52-$G52),0),$D52*$H52), 0) -> 0 | N52: 0 | P52: 0 | Q52: =IF($L52="MBD", IF(INTRO!$E$39="Non-endemic",IF($H52<>0,$D52*($H52-$G52),0),$D52*$H52),0) -> 29064 | R52: 0 | T52: 29064 | V52: 116256 | W52: 582 | Y52: 0 | Z52: 0 | AB52: 0 | AC52: 0
A53: =IF(AND(INTRO!$E$37="Non-endemic",INTRO!$E$41="Non-endemic")," ",IF(COUNTRY_INFO!A53=0," ",COUNTRY_INFO!A53)) -> Nigeria | B53: =IF(AND(INTRO!$E$37="Non-endemic",INTRO!$E$41="Non-endemic")," ",IF(COUNTRY_INFO!B53=0," ",COUNTRY_INFO!B53)) -> Akwa Ibom | C53: =IF(AND(INTRO!$E$37="Non-endemic",INTRO!$E$41="Non-endemic")," ",IF(COUNTRY_INFO!C53=0," ",COUNTRY_INFO!C53)) -> Etinan | D53: =IF(AND(INTRO!$E$37="Non-endemic",INTRO!$E$41="Non-endemic"),0,IF(AND(OR(COUNTRY_INFO!$H53=0,COUNTRY_INFO!$H53=4,COUNTRY_INFO!$H53=99),OR(COUNTRY_INFO!$J53=0,COUNTRY_INFO!$J53=4)),0,COUNTRY_INFO!$E53)) -> 46672 | E53: =IF(AND(INTRO!$E$37="Non-endemic",INTRO!$E$41="Non-endemic"),0,IF(AND(OR(COUNTRY_INFO!$H53=0,COUNTRY_INFO!$H53=4,COUNTRY_INFO!$H53=99),OR(COUNTRY_INFO!$J53=0,COUNTRY_INFO!$J53=4)),0,COUNTRY_INFO!$F53)) -> 65341 | F53: 112013 | G53: =IF(AND(INTRO!$E$37="Non-endemic",INTRO!$E$41="Non-endemic"),0,COUNTRY_INFO!Q53) -> 0 | H53: =IF(AND(INTRO!$E$37="Non-endemic",INTRO!$E$41="Non-endemic"),0,COUNTRY_INFO!S53) -> 1 | I53: =IF($G53=1,IVM!$G53,0) -> 0 | J53: =IF($G53=0, " ", IF(COUNTRY_INFO!$H53=1, IF(COUNTRY_INFO!$L53=1, 0," ")," ")) ->  | L53: MBD | M53: =IF($L53="ALB", IF(INTRO!$E$39="Non-endemic",IF($H53<>0,$D53*($H53-$G53),0),$D53*$H53), 0) -> 0 | N53: 0 | P53: 0 | Q53: =IF($L53="MBD", IF(INTRO!$E$39="Non-endemic",IF($H53<>0,$D53*($H53-$G53),0),$D53*$H53),0) -> 46672 | R53: 65341 | T53: 112013 | V53: 0 | W53: 0 | Y53: 0 | Z53: 0 | AB53: 65341 | AC53: 436
A54: =IF(AND(INTRO!$E$37="Non-endemic",INTRO!$E$41="Non-endemic")," ",IF(COUNTRY_INFO!A54=0," ",COUNTRY_INFO!A54)) -> Nigeria | B54: =IF(AND(INTRO!$E$37="Non-endemic",INTRO!$E$41="Non-endemic")," ",IF(COUNTRY_INFO!B54=0," ",COUNTRY_INFO!B54)) -> Akwa Ibom | C54: =IF(AND(INTRO!$E$37="Non-endemic",INTRO!$E$41="Non-endemic")," ",IF(COUNTRY_INFO!C54=0," ",COUNTRY_INFO!C54)) -> Ibeno | D54: =IF(AND(INTRO!$E$37="Non-endemic",INTRO!$E$41="Non-endemic"),0,IF(AND(OR(COUNTRY_INFO!$H54=0,COUNTRY_INFO!$H54=4,COUNTRY_INFO!$H54=99),OR(COUNTRY_INFO!$J54=0,COUNTRY_INFO!$J54=4)),0,COUNTRY_INFO!$E54)) -> 20782 | E54: =IF(AND(INTRO!$E$37="Non-endemic",INTRO!$E$41="Non-endemic"),0,IF(AND(OR(COUNTRY_INFO!$H54=0,COUNTRY_INFO!$H54=4,COUNTRY_INFO!$H54=99),OR(COUNTRY_INFO!$J54=0,COUNTRY_INFO!$J54=4)),0,COUNTRY_INFO!$F54)) -> 29095 | F54: 49877 | G54: =IF(AND(INTRO!$E$37="Non-endemic",INTRO!$E$41="Non-endemic"),0,COUNTRY_INFO!Q54) -> 1 | H54: =IF(AND(INTRO!$E$37="Non-endemic",INTRO!$E$41="Non-endemic"),0,COUNTRY_INFO!S54) -> 2 | I54: =IF($G54=1,IVM!$G54,0) -> 83129 | J54: =IF($G54=0, " ", IF(COUNTRY_INFO!$H54=1, IF(COUNTRY_INFO!$L54=1, 0," ")," ")) ->  | L54: MBD | M54: =IF($L54="ALB", IF(INTRO!$E$39="Non-endemic",IF($H54<>0,$D54*($H54-$G54),0),$D54*$H54), 0) -> 0 | N54: 0 | P54: 0 | Q54: =IF($L54="MBD", IF(INTRO!$E$39="Non-endemic",IF($H54<>0,$D54*($H54-$G54),0),$D54*$H54),0) -> 41564 | R54: 29095 | T54: 70659 | V54: 83129 | W54: 416 | Y54: 0 | Z54: 0 | AB54: 29095 | AC54: 194
A55: =IF(AND(INTRO!$E$37="Non-endemic",INTRO!$E$41="Non-endemic")," ",IF(COUNTRY_INFO!A55=0," ",COUNTRY_INFO!A55)) -> Nigeria | B55: =IF(AND(INTRO!$E$37="Non-endemic",INTRO!$E$41="Non-endemic")," ",IF(COUNTRY_INFO!B55=0," ",COUNTRY_INFO!B55)) -> Akwa Ibom | C55: =IF(AND(INTRO!$E$37="Non-endemic",INTRO!$E$41="Non-endemic")," ",IF(COUNTRY_INFO!C55=0," ",COUNTRY_INFO!C55)) -> Ibesikpo Asutan | D55: =IF(AND(INTRO!$E$37="Non-endemic",INTRO!$E$41="Non-endemic"),0,IF(AND(OR(COUNTRY_INFO!$H55=0,COUNTRY_INFO!$H55=4,COUNTRY_INFO!$H55=99),OR(COUNTRY_INFO!$J55=0,COUNTRY_INFO!$J55=4)),0,COUNTRY_INFO!$E55)) -> 37799 | E55: =IF(AND(INTRO!$E$37="Non-endemic",INTRO!$E$41="Non-endemic"),0,IF(AND(OR(COUNTRY_INFO!$H55=0,COUNTRY_INFO!$H55=4,COUNTRY_INFO!$H55=99),OR(COUNTRY_INFO!$J55=0,COUNTRY_INFO!$J55=4)),0,COUNTRY_INFO!$F55)) -> 52919 | F55: 90718 | G55: =IF(AND(INTRO!$E$37="Non-endemic",INTRO!$E$41="Non-endemic"),0,COUNTRY_INFO!Q55) -> 0 | H55: =IF(AND(INTRO!$E$37="Non-endemic",INTRO!$E$41="Non-endemic"),0,COUNTRY_INFO!S55) -> 2 | I55: =IF($G55=1,IVM!$G55,0) -> 0 | J55: =IF($G55=0, " ", IF(COUNTRY_INFO!$H55=1, IF(COUNTRY_INFO!$L55=1, 0," ")," ")) ->  | L55: MBD | M55: =IF($L55="ALB", IF(INTRO!$E$39="Non-endemic",IF($H55<>0,$D55*($H55-$G55),0),$D55*$H55), 0) -> 0 | N55: 0 | P55: 0 | Q55: =IF($L55="MBD", IF(INTRO!$E$39="Non-endemic",IF($H55<>0,$D55*($H55-$G55),0),$D55*$H55),0) -> 75598 | R55: 105838 | T55: 181436 | V55: 0 | W55: 0 | Y55: 0 | Z55: 0 | AB55: 105838 | AC55: 706
A56: =IF(AND(INTRO!$E$37="Non-endemic",INTRO!$E$41="Non-endemic")," ",IF(COUNTRY_INFO!A56=0," ",COUNTRY_INFO!A56)) -> Nigeria | B56: =IF(AND(INTRO!$E$37="Non-endemic",INTRO!$E$41="Non-endemic")," ",IF(COUNTRY_INFO!B56=0," ",COUNTRY_INFO!B56)) -> Akwa Ibom | C56: =IF(AND(INTRO!$E$37="Non-endemic",INTRO!$E$41="Non-endemic")," ",IF(COUNTRY_INFO!C56=0," ",COUNTRY_INFO!C56)) -> Ibiono Ibom | D56: =IF(AND(INTRO!$E$37="Non-endemic",INTRO!$E$41="Non-endemic"),0,IF(AND(OR(COUNTRY_INFO!$H56=0,COUNTRY_INFO!$H56=4,COUNTRY_INFO!$H56=99),OR(COUNTRY_INFO!$J56=0,COUNTRY_INFO!$J56=4)),0,COUNTRY_INFO!$E56)) -> 52284 | E56: =IF(AND(INTRO!$E$37="Non-endemic",INTRO!$E$41="Non-endemic"),0,IF(AND(OR(COUNTRY_INFO!$H56=0,COUNTRY_INFO!$H56=4,COUNTRY_INFO!$H56=99),OR(COUNTRY_INFO!$J56=0,COUNTRY_INFO!$J56=4)),0,COUNTRY_INFO!$F56)) -> 73198 | F56: 125482 | G56: =IF(AND(INTRO!$E$37="Non-endemic",INTRO!$E$41="Non-endemic"),0,COUNTRY_INFO!Q56) -> 0 | H56: =IF(AND(INTRO!$E$37="Non-endemic",INTRO!$E$41="Non-endemic"),0,COUNTRY_INFO!S56) -> 2 | I56: =IF($G56=1,IVM!$G56,0) -> 0 | J56: =IF($G56=0, " ", IF(COUNTRY_INFO!$H56=1, IF(COUNTRY_INFO!$L56=1, 0," ")," ")) ->  | L56: MBD | M56: =IF($L56="ALB", IF(INTRO!$E$39="Non-endemic",IF($H56<>0,$D56*($H56-$G56),0),$D56*$H56), 0) -> 0 | N56: 0 | P56: 0 | Q56: =IF($L56="MBD", IF(INTRO!$E$39="Non-endemic",IF($H56<>0,$D56*($H56-$G56),0),$D56*$H56),0) -> 104568 | R56: 146396 | T56: 250964 | V56: 0 | W56: 0 | Y56: 0 | Z56: 0 | AB56: 146396 | AC56: 976
A57: =IF(AND(INTRO!$E$37="Non-endemic",INTRO!$E$41="Non-endemic")," ",IF(COUNTRY_INFO!A57=0," ",COUNTRY_INFO!A57)) -> Nigeria | B57: =IF(AND(INTRO!$E$37="Non-endemic",INTRO!$E$41="Non-endemic")," ",IF(COUNTRY_INFO!B57=0," ",COUNTRY_INFO!B57)) -> Akwa Ibom | C57: =IF(AND(INTRO!$E$37="Non-endemic",INTRO!$E$41="Non-endemic")," ",IF(COUNTRY_INFO!C57=0," ",COUNTRY_INFO!C57)) -> Ika | D57: =IF(AND(INTRO!$E$37="Non-endemic",INTRO!$E$41="Non-endemic"),0,IF(AND(OR(COUNTRY_INFO!$H57=0,COUNTRY_INFO!$H57=4,COUNTRY_INFO!$H57=99),OR(COUNTRY_INFO!$J57=0,COUNTRY_INFO!$J57=4)),0,COUNTRY_INFO!$E57)) -> 20109 | E57: =IF(AND(INTRO!$E$37="Non-endemic",INTRO!$E$41="Non-endemic"),0,IF(AND(OR(COUNTRY_INFO!$H57=0,COUNTRY_INFO!$H57=4,COUNTRY_INFO!$H57=99),OR(COUNTRY_INFO!$J57=0,COUNTRY_INFO!$J57=4)),0,COUNTRY_INFO!$F57)) -> 28153 | F57: 48262 | G57: =IF(AND(INTRO!$E$37="Non-endemic",INTRO!$E$41="Non-endemic"),0,COUNTRY_INFO!Q57) -> 0 | H57: =IF(AND(INTRO!$E$37="Non-endemic",INTRO!$E$41="Non-endemic"),0,COUNTRY_INFO!S57) -> 1 | I57: =IF($G57=1,IVM!$G57,0) -> 0 | J57: =IF($G57=0, " ", IF(COUNTRY_INFO!$H57=1, IF(COUNTRY_INFO!$L57=1, 0," ")," ")) ->  | L57: MBD | M57: =IF($L57="ALB", IF(INTRO!$E$39="Non-endemic",IF($H57<>0,$D57*($H57-$G57),0),$D57*$H57), 0) -> 0 | N57: 0 | P57: 0 | Q57: =IF($L57="MBD", IF(INTRO!$E$39="Non-endemic",IF($H57<>0,$D57*($H57-$G57),0),$D57*$H57),0) -> 20109 | R57: 28153 | T57: 48262 | V57: 0 | W57: 0 | Y57: 0 | Z57: 0 | AB57: 28153 | AC57: 188
A58: =IF(AND(INTRO!$E$37="Non-endemic",INTRO!$E$41="Non-endemic")," ",IF(COUNTRY_INFO!A58=0," ",COUNTRY_INFO!A58)) -> Nigeria | B58: =IF(AND(INTRO!$E$37="Non-endemic",INTRO!$E$41="Non-endemic")," ",IF(COUNTRY_INFO!B58=0," ",COUNTRY_INFO!B58)) -> Akwa Ibom | C58: =IF(AND(INTRO!$E$37="Non-endemic",INTRO!$E$41="Non-endemic")," ",IF(COUNTRY_INFO!C58=0," ",COUNTRY_INFO!C58)) -> Ikono | D58: =IF(AND(INTRO!$E$37="Non-endemic",INTRO!$E$41="Non-endemic"),0,IF(AND(OR(COUNTRY_INFO!$H58=0,COUNTRY_INFO!$H58=4,COUNTRY_INFO!$H58=99),OR(COUNTRY_INFO!$J58=0,COUNTRY_INFO!$J58=4)),0,COUNTRY_INFO!$E58)) -> 36366 | E58: =IF(AND(INTRO!$E$37="Non-endemic",INTRO!$E$41="Non-endemic"),0,IF(AND(OR(COUNTRY_INFO!$H58=0,COUNTRY_INFO!$H58=4,COUNTRY_INFO!$H58=99),OR(COUNTRY_INFO!$J58=0,COUNTRY_INFO!$J58=4)),0,COUNTRY_INFO!$F58)) -> 50913 | F58: 87279 | G58: =IF(AND(INTRO!$E$37="Non-endemic",INTRO!$E$41="Non-endemic"),0,COUNTRY_INFO!Q58) -> 0 | H58: =IF(AND(INTRO!$E$37="Non-endemic",INTRO!$E$41="Non-endemic"),0,COUNTRY_INFO!S58) -> 1 | I58: =IF($G58=1,IVM!$G58,0) -> 0 | J58: =IF($G58=0, " ", IF(COUNTRY_INFO!$H58=1, IF(COUNTRY_INFO!$L58=1, 0," ")," ")) ->  | L58: MBD | M58: =IF($L58="ALB", IF(INTRO!$E$39="Non-endemic",IF($H58<>0,$D58*($H58-$G58),0),$D58*$H58), 0) -> 0 | N58: 0 | P58: 0 | Q58: =IF($L58="MBD", IF(INTRO!$E$39="Non-endemic",IF($H58<>0,$D58*($H58-$G58),0),$D58*$H58),0) -> 36366 | R58: 50913 | T58: 87279 | V58: 0 | W58: 0 | Y58: 0 | Z58: 0 | AB58: 50913 | AC58: 340
A59: =IF(AND(INTRO!$E$37="Non-endemic",INTRO!$E$41="Non-endemic")," ",IF(COUNTRY_INFO!A59=0," ",COUNTRY_INFO!A59)) -> Nigeria | B59: =IF(AND(INTRO!$E$37="Non-endemic",INTRO!$E$41="Non-endemic")," ",IF(COUNTRY_INFO!B59=0," ",COUNTRY_INFO!B59)) -> Akwa Ibom | C59: =IF(AND(INTRO!$E$37="Non-endemic",INTRO!$E$41="Non-endemic")," ",IF(COUNTRY_INFO!C59=0," ",COUNTRY_INFO!C59)) -> Ikot Abasi | D59: =IF(AND(INTRO!$E$37="Non-endemic",INTRO!$E$41="Non-endemic"),0,IF(AND(OR(COUNTRY_INFO!$H59=0,COUNTRY_INFO!$H59=4,COUNTRY_INFO!$H59=99),OR(COUNTRY_INFO!$J59=0,COUNTRY_INFO!$J59=4)),0,COUNTRY_INFO!$E59)) -> 36399 | E59: =IF(AND(INTRO!$E$37="Non-endemic",INTRO!$E$41="Non-endemic"),0,IF(AND(OR(COUNTRY_INFO!$H59=0,COUNTRY_INFO!$H59=4,COUNTRY_INFO!$H59=99),OR(COUNTRY_INFO!$J59=0,COUNTRY_INFO!$J59=4)),0,COUNTRY_INFO!$F59)) -> 50959 | F59: 87358 | G59: =IF(AND(INTRO!$E$37="Non-endemic",INTRO!$E$41="Non-endemic"),0,COUNTRY_INFO!Q59) -> 1 | H59: =IF(AND(INTRO!$E$37="Non-endemic",INTRO!$E$41="Non-endemic"),0,COUNTRY_INFO!S59) -> 2 | I59: =IF($G59=1,IVM!$G59,0) -> 145596 | J59: =IF($G59=0, " ", IF(COUNTRY_INFO!$H59=1, IF(COUNTRY_INFO!$L59=1, 0," ")," ")) ->  | L59: MBD | M59: =IF($L59="ALB", IF(INTRO!$E$39="Non-endemic",IF($H59<>0,$D59*($H59-$G59),0),$D59*$H59), 0) -> 0 | N59: 0 | P59: 0 | Q59: =IF($L59="MBD", IF(INTRO!$E$39="Non-endemic",IF($H59<>0,$D59*($H59-$G59),0),$D59*$H59),0) -> 72798 | R59: 50959 | T59: 123757 | V59: 145596 | W59: 728 | Y59: 0 | Z59: 0 | AB59: 50959 | AC59: 340
A60: =IF(AND(INTRO!$E$37="Non-endemic",INTRO!$E$41="Non-endemic")," ",IF(COUNTRY_INFO!A60=0," ",COUNTRY_INFO!A60)) -> Nigeria | B60: =IF(AND(INTRO!$E$37="Non-endemic",INTRO!$E$41="Non-endemic")," ",IF(COUNTRY_INFO!B60=0," ",COUNTRY_INFO!B60)) -> Akwa Ibom | C60: =IF(AND(INTRO!$E$37="Non-endemic",INTRO!$E$41="Non-endemic")," ",IF(COUNTRY_INFO!C60=0," ",COUNTRY_INFO!C60)) -> Ikot Ekpene | D60: =IF(AND(INTRO!$E$37="Non-endemic",INTRO!$E$41="Non-endemic"),0,IF(AND(OR(COUNTRY_INFO!$H60=0,COUNTRY_INFO!$H60=4,COUNTRY_INFO!$H60=99),OR(COUNTRY_INFO!$J60=0,COUNTRY_INFO!$J60=4)),0,COUNTRY_INFO!$E60)) -> 39447 | E60: =IF(AND(INTRO!$E$37="Non-endemic",INTRO!$E$41="Non-endemic"),0,IF(AND(OR(COUNTRY_INFO!$H60=0,COUNTRY_INFO!$H60=4,COUNTRY_INFO!$H60=99),OR(COUNTRY_INFO!$J60=0,COUNTRY_INFO!$J60=4)),0,COUNTRY_INFO!$F60)) -> 55225 | F60: 94672 | G60: =IF(AND(INTRO!$E$37="Non-endemic",INTRO!$E$41="Non-endemic"),0,COUNTRY_INFO!Q60) -> 1 | H60: =IF(AND(INTRO!$E$37="Non-endemic",INTRO!$E$41="Non-endemic"),0,COUNTRY_INFO!S60) -> 1 | I60: =IF($G60=1,IVM!$G60,0) -> 157786 | J60: =IF($G60=0, " ", IF(COUNTRY_INFO!$H60=1, IF(COUNTRY_INFO!$L60=1, 0," ")," ")) ->  | L60: MBD | M60: =IF($L60="ALB", IF(INTRO!$E$39="Non-endemic",IF($H60<>0,$D60*($H60-$G60),0),$D60*$H60), 0) -> 0 | N60: 0 | P60: 0 | Q60: =IF($L60="MBD", IF(INTRO!$E$39="Non-endemic",IF($H60<>0,$D60*($H60-$G60),0),$D60*$H60),0) -> 39447 | R60: 0 | T60: 39447 | V60: 157786 | W60: 789 | Y60: 0 | Z60: 0 | AB60: 0 | AC60: 0
A61: =IF(AND(INTRO!$E$37="Non-endemic",INTRO!$E$41="Non-endemic")," ",IF(COUNTRY_INFO!A61=0," ",COUNTRY_INFO!A61)) -> Nigeria | B61: =IF(AND(INTRO!$E$37="Non-endemic",INTRO!$E$41="Non-endemic")," ",IF(COUNTRY_INFO!B61=0," ",COUNTRY_INFO!B61)) -> Akwa Ibom | C61: =IF(AND(INTRO!$E$37="Non-endemic",INTRO!$E$41="Non-endemic")," ",IF(COUNTRY_INFO!C61=0," ",COUNTRY_INFO!C61)) -> Ini | D61: =IF(AND(INTRO!$E$37="Non-endemic",INTRO!$E$41="Non-endemic"),0,IF(AND(OR(COUNTRY_INFO!$H61=0,COUNTRY_INFO!$H61=4,COUNTRY_INFO!$H61=99),OR(COUNTRY_INFO!$J61=0,COUNTRY_INFO!$J61=4)),0,COUNTRY_INFO!$E61)) -> 27349 | E61: =IF(AND(INTRO!$E$37="Non-endemic",INTRO!$E$41="Non-endemic"),0,IF(AND(OR(COUNTRY_INFO!$H61=0,COUNTRY_INFO!$H61=4,COUNTRY_INFO!$H61=99),OR(COUNTRY_INFO!$J61=0,COUNTRY_INFO!$J61=4)),0,COUNTRY_INFO!$F61)) -> 38288 | F61: 65637 | G61: =IF(AND(INTRO!$E$37="Non-endemic",INTRO!$E$41="Non-endemic"),0,COUNTRY_INFO!Q61) -> 0 | H61: =IF(AND(INTRO!$E$37="Non-endemic",INTRO!$E$41="Non-endemic"),0,COUNTRY_INFO!S61) -> 2 | I61: =IF($G61=1,IVM!$G61,0) -> 0 | J61: =IF($G61=0, " ", IF(COUNTRY_INFO!$H61=1, IF(COUNTRY_INFO!$L61=1, 0," ")," ")) ->  | L61: MBD | M61: =IF($L61="ALB", IF(INTRO!$E$39="Non-endemic",IF($H61<>0,$D61*($H61-$G61),0),$D61*$H61), 0) -> 0 | N61: 0 | P61: 0 | Q61: =IF($L61="MBD", IF(INTRO!$E$39="Non-endemic",IF($H61<>0,$D61*($H61-$G61),0),$D61*$H61),0) -> 54698 | R61: 76576 | T61: 131274 | V61: 0 | W61: 0 | Y61: 0 | Z61: 0 | AB61: 76576 | AC61: 511
A62: =IF(AND(INTRO!$E$37="Non-endemic",INTRO!$E$41="Non-endemic")," ",IF(COUNTRY_INFO!A62=0," ",COUNTRY_INFO!A62)) -> Nigeria | B62: =IF(AND(INTRO!$E$37="Non-endemic",INTRO!$E$41="Non-endemic")," ",IF(COUNTRY_INFO!B62=0," ",COUNTRY_INFO!B62)) -> Akwa Ibom | C62: =IF(AND(INTRO!$E$37="Non-endemic",INTRO!$E$41="Non-endemic")," ",IF(COUNTRY_INFO!C62=0," ",COUNTRY_INFO!C62)) -> Itu | D62: =IF(AND(INTRO!$E$37="Non-endemic",INTRO!$E$41="Non-endemic"),0,IF(AND(OR(COUNTRY_INFO!$H62=0,COUNTRY_INFO!$H62=4,COUNTRY_INFO!$H62=99),OR(COUNTRY_INFO!$J62=0,COUNTRY_INFO!$J62=4)),0,COUNTRY_INFO!$E62)) -> 35023 | E62: =IF(AND(INTRO!$E$37="Non-endemic",INTRO!$E$41="Non-endemic"),0,IF(AND(OR(COUNTRY_INFO!$H62=0,COUNTRY_INFO!$H62=4,COUNTRY_INFO!$H62=99),OR(COUNTRY_INFO!$J62=0,COUNTRY_INFO!$J62=4)),0,COUNTRY_INFO!$F62)) -> 49032 | F62: 84055 | G62: =IF(AND(INTRO!$E$37="Non-endemic",INTRO!$E$41="Non-endemic"),0,COUNTRY_INFO!Q62) -> 0 | H62: =IF(AND(INTRO!$E$37="Non-endemic",INTRO!$E$41="Non-endemic"),0,COUNTRY_INFO!S62) -> 2 | I62: =IF($G62=1,IVM!$G62,0) -> 0 | J62: =IF($G62=0, " ", IF(COUNTRY_INFO!$H62=1, IF(COUNTRY_INFO!$L62=1, 0," ")," ")) ->  | L62: MBD | M62: =IF($L62="ALB", IF(INTRO!$E$39="Non-endemic",IF($H62<>0,$D62*($H62-$G62),0),$D62*$H62), 0) -> 0 | N62: 0 | P62: 0 | Q62: =IF($L62="MBD", IF(INTRO!$E$39="Non-endemic",IF($H62<>0,$D62*($H62-$G62),0),$D62*$H62),0) -> 70046 | R62: 98064 | T62: 168110 | V62: 0 | W62: 0 | Y62: 0 | Z62: 0 | AB62: 98064 | AC62: 654
A63: =IF(AND(INTRO!$E$37="Non-endemic",INTRO!$E$41="Non-endemic")," ",IF(COUNTRY_INFO!A63=0," ",COUNTRY_INFO!A63)) -> Nigeria | B63: =IF(AND(INTRO!$E$37="Non-endemic",INTRO!$E$41="Non-endemic")," ",IF(COUNTRY_INFO!B63=0," ",COUNTRY_INFO!B63)) -> Akwa Ibom | C63: =IF(AND(INTRO!$E$37="Non-endemic",INTRO!$E$41="Non-endemic")," ",IF(COUNTRY_INFO!C63=0," ",COUNTRY_INFO!C63)) -> Mbo | D63: =IF(AND(INTRO!$E$37="Non-endemic",INTRO!$E$41="Non-endemic"),0,IF(AND(OR(COUNTRY_INFO!$H63=0,COUNTRY_INFO!$H63=4,COUNTRY_INFO!$H63=99),OR(COUNTRY_INFO!$J63=0,COUNTRY_INFO!$J63=4)),0,COUNTRY_INFO!$E63)) -> 28676 | E63: =IF(AND(INTRO!$E$37="Non-endemic",INTRO!$E$41="Non-endemic"),0,IF(AND(OR(COUNTRY_INFO!$H63=0,COUNTRY_INFO!$H63=4,COUNTRY_INFO!$H63=99),OR(COUNTRY_INFO!$J63=0,COUNTRY_INFO!$J63=4)),0,COUNTRY_INFO!$F63)) -> 40147 | F63: 68823 | G63: =IF(AND(INTRO!$E$37="Non-endemic",INTRO!$E$41="Non-endemic"),0,COUNTRY_INFO!Q63) -> 0 | H63: =IF(AND(INTRO!$E$37="Non-endemic",INTRO!$E$41="Non-endemic"),0,COUNTRY_INFO!S63) -> 2 | I63: =IF($G63=1,IVM!$G63,0) -> 0 | J63: =IF($G63=0, " ", IF(COUNTRY_INFO!$H63=1, IF(COUNTRY_INFO!$L63=1, 0," ")," ")) ->  | L63: MBD | M63: =IF($L63="ALB", IF(INTRO!$E$39="Non-endemic",IF($H63<>0,$D63*($H63-$G63),0),$D63*$H63), 0) -> 0 | N63: 0 | P63: 0 | Q63: =IF($L63="MBD", IF(INTRO!$E$39="Non-endemic",IF($H63<>0,$D63*($H63-$G63),0),$D63*$H63),0) -> 57352 | R63: 80294 | T63: 137646 | V63: 0 | W63: 0 | Y63: 0 | Z63: 0 | AB63: 80294 | AC63: 536
A64: =IF(AND(INTRO!$E$37="Non-endemic",INTRO!$E$41="Non-endemic")," ",IF(COUNTRY_INFO!A64=0," ",COUNTRY_INFO!A64)) -> Nigeria | B64: =IF(AND(INTRO!$E$37="Non-endemic",INTRO!$E$41="Non-endemic")," ",IF(COUNTRY_INFO!B64=0," ",COUNTRY_INFO!B64)) -> Akwa Ibom | C64: =IF(AND(INTRO!$E$37="Non-endemic",INTRO!$E$41="Non-endemic")," ",IF(COUNTRY_INFO!C64=0," ",COUNTRY_INFO!C64)) -> Mkpat Enin | D64: =IF(AND(INTRO!$E$37="Non-endemic",INTRO!$E$41="Non-endemic"),0,IF(AND(OR(COUNTRY_INFO!$H64=0,COUNTRY_INFO!$H64=4,COUNTRY_INFO!$H64=99),OR(COUNTRY_INFO!$J64=0,COUNTRY_INFO!$J64=4)),0,COUNTRY_INFO!$E64)) -> 49085 | E64: =IF(AND(INTRO!$E$37="Non-endemic",INTRO!$E$41="Non-endemic"),0,IF(AND(OR(COUNTRY_INFO!$H64=0,COUNTRY_INFO!$H64=4,COUNTRY_INFO!$H64=99),OR(COUNTRY_INFO!$J64=0,COUNTRY_INFO!$J64=4)),0,COUNTRY_INFO!$F64)) -> 68719 | F64: 117804 | G64: =IF(AND(INTRO!$E$37="Non-endemic",INTRO!$E$41="Non-endemic"),0,COUNTRY_INFO!Q64) -> 0 | H64: =IF(AND(INTRO!$E$37="Non-endemic",INTRO!$E$41="Non-endemic"),0,COUNTRY_INFO!S64) -> 2 | I64: =IF($G64=1,IVM!$G64,0) -> 0 | J64: =IF($G64=0, " ", IF(COUNTRY_INFO!$H64=1, IF(COUNTRY_INFO!$L64=1, 0," ")," ")) ->  | L64: MBD | M64: =IF($L64="ALB", IF(INTRO!$E$39="Non-endemic",IF($H64<>0,$D64*($H64-$G64),0),$D64*$H64), 0) -> 0 | N64: 0 | P64: 0 | Q64: =IF($L64="MBD", IF(INTRO!$E$39="Non-endemic",IF($H64<>0,$D64*($H64-$G64),0),$D64*$H64),0) -> 98170 | R64: 137438 | T64: 235608 | V64: 0 | W64: 0 | Y64: 0 | Z64: 0 | AB64: 137438 | AC64: 917
A65: =IF(AND(INTRO!$E$37="Non-endemic",INTRO!$E$41="Non-endemic")," ",IF(COUNTRY_INFO!A65=0," ",COUNTRY_INFO!A65)) -> Nigeria | B65: =IF(AND(INTRO!$E$37="Non-endemic",INTRO!$E$41="Non-endemic")," ",IF(COUNTRY_INFO!B65=0," ",COUNTRY_INFO!B65)) -> Akwa Ibom | C65: =IF(AND(INTRO!$E$37="Non-endemic",INTRO!$E$41="Non-endemic")," ",IF(COUNTRY_INFO!C65=0," ",COUNTRY_INFO!C65)) -> Nsit Atai | D65: =IF(AND(INTRO!$E$37="Non-endemic",INTRO!$E$41="Non-endemic"),0,IF(AND(OR(COUNTRY_INFO!$H65=0,COUNTRY_INFO!$H65=4,COUNTRY_INFO!$H65=99),OR(COUNTRY_INFO!$J65=0,COUNTRY_INFO!$J65=4)),0,COUNTRY_INFO!$E65)) -> 20566 | E65: =IF(AND(INTRO!$E$37="Non-endemic",INTRO!$E$41="Non-endemic"),0,IF(AND(OR(COUNTRY_INFO!$H65=0,COUNTRY_INFO!$H65=4,COUNTRY_INFO!$H65=99),OR(COUNTRY_INFO!$J65=0,COUNTRY_INFO!$J65=4)),0,COUNTRY_INFO!$F65)) -> 28792 | F65: 49358 | G65: =IF(AND(INTRO!$E$37="Non-endemic",INTRO!$E$41="Non-endemic"),0,COUNTRY_INFO!Q65) -> 0 | H65: =IF(AND(INTRO!$E$37="Non-endemic",INTRO!$E$41="Non-endemic"),0,COUNTRY_INFO!S65) -> 2 | I65: =IF($G65=1,IVM!$G65,0) -> 0 | J65: =IF($G65=0, " ", IF(COUNTRY_INFO!$H65=1, IF(COUNTRY_INFO!$L65=1, 0," ")," ")) ->  | L65: MBD | M65: =IF($L65="ALB", IF(INTRO!$E$39="Non-endemic",IF($H65<>0,$D65*($H65-$G65),0),$D65*$H65), 0) -> 0 | N65: 0 | P65: 0 | Q65: =IF($L65="MBD", IF(INTRO!$E$39="Non-endemic",IF($H65<>0,$D65*($H65-$G65),0),$D65*$H65),0) -> 41132 | R65: 57584 | T65: 98716 | V65: 0 | W65: 0 | Y65: 0 | Z65: 0 | AB65: 57584 | AC65: 384
A66: =IF(AND(INTRO!$E$37="Non-endemic",INTRO!$E$41="Non-endemic")," ",IF(COUNTRY_INFO!A66=0," ",COUNTRY_INFO!A66)) -> Nigeria | B66: =IF(AND(INTRO!$E$37="Non-endemic",INTRO!$E$41="Non-endemic")," ",IF(COUNTRY_INFO!B66=0," ",COUNTRY_INFO!B66)) -> Akwa Ibom | C66: =IF(AND(INTRO!$E$37="Non-endemic",INTRO!$E$41="Non-endemic")," ",IF(COUNTRY_INFO!C66=0," ",COUNTRY_INFO!C66)) -> Nsit Ibom | D66: =IF(AND(INTRO!$E$37="Non-endemic",INTRO!$E$41="Non-endemic"),0,IF(AND(OR(COUNTRY_INFO!$H66=0,COUNTRY_INFO!$H66=4,COUNTRY_INFO!$H66=99),OR(COUNTRY_INFO!$J66=0,COUNTRY_INFO!$J66=4)),0,COUNTRY_INFO!$E66)) -> 29944 | E66: =IF(AND(INTRO!$E$37="Non-endemic",INTRO!$E$41="Non-endemic"),0,IF(AND(OR(COUNTRY_INFO!$H66=0,COUNTRY_INFO!$H66=4,COUNTRY_INFO!$H66=99),OR(COUNTRY_INFO!$J66=0,COUNTRY_INFO!$J66=4)),0,COUNTRY_INFO!$F66)) -> 41922 | F66: 71866 | G66: =IF(AND(INTRO!$E$37="Non-endemic",INTRO!$E$41="Non-endemic"),0,COUNTRY_INFO!Q66) -> 0 | H66: =IF(AND(INTRO!$E$37="Non-endemic",INTRO!$E$41="Non-endemic"),0,COUNTRY_INFO!S66) -> 1 | I66: =IF($G66=1,IVM!$G66,0) -> 0 | J66: =IF($G66=0, " ", IF(COUNTRY_INFO!$H66=1, IF(COUNTRY_INFO!$L66=1, 0," ")," ")) ->  | L66: MBD | M66: =IF($L66="ALB", IF(INTRO!$E$39="Non-endemic",IF($H66<>0,$D66*($H66-$G66),0),$D66*$H66), 0) -> 0 | N66: 0 | P66: 0 | Q66: =IF($L66="MBD", IF(INTRO!$E$39="Non-endemic",IF($H66<>0,$D66*($H66-$G66),0),$D66*$H66),0) -> 29944 | R66: 41922 | T66: 71866 | V66: 0 | W66: 0 | Y66: 0 | Z66: 0 | AB66: 41922 | AC66: 280
A67: =IF(AND(INTRO!$E$37="Non-endemic",INTRO!$E$41="Non-endemic")," ",IF(COUNTRY_INFO!A67=0," ",COUNTRY_INFO!A67)) -> Nigeria | B67: =IF(AND(INTRO!$E$37="Non-endemic",INTRO!$E$41="Non-endemic")," ",IF(COUNTRY_INFO!B67=0," ",COUNTRY_INFO!B67)) -> Akwa Ibom | C67: =IF(AND(INTRO!$E$37="Non-endemic",INTRO!$E$41="Non-endemic")," ",IF(COUNTRY_INFO!C67=0," ",COUNTRY_INFO!C67)) -> Nsit Ubiom | D67: =IF(AND(INTRO!$E$37="Non-endemic",INTRO!$E$41="Non-endemic"),0,IF(AND(OR(COUNTRY_INFO!$H67=0,COUNTRY_INFO!$H67=4,COUNTRY_INFO!$H67=99),OR(COUNTRY_INFO!$J67=0,COUNTRY_INFO!$J67=4)),0,COUNTRY_INFO!$E67)) -> 35354 | E67: =IF(AND(INTRO!$E$37="Non-endemic",INTRO!$E$41="Non-endemic"),0,IF(AND(OR(COUNTRY_INFO!$H67=0,COUNTRY_INFO!$H67=4,COUNTRY_INFO!$H67=99),OR(COUNTRY_INFO!$J67=0,COUNTRY_INFO!$J67=4)),0,COUNTRY_INFO!$F67)) -> 49495 | F67: 84849 | G67: =IF(AND(INTRO!$E$37="Non-endemic",INTRO!$E$41="Non-endemic"),0,COUNTRY_INFO!Q67) -> 0 | H67: =IF(AND(INTRO!$E$37="Non-endemic",INTRO!$E$41="Non-endemic"),0,COUNTRY_INFO!S67) -> 2 | I67: =IF($G67=1,IVM!$G67,0) -> 0 | J67: =IF($G67=0, " ", IF(COUNTRY_INFO!$H67=1, IF(COUNTRY_INFO!$L67=1, 0," ")," ")) ->  | L67: MBD | M67: =IF($L67="ALB", IF(INTRO!$E$39="Non-endemic",IF($H67<>0,$D67*($H67-$G67),0),$D67*$H67), 0) -> 0 | N67: 0 | P67: 0 | Q67: =IF($L67="MBD", IF(INTRO!$E$39="Non-endemic",IF($H67<>0,$D67*($H67-$G67),0),$D67*$H67),0) -> 70708 | R67: 98990 | T67: 169698 | V67: 0 | W67: 0 | Y67: 0 | Z67: 0 | AB67: 98990 | AC67: 660
A68: =IF(AND(INTRO!$E$37="Non-endemic",INTRO!$E$41="Non-endemic")," ",IF(COUNTRY_INFO!A68=0," ",COUNTRY_INFO!A68)) -> Nigeria | B68: =IF(AND(INTRO!$E$37="Non-endemic",INTRO!$E$41="Non-endemic")," ",IF(COUNTRY_INFO!B68=0," ",COUNTRY_INFO!B68)) -> Akwa Ibom | C68: =IF(AND(INTRO!$E$37="Non-endemic",INTRO!$E$41="Non-endemic")," ",IF(COUNTRY_INFO!C68=0," ",COUNTRY_INFO!C68)) -> Obot Akara | D68: =IF(AND(INTRO!$E$37="Non-endemic",INTRO!$E$41="Non-endemic"),0,IF(AND(OR(COUNTRY_INFO!$H68=0,COUNTRY_INFO!$H68=4,COUNTRY_INFO!$H68=99),OR(COUNTRY_INFO!$J68=0,COUNTRY_INFO!$J68=4)),0,COUNTRY_INFO!$E68)) -> 40881 | E68: =IF(AND(INTRO!$E$37="Non-endemic",INTRO!$E$41="Non-endemic"),0,IF(AND(OR(COUNTRY_INFO!$H68=0,COUNTRY_INFO!$H68=4,COUNTRY_INFO!$H68=99),OR(COUNTRY_INFO!$J68=0,COUNTRY_INFO!$J68=4)),0,COUNTRY_INFO!$F68)) -> 57234 | F68: 98115 | G68: =IF(AND(INTRO!$E$37="Non-endemic",INTRO!$E$41="Non-endemic"),0,COUNTRY_INFO!Q68) -> 0 | H68: =IF(AND(INTRO!$E$37="Non-endemic",INTRO!$E$41="Non-endemic"),0,COUNTRY_INFO!S68) -> 2 | I68: =IF($G68=1,IVM!$G68,0) -> 0 | J68: =IF($G68=0, " ", IF(COUNTRY_INFO!$H68=1, IF(COUNTRY_INFO!$L68=1, 0," ")," ")) ->  | L68: MBD | M68: =IF($L68="ALB", IF(INTRO!$E$39="Non-endemic",IF($H68<>0,$D68*($H68-$G68),0),$D68*$H68), 0) -> 0 | N68: 0 | P68: 0 | Q68: =IF($L68="MBD", IF(INTRO!$E$39="Non-endemic",IF($H68<>0,$D68*($H68-$G68),0),$D68*$H68),0) -> 81762 | R68: 114468 | T68: 196230 | V68: 0 | W68: 0 | Y68: 0 | Z68: 0 | AB68: 114468 | AC68: 764
A69: =IF(AND(INTRO!$E$37="Non-endemic",INTRO!$E$41="Non-endemic")," ",IF(COUNTRY_INFO!A69=0," ",COUNTRY_INFO!A69)) -> Nigeria | B69: =IF(AND(INTRO!$E$37="Non-endemic",INTRO!$E$41="Non-endemic")," ",IF(COUNTRY_INFO!B69=0," ",COUNTRY_INFO!B69)) -> Akwa Ibom | C69: =IF(AND(INTRO!$E$37="Non-endemic",INTRO!$E$41="Non-endemic")," ",IF(COUNTRY_INFO!C69=0," ",COUNTRY_INFO!C69)) -> Okobo | D69: =IF(AND(INTRO!$E$37="Non-endemic",INTRO!$E$41="Non-endemic"),0,IF(AND(OR(COUNTRY_INFO!$H69=0,COUNTRY_INFO!$H69=4,COUNTRY_INFO!$H69=99),OR(COUNTRY_INFO!$J69=0,COUNTRY_INFO!$J69=4)),0,COUNTRY_INFO!$E69)) -> 28689 | E69: =IF(AND(INTRO!$E$37="Non-endemic",INTRO!$E$41="Non-endemic"),0,IF(AND(OR(COUNTRY_INFO!$H69=0,COUNTRY_INFO!$H69=4,COUNTRY_INFO!$H69=99),OR(COUNTRY_INFO!$J69=0,COUNTRY_INFO!$J69=4)),0,COUNTRY_INFO!$F69)) -> 40164 | F69: 68853 | G69: =IF(AND(INTRO!$E$37="Non-endemic",INTRO!$E$41="Non-endemic"),0,COUNTRY_INFO!Q69) -> 1 | H69: =IF(AND(INTRO!$E$37="Non-endemic",INTRO!$E$41="Non-endemic"),0,COUNTRY_INFO!S69) -> 2 | I69: =IF($G69=1,IVM!$G69,0) -> 114755 | J69: =IF($G69=0, " ", IF(COUNTRY_INFO!$H69=1, IF(COUNTRY_INFO!$L69=1, 0," ")," ")) ->  | L69: MBD | M69: =IF($L69="ALB", IF(INTRO!$E$39="Non-endemic",IF($H69<>0,$D69*($H69-$G69),0),$D69*$H69), 0) -> 0 | N69: 0 | P69: 0 | Q69: =IF($L69="MBD", IF(INTRO!$E$39="Non-endemic",IF($H69<>0,$D69*($H69-$G69),0),$D69*$H69),0) -> 57378 | R69: 40164 | T69: 97542 | V69: 114755 | W69: 574 | Y69: 0 | Z69: 0 | AB69: 40164 | AC69: 268
A70: =IF(AND(INTRO!$E$37="Non-endemic",INTRO!$E$41="Non-endemic")," ",IF(COUNTRY_INFO!A70=0," ",COUNTRY_INFO!A70)) -> Nigeria | B70: =IF(AND(INTRO!$E$37="Non-endemic",INTRO!$E$41="Non-endemic")," ",IF(COUNTRY_INFO!B70=0," ",COUNTRY_INFO!B70)) -> Akwa Ibom | C70: =IF(AND(INTRO!$E$37="Non-endemic",INTRO!$E$41="Non-endemic")," ",IF(COUNTRY_INFO!C70=0," ",COUNTRY_INFO!C70)) -> Onna | D70: =IF(AND(INTRO!$E$37="Non-endemic",INTRO!$E$41="Non-endemic"),0,IF(AND(OR(COUNTRY_INFO!$H70=0,COUNTRY_INFO!$H70=4,COUNTRY_INFO!$H70=99),OR(COUNTRY_INFO!$J70=0,COUNTRY_INFO!$J70=4)),0,COUNTRY_INFO!$E70)) -> 34014 | E70: =IF(AND(INTRO!$E$37="Non-endemic",INTRO!$E$41="Non-endemic"),0,IF(AND(OR(COUNTRY_INFO!$H70=0,COUNTRY_INFO!$H70=4,COUNTRY_INFO!$H70=99),OR(COUNTRY_INFO!$J70=0,COUNTRY_INFO!$J70=4)),0,COUNTRY_INFO!$F70)) -> 47620 | F70: 81634 | G70: =IF(AND(INTRO!$E$37="Non-endemic",INTRO!$E$41="Non-endemic"),0,COUNTRY_INFO!Q70) -> 1 | H70: =IF(AND(INTRO!$E$37="Non-endemic",INTRO!$E$41="Non-endemic"),0,COUNTRY_INFO!S70) -> 2 | I70: =IF($G70=1,IVM!$G70,0) -> 136057 | J70: =IF($G70=0, " ", IF(COUNTRY_INFO!$H70=1, IF(COUNTRY_INFO!$L70=1, 0," ")," ")) ->  | L70: MBD | M70: =IF($L70="ALB", IF(INTRO!$E$39="Non-endemic",IF($H70<>0,$D70*($H70-$G70),0),$D70*$H70), 0) -> 0 | N70: 0 | P70: 0 | Q70: =IF($L70="MBD", IF(INTRO!$E$39="Non-endemic",IF($H70<>0,$D70*($H70-$G70),0),$D70*$H70),0) -> 68028 | R70: 47620 | T70: 115648 | V70: 136057 | W70: 681 | Y70: 0 | Z70: 0 | AB70: 47620 | AC70: 318
A71: =IF(AND(INTRO!$E$37="Non-endemic",INTRO!$E$41="Non-endemic")," ",IF(COUNTRY_INFO!A71=0," ",COUNTRY_INFO!A71)) -> Nigeria | B71: =IF(AND(INTRO!$E$37="Non-endemic",INTRO!$E$41="Non-endemic")," ",IF(COUNTRY_INFO!B71=0," ",COUNTRY_INFO!B71)) -> Akwa Ibom | C71: =IF(AND(INTRO!$E$37="Non-endemic",INTRO!$E$41="Non-endemic")," ",IF(COUNTRY_INFO!C71=0," ",COUNTRY_INFO!C71)) -> Oron | D71: =IF(AND(INTRO!$E$37="Non-endemic",INTRO!$E$41="Non-endemic"),0,IF(AND(OR(COUNTRY_INFO!$H71=0,COUNTRY_INFO!$H71=4,COUNTRY_INFO!$H71=99),OR(COUNTRY_INFO!$J71=0,COUNTRY_INFO!$J71=4)),0,COUNTRY_INFO!$E71)) -> 24113 | E71: =IF(AND(INTRO!$E$37="Non-endemic",INTRO!$E$41="Non-endemic"),0,IF(AND(OR(COUNTRY_INFO!$H71=0,COUNTRY_INFO!$H71=4,COUNTRY_INFO!$H71=99),OR(COUNTRY_INFO!$J71=0,COUNTRY_INFO!$J71=4)),0,COUNTRY_INFO!$F71)) -> 33758 | F71: 57871 | G71: =IF(AND(INTRO!$E$37="Non-endemic",INTRO!$E$41="Non-endemic"),0,COUNTRY_INFO!Q71) -> 1 | H71: =IF(AND(INTRO!$E$37="Non-endemic",INTRO!$E$41="Non-endemic"),0,COUNTRY_INFO!S71) -> 2 | I71: =IF($G71=1,IVM!$G71,0) -> 96452 | J71: =IF($G71=0, " ", IF(COUNTRY_INFO!$H71=1, IF(COUNTRY_INFO!$L71=1, 0," ")," ")) ->  | L71: MBD | M71: =IF($L71="ALB", IF(INTRO!$E$39="Non-endemic",IF($H71<>0,$D71*($H71-$G71),0),$D71*$H71), 0) -> 0 | N71: 0 | P71: 0 | Q71: =IF($L71="MBD", IF(INTRO!$E$39="Non-endemic",IF($H71<>0,$D71*($H71-$G71),0),$D71*$H71),0) -> 48226 | R71: 33758 | T71: 81984 | V71: 96452 | W71: 483 | Y71: 0 | Z71: 0 | AB71: 33758 | AC71: 226
A72: =IF(AND(INTRO!$E$37="Non-endemic",INTRO!$E$41="Non-endemic")," ",IF(COUNTRY_INFO!A72=0," ",COUNTRY_INFO!A72)) -> Nigeria | B72: =IF(AND(INTRO!$E$37="Non-endemic",INTRO!$E$41="Non-endemic")," ",IF(COUNTRY_INFO!B72=0," ",COUNTRY_INFO!B72)) -> Akwa Ibom | C72: =IF(AND(INTRO!$E$37="Non-endemic",INTRO!$E$41="Non-endemic")," ",IF(COUNTRY_INFO!C72=0," ",COUNTRY_INFO!C72)) -> Oruk Anam | D72: =IF(AND(INTRO!$E$37="Non-endemic",INTRO!$E$41="Non-endemic"),0,IF(AND(OR(COUNTRY_INFO!$H72=0,COUNTRY_INFO!$H72=4,COUNTRY_INFO!$H72=99),OR(COUNTRY_INFO!$J72=0,COUNTRY_INFO!$J72=4)),0,COUNTRY_INFO!$E72)) -> 47601 | E72: =IF(AND(INTRO!$E$37="Non-endemic",INTRO!$E$41="Non-endemic"),0,IF(AND(OR(COUNTRY_INFO!$H72=0,COUNTRY_INFO!$H72=4,COUNTRY_INFO!$H72=99),OR(COUNTRY_INFO!$J72=0,COUNTRY_INFO!$J72=4)),0,COUNTRY_INFO!$F72)) -> 66641 | F72: 114242 | G72: =IF(AND(INTRO!$E$37="Non-endemic",INTRO!$E$41="Non-endemic"),0,COUNTRY_INFO!Q72) -> 0 | H72: =IF(AND(INTRO!$E$37="Non-endemic",INTRO!$E$41="Non-endemic"),0,COUNTRY_INFO!S72) -> 2 | I72: =IF($G72=1,IVM!$G72,0) -> 0 | J72: =IF($G72=0, " ", IF(COUNTRY_INFO!$H72=1, IF(COUNTRY_INFO!$L72=1, 0," ")," ")) ->  | L72: MBD | M72: =IF($L72="ALB", IF(INTRO!$E$39="Non-endemic",IF($H72<>0,$D72*($H72-$G72),0),$D72*$H72), 0) -> 0 | N72: 0 | P72: 0 | Q72: =IF($L72="MBD", IF(INTRO!$E$39="Non-endemic",IF($H72<>0,$D72*($H72-$G72),0),$D72*$H72),0) -> 95202 | R72: 133282 | T72: 228484 | V72: 0 | W72: 0 | Y72: 0 | Z72: 0 | AB72: 133282 | AC72: 889
A73: =IF(AND(INTRO!$E$37="Non-endemic",INTRO!$E$41="Non-endemic")," ",IF(COUNTRY_INFO!A73=0," ",COUNTRY_INFO!A73)) -> Nigeria | B73: =IF(AND(INTRO!$E$37="Non-endemic",INTRO!$E$41="Non-endemic")," ",IF(COUNTRY_INFO!B73=0," ",COUNTRY_INFO!B73)) -> Akwa Ibom | C73: =IF(AND(INTRO!$E$37="Non-endemic",INTRO!$E$41="Non-endemic")," ",IF(COUNTRY_INFO!C73=0," ",COUNTRY_INFO!C73)) -> Udung Uko | D73: =IF(AND(INTRO!$E$37="Non-endemic",INTRO!$E$41="Non-endemic"),0,IF(AND(OR(COUNTRY_INFO!$H73=0,COUNTRY_INFO!$H73=4,COUNTRY_INFO!$H73=99),OR(COUNTRY_INFO!$J73=0,COUNTRY_INFO!$J73=4)),0,COUNTRY_INFO!$E73)) -> 14689 | E73: =IF(AND(INTRO!$E$37="Non-endemic",INTRO!$E$41="Non-endemic"),0,IF(AND(OR(COUNTRY_INFO!$H73=0,COUNTRY_INFO!$H73=4,COUNTRY_INFO!$H73=99),OR(COUNTRY_INFO!$J73=0,COUNTRY_INFO!$J73=4)),0,COUNTRY_INFO!$F73)) -> 20564 | F73: 35253 | G73: =IF(AND(INTRO!$E$37="Non-endemic",INTRO!$E$41="Non-endemic"),0,COUNTRY_INFO!Q73) -> 1 | H73: =IF(AND(INTRO!$E$37="Non-endemic",INTRO!$E$41="Non-endemic"),0,COUNTRY_INFO!S73) -> 2 | I73: =IF($G73=1,IVM!$G73,0) -> 58755 | J73: =IF($G73=0, " ", IF(COUNTRY_INFO!$H73=1, IF(COUNTRY_INFO!$L73=1, 0," ")," ")) ->  | L73: MBD | M73: =IF($L73="ALB", IF(INTRO!$E$39="Non-endemic",IF($H73<>0,$D73*($H73-$G73),0),$D73*$H73), 0) -> 0 | N73: 0 | P73: 0 | Q73: =IF($L73="MBD", IF(INTRO!$E$39="Non-endemic",IF($H73<>0,$D73*($H73-$G73),0),$D73*$H73),0) -> 29378 | R73: 20564 | T73: 49942 | V73: =IF($J73<>" ", IF(($I73+$J73*$K73)>$U73, ($I73+$J73*$K73)-$U73,0), IF($I73>$U73, $I73-$U73, 0)) -> 58755 | W73: =IF($J73<>" ", ROUNDUP(($I73+$J73*$K73)/200,0), ROUNDUP($I73/200,0)) -> 294 | Y73: 0 | Z73: 0 | AB73: 20564 | AC73: 138
A74: =IF(AND(INTRO!$E$37="Non-endemic",INTRO!$E$41="Non-endemic")," ",IF(COUNTRY_INFO!A74=0," ",COUNTRY_INFO!A74)) -> Nigeria | B74: =IF(AND(INTRO!$E$37="Non-endemic",INTRO!$E$41="Non-endemic")," ",IF(COUNTRY_INFO!B74=0," ",COUNTRY_INFO!B74)) -> Akwa Ibom | C74: =IF(AND(INTRO!$E$37="Non-endemic",INTRO!$E$41="Non-endemic")," ",IF(COUNTRY_INFO!C74=0," ",COUNTRY_INFO!C74)) -> Ukanafun | D74: =IF(AND(INTRO!$E$37="Non-endemic",INTRO!$E$41="Non-endemic"),0,IF(AND(OR(COUNTRY_INFO!$H74=0,COUNTRY_INFO!$H74=4,COUNTRY_INFO!$H74=99),OR(COUNTRY_INFO!$J74=0,COUNTRY_INFO!$J74=4)),0,COUNTRY_INFO!$E74)) -> 35023 | E74: =IF(AND(INTRO!$E$37="Non-endemic",INTRO!$E$41="Non-endemic"),0,IF(AND(OR(COUNTRY_INFO!$H74=0,COUNTRY_INFO!$H74=4,COUNTRY_INFO!$H74=99),OR(COUNTRY_INFO!$J74=0,COUNTRY_INFO!$J74=4)),0,COUNTRY_INFO!$F74)) -> 49032 | F74: =SUM(D74:E74) -> 84055 | G74: =IF(AND(INTRO!$E$37="Non-endemic",INTRO!$E$41="Non-endemic"),0,COUNTRY_INFO!Q74) -> 0 | H74: =IF(AND(INTRO!$E$37="Non-endemic",INTRO!$E$41="Non-endemic"),0,COUNTRY_INFO!S74) -> 1 | I74: =IF($G74=1,IVM!$G74,0) -> 0 | J74: =IF($G74=0, " ", IF(COUNTRY_INFO!$H74=1, IF(COUNTRY_INFO!$L74=1, 0," ")," ")) ->  | L74: MBD | M74: =IF($L74="ALB", IF(INTRO!$E$39="Non-endemic",IF($H74<>0,$D74*($H74-$G74),0),$D74*$H74), 0) -> 0 | N74: 0 | P74: =SUM(M74:O74) -> 0 | Q74: =IF($L74="MBD", IF(INTRO!$E$39="Non-endemic",IF($H74<>0,$D74*($H74-$G74),0),$D74*$H74),0) -> 35023 | R74: 49032 | T74: =SUM(Q74:S74) -> 84055 | V74: 0 | W74: 0 | Y74: 0 | Z74: 0 | AB74: 49032 | AC74: 327
A75: =IF(AND(INTRO!$E$37="Non-endemic",INTRO!$E$41="Non-endemic")," ",IF(COUNTRY_INFO!A75=0," ",COUNTRY_INFO!A75)) -> Nigeria | B75: =IF(AND(INTRO!$E$37="Non-endemic",INTRO!$E$41="Non-endemic")," ",IF(COUNTRY_INFO!B75=0," ",COUNTRY_INFO!B75)) -> Akwa Ibom | C75: =IF(AND(INTRO!$E$37="Non-endemic",INTRO!$E$41="Non-endemic")," ",IF(COUNTRY_INFO!C75=0," ",COUNTRY_INFO!C75)) -> Uruan | D75: =IF(AND(INTRO!$E$37="Non-endemic",INTRO!$E$41="Non-endemic"),0,IF(AND(OR(COUNTRY_INFO!$H75=0,COUNTRY_INFO!$H75=4,COUNTRY_INFO!$H75=99),OR(COUNTRY_INFO!$J75=0,COUNTRY_INFO!$J75=4)),0,COUNTRY_INFO!$E75)) -> 32616 | E75: =IF(AND(INTRO!$E$37="Non-endemic",INTRO!$E$41="Non-endemic"),0,IF(AND(OR(COUNTRY_INFO!$H75=0,COUNTRY_INFO!$H75=4,COUNTRY_INFO!$H75=99),OR(COUNTRY_INFO!$J75=0,COUNTRY_INFO!$J75=4)),0,COUNTRY_INFO!$F75)) -> 45662 | F75: 78278 | G75: =IF(AND(INTRO!$E$37="Non-endemic",INTRO!$E$41="Non-endemic"),0,COUNTRY_INFO!Q75) -> 1 | H75: =IF(AND(INTRO!$E$37="Non-endemic",INTRO!$E$41="Non-endemic"),0,COUNTRY_INFO!S75) -> 2 | I75: =IF($G75=1,IVM!$G75,0) -> 130463 | J75: =IF($G75=0, " ", IF(COUNTRY_INFO!$H75=1, IF(COUNTRY_INFO!$L75=1, 0," ")," ")) ->  | L75: MBD | M75: =IF($L75="ALB", IF(INTRO!$E$39="Non-endemic",IF($H75<>0,$D75*($H75-$G75),0),$D75*$H75), 0) -> 0 | N75: 0 | P75: 0 | Q75: =IF($L75="MBD", IF(INTRO!$E$39="Non-endemic",IF($H75<>0,$D75*($H75-$G75),0),$D75*$H75),0) -> 65232 | R75: 45662 | T75: 110894 | V75: 130463 | W75: 653 | Y75: 0 | Z75: 0 | AB75: 45662 | AC75: 305
A76: =IF(AND(INTRO!$E$37="Non-endemic",INTRO!$E$41="Non-endemic")," ",IF(COUNTRY_INFO!A76=0," ",COUNTRY_INFO!A76)) -> Nigeria | B76: =IF(AND(INTRO!$E$37="Non-endemic",INTRO!$E$41="Non-endemic")," ",IF(COUNTRY_INFO!B76=0," ",COUNTRY_INFO!B76)) -> Akwa Ibom | C76: =IF(AND(INTRO!$E$37="Non-endemic",INTRO!$E$41="Non-endemic")," ",IF(COUNTRY_INFO!C76=0," ",COUNTRY_INFO!C76)) -> Urue-Offong/Oruko | D76: =IF(AND(INTRO!$E$37="Non-endemic",INTRO!$E$41="Non-endemic"),0,IF(AND(OR(COUNTRY_INFO!$H76=0,COUNTRY_INFO!$H76=4,COUNTRY_INFO!$H76=99),OR(COUNTRY_INFO!$J76=0,COUNTRY_INFO!$J76=4)),0,COUNTRY_INFO!$E76)) -> 19619 | E76: =IF(AND(INTRO!$E$37="Non-endemic",INTRO!$E$41="Non-endemic"),0,IF(AND(OR(COUNTRY_INFO!$H76=0,COUNTRY_INFO!$H76=4,COUNTRY_INFO!$H76=99),OR(COUNTRY_INFO!$J76=0,COUNTRY_INFO!$J76=4)),0,COUNTRY_INFO!$F76)) -> 27466 | F76: 47085 | G76: =IF(AND(INTRO!$E$37="Non-endemic",INTRO!$E$41="Non-endemic"),0,COUNTRY_INFO!Q76) -> 0 | H76: =IF(AND(INTRO!$E$37="Non-endemic",INTRO!$E$41="Non-endemic"),0,COUNTRY_INFO!S76) -> 2 | I76: =IF($G76=1,IVM!$G76,0) -> 0 | J76: =IF($G76=0, " ", IF(COUNTRY_INFO!$H76=1, IF(COUNTRY_INFO!$L76=1, 0," ")," ")) ->  | L76: MBD | M76: =IF($L76="ALB", IF(INTRO!$E$39="Non-endemic",IF($H76<>0,$D76*($H76-$G76),0),$D76*$H76), 0) -> 0 | N76: 0 | P76: 0 | Q76: =IF($L76="MBD", IF(INTRO!$E$39="Non-endemic",IF($H76<>0,$D76*($H76-$G76),0),$D76*$H76),0) -> 39238 | R76: 54932 | T76: 94170 | V76: 0 | W76: 0 | Y76: 0 | Z76: 0 | AB76: 54932 | AC76: 367
A77: =IF(AND(INTRO!$E$37="Non-endemic",INTRO!$E$41="Non-endemic")," ",IF(COUNTRY_INFO!A77=0," ",COUNTRY_INFO!A77)) -> Nigeria | B77: =IF(AND(INTRO!$E$37="Non-endemic",INTRO!$E$41="Non-endemic")," ",IF(COUNTRY_INFO!B77=0," ",COUNTRY_INFO!B77)) -> Akwa Ibom | C77: =IF(AND(INTRO!$E$37="Non-endemic",INTRO!$E$41="Non-endemic")," ",IF(COUNTRY_INFO!C77=0," ",COUNTRY_INFO!C77)) -> Uyo | D77: =IF(AND(INTRO!$E$37="Non-endemic",INTRO!$E$41="Non-endemic"),0,IF(AND(OR(COUNTRY_INFO!$H77=0,COUNTRY_INFO!$H77=4,COUNTRY_INFO!$H77=99),OR(COUNTRY_INFO!$J77=0,COUNTRY_INFO!$J77=4)),0,COUNTRY_INFO!$E77)) -> 85350 | E77: =IF(AND(INTRO!$E$37="Non-endemic",INTRO!$E$41="Non-endemic"),0,IF(AND(OR(COUNTRY_INFO!$H77=0,COUNTRY_INFO!$H77=4,COUNTRY_INFO!$H77=99),OR(COUNTRY_INFO!$J77=0,COUNTRY_INFO!$J77=4)),0,COUNTRY_INFO!$F77)) -> 119490 | F77: 204840 | G77: =IF(AND(INTRO!$E$37="Non-endemic",INTRO!$E$41="Non-endemic"),0,COUNTRY_INFO!Q77) -> 0 | H77: =IF(AND(INTRO!$E$37="Non-endemic",INTRO!$E$41="Non-endemic"),0,COUNTRY_INFO!S77) -> 1 | I77: =IF($G77=1,IVM!$G77,0) -> 0 | J77: =IF($G77=0, " ", IF(COUNTRY_INFO!$H77=1, IF(COUNTRY_INFO!$L77=1, 0," ")," ")) ->  | L77: MBD | M77: =IF($L77="ALB", IF(INTRO!$E$39="Non-endemic",IF($H77<>0,$D77*($H77-$G77),0),$D77*$H77), 0) -> 0 | N77: 0 | P77: 0 | Q77: =IF($L77="MBD", IF(INTRO!$E$39="Non-endemic",IF($H77<>0,$D77*($H77-$G77),0),$D77*$H77),0) -> 85350 | R77: 119490 | T77: 204840 | V77: 0 | W77: 0 | Y77: 0 | Z77: 0 | AB77: 119490 | AC77: 797
A78: =IF(AND(INTRO!$E$37="Non-endemic",INTRO!$E$41="Non-endemic")," ",IF(COUNTRY_INFO!A78=0," ",COUNTRY_INFO!A78)) -> Nigeria | B78: =IF(AND(INTRO!$E$37="Non-endemic",INTRO!$E$41="Non-endemic")," ",IF(COUNTRY_INFO!B78=0," ",COUNTRY_INFO!B78)) -> Anambra | C78: =IF(AND(INTRO!$E$37="Non-endemic",INTRO!$E$41="Non-endemic")," ",IF(COUNTRY_INFO!C78=0," ",COUNTRY_INFO!C78)) -> Aguata | D78: =IF(AND(INTRO!$E$37="Non-endemic",INTRO!$E$41="Non-endemic"),0,IF(AND(OR(COUNTRY_INFO!$H78=0,COUNTRY_INFO!$H78=4,COUNTRY_INFO!$H78=99),OR(COUNTRY_INFO!$J78=0,COUNTRY_INFO!$J78=4)),0,COUNTRY_INFO!$E78)) -> 102057 | E78: =IF(AND(INTRO!$E$37="Non-endemic",INTRO!$E$41="Non-endemic"),0,IF(AND(OR(COUNTRY_INFO!$H78=0,COUNTRY_INFO!$H78=4,COUNTRY_INFO!$H78=99),OR(COUNTRY_INFO!$J78=0,COUNTRY_INFO!$J78=4)),0,COUNTRY_INFO!$F78)) -> 142880 | F78: 244937 | G78: =IF(AND(INTRO!$E$37="Non-endemic",INTRO!$E$41="Non-endemic"),0,COUNTRY_INFO!Q78) -> 1 | H78: =IF(AND(INTRO!$E$37="Non-endemic",INTRO!$E$41="Non-endemic"),0,COUNTRY_INFO!S78) -> 1 | I78: =IF($G78=1,IVM!$G78,0) -> 408229 | J78: =IF($G78=0, " ", IF(COUNTRY_INFO!$H78=1, IF(COUNTRY_INFO!$L78=1, 0," ")," ")) ->  | L78: MBD | M78: =IF($L78="ALB", IF(INTRO!$E$39="Non-endemic",IF($H78<>0,$D78*($H78-$G78),0),$D78*$H78), 0) -> 0 | N78: 0 | P78: 0 | Q78: =IF($L78="MBD", IF(INTRO!$E$39="Non-endemic",IF($H78<>0,$D78*($H78-$G78),0),$D78*$H78),0) -> 102057 | R78: 0 | T78: 102057 | V78: 408229 | W78: 2042 | Y78: 0 | Z78: 0 | AB78: 0 | AC78: 0
A79: =IF(AND(INTRO!$E$37="Non-endemic",INTRO!$E$41="Non-endemic")," ",IF(COUNTRY_INFO!A79=0," ",COUNTRY_INFO!A79)) -> Nigeria | B79: =IF(AND(INTRO!$E$37="Non-endemic",INTRO!$E$41="Non-endemic")," ",IF(COUNTRY_INFO!B79=0," ",COUNTRY_INFO!B79)) -> Anambra | C79: =IF(AND(INTRO!$E$37="Non-endemic",INTRO!$E$41="Non-endemic")," ",IF(COUNTRY_INFO!C79=0," ",COUNTRY_INFO!C79)) -> Anambra East | D79: =IF(AND(INTRO!$E$37="Non-endemic",INTRO!$E$41="Non-endemic"),0,IF(AND(OR(COUNTRY_INFO!$H79=0,COUNTRY_INFO!$H79=4,COUNTRY_INFO!$H79=99),OR(COUNTRY_INFO!$J79=0,COUNTRY_INFO!$J79=4)),0,COUNTRY_INFO!$E79)) -> 42274 | E79: =IF(AND(INTRO!$E$37="Non-endemic",INTRO!$E$41="Non-endemic"),0,IF(AND(OR(COUNTRY_INFO!$H79=0,COUNTRY_INFO!$H79=4,COUNTRY_INFO!$H79=99),OR(COUNTRY_INFO!$J79=0,COUNTRY_INFO!$J79=4)),0,COUNTRY_INFO!$F79)) -> 59183 | F79: 101457 | G79: =IF(AND(INTRO!$E$37="Non-endemic",INTRO!$E$41="Non-endemic"),0,COUNTRY_INFO!Q79) -> 1 | H79: =IF(AND(INTRO!$E$37="Non-endemic",INTRO!$E$41="Non-endemic"),0,COUNTRY_INFO!S79) -> 0 | I79: =IF($G79=1,IVM!$G79,0) -> 169094 | J79: =IF($G79=0, " ", IF(COUNTRY_INFO!$H79=1, IF(COUNTRY_INFO!$L79=1, 0," ")," ")) ->  | L79: MBD | M79: =IF($L79="ALB", IF(INTRO!$E$39="Non-endemic",IF($H79<>0,$D79*($H79-$G79),0),$D79*$H79), 0) -> 0 | N79: 0 | P79: 0 | Q79: =IF($L79="MBD", IF(INTRO!$E$39="Non-endemic",IF($H79<>0,$D79*($H79-$G79),0),$D79*$H79),0) -> 0 | R79: 0 | T79: 0 | V79: 169094 | W79: 846 | Y79: 0 | Z79: 0 | AB79: 0 | AC79: 0
A80: =IF(AND(INTRO!$E$37="Non-endemic",INTRO!$E$41="Non-endemic")," ",IF(COUNTRY_INFO!A80=0," ",COUNTRY_INFO!A80)) -> Nigeria | B80: =IF(AND(INTRO!$E$37="Non-endemic",INTRO!$E$41="Non-endemic")," ",IF(COUNTRY_INFO!B80=0," ",COUNTRY_INFO!B80)) -> Anambra | C80: =IF(AND(INTRO!$E$37="Non-endemic",INTRO!$E$41="Non-endemic")," ",IF(COUNTRY_INFO!C80=0," ",COUNTRY_INFO!C80)) -> Anambra West | D80: =IF(AND(INTRO!$E$37="Non-endemic",INTRO!$E$41="Non-endemic"),0,IF(AND(OR(COUNTRY_INFO!$H80=0,COUNTRY_INFO!$H80=4,COUNTRY_INFO!$H80=99),OR(COUNTRY_INFO!$J80=0,COUNTRY_INFO!$J80=4)),0,COUNTRY_INFO!$E80)) -> 46157 | E80: =IF(AND(INTRO!$E$37="Non-endemic",INTRO!$E$41="Non-endemic"),0,IF(AND(OR(COUNTRY_INFO!$H80=0,COUNTRY_INFO!$H80=4,COUNTRY_INFO!$H80=99),OR(COUNTRY_INFO!$J80=0,COUNTRY_INFO!$J80=4)),0,COUNTRY_INFO!$F80)) -> 64620 | F80: 110777 | G80: =IF(AND(INTRO!$E$37="Non-endemic",INTRO!$E$41="Non-endemic"),0,COUNTRY_INFO!Q80) -> 1 | H80: =IF(AND(INTRO!$E$37="Non-endemic",INTRO!$E$41="Non-endemic"),0,COUNTRY_INFO!S80) -> 0 | I80: =IF($G80=1,IVM!$G80,0) -> 184628 | J80: =IF($G80=0, " ", IF(COUNTRY_INFO!$H80=1, IF(COUNTRY_INFO!$L80=1, 0," ")," ")) ->  | L80: MBD | M80: =IF($L80="ALB", IF(INTRO!$E$39="Non-endemic",IF($H80<>0,$D80*($H80-$G80),0),$D80*$H80), 0) -> 0 | N80: 0 | P80: 0 | Q80: =IF($L80="MBD", IF(INTRO!$E$39="Non-endemic",IF($H80<>0,$D80*($H80-$G80),0),$D80*$H80),0) -> 0 | R80: 0 | T80: 0 | V80: 184628 | W80: 924 | Y80: 0 | Z80: 0 | AB80: 0 | AC80: 0
A81: =IF(AND(INTRO!$E$37="Non-endemic",INTRO!$E$41="Non-endemic")," ",IF(COUNTRY_INFO!A81=0," ",COUNTRY_INFO!A81)) -> Nigeria | B81: =IF(AND(INTRO!$E$37="Non-endemic",INTRO!$E$41="Non-endemic")," ",IF(COUNTRY_INFO!B81=0," ",COUNTRY_INFO!B81)) -> Anambra | C81: =IF(AND(INTRO!$E$37="Non-endemic",INTRO!$E$41="Non-endemic")," ",IF(COUNTRY_INFO!C81=0," ",COUNTRY_INFO!C81)) -> Anaocha | D81: =IF(AND(INTRO!$E$37="Non-endemic",INTRO!$E$41="Non-endemic"),0,IF(AND(OR(COUNTRY_INFO!$H81=0,COUNTRY_INFO!$H81=4,COUNTRY_INFO!$H81=99),OR(COUNTRY_INFO!$J81=0,COUNTRY_INFO!$J81=4)),0,COUNTRY_INFO!$E81)) -> 78576 | E81: =IF(AND(INTRO!$E$37="Non-endemic",INTRO!$E$41="Non-endemic"),0,IF(AND(OR(COUNTRY_INFO!$H81=0,COUNTRY_INFO!$H81=4,COUNTRY_INFO!$H81=99),OR(COUNTRY_INFO!$J81=0,COUNTRY_INFO!$J81=4)),0,COUNTRY_INFO!$F81)) -> 110006 | F81: 188582 | G81: =IF(AND(INTRO!$E$37="Non-endemic",INTRO!$E$41="Non-endemic"),0,COUNTRY_INFO!Q81) -> 1 | H81: =IF(AND(INTRO!$E$37="Non-endemic",INTRO!$E$41="Non-endemic"),0,COUNTRY_INFO!S81) -> 0 | I81: =IF($G81=1,IVM!$G81,0) -> 314303 | J81: =IF($G81=0, " ", IF(COUNTRY_INFO!$H81=1, IF(COUNTRY_INFO!$L81=1, 0," ")," ")) ->  | L81: MBD | M81: =IF($L81="ALB", IF(INTRO!$E$39="Non-endemic",IF($H81<>0,$D81*($H81-$G81),0),$D81*$H81), 0) -> 0 | N81: 0 | P81: 0 | Q81: =IF($L81="MBD", IF(INTRO!$E$39="Non-endemic",IF($H81<>0,$D81*($H81-$G81),0),$D81*$H81),0) -> 0 | R81: 0 | T81: 0 | V81: 314303 | W81: 1572 | Y81: 0 | Z81: 0 | AB81: 0 | AC81: 0
A82: =IF(AND(INTRO!$E$37="Non-endemic",INTRO!$E$41="Non-endemic")," ",IF(COUNTRY_INFO!A82=0," ",COUNTRY_INFO!A82)) -> Nigeria | B82: =IF(AND(INTRO!$E$37="Non-endemic",INTRO!$E$41="Non-endemic")," ",IF(COUNTRY_INFO!B82=0," ",COUNTRY_INFO!B82)) -> Anambra | C82: =IF(AND(INTRO!$E$37="Non-endemic",INTRO!$E$41="Non-endemic")," ",IF(COUNTRY_INFO!C82=0," ",COUNTRY_INFO!C82)) -> Awka North | D82: =IF(AND(INTRO!$E$37="Non-endemic",INTRO!$E$41="Non-endemic"),0,IF(AND(OR(COUNTRY_INFO!$H82=0,COUNTRY_INFO!$H82=4,COUNTRY_INFO!$H82=99),OR(COUNTRY_INFO!$J82=0,COUNTRY_INFO!$J82=4)),0,COUNTRY_INFO!$E82)) -> 31046 | E82: =IF(AND(INTRO!$E$37="Non-endemic",INTRO!$E$41="Non-endemic"),0,IF(AND(OR(COUNTRY_INFO!$H82=0,COUNTRY_INFO!$H82=4,COUNTRY_INFO!$H82=99),OR(COUNTRY_INFO!$J82=0,COUNTRY_INFO!$J82=4)),0,COUNTRY_INFO!$F82)) -> 43465 | F82: 74511 | G82: =IF(AND(INTRO!$E$37="Non-endemic",INTRO!$E$41="Non-endemic"),0,COUNTRY_INFO!Q82) -> 1 | H82: =IF(AND(INTRO!$E$37="Non-endemic",INTRO!$E$41="Non-endemic"),0,COUNTRY_INFO!S82) -> 1 | I82: =IF($G82=1,IVM!$G82,0) -> 124185 | J82: =IF($G82=0, " ", IF(COUNTRY_INFO!$H82=1, IF(COUNTRY_INFO!$L82=1, 0," ")," ")) ->  | L82: MBD | M82: =IF($L82="ALB", IF(INTRO!$E$39="Non-endemic",IF($H82<>0,$D82*($H82-$G82),0),$D82*$H82), 0) -> 0 | N82: 0 | P82: 0 | Q82: =IF($L82="MBD", IF(INTRO!$E$39="Non-endemic",IF($H82<>0,$D82*($H82-$G82),0),$D82*$H82),0) -> 31046 | R82: 0 | T82: 31046 | V82: 124185 | W82: 621 | Y82: 0 | Z82: 0 | AB82: 0 | AC82: 0
A83: =IF(AND(INTRO!$E$37="Non-endemic",INTRO!$E$41="Non-endemic")," ",IF(COUNTRY_INFO!A83=0," ",COUNTRY_INFO!A83)) -> Nigeria | B83: =IF(AND(INTRO!$E$37="Non-endemic",INTRO!$E$41="Non-endemic")," ",IF(COUNTRY_INFO!B83=0," ",COUNTRY_INFO!B83)) -> Anambra | C83: =IF(AND(INTRO!$E$37="Non-endemic",INTRO!$E$41="Non-endemic")," ",IF(COUNTRY_INFO!C83=0," ",COUNTRY_INFO!C83)) -> Awka south | D83: =IF(AND(INTRO!$E$37="Non-endemic",INTRO!$E$41="Non-endemic"),0,IF(AND(OR(COUNTRY_INFO!$H83=0,COUNTRY_INFO!$H83=4,COUNTRY_INFO!$H83=99),OR(COUNTRY_INFO!$J83=0,COUNTRY_INFO!$J83=4)),0,COUNTRY_INFO!$E83)) -> 52121 | E83: =IF(AND(INTRO!$E$37="Non-endemic",INTRO!$E$41="Non-endemic"),0,IF(AND(OR(COUNTRY_INFO!$H83=0,COUNTRY_INFO!$H83=4,COUNTRY_INFO!$H83=99),OR(COUNTRY_INFO!$J83=0,COUNTRY_INFO!$J83=4)),0,COUNTRY_INFO!$F83)) -> 72970 | F83: 125091 | G83: =IF(AND(INTRO!$E$37="Non-endemic",INTRO!$E$41="Non-endemic"),0,COUNTRY_INFO!Q83) -> 1 | H83: =IF(AND(INTRO!$E$37="Non-endemic",INTRO!$E$41="Non-endemic"),0,COUNTRY_INFO!S83) -> 1 | I83: =IF($G83=1,IVM!$G83,0) -> 208485 | J83: =IF($G83=0, " ", IF(COUNTRY_INFO!$H83=1, IF(COUNTRY_INFO!$L83=1, 0," ")," ")) ->  | L83: MBD | M83: =IF($L83="ALB", IF(INTRO!$E$39="Non-endemic",IF($H83<>0,$D83*($H83-$G83),0),$D83*$H83), 0) -> 0 | N83: 0 | P83: 0 | Q83: =IF($L83="MBD", IF(INTRO!$E$39="Non-endemic",IF($H83<>0,$D83*($H83-$G83),0),$D83*$H83),0) -> 52121 | R83: 0 | T83: 52121 | V83: 208485 | W83: 1043 | Y83: 0 | Z83: 0 | AB83: 0 | AC83: 0
A84: =IF(AND(INTRO!$E$37="Non-endemic",INTRO!$E$41="Non-endemic")," ",IF(COUNTRY_INFO!A84=0," ",COUNTRY_INFO!A84)) -> Nigeria | B84: =IF(AND(INTRO!$E$37="Non-endemic",INTRO!$E$41="Non-endemic")," ",IF(COUNTRY_INFO!B84=0," ",COUNTRY_INFO!B84)) -> Anambra | C84: =IF(AND(INTRO!$E$37="Non-endemic",INTRO!$E$41="Non-endemic")," ",IF(COUNTRY_INFO!C84=0," ",COUNTRY_INFO!C84)) -> Ayamelum | D84: =IF(AND(INTRO!$E$37="Non-endemic",INTRO!$E$41="Non-endemic"),0,IF(AND(OR(COUNTRY_INFO!$H84=0,COUNTRY_INFO!$H84=4,COUNTRY_INFO!$H84=99),OR(COUNTRY_INFO!$J84=0,COUNTRY_INFO!$J84=4)),0,COUNTRY_INFO!$E84)) -> 43674 | E84: =IF(AND(INTRO!$E$37="Non-endemic",INTRO!$E$41="Non-endemic"),0,IF(AND(OR(COUNTRY_INFO!$H84=0,COUNTRY_INFO!$H84=4,COUNTRY_INFO!$H84=99),OR(COUNTRY_INFO!$J84=0,COUNTRY_INFO!$J84=4)),0,COUNTRY_INFO!$F84)) -> 61144 | F84: 104818 | G84: =IF(AND(INTRO!$E$37="Non-endemic",INTRO!$E$41="Non-endemic"),0,COUNTRY_INFO!Q84) -> 1 | H84: =IF(AND(INTRO!$E$37="Non-endemic",INTRO!$E$41="Non-endemic"),0,COUNTRY_INFO!S84) -> 1 | I84: =IF($G84=1,IVM!$G84,0) -> 174696 | J84: =IF($G84=0, " ", IF(COUNTRY_INFO!$H84=1, IF(COUNTRY_INFO!$L84=1, 0," ")," ")) ->  | L84: MBD | M84: =IF($L84="ALB", IF(INTRO!$E$39="Non-endemic",IF($H84<>0,$D84*($H84-$G84),0),$D84*$H84), 0) -> 0 | N84: 0 | P84: 0 | Q84: =IF($L84="MBD", IF(INTRO!$E$39="Non-endemic",IF($H84<>0,$D84*($H84-$G84),0),$D84*$H84),0) -> 43674 | R84: 0 | T84: 43674 | V84: 174696 | W84: 874 | Y84: 0 | Z84: 0 | AB84: 0 | AC84: 0
A85: =IF(AND(INTRO!$E$37="Non-endemic",INTRO!$E$41="Non-endemic")," ",IF(COUNTRY_INFO!A85=0," ",COUNTRY_INFO!A85)) -> Nigeria | B85: =IF(AND(INTRO!$E$37="Non-endemic",INTRO!$E$41="Non-endemic")," ",IF(COUNTRY_INFO!B85=0," ",COUNTRY_INFO!B85)) -> Anambra | C85: =IF(AND(INTRO!$E$37="Non-endemic",INTRO!$E$41="Non-endemic")," ",IF(COUNTRY_INFO!C85=0," ",COUNTRY_INFO!C85)) -> Dunukofia | D85: =IF(AND(INTRO!$E$37="Non-endemic",INTRO!$E$41="Non-endemic"),0,IF(AND(OR(COUNTRY_INFO!$H85=0,COUNTRY_INFO!$H85=4,COUNTRY_INFO!$H85=99),OR(COUNTRY_INFO!$J85=0,COUNTRY_INFO!$J85=4)),0,COUNTRY_INFO!$E85)) -> 26573 | E85: =IF(AND(INTRO!$E$37="Non-endemic",INTRO!$E$41="Non-endemic"),0,IF(AND(OR(COUNTRY_INFO!$H85=0,COUNTRY_INFO!$H85=4,COUNTRY_INFO!$H85=99),OR(COUNTRY_INFO!$J85=0,COUNTRY_INFO!$J85=4)),0,COUNTRY_INFO!$F85)) -> 37202 | F85: 63775 | G85: =IF(AND(INTRO!$E$37="Non-endemic",INTRO!$E$41="Non-endemic"),0,COUNTRY_INFO!Q85) -> 1 | H85: =IF(AND(INTRO!$E$37="Non-endemic",INTRO!$E$41="Non-endemic"),0,COUNTRY_INFO!S85) -> 1 | I85: =IF($G85=1,IVM!$G85,0) -> 106291 | J85: =IF($G85=0, " ", IF(COUNTRY_INFO!$H85=1, IF(COUNTRY_INFO!$L85=1, 0," ")," ")) ->  | L85: MBD | M85: =IF($L85="ALB", IF(INTRO!$E$39="Non-endemic",IF($H85<>0,$D85*($H85-$G85),0),$D85*$H85), 0) -> 0 | N85: 0 | P85: 0 | Q85: =IF($L85="MBD", IF(INTRO!$E$39="Non-endemic",IF($H85<>0,$D85*($H85-$G85),0),$D85*$H85),0) -> 26573 | R85: 0 | T85: 26573 | V85: 106291 | W85: 532 | Y85: 0 | Z85: 0 | AB85: 0 | AC85: 0
A86: =IF(AND(INTRO!$E$37="Non-endemic",INTRO!$E$41="Non-endemic")," ",IF(COUNTRY_INFO!A86=0," ",COUNTRY_INFO!A86)) -> Nigeria | B86: =IF(AND(INTRO!$E$37="Non-endemic",INTRO!$E$41="Non-endemic")," ",IF(COUNTRY_INFO!B86=0," ",COUNTRY_INFO!B86)) -> Anambra | C86: =IF(AND(INTRO!$E$37="Non-endemic",INTRO!$E$41="Non-endemic")," ",IF(COUNTRY_INFO!C86=0," ",COUNTRY_INFO!C86)) -> Ekwusiko | D86: =IF(AND(INTRO!$E$37="Non-endemic",INTRO!$E$41="Non-endemic"),0,IF(AND(OR(COUNTRY_INFO!$H86=0,COUNTRY_INFO!$H86=4,COUNTRY_INFO!$H86=99),OR(COUNTRY_INFO!$J86=0,COUNTRY_INFO!$J86=4)),0,COUNTRY_INFO!$E86)) -> 43625 | E86: =IF(AND(INTRO!$E$37="Non-endemic",INTRO!$E$41="Non-endemic"),0,IF(AND(OR(COUNTRY_INFO!$H86=0,COUNTRY_INFO!$H86=4,COUNTRY_INFO!$H86=99),OR(COUNTRY_INFO!$J86=0,COUNTRY_INFO!$J86=4)),0,COUNTRY_INFO!$F86)) -> 61074 | F86: 104699 | G86: =IF(AND(INTRO!$E$37="Non-endemic",INTRO!$E$41="Non-endemic"),0,COUNTRY_INFO!Q86) -> 1 | H86: =IF(AND(INTRO!$E$37="Non-endemic",INTRO!$E$41="Non-endemic"),0,COUNTRY_INFO!S86) -> 1 | I86: =IF($G86=1,IVM!$G86,0) -> 174498 | J86: =IF($G86=0, " ", IF(COUNTRY_INFO!$H86=1, IF(COUNTRY_INFO!$L86=1, 0," ")," ")) ->  | L86: MBD | M86: =IF($L86="ALB", IF(INTRO!$E$39="Non-endemic",IF($H86<>0,$D86*($H86-$G86),0),$D86*$H86), 0) -> 0 | N86: 0 | P86: 0 | Q86: =IF($L86="MBD", IF(INTRO!$E$39="Non-endemic",IF($H86<>0,$D86*($H86-$G86),0),$D86*$H86),0) -> 43625 | R86: 0 | T86: 43625 | V86: 174498 | W86: 873 | Y86: 0 | Z86: 0 | AB86: 0 | AC86: 0
A87: =IF(AND(INTRO!$E$37="Non-endemic",INTRO!$E$41="Non-endemic")," ",IF(COUNTRY_INFO!A87=0," ",COUNTRY_INFO!A87)) -> Nigeria | B87: =IF(AND(INTRO!$E$37="Non-endemic",INTRO!$E$41="Non-endemic")," ",IF(COUNTRY_INFO!B87=0," ",COUNTRY_INFO!B87)) -> Anambra | C87: =IF(AND(INTRO!$E$37="Non-endemic",INTRO!$E$41="Non-endemic")," ",IF(COUNTRY_INFO!C87=0," ",COUNTRY_INFO!C87)) -> Idimili North | D87: =IF(AND(INTRO!$E$37="Non-endemic",INTRO!$E$41="Non-endemic"),0,IF(AND(OR(COUNTRY_INFO!$H87=0,COUNTRY_INFO!$H87=4,COUNTRY_INFO!$H87=99),OR(COUNTRY_INFO!$J87=0,COUNTRY_INFO!$J87=4)),0,COUNTRY_INFO!$E87)) -> 118768 | E87: =IF(AND(INTRO!$E$37="Non-endemic",INTRO!$E$41="Non-endemic"),0,IF(AND(OR(COUNTRY_INFO!$H87=0,COUNTRY_INFO!$H87=4,COUNTRY_INFO!$H87=99),OR(COUNTRY_INFO!$J87=0,COUNTRY_INFO!$J87=4)),0,COUNTRY_INFO!$F87)) -> 166275 | F87: 285043 | G87: =IF(AND(INTRO!$E$37="Non-endemic",INTRO!$E$41="Non-endemic"),0,COUNTRY_INFO!Q87) -> 1 | H87: =IF(AND(INTRO!$E$37="Non-endemic",INTRO!$E$41="Non-endemic"),0,COUNTRY_INFO!S87) -> 0 | I87: =IF($G87=1,IVM!$G87,0) -> 475071 | J87: =IF($G87=0, " ", IF(COUNTRY_INFO!$H87=1, IF(COUNTRY_INFO!$L87=1, 0," ")," ")) ->  | L87: MBD | M87: =IF($L87="ALB", IF(INTRO!$E$39="Non-endemic",IF($H87<>0,$D87*($H87-$G87),0),$D87*$H87), 0) -> 0 | N87: 0 | P87: 0 | Q87: =IF($L87="MBD", IF(INTRO!$E$39="Non-endemic",IF($H87<>0,$D87*($H87-$G87),0),$D87*$H87),0) -> 0 | R87: 0 | T87: 0 | V87: 475071 | W87: 2376 | Y87: 0 | Z87: 0 | AB87: 0 | AC87: 0
A88: =IF(AND(INTRO!$E$37="Non-endemic",INTRO!$E$41="Non-endemic")," ",IF(COUNTRY_INFO!A88=0," ",COUNTRY_INFO!A88)) -> Nigeria | B88: =IF(AND(INTRO!$E$37="Non-endemic",INTRO!$E$41="Non-endemic")," ",IF(COUNTRY_INFO!B88=0," ",COUNTRY_INFO!B88)) -> Anambra | C88: =IF(AND(INTRO!$E$37="Non-endemic",INTRO!$E$41="Non-endemic")," ",IF(COUNTRY_INFO!C88=0," ",COUNTRY_INFO!C88)) -> Idimili South | D88: =IF(AND(INTRO!$E$37="Non-endemic",INTRO!$E$41="Non-endemic"),0,IF(AND(OR(COUNTRY_INFO!$H88=0,COUNTRY_INFO!$H88=4,COUNTRY_INFO!$H88=99),OR(COUNTRY_INFO!$J88=0,COUNTRY_INFO!$J88=4)),0,COUNTRY_INFO!$E88)) -> 57259 | E88: =IF(AND(INTRO!$E$37="Non-endemic",INTRO!$E$41="Non-endemic"),0,IF(AND(OR(COUNTRY_INFO!$H88=0,COUNTRY_INFO!$H88=4,COUNTRY_INFO!$H88=99),OR(COUNTRY_INFO!$J88=0,COUNTRY_INFO!$J88=4)),0,COUNTRY_INFO!$F88)) -> 80162 | F88: 137421 | G88: =IF(AND(INTRO!$E$37="Non-endemic",INTRO!$E$41="Non-endemic"),0,COUNTRY_INFO!Q88) -> 1 | H88: =IF(AND(INTRO!$E$37="Non-endemic",INTRO!$E$41="Non-endemic"),0,COUNTRY_INFO!S88) -> 0 | I88: =IF($G88=1,IVM!$G88,0) -> 229034 | J88: =IF($G88=0, " ", IF(COUNTRY_INFO!$H88=1, IF(COUNTRY_INFO!$L88=1, 0," ")," ")) ->  | L88: MBD | M88: =IF($L88="ALB", IF(INTRO!$E$39="Non-endemic",IF($H88<>0,$D88*($H88-$G88),0),$D88*$H88), 0) -> 0 | N88: 0 | P88: 0 | Q88: =IF($L88="MBD", IF(INTRO!$E$39="Non-endemic",IF($H88<>0,$D88*($H88-$G88),0),$D88*$H88),0) -> 0 | R88: 0 | T88: 0 | V88: 229034 | W88: 1146 | Y88: 0 | Z88: 0 | AB88: 0 | AC88: 0
A89: =IF(AND(INTRO!$E$37="Non-endemic",INTRO!$E$41="Non-endemic")," ",IF(COUNTRY_INFO!A89=0," ",COUNTRY_INFO!A89)) -> Nigeria | B89: =IF(AND(INTRO!$E$37="Non-endemic",INTRO!$E$41="Non-endemic")," ",IF(COUNTRY_INFO!B89=0," ",COUNTRY_INFO!B89)) -> Anambra | C89: =IF(AND(INTRO!$E$37="Non-endemic",INTRO!$E$41="Non-endemic")," ",IF(COUNTRY_INFO!C89=0," ",COUNTRY_INFO!C89)) -> Ihiala | D89: =IF(AND(INTRO!$E$37="Non-endemic",INTRO!$E$41="Non-endemic"),0,IF(AND(OR(COUNTRY_INFO!$H89=0,COUNTRY_INFO!$H89=4,COUNTRY_INFO!$H89=99),OR(COUNTRY_INFO!$J89=0,COUNTRY_INFO!$J89=4)),0,COUNTRY_INFO!$E89)) -> 83306 | E89: =IF(AND(INTRO!$E$37="Non-endemic",INTRO!$E$41="Non-endemic"),0,IF(AND(OR(COUNTRY_INFO!$H89=0,COUNTRY_INFO!$H89=4,COUNTRY_INFO!$H89=99),OR(COUNTRY_INFO!$J89=0,COUNTRY_INFO!$J89=4)),0,COUNTRY_INFO!$F89)) -> 116628 | F89: 199934 | G89: =IF(AND(INTRO!$E$37="Non-endemic",INTRO!$E$41="Non-endemic"),0,COUNTRY_INFO!Q89) -> 1 | H89: =IF(AND(INTRO!$E$37="Non-endemic",INTRO!$E$41="Non-endemic"),0,COUNTRY_INFO!S89) -> 1 | I89: =IF($G89=1,IVM!$G89,0) -> 333223 | J89: =IF($G89=0, " ", IF(COUNTRY_INFO!$H89=1, IF(COUNTRY_INFO!$L89=1, 0," ")," ")) ->  | L89: MBD | M89: =IF($L89="ALB", IF(INTRO!$E$39="Non-endemic",IF($H89<>0,$D89*($H89-$G89),0),$D89*$H89), 0) -> 0 | N89: 0 | P89: 0 | Q89: =IF($L89="MBD", IF(INTRO!$E$39="Non-endemic",IF($H89<>0,$D89*($H89-$G89),0),$D89*$H89),0) -> 83306 | R89: 0 | T89: 83306 | V89: 333223 | W89: 1667 | Y89: 0 | Z89: 0 | AB89: 0 | AC89: 0
A90: =IF(AND(INTRO!$E$37="Non-endemic",INTRO!$E$41="Non-endemic")," ",IF(COUNTRY_INFO!A90=0," ",COUNTRY_INFO!A90)) -> Nigeria | B90: =IF(AND(INTRO!$E$37="Non-endemic",INTRO!$E$41="Non-endemic")," ",IF(COUNTRY_INFO!B90=0," ",COUNTRY_INFO!B90)) -> Anambra | C90: =IF(AND(INTRO!$E$37="Non-endemic",INTRO!$E$41="Non-endemic")," ",IF(COUNTRY_INFO!C90=0," ",COUNTRY_INFO!C90)) -> Njikoka | D90: =IF(AND(INTRO!$E$37="Non-endemic",INTRO!$E$41="Non-endemic"),0,IF(AND(OR(COUNTRY_INFO!$H90=0,COUNTRY_INFO!$H90=4,COUNTRY_INFO!$H90=99),OR(COUNTRY_INFO!$J90=0,COUNTRY_INFO!$J90=4)),0,COUNTRY_INFO!$E90)) -> 40932 | E90: =IF(AND(INTRO!$E$37="Non-endemic",INTRO!$E$41="Non-endemic"),0,IF(AND(OR(COUNTRY_INFO!$H90=0,COUNTRY_INFO!$H90=4,COUNTRY_INFO!$H90=99),OR(COUNTRY_INFO!$J90=0,COUNTRY_INFO!$J90=4)),0,COUNTRY_INFO!$F90)) -> 57305 | F90: 98237 | G90: =IF(AND(INTRO!$E$37="Non-endemic",INTRO!$E$41="Non-endemic"),0,COUNTRY_INFO!Q90) -> 1 | H90: =IF(AND(INTRO!$E$37="Non-endemic",INTRO!$E$41="Non-endemic"),0,COUNTRY_INFO!S90) -> 1 | I90: =IF($G90=1,IVM!$G90,0) -> 163729 | J90: =IF($G90=0, " ", IF(COUNTRY_INFO!$H90=1, IF(COUNTRY_INFO!$L90=1, 0," ")," ")) ->  | L90: MBD | M90: =IF($L90="ALB", IF(INTRO!$E$39="Non-endemic",IF($H90<>0,$D90*($H90-$G90),0),$D90*$H90), 0) -> 0 | N90: 0 | P90: 0 | Q90: =IF($L90="MBD", IF(INTRO!$E$39="Non-endemic",IF($H90<>0,$D90*($H90-$G90),0),$D90*$H90),0) -> 40932 | R90: 0 | T90: 40932 | V90: 163729 | W90: 819 | Y90: 0 | Z90: 0 | AB90: 0 | AC90: 0
A91: =IF(AND(INTRO!$E$37="Non-endemic",INTRO!$E$41="Non-endemic")," ",IF(COUNTRY_INFO!A91=0," ",COUNTRY_INFO!A91)) -> Nigeria | B91: =IF(AND(INTRO!$E$37="Non-endemic",INTRO!$E$41="Non-endemic")," ",IF(COUNTRY_INFO!B91=0," ",COUNTRY_INFO!B91)) -> Anambra | C91: =IF(AND(INTRO!$E$37="Non-endemic",INTRO!$E$41="Non-endemic")," ",IF(COUNTRY_INFO!C91=0," ",COUNTRY_INFO!C91)) -> Nnewi North | D91: =IF(AND(INTRO!$E$37="Non-endemic",INTRO!$E$41="Non-endemic"),0,IF(AND(OR(COUNTRY_INFO!$H91=0,COUNTRY_INFO!$H91=4,COUNTRY_INFO!$H91=99),OR(COUNTRY_INFO!$J91=0,COUNTRY_INFO!$J91=4)),0,COUNTRY_INFO!$E91)) -> 43442 | E91: =IF(AND(INTRO!$E$37="Non-endemic",INTRO!$E$41="Non-endemic"),0,IF(AND(OR(COUNTRY_INFO!$H91=0,COUNTRY_INFO!$H91=4,COUNTRY_INFO!$H91=99),OR(COUNTRY_INFO!$J91=0,COUNTRY_INFO!$J91=4)),0,COUNTRY_INFO!$F91)) -> 60819 | F91: 104261 | G91: =IF(AND(INTRO!$E$37="Non-endemic",INTRO!$E$41="Non-endemic"),0,COUNTRY_INFO!Q91) -> 1 | H91: =IF(AND(INTRO!$E$37="Non-endemic",INTRO!$E$41="Non-endemic"),0,COUNTRY_INFO!S91) -> 1 | I91: =IF($G91=1,IVM!$G91,0) -> 173769 | J91: =IF($G91=0, " ", IF(COUNTRY_INFO!$H91=1, IF(COUNTRY_INFO!$L91=1, 0," ")," ")) ->  | L91: MBD | M91: =IF($L91="ALB", IF(INTRO!$E$39="Non-endemic",IF($H91<>0,$D91*($H91-$G91),0),$D91*$H91), 0) -> 0 | N91: 0 | P91: 0 | Q91: =IF($L91="MBD", IF(INTRO!$E$39="Non-endemic",IF($H91<>0,$D91*($H91-$G91),0),$D91*$H91),0) -> 43442 | R91: 0 | T91: 43442 | V91: 173769 | W91: 869 | Y91: 0 | Z91: 0 | AB91: 0 | AC91: 0
A92: =IF(AND(INTRO!$E$37="Non-endemic",INTRO!$E$41="Non-endemic")," ",IF(COUNTRY_INFO!A92=0," ",COUNTRY_INFO!A92)) -> Nigeria | B92: =IF(AND(INTRO!$E$37="Non-endemic",INTRO!$E$41="Non-endemic")," ",IF(COUNTRY_INFO!B92=0," ",COUNTRY_INFO!B92)) -> Anambra | C92: =IF(AND(INTRO!$E$37="Non-endemic",INTRO!$E$41="Non-endemic")," ",IF(COUNTRY_INFO!C92=0," ",COUNTRY_INFO!C92)) -> Nnewi South | D92: =IF(AND(INTRO!$E$37="Non-endemic",INTRO!$E$41="Non-endemic"),0,IF(AND(OR(COUNTRY_INFO!$H92=0,COUNTRY_INFO!$H92=4,COUNTRY_INFO!$H92=99),OR(COUNTRY_INFO!$J92=0,COUNTRY_INFO!$J92=4)),0,COUNTRY_INFO!$E92)) -> 64420 | E92: =IF(AND(INTRO!$E$37="Non-endemic",INTRO!$E$41="Non-endemic"),0,IF(AND(OR(COUNTRY_INFO!$H92=0,COUNTRY_INFO!$H92=4,COUNTRY_INFO!$H92=99),OR(COUNTRY_INFO!$J92=0,COUNTRY_INFO!$J92=4)),0,COUNTRY_INFO!$F92)) -> 90188 | F92: 154608 | G92: =IF(AND(INTRO!$E$37="Non-endemic",INTRO!$E$41="Non-endemic"),0,COUNTRY_INFO!Q92) -> 1 | H92: =IF(AND(INTRO!$E$37="Non-endemic",INTRO!$E$41="Non-endemic"),0,COUNTRY_INFO!S92) -> 1 | I92: =IF($G92=1,IVM!$G92,0) -> 257680 | J92: =IF($G92=0, " ", IF(COUNTRY_INFO!$H92=1, IF(COUNTRY_INFO!$L92=1, 0," ")," ")) ->  | L92: MBD | M92: =IF($L92="ALB", IF(INTRO!$E$39="Non-endemic",IF($H92<>0,$D92*($H92-$G92),0),$D92*$H92), 0) -> 0 | N92: 0 | P92: 0 | Q92: =IF($L92="MBD", IF(INTRO!$E$39="Non-endemic",IF($H92<>0,$D92*($H92-$G92),0),$D92*$H92),0) -> 64420 | R92: 0 | T92: 64420 | V92: 257680 | W92: 1289 | Y92: 0 | Z92: 0 | AB92: 0 | AC92: 0
A93: =IF(AND(INTRO!$E$37="Non-endemic",INTRO!$E$41="Non-endemic")," ",IF(COUNTRY_INFO!A93=0," ",COUNTRY_INFO!A93)) -> Nigeria | B93: =IF(AND(INTRO!$E$37="Non-endemic",INTRO!$E$41="Non-endemic")," ",IF(COUNTRY_INFO!B93=0," ",COUNTRY_INFO!B93)) -> Anambra | C93: =IF(AND(INTRO!$E$37="Non-endemic",INTRO!$E$41="Non-endemic")," ",IF(COUNTRY_INFO!C93=0," ",COUNTRY_INFO!C93)) -> Ogbaru | D93: =IF(AND(INTRO!$E$37="Non-endemic",INTRO!$E$41="Non-endemic"),0,IF(AND(OR(COUNTRY_INFO!$H93=0,COUNTRY_INFO!$H93=4,COUNTRY_INFO!$H93=99),OR(COUNTRY_INFO!$J93=0,COUNTRY_INFO!$J93=4)),0,COUNTRY_INFO!$E93)) -> 61173 | E93: =IF(AND(INTRO!$E$37="Non-endemic",INTRO!$E$41="Non-endemic"),0,IF(AND(OR(COUNTRY_INFO!$H93=0,COUNTRY_INFO!$H93=4,COUNTRY_INFO!$H93=99),OR(COUNTRY_INFO!$J93=0,COUNTRY_INFO!$J93=4)),0,COUNTRY_INFO!$F93)) -> 85642 | F93: 146815 | G93: =IF(AND(INTRO!$E$37="Non-endemic",INTRO!$E$41="Non-endemic"),0,COUNTRY_INFO!Q93) -> 1 | H93: =IF(AND(INTRO!$E$37="Non-endemic",INTRO!$E$41="Non-endemic"),0,COUNTRY_INFO!S93) -> 0 | I93: =IF($G93=1,IVM!$G93,0) -> 244691 | J93: =IF($G93=0, " ", IF(COUNTRY_INFO!$H93=1, IF(COUNTRY_INFO!$L93=1, 0," ")," ")) ->  | L93: MBD | M93: =IF($L93="ALB", IF(INTRO!$E$39="Non-endemic",IF($H93<>0,$D93*($H93-$G93),0),$D93*$H93), 0) -> 0 | N93: 0 | P93: 0 | Q93: =IF($L93="MBD", IF(INTRO!$E$39="Non-endemic",IF($H93<>0,$D93*($H93-$G93),0),$D93*$H93),0) -> 0 | R93: 0 | T93: 0 | V93: 244691 | W93: 1224 | Y93: 0 | Z93: 0 | AB93: 0 | AC93: 0
A94: =IF(AND(INTRO!$E$37="Non-endemic",INTRO!$E$41="Non-endemic")," ",IF(COUNTRY_INFO!A94=0," ",COUNTRY_INFO!A94)) -> Nigeria | B94: =IF(AND(INTRO!$E$37="Non-endemic",INTRO!$E$41="Non-endemic")," ",IF(COUNTRY_INFO!B94=0," ",COUNTRY_INFO!B94)) -> Anambra | C94: =IF(AND(INTRO!$E$37="Non-endemic",INTRO!$E$41="Non-endemic")," ",IF(COUNTRY_INFO!C94=0," ",COUNTRY_INFO!C94)) -> Onitsha North | D94: =IF(AND(INTRO!$E$37="Non-endemic",INTRO!$E$41="Non-endemic"),0,IF(AND(OR(COUNTRY_INFO!$H94=0,COUNTRY_INFO!$H94=4,COUNTRY_INFO!$H94=99),OR(COUNTRY_INFO!$J94=0,COUNTRY_INFO!$J94=4)),0,COUNTRY_INFO!$E94)) -> 34447 | E94: =IF(AND(INTRO!$E$37="Non-endemic",INTRO!$E$41="Non-endemic"),0,IF(AND(OR(COUNTRY_INFO!$H94=0,COUNTRY_INFO!$H94=4,COUNTRY_INFO!$H94=99),OR(COUNTRY_INFO!$J94=0,COUNTRY_INFO!$J94=4)),0,COUNTRY_INFO!$F94)) -> 48226 | F94: 82673 | G94: =IF(AND(INTRO!$E$37="Non-endemic",INTRO!$E$41="Non-endemic"),0,COUNTRY_INFO!Q94) -> 1 | H94: =IF(AND(INTRO!$E$37="Non-endemic",INTRO!$E$41="Non-endemic"),0,COUNTRY_INFO!S94) -> 0 | I94: =IF($G94=1,IVM!$G94,0) -> 137788 | J94: =IF($G94=0, " ", IF(COUNTRY_INFO!$H94=1, IF(COUNTRY_INFO!$L94=1, 0," ")," ")) ->  | L94: MBD | M94: =IF($L94="ALB", IF(INTRO!$E$39="Non-endemic",IF($H94<>0,$D94*($H94-$G94),0),$D94*$H94), 0) -> 0 | N94: 0 | P94: 0 | Q94: =IF($L94="MBD", IF(INTRO!$E$39="Non-endemic",IF($H94<>0,$D94*($H94-$G94),0),$D94*$H94),0) -> 0 | R94: 0 | T94: 0 | V94: 137788 | W94: 689 | Y94: 0 | Z94: 0 | AB94: 0 | AC94: 0
